{"text_format":"1","workbook":"xlsx","n_sheets":41,"sheets":["Bilgi","Çoklu Plan Oluştur","PLAN","12 T","11 J","11 P","11 T","10 P","10 T","9. P","9. T","12 H","12 G","12 F","12 E","12 D","12 C","12 B","12 A","11 I","11 G","11 F","11 E","11 C","11 B","10 F","10 E","10 D","10 C","10 B","10 A","9. F","9. E","9. D","9. C","9. B","9. A","Sayfa1","Sayfa2","Sayfa3","Sayfa4"],"not_rendered":{"charts":0,"images":0,"macros":1,"external_links":0,"defined_names":35,"comments":1,"pivot_tables":0},"unopened":[],"bounds":{"document_bytes":16777216,"sheet_cells":100000,"rows_first":2000,"rows_last":500,"rows_between":2000,"halvings":0,"cell_chars":16384,"cell_head_chars":4096},"cells_cut":0,"cells_raw":0,"read":"whole","date_system":"1900"}

{"sheet":"Bilgi","index":0,"n_rows":12,"n_cols":4,"rows_kept":12,"cut":false,"hidden":false,"merged":[[11,3,13,4],[9,0,9,1],[0,0,0,1],[1,0,1,1],[0,3,0,4],[1,3,3,4],[4,3,4,4],[5,3,9,4]]}
["Sorgun Rehberlik ve Araştırma Merkezi Sınıf Rehberlik Planı Hazırlama Programı",null,null,"SINIF REHBERLİK PROGRAMI SÖZLÜĞÜ"]
["↓ Sınıfınıza ait bilgileri aşağıya yazınız ↓",null,null,"Sınıf rehber öğretmenlerinin uygulamalarına kolaylık sağlamak ve kavram karmaşalarını önlemek adına Sınıf Rehberlik Programı kazanımlarında yer alan ve Psikolojik Danışma ve Rehberlik alanında sıklıkla kullanılan kavramların tanımlarına yer verilmiştir."]
["Eğitim Öğretim Yılı","2022-2023"]
["Okul Adı","İSKENDERUN MESLEKİ VE TEKNİK ANADOLU LİSESİ"]
["Sınıf Seçimi","12. Sınıf",null,"DİSREP Nedir?"]
["Şube Seçimi","T Şubesi",null,{"$f":"IF(D5=\"\",\"Yukarıdan Kavram Seçiniz\",VLOOKUP(D5,Sayfa3!B1:C13,2,FALSE))","v":"Hazırlanan sınıf rehberlik etkinliklerinin değişen ihtiyaçlar doğrultusunda dijital olarak kullanılabilmesi, öğretmenlerin kullanacakları materyal çeşitliliğini artırabilmek amacıyla etkinliklerin dijital olarak uyarlanmasına yönelik çalışmalar gerçekleştirilmiş ve   ilkokul, ortaokul ile ortaöğretim kademeleri için Dijital Sınıf Rehberlik Etkinlikleri Platformu (DİSREP) oluşturulmuştur. Bu platform aracılığıyla sınıf rehberlik etkinliklerini uygulama sürecinde öğrenciler; bilgisayar, telefon, tablet vb. aracılığıyla da sınıf rehberlik etkinliklerinin uygulanması sürecine katılabileceklerdir. Dijital Sınıf Rehberlik Etkinlikleri Platformu (DİSREP) ile sınıf rehber öğretmenleri sınıfta etkileşimli tahta aracılığıyla her hafta etkinlikleri daha kolay ve dikkat çekici şekilde uygulayabilecekler; öğrenciler bazı etkinlikleri kendi başlarına online olarak gerçekleştirebilecek, yüz yüze ya da uzaktan/online eğitimde öğretmen ve öğrenciler etkinliklere erişebileceklerdir."}]
["Alan Seçimi (Meslek Lis.)"]
["Öğretmenin Adı Soyadı","Yüksel TENNİOĞLU"]
["Okul Müdürü Adı Soyadı","Yusuf YILDIRIM"]
["Sorgun RAM olarak çalışmalarınızda başarılar dileriz."]
[]
[null,null,null,"http://sorgunram.meb.k12.tr                    "]

{"sheet":"Çoklu Plan Oluştur","index":1,"n_rows":120,"n_cols":4,"rows_kept":120,"cut":false,"hidden":false,"merged":[[2,0,2,2],[1,0,1,2],[0,0,0,2]]}
["Eğitim Öğretim Yılı",null,null,"2022-2023"]
["Okul Adı",null,null,"İSKENDERUN MESLEKİ VE TEKNİK ANADOLU LİSESİ"]
["Okul Müdürü Adı Soyadı:",null,null,"Yusuf YILDIRIM"]
["SN","Sınıf","Şube","Sınıf Öğretmeni Adı Soyadı"]
[1,"9. Sınıf","A Şubesi","Fikret UZUN"]
[2,"9. Sınıf","B Şubesi","Özkan PARLAR"]
[3,"9. Sınıf","C Şubesi","Şükrü ÇEKİÇ"]
[4,"9. Sınıf","D Şubesi","Birgül ASLANTAŞ"]
[5,"9. Sınıf","E Şubesi","Semih EFETÜRK"]
[6,"9. Sınıf","F Şubesi","Mehmet KÜÇÜKDAĞ"]
[7,"9. Sınıf","T Şubesi","Mustafa BOŞÇA"]
[8,"9. Sınıf","P Şubesi","Hümeyra ÇOLAK"]
[9,"10. Sınıf","A Şubesi","Metin YILDIZ"]
[10,"10. Sınıf","B Şubesi","Berkay KAPLAN"]
[11,"10. Sınıf","C Şubesi","Nihat ÇOKAN"]
[12,"10. Sınıf","D Şubesi","Abidin REVAN"]
[13,"10. Sınıf","E Şubesi","Vahit DİNÇ"]
[14,"10. Sınıf","F Şubesi","Cemil TÜMKAYA (MOBİLYA-MOTOR)"]
[15,"11. Sınıf","B Şubesi","Mehmet TÜMÜKAYA"]
[16,"11. Sınıf","C Şubesi","Enis GÖÇER"]
[17,"11. Sınıf","E Şubesi","İsmail TÜRKMEN"]
[18,"11. Sınıf","F Şubesi","Mehmet BİLİR"]
[19,"11. Sınıf","G Şubesi","Nasrettin TAÇYILDIZ"]
[20,"11. Sınıf","I Şubesi","Emine Çiçek TERZİ"]
[21,"12. Sınıf","A Şubesi","Emel HACIKERİMLİ"]
[22,"12. Sınıf","B Şubesi","Funda AKGÜL"]
[23,"12. Sınıf","C Şubesi","Zekeriya TETİK"]
[24,"12. Sınıf","D Şubesi","Mehmet Ali SÜRMELİOĞLU"]
[25,"12. Sınıf","E Şubesi","Hakan FİDAN"]
[26,"12. Sınıf","F Şubesi","Meryem ASKERDEN"]
[27,"12. Sınıf","G Şubesi","Neşet ER"]
[28,"12. Sınıf","H Şubesi","Necmiddin ŞANLI"]
[29,"10. Sınıf","T Şubesi","Hasan Hüseyin MURT"]
[30,"10. Sınıf","P Şubesi","Mehmet Ali KELEŞ"]
[31,"11. Sınıf","T Şubesi","Berna ÇAKIR"]
[32,"11. Sınıf","P Şubesi","Osman Nuri BİLER"]
[33,"11. Sınıf","J Şubesi","Mehmet KUNDAKÇI"]
[34,"12. Sınıf","T Şubesi","Yüksel TENNİOĞLU"]
[35]
[36]
[37]
[38]
[39]
[40]
[41]
[42]
[43]
[44]
[45]
[46]
[47]
[48]
[49]
[50]
[51]
[52]
[53]
[54]
[55]
[56]
[57]
[58]
[59]
[60]
[61]
[62]
[63]
[64]
[65]
[66]
[67]
[68]
[69]
[70]
[71]
[72]
[73]
[74]
[75]
[76]
[77]
[78]
[79]
[80]
[81]
[82]
[83]
[84]
[85]
[86]
[87]
[88]
[89]
[90]
[91]
[92]
[93]
[94]
[95]
[96]
[97]
[98]
[99]
[100]
[101]
[102]
[103]
[104]
[105]
[106]
[107]
[108]
[109]
[110]
[111]
[112]
[113]
[114]
[115]
[116]

{"sheet":"PLAN","index":2,"n_rows":34,"n_cols":7,"rows_kept":34,"cut":false,"hidden":true,"merged":[[2,1,2,6],[2,0,34,0],[0,0,0,6],[1,0,1,6]]}
[{"$f":"IF(Bilgi!B4=\"\",\"Lütfen Bilgi Sayfasına Okul Adını Yazınız\",UPPER(Bilgi!B4))","v":"İSKENDERUN MESLEKİ VE TEKNİK ANADOLU LİSESİ"}]
[{"$f":"Bilgi!B3&\" EĞİTİM ÖĞRETİM YILI\"","v":"2022-2023 EĞİTİM ÖĞRETİM YILI"}]
["YAPILACAK ÇALIŞMALAR",{"$f":"IF(OR(Bilgi!B5=\"\",Bilgi!B6=\"\"),\"Lütfen Bilgi Sayfasından Sınıf ve Şube Seçimi Yapınız\",IF(Bilgi!B7=\"\",UPPER(Bilgi!B5)&\" \"&UPPER(Bilgi!B6)&\" SINIF REHBERLİK PLANI\",UPPER(Bilgi!B5)&\" \"&UPPER(Bilgi!B7)&\" ALANI \"&UPPER(Bilgi!B6)&\" SINIF REHBERLİK PLANI\"))","v":"12. SINIF T ŞUBESİ SINIF REHBERLİK PLANI"}]
[null,"EYLÜL","TARİH","EKİM","TARİH","KASIM","TARİH"]
[null,"Rehberlik Yürütme Komisyonu Toplantısı","2. Hafta","4- Zamanını, ihtiyaçları ve sorumlulukları çerçevesinde planlar.","2. Hafta","8- Akademik çalışmalarını zamanında bitirmede kararlı olur.","1. Hafta"]
[null,"1- Sahip olduğu karakter güçlerini zorluklar karşısında kullanır.","3. Hafta","5- Bilişim teknolojileri kullanımı konusunda kendini değerlendirir.","3. Hafta","9- Kariyer planlama sürecinde kişisel özelliklerini kullanır.","2. Hafta"]
[null,"Bilgi Fişlerinin Doldurulması","3. Hafta","Psikososyal (İşin Aslı)","3. Hafta","10- Ortaöğretim sonrası kariyer tercihleri ile ilgili yardım alabileceği kaynaklara başvurur.","4. Hafta"]
[null,"Sınıf Rehberlik Planının Hazırlanması","3. Hafta","6- Kendi bedenine ilişkin olumlu tutum geliştirir.","4. Hafta","Psikososyal (Duygı Düşünce Kartları)","4. Hafta"]
[null,"2- Okula hazırlıklı gelme ile akademik gelişimi arasında bağ kurar.","4. Hafta","7- Üst öğretim kurumlarına geçiş sınavlarına hazırlanmak ve başarılı olmak için stratejiler geliştirir.","5. Hafta","11- Kültürel farklılıklara duyarlı bakış açısı geliştirir.","5. Hafta"]
[null,"BEP 'lerin Oluşturulması","4. Hafta","Veli Toplantısı","5. Hafta","Veli Ziyaretleri","5. Hafta"]
[null,"3- Zamanını, ihtiyaçları ve sorumlulukları çerçevesinde planlar.","5. Hafta"]
[null,"ARALIK","TARİH","OCAK","TARİH","ŞUBAT","TARİH"]
[null,"12- Kültürel farklılıklara duyarlı davranışlar sergiler.","2. Hafta","16- Öz geçmiş yazar.","1. Hafta","19- İş görüşme becerilerini açıklar.","2. Hafta"]
[null,"13- Adil olmayı güçlendirmek için “hak savunuculuğu” yapar.","3. Hafta","Toplantı (Diğer)","1. Hafta","Psikososyal (Ortak Özelliklerimiz)","2. Hafta"]
[null,"14- Yaşam amaçlarıyla ilgili eylem planını gözden geçirir.","4. Hafta","17- Öz geçmiş yazar.","2. Hafta","20- İş görüşme becerilerini kullanır.","3. Hafta"]
[null,"Psikososyal (Duygu Listem)","4. Hafta","18- Stres yaratan kaynakları fark eder.","3. Hafta","21- Toplum için gönüllü çalışmada duyarlı davranır.","4. Hafta"]
[null,"15- Yaşadığı yoğun duyguları yönetir.","5. Hafta"]
[null,"Veli Ziyaretleri","5. Hafta"]
[]
[null,"MART","TARİH","NİSAN","TARİH","MAYIS","TARİH"]
[null,"22- Karakter güçleri ile iyi oluş arasında bağ kurar.","1. Hafta","27- Üst öğretim kurumuna ya da iş yaşamına ilişkin kariyer kararını verir.","2. Hafta","30- Sınavlara ilişkin yoğun duygularını yönetir.","1. Hafta"]
[null,"23- İyi oluşunu destekleyen duyguları yaşamında sıklıkla deneyimler.","2. Hafta","Psikososyal (Doğal Tepkiler)","2. Hafta","RİBA Uygulaması","1. Hafta"]
[null,"Psikososyal (Ergenim Farkındayım)","2. Hafta","28- Değişim ve belirsizlikle baş eder.","3. Hafta","31- Öğrenmenin hayat boyu devam ettiğine inanır.","2. Hafta"]
[null,"24- Mesleki bilgi kaynaklarını kullanır","3. Hafta","29- Sınavlara ilişkin yoğun duygularını yönetir.","5. Hafta","32- Üst öğretim kurumlarına geçiş sınavlarıyla ilgili bilgi edinir.","3. Hafta"]
[null,"25- Seçmeyi düşündüğü mesleklerle ilgili kariyer planlaması yapar.","4. Hafta","Veli Ziyaretleri","5. Hafta","33- Bir üst öğretim kurumuna ilişkin ön bilgiler edinir.","4. Hafta"]
[null,"26- Meslek seçiminde karar verme becerisini kullanır.","5. Hafta",null,null,"Veli Ziyaretleri","4. Hafta"]
[null,"Veli Ziyaretleri","5. Hafta",null,null,"34- Bir üst öğretim kurumuna ve iş yaşamına geçiş sürecine yönelik duygu ve düşüncelerini ifade eder.","5. Hafta"]
[null,"HAZİRAN","TARİH"]
[null,"35- Eğitim öğretim hayatının kendisine kattıklarını değerlendirir.","2. Hafta","İMZA",null,"İMZA"]
[null,"36- Sınıf rehberlik programı etkinliklerine/yaşantılarına ilişkin duygu ve düşüncelerini yansıtır.","3. Hafta"]
[]
[]
[null,null,null,"ÖĞRETMENİN ADI SOYADI",null,"OKUL MÜDÜRÜNÜN ADI SOYADI"]
[null,null,null,{"$f":"IF(Bilgi!B8=\"\",\"Lütfen Bilgi Sayfasına Öğretmen İsim ve Soyismini Yazınız\",UPPER(Bilgi!B8))","v":"YÜKSEL TENNİOĞLU"},null,{"$f":"IF(Bilgi!B9=\"\",\"Lütfen Bilgi Sayfasına Okul Müdürü İsim ve Soyismini Yazınız\",UPPER(Bilgi!B9))","v":"YUSUF YILDIRIM"}]

{"sheet":"12 T","index":3,"n_rows":34,"n_cols":7,"rows_kept":34,"cut":false,"hidden":false,"merged":[[0,0,0,6],[1,0,1,6],[2,0,34,0],[2,1,2,6]]}
[{"$f":"IF(Bilgi!B4=\"\",\"Lütfen Bilgi Sayfasına Okul Adını Yazınız\",UPPER(Bilgi!B4))","v":"İSKENDERUN MESLEKİ VE TEKNİK ANADOLU LİSESİ"}]
[{"$f":"Bilgi!B3&\" EĞİTİM ÖĞRETİM YILI\"","v":"2022-2023 EĞİTİM ÖĞRETİM YILI"}]
["YAPILACAK ÇALIŞMALAR","12. ATP/E ŞUBESİ SINIF REHBERLİK PLANI"]
[null,"EYLÜL","TARİH","EKİM","TARİH","KASIM","TARİH"]
[null,"Rehberlik Yürütme Komisyonu Toplantısı","2. Hafta","4- Zamanını, ihtiyaçları ve sorumlulukları çerçevesinde planlar.","2. Hafta","8- Akademik çalışmalarını zamanında bitirmede kararlı olur.","1. Hafta"]
[null,"1- Sahip olduğu karakter güçlerini zorluklar karşısında kullanır.","3. Hafta","5- Bilişim teknolojileri kullanımı konusunda kendini değerlendirir.","3. Hafta","9- Kariyer planlama sürecinde kişisel özelliklerini kullanır.","2. Hafta"]
[null,"Bilgi Fişlerinin Doldurulması","3. Hafta","Psikososyal (İşin Aslı)","3. Hafta","10- Ortaöğretim sonrası kariyer tercihleri ile ilgili yardım alabileceği kaynaklara başvurur.","4. Hafta"]
[null,"Sınıf Rehberlik Planının Hazırlanması","3. Hafta","6- Kendi bedenine ilişkin olumlu tutum geliştirir.","4. Hafta","Psikososyal (Duygı Düşünce Kartları)","4. Hafta"]
[null,"2- Okula hazırlıklı gelme ile akademik gelişimi arasında bağ kurar.","4. Hafta","7- Üst öğretim kurumlarına geçiş sınavlarına hazırlanmak ve başarılı olmak için stratejiler geliştirir.","5. Hafta","11- Kültürel farklılıklara duyarlı bakış açısı geliştirir.","5. Hafta"]
[null,"BEP 'lerin Oluşturulması","4. Hafta","Veli Toplantısı","5. Hafta","Veli Ziyaretleri","5. Hafta"]
[null,"3- Zamanını, ihtiyaçları ve sorumlulukları çerçevesinde planlar.","5. Hafta"]
[null,"ARALIK","TARİH","OCAK","TARİH","ŞUBAT","TARİH"]
[null,"12- Kültürel farklılıklara duyarlı davranışlar sergiler.","2. Hafta","16- Öz geçmiş yazar.","1. Hafta","19- İş görüşme becerilerini açıklar.","2. Hafta"]
[null,"13- Adil olmayı güçlendirmek için “hak savunuculuğu” yapar.","3. Hafta","Toplantı (Diğer)","1. Hafta","Psikososyal (Ortak Özelliklerimiz)","2. Hafta"]
[null,"14- Yaşam amaçlarıyla ilgili eylem planını gözden geçirir.","4. Hafta","17- Öz geçmiş yazar.","2. Hafta","20- İş görüşme becerilerini kullanır.","3. Hafta"]
[null,"Psikososyal (Duygu Listem)","4. Hafta","18- Stres yaratan kaynakları fark eder.","3. Hafta","21- Toplum için gönüllü çalışmada duyarlı davranır.","4. Hafta"]
[null,"15- Yaşadığı yoğun duyguları yönetir.","5. Hafta"]
[null,"Veli Ziyaretleri","5. Hafta"]
[]
[null,"MART","TARİH","NİSAN","TARİH","MAYIS","TARİH"]
[null,"22- Karakter güçleri ile iyi oluş arasında bağ kurar.","1. Hafta","27- Üst öğretim kurumuna ya da iş yaşamına ilişkin kariyer kararını verir.","2. Hafta","30- Sınavlara ilişkin yoğun duygularını yönetir.","1. Hafta"]
[null,"23- İyi oluşunu destekleyen duyguları yaşamında sıklıkla deneyimler.","2. Hafta","Psikososyal (Doğal Tepkiler)","2. Hafta","RİBA Uygulaması","1. Hafta"]
[null,"Psikososyal (Ergenim Farkındayım)","2. Hafta","28- Değişim ve belirsizlikle baş eder.","3. Hafta","31- Öğrenmenin hayat boyu devam ettiğine inanır.","2. Hafta"]
[null,"24- Mesleki bilgi kaynaklarını kullanır","3. Hafta","29- Sınavlara ilişkin yoğun duygularını yönetir.","5. Hafta","32- Üst öğretim kurumlarına geçiş sınavlarıyla ilgili bilgi edinir.","3. Hafta"]
[null,"25- Seçmeyi düşündüğü mesleklerle ilgili kariyer planlaması yapar.","4. Hafta","Veli Ziyaretleri","5. Hafta","33- Bir üst öğretim kurumuna ilişkin ön bilgiler edinir.","4. Hafta"]
[null,"26- Meslek seçiminde karar verme becerisini kullanır.","5. Hafta",null,null,"Veli Ziyaretleri","4. Hafta"]
[null,"Veli Ziyaretleri","5. Hafta",null,null,"34- Bir üst öğretim kurumuna ve iş yaşamına geçiş sürecine yönelik duygu ve düşüncelerini ifade eder.","5. Hafta"]
[null,"HAZİRAN","TARİH"]
[null,"35- Eğitim öğretim hayatının kendisine kattıklarını değerlendirir.","2. Hafta","İMZA",null,"İMZA"]
[null,"36- Sınıf rehberlik programı etkinliklerine/yaşantılarına ilişkin duygu ve düşüncelerini yansıtır.","3. Hafta"]
[]
[]
[null,null,null,"ÖĞRETMENİN ADI SOYADI",null,"OKUL MÜDÜRÜNÜN ADI SOYADI"]
[null,null,null,"YÜKSEL TENNİOĞLU",null,{"$f":"IF(Bilgi!B9=\"\",\"Lütfen Bilgi Sayfasına Okul Müdürü İsim ve Soyismini Yazınız\",UPPER(Bilgi!B9))","v":"YUSUF YILDIRIM"}]

{"sheet":"11 J","index":4,"n_rows":34,"n_cols":7,"rows_kept":34,"cut":false,"hidden":false,"merged":[[0,0,0,6],[1,0,1,6],[2,0,34,0],[2,1,2,6]]}
[{"$f":"IF(Bilgi!B4=\"\",\"Lütfen Bilgi Sayfasına Okul Adını Yazınız\",UPPER(Bilgi!B4))","v":"İSKENDERUN MESLEKİ VE TEKNİK ANADOLU LİSESİ"}]
[{"$f":"Bilgi!B3&\" EĞİTİM ÖĞRETİM YILI\"","v":"2022-2023 EĞİTİM ÖĞRETİM YILI"}]
["YAPILACAK ÇALIŞMALAR","11. SINIF J ŞUBESİ SINIF REHBERLİK PLANI"]
[null,"EYLÜL","TARİH","EKİM","TARİH","KASIM","TARİH"]
[null,"Rehberlik Yürütme Komisyonu Toplantısı","2. Hafta","4- Kişilik özelliklerine ilişkin farkındalık geliştirir.","2. Hafta","8- Yaşam değerleri ve davranışları arasında bağ kurar.","1. Hafta"]
[null,"1- Başarılı olduğu durumlarda kendini takdir eder.","3. Hafta","5- Ergen-ebeveyn ilişkilerini değerlendirir.","3. Hafta","9- İlgi, yetenek ve mesleki değerlerini ilişkilendirir.","2. Hafta"]
[null,"Bilgi Fişlerinin Doldurulması","3. Hafta","Psikososyal (İşin Aslı)","3. Hafta","10- Eğitsel etkinliklerdeki başarısızlıkların öğrenme sürecinin bir parçası olduğunu kabul eder.","4. Hafta"]
[null,"Sınıf Rehberlik Planının Hazırlanması","3. Hafta","6- Akademik başarının önündeki engelleri fark eder.","4. Hafta","Psikososyal (Duygı Düşünce Kartları)","4. Hafta"]
[null,"2- Akademik konulardaki güçlü ve geliştirilmesi gereken özelliklerini fark eder.","4. Hafta","7- Akademik sorumluluklarını ertelemenin sonuçlarını fark eder.","5. Hafta","11- Öğrenme sürecinde deneyimlediği başarısızlıkların üstesinden gelmek için farklı çözüm yolları dener.","5. Hafta"]
[null,"BEP 'lerin Oluşturulması","4. Hafta","Veli Toplantısı","5. Hafta","Veli Ziyaretleri","5. Hafta"]
[null,"3- Başarmak için çalışmanın gerekliliğine inanır.","5. Hafta"]
[null,"ARALIK","TARİH","OCAK","TARİH","ŞUBAT","TARİH"]
[null,"12- Geleceğini hayal ederek başarılı yaşam amaçları oluşturur.","2. Hafta","16- Grup çalışmalarına aktif olarak katılır.","1. Hafta","19- İyi oluşu ile duyguları arasında bağ kurar.","2. Hafta"]
[null,"13- Yaşam amaçlarına ulaşmak için bir eylem planı hazırlar.","3. Hafta","Toplantı (Diğer)","1. Hafta","Psikososyal (Ortak Özelliklerimiz)","2. Hafta"]
[null,"14- Liderlik özellikleri açısından kendini değerlendirir.","4. Hafta","17- Okulda topluma katkı sağlayacak projeler üretir.","2. Hafta","20- Arkadaşlık ilişkilerinde yaşadığı sorunları yapıcı yollarla çözer.","3. Hafta"]
[null,"Psikososyal (Duygu Listem)","4. Hafta","18- Okulda topluma katkı sağlayacak projeler üretir.","3. Hafta","21- Bilgi kaynaklarının güvenilirliğini sorgular.","4. Hafta"]
[null,"15- Yerel ve küresel sorunları tartışır.","5. Hafta"]
[null,"Veli Ziyaretleri","5. Hafta"]
[]
[null,"MART","TARİH","NİSAN","TARİH","MAYIS","TARİH"]
[null,"22- Sağlıklı yaşam alışkanlıkları ile bedensel ve psikolojik sağlığı arasında bağ kurar.","1. Hafta","27- Kişisel seçimleri ile toplumsal rollerin gerektirdiği sorumluluklar arasında denge kurar.","2. Hafta","30- Seçmeyi düşündüğü mesleklerle ilgili kariyer planlaması yapar.","1. Hafta"]
[null,"23- Beden imgesi ile fiziksel ve psikolojik sağlığını ilişkilendirir.","2. Hafta","Psikososyal (Doğal Tepkiler)","2. Hafta","RİBA Uygulaması","1. Hafta"]
[null,"Psikososyal (Ergenim Farkındayım)","2. Hafta","28- Mesleki bilgi kaynaklarını kullanır.","3. Hafta","31- Meslek seçiminde karar verme becerisini kullanır.","2. Hafta"]
[null,"24- Sınavlara hazırlanmayı etkileyen faktörleri açıklar.","3. Hafta","29- Mesleki bilgi kaynaklarını kullanır.","5. Hafta","32- Akademik amaçlarıyla kariyer seçenekleri arasındaki ilişkiyi açıklar.","3. Hafta"]
[null,"25- Akran grubunun yaşamındaki yerini açıklar.","4. Hafta","Veli Ziyaretleri","5. Hafta","33- Kimlik gelişimi ile sosyal bağlamları ilişkilendirir.","4. Hafta"]
[null,"26- Kararlarında aile ve akranlarının etkilerini değerlendirir.","5. Hafta",null,null,"Veli Ziyaretleri","4. Hafta"]
[null,"Veli Ziyaretleri","5. Hafta",null,null,"34- Ortaöğretim sonrası kariyer tercihleri ile ilgili yardım alabileceği kaynaklara başvurur.","5. Hafta"]
[null,"HAZİRAN","TARİH"]
[null,"35- Kişisel değerleri ile yaşam amaçları arasında bağ kurar.","2. Hafta","İMZA",null,"İMZA"]
[null,"36- Sınıf rehberlik programı etkinliklerine/yaşantılarına ilişkin duygu ve düşüncelerini yansıtır.","3. Hafta"]
[]
[]
[null,null,null,"ÖĞRETMENİN ADI SOYADI",null,"OKUL MÜDÜRÜNÜN ADI SOYADI"]
[null,null,null,"MEHMET KUNDAKÇI",null,{"$f":"IF(Bilgi!B9=\"\",\"Lütfen Bilgi Sayfasına Okul Müdürü İsim ve Soyismini Yazınız\",UPPER(Bilgi!B9))","v":"YUSUF YILDIRIM"}]

{"sheet":"11 P","index":5,"n_rows":34,"n_cols":7,"rows_kept":34,"cut":false,"hidden":false,"merged":[[0,0,0,6],[1,0,1,6],[2,0,34,0],[2,1,2,6]]}
[{"$f":"IF(Bilgi!B4=\"\",\"Lütfen Bilgi Sayfasına Okul Adını Yazınız\",UPPER(Bilgi!B4))","v":"İSKENDERUN MESLEKİ VE TEKNİK ANADOLU LİSESİ"}]
[{"$f":"Bilgi!B3&\" EĞİTİM ÖĞRETİM YILI\"","v":"2022-2023 EĞİTİM ÖĞRETİM YILI"}]
["YAPILACAK ÇALIŞMALAR","11. SINIF P ŞUBESİ SINIF REHBERLİK PLANI"]
[null,"EYLÜL","TARİH","EKİM","TARİH","KASIM","TARİH"]
[null,"Rehberlik Yürütme Komisyonu Toplantısı","2. Hafta","4- Kişilik özelliklerine ilişkin farkındalık geliştirir.","2. Hafta","8- Yaşam değerleri ve davranışları arasında bağ kurar.","1. Hafta"]
[null,"1- Başarılı olduğu durumlarda kendini takdir eder.","3. Hafta","5- Ergen-ebeveyn ilişkilerini değerlendirir.","3. Hafta","9- İlgi, yetenek ve mesleki değerlerini ilişkilendirir.","2. Hafta"]
[null,"Bilgi Fişlerinin Doldurulması","3. Hafta","Psikososyal (İşin Aslı)","3. Hafta","10- Eğitsel etkinliklerdeki başarısızlıkların öğrenme sürecinin bir parçası olduğunu kabul eder.","4. Hafta"]
[null,"Sınıf Rehberlik Planının Hazırlanması","3. Hafta","6- Akademik başarının önündeki engelleri fark eder.","4. Hafta","Psikososyal (Duygı Düşünce Kartları)","4. Hafta"]
[null,"2- Akademik konulardaki güçlü ve geliştirilmesi gereken özelliklerini fark eder.","4. Hafta","7- Akademik sorumluluklarını ertelemenin sonuçlarını fark eder.","5. Hafta","11- Öğrenme sürecinde deneyimlediği başarısızlıkların üstesinden gelmek için farklı çözüm yolları dener.","5. Hafta"]
[null,"BEP 'lerin Oluşturulması","4. Hafta","Veli Toplantısı","5. Hafta","Veli Ziyaretleri","5. Hafta"]
[null,"3- Başarmak için çalışmanın gerekliliğine inanır.","5. Hafta"]
[null,"ARALIK","TARİH","OCAK","TARİH","ŞUBAT","TARİH"]
[null,"12- Geleceğini hayal ederek başarılı yaşam amaçları oluşturur.","2. Hafta","16- Grup çalışmalarına aktif olarak katılır.","1. Hafta","19- İyi oluşu ile duyguları arasında bağ kurar.","2. Hafta"]
[null,"13- Yaşam amaçlarına ulaşmak için bir eylem planı hazırlar.","3. Hafta","Toplantı (Diğer)","1. Hafta","Psikososyal (Ortak Özelliklerimiz)","2. Hafta"]
[null,"14- Liderlik özellikleri açısından kendini değerlendirir.","4. Hafta","17- Okulda topluma katkı sağlayacak projeler üretir.","2. Hafta","20- Arkadaşlık ilişkilerinde yaşadığı sorunları yapıcı yollarla çözer.","3. Hafta"]
[null,"Psikososyal (Duygu Listem)","4. Hafta","18- Okulda topluma katkı sağlayacak projeler üretir.","3. Hafta","21- Bilgi kaynaklarının güvenilirliğini sorgular.","4. Hafta"]
[null,"15- Yerel ve küresel sorunları tartışır.","5. Hafta"]
[null,"Veli Ziyaretleri","5. Hafta"]
[]
[null,"MART","TARİH","NİSAN","TARİH","MAYIS","TARİH"]
[null,"22- Sağlıklı yaşam alışkanlıkları ile bedensel ve psikolojik sağlığı arasında bağ kurar.","1. Hafta","27- Kişisel seçimleri ile toplumsal rollerin gerektirdiği sorumluluklar arasında denge kurar.","2. Hafta","30- Seçmeyi düşündüğü mesleklerle ilgili kariyer planlaması yapar.","1. Hafta"]
[null,"23- Beden imgesi ile fiziksel ve psikolojik sağlığını ilişkilendirir.","2. Hafta","Psikososyal (Doğal Tepkiler)","2. Hafta","RİBA Uygulaması","1. Hafta"]
[null,"Psikososyal (Ergenim Farkındayım)","2. Hafta","28- Mesleki bilgi kaynaklarını kullanır.","3. Hafta","31- Meslek seçiminde karar verme becerisini kullanır.","2. Hafta"]
[null,"24- Sınavlara hazırlanmayı etkileyen faktörleri açıklar.","3. Hafta","29- Mesleki bilgi kaynaklarını kullanır.","5. Hafta","32- Akademik amaçlarıyla kariyer seçenekleri arasındaki ilişkiyi açıklar.","3. Hafta"]
[null,"25- Akran grubunun yaşamındaki yerini açıklar.","4. Hafta","Veli Ziyaretleri","5. Hafta","33- Kimlik gelişimi ile sosyal bağlamları ilişkilendirir.","4. Hafta"]
[null,"26- Kararlarında aile ve akranlarının etkilerini değerlendirir.","5. Hafta",null,null,"Veli Ziyaretleri","4. Hafta"]
[null,"Veli Ziyaretleri","5. Hafta",null,null,"34- Ortaöğretim sonrası kariyer tercihleri ile ilgili yardım alabileceği kaynaklara başvurur.","5. Hafta"]
[null,"HAZİRAN","TARİH"]
[null,"35- Kişisel değerleri ile yaşam amaçları arasında bağ kurar.","2. Hafta","İMZA",null,"İMZA"]
[null,"36- Sınıf rehberlik programı etkinliklerine/yaşantılarına ilişkin duygu ve düşüncelerini yansıtır.","3. Hafta"]
[]
[]
[null,null,null,"ÖĞRETMENİN ADI SOYADI",null,"OKUL MÜDÜRÜNÜN ADI SOYADI"]
[null,null,null,"OSMAN NURİ BİLER",null,{"$f":"IF(Bilgi!B9=\"\",\"Lütfen Bilgi Sayfasına Okul Müdürü İsim ve Soyismini Yazınız\",UPPER(Bilgi!B9))","v":"YUSUF YILDIRIM"}]

{"sheet":"11 T","index":6,"n_rows":34,"n_cols":7,"rows_kept":34,"cut":false,"hidden":false,"merged":[[0,0,0,6],[1,0,1,6],[2,0,34,0],[2,1,2,6]]}
[{"$f":"IF(Bilgi!B4=\"\",\"Lütfen Bilgi Sayfasına Okul Adını Yazınız\",UPPER(Bilgi!B4))","v":"İSKENDERUN MESLEKİ VE TEKNİK ANADOLU LİSESİ"}]
[{"$f":"Bilgi!B3&\" EĞİTİM ÖĞRETİM YILI\"","v":"2022-2023 EĞİTİM ÖĞRETİM YILI"}]
["YAPILACAK ÇALIŞMALAR","11. SINIF T ŞUBESİ SINIF REHBERLİK PLANI"]
[null,"EYLÜL","TARİH","EKİM","TARİH","KASIM","TARİH"]
[null,"Rehberlik Yürütme Komisyonu Toplantısı","2. Hafta","4- Kişilik özelliklerine ilişkin farkındalık geliştirir.","2. Hafta","8- Yaşam değerleri ve davranışları arasında bağ kurar.","1. Hafta"]
[null,"1- Başarılı olduğu durumlarda kendini takdir eder.","3. Hafta","5- Ergen-ebeveyn ilişkilerini değerlendirir.","3. Hafta","9- İlgi, yetenek ve mesleki değerlerini ilişkilendirir.","2. Hafta"]
[null,"Bilgi Fişlerinin Doldurulması","3. Hafta","Psikososyal (İşin Aslı)","3. Hafta","10- Eğitsel etkinliklerdeki başarısızlıkların öğrenme sürecinin bir parçası olduğunu kabul eder.","4. Hafta"]
[null,"Sınıf Rehberlik Planının Hazırlanması","3. Hafta","6- Akademik başarının önündeki engelleri fark eder.","4. Hafta","Psikososyal (Duygı Düşünce Kartları)","4. Hafta"]
[null,"2- Akademik konulardaki güçlü ve geliştirilmesi gereken özelliklerini fark eder.","4. Hafta","7- Akademik sorumluluklarını ertelemenin sonuçlarını fark eder.","5. Hafta","11- Öğrenme sürecinde deneyimlediği başarısızlıkların üstesinden gelmek için farklı çözüm yolları dener.","5. Hafta"]
[null,"BEP 'lerin Oluşturulması","4. Hafta","Veli Toplantısı","5. Hafta","Veli Ziyaretleri","5. Hafta"]
[null,"3- Başarmak için çalışmanın gerekliliğine inanır.","5. Hafta"]
[null,"ARALIK","TARİH","OCAK","TARİH","ŞUBAT","TARİH"]
[null,"12- Geleceğini hayal ederek başarılı yaşam amaçları oluşturur.","2. Hafta","16- Grup çalışmalarına aktif olarak katılır.","1. Hafta","19- İyi oluşu ile duyguları arasında bağ kurar.","2. Hafta"]
[null,"13- Yaşam amaçlarına ulaşmak için bir eylem planı hazırlar.","3. Hafta","Toplantı (Diğer)","1. Hafta","Psikososyal (Ortak Özelliklerimiz)","2. Hafta"]
[null,"14- Liderlik özellikleri açısından kendini değerlendirir.","4. Hafta","17- Okulda topluma katkı sağlayacak projeler üretir.","2. Hafta","20- Arkadaşlık ilişkilerinde yaşadığı sorunları yapıcı yollarla çözer.","3. Hafta"]
[null,"Psikososyal (Duygu Listem)","4. Hafta","18- Okulda topluma katkı sağlayacak projeler üretir.","3. Hafta","21- Bilgi kaynaklarının güvenilirliğini sorgular.","4. Hafta"]
[null,"15- Yerel ve küresel sorunları tartışır.","5. Hafta"]
[null,"Veli Ziyaretleri","5. Hafta"]
[]
[null,"MART","TARİH","NİSAN","TARİH","MAYIS","TARİH"]
[null,"22- Sağlıklı yaşam alışkanlıkları ile bedensel ve psikolojik sağlığı arasında bağ kurar.","1. Hafta","27- Kişisel seçimleri ile toplumsal rollerin gerektirdiği sorumluluklar arasında denge kurar.","2. Hafta","30- Seçmeyi düşündüğü mesleklerle ilgili kariyer planlaması yapar.","1. Hafta"]
[null,"23- Beden imgesi ile fiziksel ve psikolojik sağlığını ilişkilendirir.","2. Hafta","Psikososyal (Doğal Tepkiler)","2. Hafta","RİBA Uygulaması","1. Hafta"]
[null,"Psikososyal (Ergenim Farkındayım)","2. Hafta","28- Mesleki bilgi kaynaklarını kullanır.","3. Hafta","31- Meslek seçiminde karar verme becerisini kullanır.","2. Hafta"]
[null,"24- Sınavlara hazırlanmayı etkileyen faktörleri açıklar.","3. Hafta","29- Mesleki bilgi kaynaklarını kullanır.","5. Hafta","32- Akademik amaçlarıyla kariyer seçenekleri arasındaki ilişkiyi açıklar.","3. Hafta"]
[null,"25- Akran grubunun yaşamındaki yerini açıklar.","4. Hafta","Veli Ziyaretleri","5. Hafta","33- Kimlik gelişimi ile sosyal bağlamları ilişkilendirir.","4. Hafta"]
[null,"26- Kararlarında aile ve akranlarının etkilerini değerlendirir.","5. Hafta",null,null,"Veli Ziyaretleri","4. Hafta"]
[null,"Veli Ziyaretleri","5. Hafta",null,null,"34- Ortaöğretim sonrası kariyer tercihleri ile ilgili yardım alabileceği kaynaklara başvurur.","5. Hafta"]
[null,"HAZİRAN","TARİH"]
[null,"35- Kişisel değerleri ile yaşam amaçları arasında bağ kurar.","2. Hafta","İMZA",null,"İMZA"]
[null,"36- Sınıf rehberlik programı etkinliklerine/yaşantılarına ilişkin duygu ve düşüncelerini yansıtır.","3. Hafta"]
[]
[]
[null,null,null,"ÖĞRETMENİN ADI SOYADI",null,"OKUL MÜDÜRÜNÜN ADI SOYADI"]
[null,null,null,"BERNA ÇAKIR",null,{"$f":"IF(Bilgi!B9=\"\",\"Lütfen Bilgi Sayfasına Okul Müdürü İsim ve Soyismini Yazınız\",UPPER(Bilgi!B9))","v":"YUSUF YILDIRIM"}]

{"sheet":"10 P","index":7,"n_rows":34,"n_cols":7,"rows_kept":34,"cut":false,"hidden":false,"merged":[[0,0,0,6],[1,0,1,6],[2,0,34,0],[2,1,2,6]]}
[{"$f":"IF(Bilgi!B4=\"\",\"Lütfen Bilgi Sayfasına Okul Adını Yazınız\",UPPER(Bilgi!B4))","v":"İSKENDERUN MESLEKİ VE TEKNİK ANADOLU LİSESİ"}]
[{"$f":"Bilgi!B3&\" EĞİTİM ÖĞRETİM YILI\"","v":"2022-2023 EĞİTİM ÖĞRETİM YILI"}]
["YAPILACAK ÇALIŞMALAR","10. SINIF P ŞUBESİ SINIF REHBERLİK PLANI"]
[null,"EYLÜL","TARİH","EKİM","TARİH","KASIM","TARİH"]
[null,"Rehberlik Yürütme Komisyonu Toplantısı","2. Hafta","4- Yaşamındaki karar verme sürecini etkileyen faktörleri açıklar.","2. Hafta","8- Hatırlamayı zorlaştıran ve unutmaya neden olan faktörleri açıklar.","1. Hafta"]
[null,"1- Okul içinde ve dışında eğitsel ve sosyal etkinliklere katılmanın gelişimine katkılarını değerlendirir.","3. Hafta","5- Karar verme basamaklarını kullanır.","3. Hafta","9- Öğrenme ve verimli çalışma stratejilerini kullanma açısından kendisini değerlendirir.","2. Hafta"]
[null,"Bilgi Fişlerinin Doldurulması","3. Hafta","Psikososyal (İşin Aslı)","3. Hafta","10- Kısa ve uzun vadeli kariyer amaçlarını belirler.","4. Hafta"]
[null,"Sınıf Rehberlik Planının Hazırlanması","3. Hafta","6- Öğrenme ve verimli çalışma stratejilerini açıklar.","4. Hafta","Psikososyal (Duygı Düşünce Kartları)","4. Hafta"]
[null,"2- Okul içinde veya dışında etkinliklere katılırken ilgi ve yeteneklerini dikkate alır.","4. Hafta","7- Öğrenme ve verimli çalışma stratejilerini açıklar.","5. Hafta","11- Kısa ve uzun vadeli kariyer amaçlarını belirler.","5. Hafta"]
[null,"BEP 'lerin Oluşturulması","4. Hafta","Veli Toplantısı","5. Hafta","Veli Ziyaretleri","5. Hafta"]
[null,"3- Alan/bölüm/dal/ders seçiminde ilgi, yetenek ve mesleki değerleri dikkate alır.","5. Hafta"]
[null,"ARALIK","TARİH","OCAK","TARİH","ŞUBAT","TARİH"]
[null,"12- Akademik amaçlarıyla seçmek istediği kariyerlerin gerektirdiği akademik koşullar arasında bağ kurar.","2. Hafta","16- Kariyer beklentileri ile kariyer amaçlarını karşılaştırır.","1. Hafta","19- Ders/alan/dal seçerken karar verme becerisini kullanır.","2. Hafta"]
[null,"13- Beden imgesini etkileyen faktörler açısından kendini değerlendirir.","3. Hafta","Toplantı (Diğer)","1. Hafta","Psikososyal (Ortak Özelliklerimiz)","2. Hafta"]
[null,"14- Gelişim dönemi ile duygusal dalgalanmaları arasında bağ kurar.","4. Hafta","17- Kariyer karar verme süreçlerinde kendi görüşleri ile aile ve yakın çevresinin görüşlerini karşılaştırır.","2. Hafta","20- Kariyer hazırlığı sürecinde belirlediği amaçlar doğrultusunda alan/dal/ders seçimi yapar.","3. Hafta"]
[null,"Psikososyal (Duygu Listem)","4. Hafta","18- Derslerin mesleklerle ilişkisini açıklar.","3. Hafta","21- Eğitsel çabanın akademik hedeflere ulaşmadaki etkisini değerlendirir.","4. Hafta"]
[null,"15- Kariyer beklentileri ile kariyer amaçlarını karşılaştırır.","5. Hafta"]
[null,"Veli Ziyaretleri","5. Hafta"]
[]
[null,"MART","TARİH","NİSAN","TARİH","MAYIS","TARİH"]
[null,"22- Sosyal ipuçlarını yorumlayarak uygun tepkiler verir.","1. Hafta","27- İyilik hâline ilişkin edindiği bilgileri yaşamında uygulamayı alışkanlık hâline getirir.","2. Hafta","30- Öğrenme ortamlarındaki duygularını düzenler.","1. Hafta"]
[null,"23- Sahip olduğu karakter güçlerini geliştirmek için çaba gösterir.","2. Hafta","Psikososyal (Doğal Tepkiler)","2. Hafta","RİBA Uygulaması","1. Hafta"]
[null,"Psikososyal (Ergenim Farkındayım)","2. Hafta","28- Bilişim teknolojileri kullanımında kendini yönetir.","3. Hafta","31- Gerektiğinde arkadaşlığını sonlandırır.","2. Hafta"]
[null,"24- Yaşamda karşılaşılan zorlukların çaba ve zaman ile üstesinden gelinebileceğini fark eder.","3. Hafta","29- Yerel ve küresel sorunları fark eder.","5. Hafta","32- Gerektiğinde arkadaşlığını sonlandırır.","3. Hafta"]
[null,"25- Yaşamda karşılaşılan zorlukların çaba ve zaman ile üstesinden gelinebileceğini fark eder.","4. Hafta","Veli Ziyaretleri","5. Hafta","33- Takım çalışmalarının kişisel gelişimine olan etkilerini fark eder.","4. Hafta"]
[null,"26- Çatışma çözme becerilerini kullanır.","5. Hafta",null,null,"Veli Ziyaretleri","4. Hafta"]
[null,"Veli Ziyaretleri","5. Hafta",null,null,"34- Kişisel hakların korunması ve kişisel güvenliğin sağlanması için yönergeleri izlemeyi alışkanlık hâline getirir.","5. Hafta"]
[null,"HAZİRAN","TARİH"]
[null,"35- Doğal yaşamı korumak için duyarlı davranır.","2. Hafta","İMZA",null,"İMZA"]
[null,"36- Sınıf rehberlik programı etkinliklerine/yaşantılarına ilişkin duygu ve düşüncelerini yansıtır.","3. Hafta"]
[]
[]
[null,null,null,"ÖĞRETMENİN ADI SOYADI",null,"OKUL MÜDÜRÜNÜN ADI SOYADI"]
[null,null,null,"MEHMET ALİ KELEŞ",null,{"$f":"IF(Bilgi!B9=\"\",\"Lütfen Bilgi Sayfasına Okul Müdürü İsim ve Soyismini Yazınız\",UPPER(Bilgi!B9))","v":"YUSUF YILDIRIM"}]

{"sheet":"10 T","index":8,"n_rows":34,"n_cols":7,"rows_kept":34,"cut":false,"hidden":false,"merged":[[0,0,0,6],[1,0,1,6],[2,0,34,0],[2,1,2,6]]}
[{"$f":"IF(Bilgi!B4=\"\",\"Lütfen Bilgi Sayfasına Okul Adını Yazınız\",UPPER(Bilgi!B4))","v":"İSKENDERUN MESLEKİ VE TEKNİK ANADOLU LİSESİ"}]
[{"$f":"Bilgi!B3&\" EĞİTİM ÖĞRETİM YILI\"","v":"2022-2023 EĞİTİM ÖĞRETİM YILI"}]
["YAPILACAK ÇALIŞMALAR","10. SINIF T ŞUBESİ SINIF REHBERLİK PLANI"]
[null,"EYLÜL","TARİH","EKİM","TARİH","KASIM","TARİH"]
[null,"Rehberlik Yürütme Komisyonu Toplantısı","2. Hafta","4- Yaşamındaki karar verme sürecini etkileyen faktörleri açıklar.","2. Hafta","8- Hatırlamayı zorlaştıran ve unutmaya neden olan faktörleri açıklar.","1. Hafta"]
[null,"1- Okul içinde ve dışında eğitsel ve sosyal etkinliklere katılmanın gelişimine katkılarını değerlendirir.","3. Hafta","5- Karar verme basamaklarını kullanır.","3. Hafta","9- Öğrenme ve verimli çalışma stratejilerini kullanma açısından kendisini değerlendirir.","2. Hafta"]
[null,"Bilgi Fişlerinin Doldurulması","3. Hafta","Psikososyal (İşin Aslı)","3. Hafta","10- Kısa ve uzun vadeli kariyer amaçlarını belirler.","4. Hafta"]
[null,"Sınıf Rehberlik Planının Hazırlanması","3. Hafta","6- Öğrenme ve verimli çalışma stratejilerini açıklar.","4. Hafta","Psikososyal (Duygı Düşünce Kartları)","4. Hafta"]
[null,"2- Okul içinde veya dışında etkinliklere katılırken ilgi ve yeteneklerini dikkate alır.","4. Hafta","7- Öğrenme ve verimli çalışma stratejilerini açıklar.","5. Hafta","11- Kısa ve uzun vadeli kariyer amaçlarını belirler.","5. Hafta"]
[null,"BEP 'lerin Oluşturulması","4. Hafta","Veli Toplantısı","5. Hafta","Veli Ziyaretleri","5. Hafta"]
[null,"3- Alan/bölüm/dal/ders seçiminde ilgi, yetenek ve mesleki değerleri dikkate alır.","5. Hafta"]
[null,"ARALIK","TARİH","OCAK","TARİH","ŞUBAT","TARİH"]
[null,"12- Akademik amaçlarıyla seçmek istediği kariyerlerin gerektirdiği akademik koşullar arasında bağ kurar.","2. Hafta","16- Kariyer beklentileri ile kariyer amaçlarını karşılaştırır.","1. Hafta","19- Ders/alan/dal seçerken karar verme becerisini kullanır.","2. Hafta"]
[null,"13- Beden imgesini etkileyen faktörler açısından kendini değerlendirir.","3. Hafta","Toplantı (Diğer)","1. Hafta","Psikososyal (Ortak Özelliklerimiz)","2. Hafta"]
[null,"14- Gelişim dönemi ile duygusal dalgalanmaları arasında bağ kurar.","4. Hafta","17- Kariyer karar verme süreçlerinde kendi görüşleri ile aile ve yakın çevresinin görüşlerini karşılaştırır.","2. Hafta","20- Kariyer hazırlığı sürecinde belirlediği amaçlar doğrultusunda alan/dal/ders seçimi yapar.","3. Hafta"]
[null,"Psikososyal (Duygu Listem)","4. Hafta","18- Derslerin mesleklerle ilişkisini açıklar.","3. Hafta","21- Eğitsel çabanın akademik hedeflere ulaşmadaki etkisini değerlendirir.","4. Hafta"]
[null,"15- Kariyer beklentileri ile kariyer amaçlarını karşılaştırır.","5. Hafta"]
[null,"Veli Ziyaretleri","5. Hafta"]
[]
[null,"MART","TARİH","NİSAN","TARİH","MAYIS","TARİH"]
[null,"22- Sosyal ipuçlarını yorumlayarak uygun tepkiler verir.","1. Hafta","27- İyilik hâline ilişkin edindiği bilgileri yaşamında uygulamayı alışkanlık hâline getirir.","2. Hafta","30- Öğrenme ortamlarındaki duygularını düzenler.","1. Hafta"]
[null,"23- Sahip olduğu karakter güçlerini geliştirmek için çaba gösterir.","2. Hafta","Psikososyal (Doğal Tepkiler)","2. Hafta","RİBA Uygulaması","1. Hafta"]
[null,"Psikososyal (Ergenim Farkındayım)","2. Hafta","28- Bilişim teknolojileri kullanımında kendini yönetir.","3. Hafta","31- Gerektiğinde arkadaşlığını sonlandırır.","2. Hafta"]
[null,"24- Yaşamda karşılaşılan zorlukların çaba ve zaman ile üstesinden gelinebileceğini fark eder.","3. Hafta","29- Yerel ve küresel sorunları fark eder.","5. Hafta","32- Gerektiğinde arkadaşlığını sonlandırır.","3. Hafta"]
[null,"25- Yaşamda karşılaşılan zorlukların çaba ve zaman ile üstesinden gelinebileceğini fark eder.","4. Hafta","Veli Ziyaretleri","5. Hafta","33- Takım çalışmalarının kişisel gelişimine olan etkilerini fark eder.","4. Hafta"]
[null,"26- Çatışma çözme becerilerini kullanır.","5. Hafta",null,null,"Veli Ziyaretleri","4. Hafta"]
[null,"Veli Ziyaretleri","5. Hafta",null,null,"34- Kişisel hakların korunması ve kişisel güvenliğin sağlanması için yönergeleri izlemeyi alışkanlık hâline getirir.","5. Hafta"]
[null,"HAZİRAN","TARİH"]
[null,"35- Doğal yaşamı korumak için duyarlı davranır.","2. Hafta","İMZA",null,"İMZA"]
[null,"36- Sınıf rehberlik programı etkinliklerine/yaşantılarına ilişkin duygu ve düşüncelerini yansıtır.","3. Hafta"]
[]
[]
[null,null,null,"ÖĞRETMENİN ADI SOYADI",null,"OKUL MÜDÜRÜNÜN ADI SOYADI"]
[null,null,null,"HASAN HÜSEYİN MURT",null,{"$f":"IF(Bilgi!B9=\"\",\"Lütfen Bilgi Sayfasına Okul Müdürü İsim ve Soyismini Yazınız\",UPPER(Bilgi!B9))","v":"YUSUF YILDIRIM"}]

{"sheet":"9. P","index":9,"n_rows":34,"n_cols":7,"rows_kept":34,"cut":false,"hidden":false,"merged":[[0,0,0,6],[1,0,1,6],[2,0,34,0],[2,1,2,6]]}
[{"$f":"IF(Bilgi!B4=\"\",\"Lütfen Bilgi Sayfasına Okul Adını Yazınız\",UPPER(Bilgi!B4))","v":"İSKENDERUN MESLEKİ VE TEKNİK ANADOLU LİSESİ"}]
[{"$f":"Bilgi!B3&\" EĞİTİM ÖĞRETİM YILI\"","v":"2022-2023 EĞİTİM ÖĞRETİM YILI"}]
["YAPILACAK ÇALIŞMALAR","9. SINIF P ŞUBESİ SINIF REHBERLİK PLANI"]
[null,"EYLÜL","TARİH","EKİM","TARİH","KASIM","TARİH"]
[null,"Rehberlik Yürütme Komisyonu Toplantısı","2. Hafta","4- Okulunun ve sınıfının bir üyesi olduğunu fark eder.","2. Hafta","8- Kendi mesleki değerlerinin farkına varır.","1. Hafta"]
[null,"1- Okulun yakın çevresini, bölümlerini ve okulda çalışan personeli tanır.","3. Hafta","5- Okul hazırlığına ilişkin sorumluluklarını üstlenir.","3. Hafta","9- Kendi mesleki değerlerinin farkına varır.","2. Hafta"]
[null,"Bilgi Fişlerinin Doldurulması","3. Hafta","Psikososyal (İşin Aslı)","3. Hafta","10- Akademik gelişimi için amaçlar oluşturur.","4. Hafta"]
[null,"Sınıf Rehberlik Planının Hazırlanması","3. Hafta","6- Okulun eğitsel imkânları hakkında bilgi edinir.","4. Hafta","Psikososyal (Duygı Düşünce Kartları)","4. Hafta"]
[null,"2- Eğitim öğretim sürecine ilişkin yönetmeliklerin kendisini ilgilendiren kısımları hakkında bilgi sahibi olur.","4. Hafta","7- Yaşam değerlerinin farkına varır.","5. Hafta","11- Okula devam etme ile akademik gelişimi arasındaki ilişkiyi değerlendirir.","5. Hafta"]
[null,"BEP 'lerin Oluşturulması","4. Hafta","Veli Toplantısı","5. Hafta","Veli Ziyaretleri","5. Hafta"]
[null,"3- İlgi ve hobilerini ayırt eder.","5. Hafta"]
[null,"ARALIK","TARİH","OCAK","TARİH","ŞUBAT","TARİH"]
[null,"12- Kişilerarası ilişkilerde duyguları ifade etmenin önemini fark eder.","2. Hafta","16- Fiziksel, duygusal, sosyal ve kültürel açıdan bireysel farklılıkları kabul eder.","1. Hafta","19- Başlangıç sosyal becerileri kullanır.","2. Hafta"]
[null,"13- Yaşam değerleri ile mesleki değerlerini ayırt eder.","3. Hafta","Toplantı (Diğer)","1. Hafta","Psikososyal (Ortak Özelliklerimiz)","2. Hafta"]
[null,"14- Okul ve çevresinde risk oluşturabilecek durum ve ortamlara karşı kendisini korur.","4. Hafta","17- Mesleklerin zaman içindeki değişimini ve gelişimini takip eder.","2. Hafta","20- Başlangıç sosyal becerileri kullanır.","3. Hafta"]
[null,"Psikososyal (Duygu Listem)","4. Hafta","18- Zorbalık ve türlerini bilir.","3. Hafta","21- İyilik hâlini destekleyen davranışlar açısından kendini gözden geçirir.","4. Hafta"]
[null,"15- Kısa ve uzun vadeli kariyer amaçlarını tekrar inceler.","5. Hafta"]
[null,"Veli Ziyaretleri","5. Hafta"]
[]
[null,"MART","TARİH","NİSAN","TARİH","MAYIS","TARİH"]
[null,"22- Kendi özellikleriyle kariyer kararlarını ilişkilendirir.","1. Hafta","27- Sahip olduğu karakter güçlerini fark eder.","2. Hafta","30- Toplumsal rollerinin gerektirdiği sorumlulukları yerine getirmediğinde karşılaşabileceği sonuçları değerlendirir.","1. Hafta"]
[null,"23- Siber zorbalığın yaşamındaki etkilerini fark eder.","2. Hafta","Psikososyal (Doğal Tepkiler)","2. Hafta","RİBA Uygulaması","1. Hafta"]
[null,"Psikososyal (Ergenim Farkındayım)","2. Hafta","28- Alan/bölüm/dal/ders seçiminde ilgi, yetenek ve mesleki değerleri dikkate alır.","3. Hafta","31- Sahip olduğu karakter güçlerini zorluklar karşısında kullanmayı bilir.","2. Hafta"]
[null,"24- Zorbalıkla baş etme yollarını kullanır.","3. Hafta","29- Kişisel güvenliği için “Hayır!” demeyi alışkanlık hâline getirir.","5. Hafta","32- Kariyer hazırlığı sürecinde belirlediği amaçlar doğrultusunda alan/dal/ders seçiminde karar verme becerisini kullanır.","3. Hafta"]
[null,"25- Sanal arkadaşlığı arkadaşlık ilişkileri kapsamında sorgular.","4. Hafta","Veli Ziyaretleri","5. Hafta","33- Kariyer hazırlığı sürecinde belirlediği amaçlar doğrultusunda alan/dal/ders seçiminde karar verme becerisini kullanır.","4. Hafta"]
[null,"26- Sahip olduğu karakter güçlerini fark eder.","5. Hafta",null,null,"Veli Ziyaretleri","4. Hafta"]
[null,"Veli Ziyaretleri","5. Hafta",null,null,"34- Kimden, nereden, ne zaman ve nasıl yardım isteyebileceğini bilir.","5. Hafta"]
[null,"HAZİRAN","TARİH"]
[null,"35- Akademik amaçlarını gerçekleştirme konusunda kendini değerlendirir.","2. Hafta","İMZA",null,"İMZA"]
[null,"36- Sınıf rehberlik programı etkinliklerine/yaşantılarına ilişkin duygu ve düşüncelerini yansıtır.","3. Hafta"]
[]
[]
[null,null,null,"ÖĞRETMENİN ADI SOYADI",null,"OKUL MÜDÜRÜNÜN ADI SOYADI"]
[null,null,null,"HÜMEYRA ÇOLAK",null,{"$f":"IF(Bilgi!B9=\"\",\"Lütfen Bilgi Sayfasına Okul Müdürü İsim ve Soyismini Yazınız\",UPPER(Bilgi!B9))","v":"YUSUF YILDIRIM"}]

{"sheet":"9. T","index":10,"n_rows":34,"n_cols":7,"rows_kept":34,"cut":false,"hidden":false,"merged":[[0,0,0,6],[1,0,1,6],[2,0,34,0],[2,1,2,6]]}
[{"$f":"IF(Bilgi!B4=\"\",\"Lütfen Bilgi Sayfasına Okul Adını Yazınız\",UPPER(Bilgi!B4))","v":"İSKENDERUN MESLEKİ VE TEKNİK ANADOLU LİSESİ"}]
[{"$f":"Bilgi!B3&\" EĞİTİM ÖĞRETİM YILI\"","v":"2022-2023 EĞİTİM ÖĞRETİM YILI"}]
["YAPILACAK ÇALIŞMALAR","9. SINIF T ŞUBESİ SINIF REHBERLİK PLANI"]
[null,"EYLÜL","TARİH","EKİM","TARİH","KASIM","TARİH"]
[null,"Rehberlik Yürütme Komisyonu Toplantısı","2. Hafta","4- Okulunun ve sınıfının bir üyesi olduğunu fark eder.","2. Hafta","8- Kendi mesleki değerlerinin farkına varır.","1. Hafta"]
[null,"1- Okulun yakın çevresini, bölümlerini ve okulda çalışan personeli tanır.","3. Hafta","5- Okul hazırlığına ilişkin sorumluluklarını üstlenir.","3. Hafta","9- Kendi mesleki değerlerinin farkına varır.","2. Hafta"]
[null,"Bilgi Fişlerinin Doldurulması","3. Hafta","Psikososyal (İşin Aslı)","3. Hafta","10- Akademik gelişimi için amaçlar oluşturur.","4. Hafta"]
[null,"Sınıf Rehberlik Planının Hazırlanması","3. Hafta","6- Okulun eğitsel imkânları hakkında bilgi edinir.","4. Hafta","Psikososyal (Duygı Düşünce Kartları)","4. Hafta"]
[null,"2- Eğitim öğretim sürecine ilişkin yönetmeliklerin kendisini ilgilendiren kısımları hakkında bilgi sahibi olur.","4. Hafta","7- Yaşam değerlerinin farkına varır.","5. Hafta","11- Okula devam etme ile akademik gelişimi arasındaki ilişkiyi değerlendirir.","5. Hafta"]
[null,"BEP 'lerin Oluşturulması","4. Hafta","Veli Toplantısı","5. Hafta","Veli Ziyaretleri","5. Hafta"]
[null,"3- İlgi ve hobilerini ayırt eder.","5. Hafta"]
[null,"ARALIK","TARİH","OCAK","TARİH","ŞUBAT","TARİH"]
[null,"12- Kişilerarası ilişkilerde duyguları ifade etmenin önemini fark eder.","2. Hafta","16- Fiziksel, duygusal, sosyal ve kültürel açıdan bireysel farklılıkları kabul eder.","1. Hafta","19- Başlangıç sosyal becerileri kullanır.","2. Hafta"]
[null,"13- Yaşam değerleri ile mesleki değerlerini ayırt eder.","3. Hafta","Toplantı (Diğer)","1. Hafta","Psikososyal (Ortak Özelliklerimiz)","2. Hafta"]
[null,"14- Okul ve çevresinde risk oluşturabilecek durum ve ortamlara karşı kendisini korur.","4. Hafta","17- Mesleklerin zaman içindeki değişimini ve gelişimini takip eder.","2. Hafta","20- Başlangıç sosyal becerileri kullanır.","3. Hafta"]
[null,"Psikososyal (Duygu Listem)","4. Hafta","18- Zorbalık ve türlerini bilir.","3. Hafta","21- İyilik hâlini destekleyen davranışlar açısından kendini gözden geçirir.","4. Hafta"]
[null,"15- Kısa ve uzun vadeli kariyer amaçlarını tekrar inceler.","5. Hafta"]
[null,"Veli Ziyaretleri","5. Hafta"]
[]
[null,"MART","TARİH","NİSAN","TARİH","MAYIS","TARİH"]
[null,"22- Kendi özellikleriyle kariyer kararlarını ilişkilendirir.","1. Hafta","27- Sahip olduğu karakter güçlerini fark eder.","2. Hafta","30- Toplumsal rollerinin gerektirdiği sorumlulukları yerine getirmediğinde karşılaşabileceği sonuçları değerlendirir.","1. Hafta"]
[null,"23- Siber zorbalığın yaşamındaki etkilerini fark eder.","2. Hafta","Psikososyal (Doğal Tepkiler)","2. Hafta","RİBA Uygulaması","1. Hafta"]
[null,"Psikososyal (Ergenim Farkındayım)","2. Hafta","28- Alan/bölüm/dal/ders seçiminde ilgi, yetenek ve mesleki değerleri dikkate alır.","3. Hafta","31- Sahip olduğu karakter güçlerini zorluklar karşısında kullanmayı bilir.","2. Hafta"]
[null,"24- Zorbalıkla baş etme yollarını kullanır.","3. Hafta","29- Kişisel güvenliği için “Hayır!” demeyi alışkanlık hâline getirir.","5. Hafta","32- Kariyer hazırlığı sürecinde belirlediği amaçlar doğrultusunda alan/dal/ders seçiminde karar verme becerisini kullanır.","3. Hafta"]
[null,"25- Sanal arkadaşlığı arkadaşlık ilişkileri kapsamında sorgular.","4. Hafta","Veli Ziyaretleri","5. Hafta","33- Kariyer hazırlığı sürecinde belirlediği amaçlar doğrultusunda alan/dal/ders seçiminde karar verme becerisini kullanır.","4. Hafta"]
[null,"26- Sahip olduğu karakter güçlerini fark eder.","5. Hafta",null,null,"Veli Ziyaretleri","4. Hafta"]
[null,"Veli Ziyaretleri","5. Hafta",null,null,"34- Kimden, nereden, ne zaman ve nasıl yardım isteyebileceğini bilir.","5. Hafta"]
[null,"HAZİRAN","TARİH"]
[null,"35- Akademik amaçlarını gerçekleştirme konusunda kendini değerlendirir.","2. Hafta","İMZA",null,"İMZA"]
[null,"36- Sınıf rehberlik programı etkinliklerine/yaşantılarına ilişkin duygu ve düşüncelerini yansıtır.","3. Hafta"]
[]
[]
[null,null,null,"ÖĞRETMENİN ADI SOYADI",null,"OKUL MÜDÜRÜNÜN ADI SOYADI"]
[null,null,null,"MUSTAFA BOŞÇA",null,{"$f":"IF(Bilgi!B9=\"\",\"Lütfen Bilgi Sayfasına Okul Müdürü İsim ve Soyismini Yazınız\",UPPER(Bilgi!B9))","v":"YUSUF YILDIRIM"}]

{"sheet":"12 H","index":11,"n_rows":34,"n_cols":7,"rows_kept":34,"cut":false,"hidden":false,"merged":[[0,0,0,6],[1,0,1,6],[2,0,34,0],[2,1,2,6]]}
[{"$f":"IF(Bilgi!B4=\"\",\"Lütfen Bilgi Sayfasına Okul Adını Yazınız\",UPPER(Bilgi!B4))","v":"İSKENDERUN MESLEKİ VE TEKNİK ANADOLU LİSESİ"}]
[{"$f":"Bilgi!B3&\" EĞİTİM ÖĞRETİM YILI\"","v":"2022-2023 EĞİTİM ÖĞRETİM YILI"}]
["YAPILACAK ÇALIŞMALAR","12. SINIF H ŞUBESİ SINIF REHBERLİK PLANI"]
[null,"EYLÜL","TARİH","EKİM","TARİH","KASIM","TARİH"]
[null,"Rehberlik Yürütme Komisyonu Toplantısı","2. Hafta","4- Zamanını, ihtiyaçları ve sorumlulukları çerçevesinde planlar.","2. Hafta","8- Akademik çalışmalarını zamanında bitirmede kararlı olur.","1. Hafta"]
[null,"1- Sahip olduğu karakter güçlerini zorluklar karşısında kullanır.","3. Hafta","5- Bilişim teknolojileri kullanımı konusunda kendini değerlendirir.","3. Hafta","9- Kariyer planlama sürecinde kişisel özelliklerini kullanır.","2. Hafta"]
[null,"Bilgi Fişlerinin Doldurulması","3. Hafta","Psikososyal (İşin Aslı)","3. Hafta","10- Ortaöğretim sonrası kariyer tercihleri ile ilgili yardım alabileceği kaynaklara başvurur.","4. Hafta"]
[null,"Sınıf Rehberlik Planının Hazırlanması","3. Hafta","6- Kendi bedenine ilişkin olumlu tutum geliştirir.","4. Hafta","Psikososyal (Duygı Düşünce Kartları)","4. Hafta"]
[null,"2- Okula hazırlıklı gelme ile akademik gelişimi arasında bağ kurar.","4. Hafta","7- Üst öğretim kurumlarına geçiş sınavlarına hazırlanmak ve başarılı olmak için stratejiler geliştirir.","5. Hafta","11- Kültürel farklılıklara duyarlı bakış açısı geliştirir.","5. Hafta"]
[null,"BEP 'lerin Oluşturulması","4. Hafta","Veli Toplantısı","5. Hafta","Veli Ziyaretleri","5. Hafta"]
[null,"3- Zamanını, ihtiyaçları ve sorumlulukları çerçevesinde planlar.","5. Hafta"]
[null,"ARALIK","TARİH","OCAK","TARİH","ŞUBAT","TARİH"]
[null,"12- Kültürel farklılıklara duyarlı davranışlar sergiler.","2. Hafta","16- Öz geçmiş yazar.","1. Hafta","19- İş görüşme becerilerini açıklar.","2. Hafta"]
[null,"13- Adil olmayı güçlendirmek için “hak savunuculuğu” yapar.","3. Hafta","Toplantı (Diğer)","1. Hafta","Psikososyal (Ortak Özelliklerimiz)","2. Hafta"]
[null,"14- Yaşam amaçlarıyla ilgili eylem planını gözden geçirir.","4. Hafta","17- Öz geçmiş yazar.","2. Hafta","20- İş görüşme becerilerini kullanır.","3. Hafta"]
[null,"Psikososyal (Duygu Listem)","4. Hafta","18- Stres yaratan kaynakları fark eder.","3. Hafta","21- Toplum için gönüllü çalışmada duyarlı davranır.","4. Hafta"]
[null,"15- Yaşadığı yoğun duyguları yönetir.","5. Hafta"]
[null,"Veli Ziyaretleri","5. Hafta"]
[]
[null,"MART","TARİH","NİSAN","TARİH","MAYIS","TARİH"]
[null,"22- Karakter güçleri ile iyi oluş arasında bağ kurar.","1. Hafta","27- Üst öğretim kurumuna ya da iş yaşamına ilişkin kariyer kararını verir.","2. Hafta","30- Sınavlara ilişkin yoğun duygularını yönetir.","1. Hafta"]
[null,"23- İyi oluşunu destekleyen duyguları yaşamında sıklıkla deneyimler.","2. Hafta","Psikososyal (Doğal Tepkiler)","2. Hafta","RİBA Uygulaması","1. Hafta"]
[null,"Psikososyal (Ergenim Farkındayım)","2. Hafta","28- Değişim ve belirsizlikle baş eder.","3. Hafta","31- Öğrenmenin hayat boyu devam ettiğine inanır.","2. Hafta"]
[null,"24- Mesleki bilgi kaynaklarını kullanır","3. Hafta","29- Sınavlara ilişkin yoğun duygularını yönetir.","5. Hafta","32- Üst öğretim kurumlarına geçiş sınavlarıyla ilgili bilgi edinir.","3. Hafta"]
[null,"25- Seçmeyi düşündüğü mesleklerle ilgili kariyer planlaması yapar.","4. Hafta","Veli Ziyaretleri","5. Hafta","33- Bir üst öğretim kurumuna ilişkin ön bilgiler edinir.","4. Hafta"]
[null,"26- Meslek seçiminde karar verme becerisini kullanır.","5. Hafta",null,null,"Veli Ziyaretleri","4. Hafta"]
[null,"Veli Ziyaretleri","5. Hafta",null,null,"34- Bir üst öğretim kurumuna ve iş yaşamına geçiş sürecine yönelik duygu ve düşüncelerini ifade eder.","5. Hafta"]
[null,"HAZİRAN","TARİH"]
[null,"35- Eğitim öğretim hayatının kendisine kattıklarını değerlendirir.","2. Hafta","İMZA",null,"İMZA"]
[null,"36- Sınıf rehberlik programı etkinliklerine/yaşantılarına ilişkin duygu ve düşüncelerini yansıtır.","3. Hafta"]
[]
[]
[null,null,null,"ÖĞRETMENİN ADI SOYADI",null,"OKUL MÜDÜRÜNÜN ADI SOYADI"]
[null,null,null,"NECMİDDİN ŞANLI",null,{"$f":"IF(Bilgi!B9=\"\",\"Lütfen Bilgi Sayfasına Okul Müdürü İsim ve Soyismini Yazınız\",UPPER(Bilgi!B9))","v":"YUSUF YILDIRIM"}]

{"sheet":"12 G","index":12,"n_rows":34,"n_cols":7,"rows_kept":34,"cut":false,"hidden":false,"merged":[[0,0,0,6],[1,0,1,6],[2,0,34,0],[2,1,2,6]]}
[{"$f":"IF(Bilgi!B4=\"\",\"Lütfen Bilgi Sayfasına Okul Adını Yazınız\",UPPER(Bilgi!B4))","v":"İSKENDERUN MESLEKİ VE TEKNİK ANADOLU LİSESİ"}]
[{"$f":"Bilgi!B3&\" EĞİTİM ÖĞRETİM YILI\"","v":"2022-2023 EĞİTİM ÖĞRETİM YILI"}]
["YAPILACAK ÇALIŞMALAR","12. SINIF G ŞUBESİ SINIF REHBERLİK PLANI"]
[null,"EYLÜL","TARİH","EKİM","TARİH","KASIM","TARİH"]
[null,"Rehberlik Yürütme Komisyonu Toplantısı","2. Hafta","4- Zamanını, ihtiyaçları ve sorumlulukları çerçevesinde planlar.","2. Hafta","8- Akademik çalışmalarını zamanında bitirmede kararlı olur.","1. Hafta"]
[null,"1- Sahip olduğu karakter güçlerini zorluklar karşısında kullanır.","3. Hafta","5- Bilişim teknolojileri kullanımı konusunda kendini değerlendirir.","3. Hafta","9- Kariyer planlama sürecinde kişisel özelliklerini kullanır.","2. Hafta"]
[null,"Bilgi Fişlerinin Doldurulması","3. Hafta","Psikososyal (İşin Aslı)","3. Hafta","10- Ortaöğretim sonrası kariyer tercihleri ile ilgili yardım alabileceği kaynaklara başvurur.","4. Hafta"]
[null,"Sınıf Rehberlik Planının Hazırlanması","3. Hafta","6- Kendi bedenine ilişkin olumlu tutum geliştirir.","4. Hafta","Psikososyal (Duygı Düşünce Kartları)","4. Hafta"]
[null,"2- Okula hazırlıklı gelme ile akademik gelişimi arasında bağ kurar.","4. Hafta","7- Üst öğretim kurumlarına geçiş sınavlarına hazırlanmak ve başarılı olmak için stratejiler geliştirir.","5. Hafta","11- Kültürel farklılıklara duyarlı bakış açısı geliştirir.","5. Hafta"]
[null,"BEP 'lerin Oluşturulması","4. Hafta","Veli Toplantısı","5. Hafta","Veli Ziyaretleri","5. Hafta"]
[null,"3- Zamanını, ihtiyaçları ve sorumlulukları çerçevesinde planlar.","5. Hafta"]
[null,"ARALIK","TARİH","OCAK","TARİH","ŞUBAT","TARİH"]
[null,"12- Kültürel farklılıklara duyarlı davranışlar sergiler.","2. Hafta","16- Öz geçmiş yazar.","1. Hafta","19- İş görüşme becerilerini açıklar.","2. Hafta"]
[null,"13- Adil olmayı güçlendirmek için “hak savunuculuğu” yapar.","3. Hafta","Toplantı (Diğer)","1. Hafta","Psikososyal (Ortak Özelliklerimiz)","2. Hafta"]
[null,"14- Yaşam amaçlarıyla ilgili eylem planını gözden geçirir.","4. Hafta","17- Öz geçmiş yazar.","2. Hafta","20- İş görüşme becerilerini kullanır.","3. Hafta"]
[null,"Psikososyal (Duygu Listem)","4. Hafta","18- Stres yaratan kaynakları fark eder.","3. Hafta","21- Toplum için gönüllü çalışmada duyarlı davranır.","4. Hafta"]
[null,"15- Yaşadığı yoğun duyguları yönetir.","5. Hafta"]
[null,"Veli Ziyaretleri","5. Hafta"]
[]
[null,"MART","TARİH","NİSAN","TARİH","MAYIS","TARİH"]
[null,"22- Karakter güçleri ile iyi oluş arasında bağ kurar.","1. Hafta","27- Üst öğretim kurumuna ya da iş yaşamına ilişkin kariyer kararını verir.","2. Hafta","30- Sınavlara ilişkin yoğun duygularını yönetir.","1. Hafta"]
[null,"23- İyi oluşunu destekleyen duyguları yaşamında sıklıkla deneyimler.","2. Hafta","Psikososyal (Doğal Tepkiler)","2. Hafta","RİBA Uygulaması","1. Hafta"]
[null,"Psikososyal (Ergenim Farkındayım)","2. Hafta","28- Değişim ve belirsizlikle baş eder.","3. Hafta","31- Öğrenmenin hayat boyu devam ettiğine inanır.","2. Hafta"]
[null,"24- Mesleki bilgi kaynaklarını kullanır","3. Hafta","29- Sınavlara ilişkin yoğun duygularını yönetir.","5. Hafta","32- Üst öğretim kurumlarına geçiş sınavlarıyla ilgili bilgi edinir.","3. Hafta"]
[null,"25- Seçmeyi düşündüğü mesleklerle ilgili kariyer planlaması yapar.","4. Hafta","Veli Ziyaretleri","5. Hafta","33- Bir üst öğretim kurumuna ilişkin ön bilgiler edinir.","4. Hafta"]
[null,"26- Meslek seçiminde karar verme becerisini kullanır.","5. Hafta",null,null,"Veli Ziyaretleri","4. Hafta"]
[null,"Veli Ziyaretleri","5. Hafta",null,null,"34- Bir üst öğretim kurumuna ve iş yaşamına geçiş sürecine yönelik duygu ve düşüncelerini ifade eder.","5. Hafta"]
[null,"HAZİRAN","TARİH"]
[null,"35- Eğitim öğretim hayatının kendisine kattıklarını değerlendirir.","2. Hafta","İMZA",null,"İMZA"]
[null,"36- Sınıf rehberlik programı etkinliklerine/yaşantılarına ilişkin duygu ve düşüncelerini yansıtır.","3. Hafta"]
[]
[]
[null,null,null,"ÖĞRETMENİN ADI SOYADI",null,"OKUL MÜDÜRÜNÜN ADI SOYADI"]
[null,null,null,"NEŞET ER",null,{"$f":"IF(Bilgi!B9=\"\",\"Lütfen Bilgi Sayfasına Okul Müdürü İsim ve Soyismini Yazınız\",UPPER(Bilgi!B9))","v":"YUSUF YILDIRIM"}]

{"sheet":"12 F","index":13,"n_rows":34,"n_cols":7,"rows_kept":34,"cut":false,"hidden":false,"merged":[[0,0,0,6],[1,0,1,6],[2,0,34,0],[2,1,2,6]]}
[{"$f":"IF(Bilgi!B4=\"\",\"Lütfen Bilgi Sayfasına Okul Adını Yazınız\",UPPER(Bilgi!B4))","v":"İSKENDERUN MESLEKİ VE TEKNİK ANADOLU LİSESİ"}]
[{"$f":"Bilgi!B3&\" EĞİTİM ÖĞRETİM YILI\"","v":"2022-2023 EĞİTİM ÖĞRETİM YILI"}]
["YAPILACAK ÇALIŞMALAR","12. SINIF F ŞUBESİ SINIF REHBERLİK PLANI"]
[null,"EYLÜL","TARİH","EKİM","TARİH","KASIM","TARİH"]
[null,"Rehberlik Yürütme Komisyonu Toplantısı","2. Hafta","4- Zamanını, ihtiyaçları ve sorumlulukları çerçevesinde planlar.","2. Hafta","8- Akademik çalışmalarını zamanında bitirmede kararlı olur.","1. Hafta"]
[null,"1- Sahip olduğu karakter güçlerini zorluklar karşısında kullanır.","3. Hafta","5- Bilişim teknolojileri kullanımı konusunda kendini değerlendirir.","3. Hafta","9- Kariyer planlama sürecinde kişisel özelliklerini kullanır.","2. Hafta"]
[null,"Bilgi Fişlerinin Doldurulması","3. Hafta","Psikososyal (İşin Aslı)","3. Hafta","10- Ortaöğretim sonrası kariyer tercihleri ile ilgili yardım alabileceği kaynaklara başvurur.","4. Hafta"]
[null,"Sınıf Rehberlik Planının Hazırlanması","3. Hafta","6- Kendi bedenine ilişkin olumlu tutum geliştirir.","4. Hafta","Psikososyal (Duygı Düşünce Kartları)","4. Hafta"]
[null,"2- Okula hazırlıklı gelme ile akademik gelişimi arasında bağ kurar.","4. Hafta","7- Üst öğretim kurumlarına geçiş sınavlarına hazırlanmak ve başarılı olmak için stratejiler geliştirir.","5. Hafta","11- Kültürel farklılıklara duyarlı bakış açısı geliştirir.","5. Hafta"]
[null,"BEP 'lerin Oluşturulması","4. Hafta","Veli Toplantısı","5. Hafta","Veli Ziyaretleri","5. Hafta"]
[null,"3- Zamanını, ihtiyaçları ve sorumlulukları çerçevesinde planlar.","5. Hafta"]
[null,"ARALIK","TARİH","OCAK","TARİH","ŞUBAT","TARİH"]
[null,"12- Kültürel farklılıklara duyarlı davranışlar sergiler.","2. Hafta","16- Öz geçmiş yazar.","1. Hafta","19- İş görüşme becerilerini açıklar.","2. Hafta"]
[null,"13- Adil olmayı güçlendirmek için “hak savunuculuğu” yapar.","3. Hafta","Toplantı (Diğer)","1. Hafta","Psikososyal (Ortak Özelliklerimiz)","2. Hafta"]
[null,"14- Yaşam amaçlarıyla ilgili eylem planını gözden geçirir.","4. Hafta","17- Öz geçmiş yazar.","2. Hafta","20- İş görüşme becerilerini kullanır.","3. Hafta"]
[null,"Psikososyal (Duygu Listem)","4. Hafta","18- Stres yaratan kaynakları fark eder.","3. Hafta","21- Toplum için gönüllü çalışmada duyarlı davranır.","4. Hafta"]
[null,"15- Yaşadığı yoğun duyguları yönetir.","5. Hafta"]
[null,"Veli Ziyaretleri","5. Hafta"]
[]
[null,"MART","TARİH","NİSAN","TARİH","MAYIS","TARİH"]
[null,"22- Karakter güçleri ile iyi oluş arasında bağ kurar.","1. Hafta","27- Üst öğretim kurumuna ya da iş yaşamına ilişkin kariyer kararını verir.","2. Hafta","30- Sınavlara ilişkin yoğun duygularını yönetir.","1. Hafta"]
[null,"23- İyi oluşunu destekleyen duyguları yaşamında sıklıkla deneyimler.","2. Hafta","Psikososyal (Doğal Tepkiler)","2. Hafta","RİBA Uygulaması","1. Hafta"]
[null,"Psikososyal (Ergenim Farkındayım)","2. Hafta","28- Değişim ve belirsizlikle baş eder.","3. Hafta","31- Öğrenmenin hayat boyu devam ettiğine inanır.","2. Hafta"]
[null,"24- Mesleki bilgi kaynaklarını kullanır","3. Hafta","29- Sınavlara ilişkin yoğun duygularını yönetir.","5. Hafta","32- Üst öğretim kurumlarına geçiş sınavlarıyla ilgili bilgi edinir.","3. Hafta"]
[null,"25- Seçmeyi düşündüğü mesleklerle ilgili kariyer planlaması yapar.","4. Hafta","Veli Ziyaretleri","5. Hafta","33- Bir üst öğretim kurumuna ilişkin ön bilgiler edinir.","4. Hafta"]
[null,"26- Meslek seçiminde karar verme becerisini kullanır.","5. Hafta",null,null,"Veli Ziyaretleri","4. Hafta"]
[null,"Veli Ziyaretleri","5. Hafta",null,null,"34- Bir üst öğretim kurumuna ve iş yaşamına geçiş sürecine yönelik duygu ve düşüncelerini ifade eder.","5. Hafta"]
[null,"HAZİRAN","TARİH"]
[null,"35- Eğitim öğretim hayatının kendisine kattıklarını değerlendirir.","2. Hafta","İMZA",null,"İMZA"]
[null,"36- Sınıf rehberlik programı etkinliklerine/yaşantılarına ilişkin duygu ve düşüncelerini yansıtır.","3. Hafta"]
[]
[]
[null,null,null,"ÖĞRETMENİN ADI SOYADI",null,"OKUL MÜDÜRÜNÜN ADI SOYADI"]
[null,null,null,"MERYEM ASKERDEN",null,{"$f":"IF(Bilgi!B9=\"\",\"Lütfen Bilgi Sayfasına Okul Müdürü İsim ve Soyismini Yazınız\",UPPER(Bilgi!B9))","v":"YUSUF YILDIRIM"}]

{"sheet":"12 E","index":14,"n_rows":34,"n_cols":7,"rows_kept":34,"cut":false,"hidden":false,"merged":[[0,0,0,6],[1,0,1,6],[2,0,34,0],[2,1,2,6]]}
[{"$f":"IF(Bilgi!B4=\"\",\"Lütfen Bilgi Sayfasına Okul Adını Yazınız\",UPPER(Bilgi!B4))","v":"İSKENDERUN MESLEKİ VE TEKNİK ANADOLU LİSESİ"}]
[{"$f":"Bilgi!B3&\" EĞİTİM ÖĞRETİM YILI\"","v":"2022-2023 EĞİTİM ÖĞRETİM YILI"}]
["YAPILACAK ÇALIŞMALAR","12. SINIF E ŞUBESİ SINIF REHBERLİK PLANI"]
[null,"EYLÜL","TARİH","EKİM","TARİH","KASIM","TARİH"]
[null,"Rehberlik Yürütme Komisyonu Toplantısı","2. Hafta","4- Zamanını, ihtiyaçları ve sorumlulukları çerçevesinde planlar.","2. Hafta","8- Akademik çalışmalarını zamanında bitirmede kararlı olur.","1. Hafta"]
[null,"1- Sahip olduğu karakter güçlerini zorluklar karşısında kullanır.","3. Hafta","5- Bilişim teknolojileri kullanımı konusunda kendini değerlendirir.","3. Hafta","9- Kariyer planlama sürecinde kişisel özelliklerini kullanır.","2. Hafta"]
[null,"Bilgi Fişlerinin Doldurulması","3. Hafta","Psikososyal (İşin Aslı)","3. Hafta","10- Ortaöğretim sonrası kariyer tercihleri ile ilgili yardım alabileceği kaynaklara başvurur.","4. Hafta"]
[null,"Sınıf Rehberlik Planının Hazırlanması","3. Hafta","6- Kendi bedenine ilişkin olumlu tutum geliştirir.","4. Hafta","Psikososyal (Duygı Düşünce Kartları)","4. Hafta"]
[null,"2- Okula hazırlıklı gelme ile akademik gelişimi arasında bağ kurar.","4. Hafta","7- Üst öğretim kurumlarına geçiş sınavlarına hazırlanmak ve başarılı olmak için stratejiler geliştirir.","5. Hafta","11- Kültürel farklılıklara duyarlı bakış açısı geliştirir.","5. Hafta"]
[null,"BEP 'lerin Oluşturulması","4. Hafta","Veli Toplantısı","5. Hafta","Veli Ziyaretleri","5. Hafta"]
[null,"3- Zamanını, ihtiyaçları ve sorumlulukları çerçevesinde planlar.","5. Hafta"]
[null,"ARALIK","TARİH","OCAK","TARİH","ŞUBAT","TARİH"]
[null,"12- Kültürel farklılıklara duyarlı davranışlar sergiler.","2. Hafta","16- Öz geçmiş yazar.","1. Hafta","19- İş görüşme becerilerini açıklar.","2. Hafta"]
[null,"13- Adil olmayı güçlendirmek için “hak savunuculuğu” yapar.","3. Hafta","Toplantı (Diğer)","1. Hafta","Psikososyal (Ortak Özelliklerimiz)","2. Hafta"]
[null,"14- Yaşam amaçlarıyla ilgili eylem planını gözden geçirir.","4. Hafta","17- Öz geçmiş yazar.","2. Hafta","20- İş görüşme becerilerini kullanır.","3. Hafta"]
[null,"Psikososyal (Duygu Listem)","4. Hafta","18- Stres yaratan kaynakları fark eder.","3. Hafta","21- Toplum için gönüllü çalışmada duyarlı davranır.","4. Hafta"]
[null,"15- Yaşadığı yoğun duyguları yönetir.","5. Hafta"]
[null,"Veli Ziyaretleri","5. Hafta"]
[]
[null,"MART","TARİH","NİSAN","TARİH","MAYIS","TARİH"]
[null,"22- Karakter güçleri ile iyi oluş arasında bağ kurar.","1. Hafta","27- Üst öğretim kurumuna ya da iş yaşamına ilişkin kariyer kararını verir.","2. Hafta","30- Sınavlara ilişkin yoğun duygularını yönetir.","1. Hafta"]
[null,"23- İyi oluşunu destekleyen duyguları yaşamında sıklıkla deneyimler.","2. Hafta","Psikososyal (Doğal Tepkiler)","2. Hafta","RİBA Uygulaması","1. Hafta"]
[null,"Psikososyal (Ergenim Farkındayım)","2. Hafta","28- Değişim ve belirsizlikle baş eder.","3. Hafta","31- Öğrenmenin hayat boyu devam ettiğine inanır.","2. Hafta"]
[null,"24- Mesleki bilgi kaynaklarını kullanır","3. Hafta","29- Sınavlara ilişkin yoğun duygularını yönetir.","5. Hafta","32- Üst öğretim kurumlarına geçiş sınavlarıyla ilgili bilgi edinir.","3. Hafta"]
[null,"25- Seçmeyi düşündüğü mesleklerle ilgili kariyer planlaması yapar.","4. Hafta","Veli Ziyaretleri","5. Hafta","33- Bir üst öğretim kurumuna ilişkin ön bilgiler edinir.","4. Hafta"]
[null,"26- Meslek seçiminde karar verme becerisini kullanır.","5. Hafta",null,null,"Veli Ziyaretleri","4. Hafta"]
[null,"Veli Ziyaretleri","5. Hafta",null,null,"34- Bir üst öğretim kurumuna ve iş yaşamına geçiş sürecine yönelik duygu ve düşüncelerini ifade eder.","5. Hafta"]
[null,"HAZİRAN","TARİH"]
[null,"35- Eğitim öğretim hayatının kendisine kattıklarını değerlendirir.","2. Hafta","İMZA",null,"İMZA"]
[null,"36- Sınıf rehberlik programı etkinliklerine/yaşantılarına ilişkin duygu ve düşüncelerini yansıtır.","3. Hafta"]
[]
[]
[null,null,null,"ÖĞRETMENİN ADI SOYADI",null,"OKUL MÜDÜRÜNÜN ADI SOYADI"]
[null,null,null,"HAKAN FİDAN",null,{"$f":"IF(Bilgi!B9=\"\",\"Lütfen Bilgi Sayfasına Okul Müdürü İsim ve Soyismini Yazınız\",UPPER(Bilgi!B9))","v":"YUSUF YILDIRIM"}]

{"sheet":"12 D","index":15,"n_rows":34,"n_cols":7,"rows_kept":34,"cut":false,"hidden":false,"merged":[[0,0,0,6],[1,0,1,6],[2,0,34,0],[2,1,2,6]]}
[{"$f":"IF(Bilgi!B4=\"\",\"Lütfen Bilgi Sayfasına Okul Adını Yazınız\",UPPER(Bilgi!B4))","v":"İSKENDERUN MESLEKİ VE TEKNİK ANADOLU LİSESİ"}]
[{"$f":"Bilgi!B3&\" EĞİTİM ÖĞRETİM YILI\"","v":"2022-2023 EĞİTİM ÖĞRETİM YILI"}]
["YAPILACAK ÇALIŞMALAR","12. SINIF D ŞUBESİ SINIF REHBERLİK PLANI"]
[null,"EYLÜL","TARİH","EKİM","TARİH","KASIM","TARİH"]
[null,"Rehberlik Yürütme Komisyonu Toplantısı","2. Hafta","4- Zamanını, ihtiyaçları ve sorumlulukları çerçevesinde planlar.","2. Hafta","8- Akademik çalışmalarını zamanında bitirmede kararlı olur.","1. Hafta"]
[null,"1- Sahip olduğu karakter güçlerini zorluklar karşısında kullanır.","3. Hafta","5- Bilişim teknolojileri kullanımı konusunda kendini değerlendirir.","3. Hafta","9- Kariyer planlama sürecinde kişisel özelliklerini kullanır.","2. Hafta"]
[null,"Bilgi Fişlerinin Doldurulması","3. Hafta","Psikososyal (İşin Aslı)","3. Hafta","10- Ortaöğretim sonrası kariyer tercihleri ile ilgili yardım alabileceği kaynaklara başvurur.","4. Hafta"]
[null,"Sınıf Rehberlik Planının Hazırlanması","3. Hafta","6- Kendi bedenine ilişkin olumlu tutum geliştirir.","4. Hafta","Psikososyal (Duygı Düşünce Kartları)","4. Hafta"]
[null,"2- Okula hazırlıklı gelme ile akademik gelişimi arasında bağ kurar.","4. Hafta","7- Üst öğretim kurumlarına geçiş sınavlarına hazırlanmak ve başarılı olmak için stratejiler geliştirir.","5. Hafta","11- Kültürel farklılıklara duyarlı bakış açısı geliştirir.","5. Hafta"]
[null,"BEP 'lerin Oluşturulması","4. Hafta","Veli Toplantısı","5. Hafta","Veli Ziyaretleri","5. Hafta"]
[null,"3- Zamanını, ihtiyaçları ve sorumlulukları çerçevesinde planlar.","5. Hafta"]
[null,"ARALIK","TARİH","OCAK","TARİH","ŞUBAT","TARİH"]
[null,"12- Kültürel farklılıklara duyarlı davranışlar sergiler.","2. Hafta","16- Öz geçmiş yazar.","1. Hafta","19- İş görüşme becerilerini açıklar.","2. Hafta"]
[null,"13- Adil olmayı güçlendirmek için “hak savunuculuğu” yapar.","3. Hafta","Toplantı (Diğer)","1. Hafta","Psikososyal (Ortak Özelliklerimiz)","2. Hafta"]
[null,"14- Yaşam amaçlarıyla ilgili eylem planını gözden geçirir.","4. Hafta","17- Öz geçmiş yazar.","2. Hafta","20- İş görüşme becerilerini kullanır.","3. Hafta"]
[null,"Psikososyal (Duygu Listem)","4. Hafta","18- Stres yaratan kaynakları fark eder.","3. Hafta","21- Toplum için gönüllü çalışmada duyarlı davranır.","4. Hafta"]
[null,"15- Yaşadığı yoğun duyguları yönetir.","5. Hafta"]
[null,"Veli Ziyaretleri","5. Hafta"]
[]
[null,"MART","TARİH","NİSAN","TARİH","MAYIS","TARİH"]
[null,"22- Karakter güçleri ile iyi oluş arasında bağ kurar.","1. Hafta","27- Üst öğretim kurumuna ya da iş yaşamına ilişkin kariyer kararını verir.","2. Hafta","30- Sınavlara ilişkin yoğun duygularını yönetir.","1. Hafta"]
[null,"23- İyi oluşunu destekleyen duyguları yaşamında sıklıkla deneyimler.","2. Hafta","Psikososyal (Doğal Tepkiler)","2. Hafta","RİBA Uygulaması","1. Hafta"]
[null,"Psikososyal (Ergenim Farkındayım)","2. Hafta","28- Değişim ve belirsizlikle baş eder.","3. Hafta","31- Öğrenmenin hayat boyu devam ettiğine inanır.","2. Hafta"]
[null,"24- Mesleki bilgi kaynaklarını kullanır","3. Hafta","29- Sınavlara ilişkin yoğun duygularını yönetir.","5. Hafta","32- Üst öğretim kurumlarına geçiş sınavlarıyla ilgili bilgi edinir.","3. Hafta"]
[null,"25- Seçmeyi düşündüğü mesleklerle ilgili kariyer planlaması yapar.","4. Hafta","Veli Ziyaretleri","5. Hafta","33- Bir üst öğretim kurumuna ilişkin ön bilgiler edinir.","4. Hafta"]
[null,"26- Meslek seçiminde karar verme becerisini kullanır.","5. Hafta",null,null,"Veli Ziyaretleri","4. Hafta"]
[null,"Veli Ziyaretleri","5. Hafta",null,null,"34- Bir üst öğretim kurumuna ve iş yaşamına geçiş sürecine yönelik duygu ve düşüncelerini ifade eder.","5. Hafta"]
[null,"HAZİRAN","TARİH"]
[null,"35- Eğitim öğretim hayatının kendisine kattıklarını değerlendirir.","2. Hafta","İMZA",null,"İMZA"]
[null,"36- Sınıf rehberlik programı etkinliklerine/yaşantılarına ilişkin duygu ve düşüncelerini yansıtır.","3. Hafta"]
[]
[]
[null,null,null,"ÖĞRETMENİN ADI SOYADI",null,"OKUL MÜDÜRÜNÜN ADI SOYADI"]
[null,null,null,"MEHMET ALİ SÜRMELİOĞLU",null,{"$f":"IF(Bilgi!B9=\"\",\"Lütfen Bilgi Sayfasına Okul Müdürü İsim ve Soyismini Yazınız\",UPPER(Bilgi!B9))","v":"YUSUF YILDIRIM"}]

{"sheet":"12 C","index":16,"n_rows":34,"n_cols":7,"rows_kept":34,"cut":false,"hidden":false,"merged":[[0,0,0,6],[1,0,1,6],[2,0,34,0],[2,1,2,6]]}
[{"$f":"IF(Bilgi!B4=\"\",\"Lütfen Bilgi Sayfasına Okul Adını Yazınız\",UPPER(Bilgi!B4))","v":"İSKENDERUN MESLEKİ VE TEKNİK ANADOLU LİSESİ"}]
[{"$f":"Bilgi!B3&\" EĞİTİM ÖĞRETİM YILI\"","v":"2022-2023 EĞİTİM ÖĞRETİM YILI"}]
["YAPILACAK ÇALIŞMALAR","12. SINIF C ŞUBESİ SINIF REHBERLİK PLANI"]
[null,"EYLÜL","TARİH","EKİM","TARİH","KASIM","TARİH"]
[null,"Rehberlik Yürütme Komisyonu Toplantısı","2. Hafta","4- Zamanını, ihtiyaçları ve sorumlulukları çerçevesinde planlar.","2. Hafta","8- Akademik çalışmalarını zamanında bitirmede kararlı olur.","1. Hafta"]
[null,"1- Sahip olduğu karakter güçlerini zorluklar karşısında kullanır.","3. Hafta","5- Bilişim teknolojileri kullanımı konusunda kendini değerlendirir.","3. Hafta","9- Kariyer planlama sürecinde kişisel özelliklerini kullanır.","2. Hafta"]
[null,"Bilgi Fişlerinin Doldurulması","3. Hafta","Psikososyal (İşin Aslı)","3. Hafta","10- Ortaöğretim sonrası kariyer tercihleri ile ilgili yardım alabileceği kaynaklara başvurur.","4. Hafta"]
[null,"Sınıf Rehberlik Planının Hazırlanması","3. Hafta","6- Kendi bedenine ilişkin olumlu tutum geliştirir.","4. Hafta","Psikososyal (Duygı Düşünce Kartları)","4. Hafta"]
[null,"2- Okula hazırlıklı gelme ile akademik gelişimi arasında bağ kurar.","4. Hafta","7- Üst öğretim kurumlarına geçiş sınavlarına hazırlanmak ve başarılı olmak için stratejiler geliştirir.","5. Hafta","11- Kültürel farklılıklara duyarlı bakış açısı geliştirir.","5. Hafta"]
[null,"BEP 'lerin Oluşturulması","4. Hafta","Veli Toplantısı","5. Hafta","Veli Ziyaretleri","5. Hafta"]
[null,"3- Zamanını, ihtiyaçları ve sorumlulukları çerçevesinde planlar.","5. Hafta"]
[null,"ARALIK","TARİH","OCAK","TARİH","ŞUBAT","TARİH"]
[null,"12- Kültürel farklılıklara duyarlı davranışlar sergiler.","2. Hafta","16- Öz geçmiş yazar.","1. Hafta","19- İş görüşme becerilerini açıklar.","2. Hafta"]
[null,"13- Adil olmayı güçlendirmek için “hak savunuculuğu” yapar.","3. Hafta","Toplantı (Diğer)","1. Hafta","Psikososyal (Ortak Özelliklerimiz)","2. Hafta"]
[null,"14- Yaşam amaçlarıyla ilgili eylem planını gözden geçirir.","4. Hafta","17- Öz geçmiş yazar.","2. Hafta","20- İş görüşme becerilerini kullanır.","3. Hafta"]
[null,"Psikososyal (Duygu Listem)","4. Hafta","18- Stres yaratan kaynakları fark eder.","3. Hafta","21- Toplum için gönüllü çalışmada duyarlı davranır.","4. Hafta"]
[null,"15- Yaşadığı yoğun duyguları yönetir.","5. Hafta"]
[null,"Veli Ziyaretleri","5. Hafta"]
[]
[null,"MART","TARİH","NİSAN","TARİH","MAYIS","TARİH"]
[null,"22- Karakter güçleri ile iyi oluş arasında bağ kurar.","1. Hafta","27- Üst öğretim kurumuna ya da iş yaşamına ilişkin kariyer kararını verir.","2. Hafta","30- Sınavlara ilişkin yoğun duygularını yönetir.","1. Hafta"]
[null,"23- İyi oluşunu destekleyen duyguları yaşamında sıklıkla deneyimler.","2. Hafta","Psikososyal (Doğal Tepkiler)","2. Hafta","RİBA Uygulaması","1. Hafta"]
[null,"Psikososyal (Ergenim Farkındayım)","2. Hafta","28- Değişim ve belirsizlikle baş eder.","3. Hafta","31- Öğrenmenin hayat boyu devam ettiğine inanır.","2. Hafta"]
[null,"24- Mesleki bilgi kaynaklarını kullanır","3. Hafta","29- Sınavlara ilişkin yoğun duygularını yönetir.","5. Hafta","32- Üst öğretim kurumlarına geçiş sınavlarıyla ilgili bilgi edinir.","3. Hafta"]
[null,"25- Seçmeyi düşündüğü mesleklerle ilgili kariyer planlaması yapar.","4. Hafta","Veli Ziyaretleri","5. Hafta","33- Bir üst öğretim kurumuna ilişkin ön bilgiler edinir.","4. Hafta"]
[null,"26- Meslek seçiminde karar verme becerisini kullanır.","5. Hafta",null,null,"Veli Ziyaretleri","4. Hafta"]
[null,"Veli Ziyaretleri","5. Hafta",null,null,"34- Bir üst öğretim kurumuna ve iş yaşamına geçiş sürecine yönelik duygu ve düşüncelerini ifade eder.","5. Hafta"]
[null,"HAZİRAN","TARİH"]
[null,"35- Eğitim öğretim hayatının kendisine kattıklarını değerlendirir.","2. Hafta","İMZA",null,"İMZA"]
[null,"36- Sınıf rehberlik programı etkinliklerine/yaşantılarına ilişkin duygu ve düşüncelerini yansıtır.","3. Hafta"]
[]
[]
[null,null,null,"ÖĞRETMENİN ADI SOYADI",null,"OKUL MÜDÜRÜNÜN ADI SOYADI"]
[null,null,null,"ZEKERİYA TETİK",null,{"$f":"IF(Bilgi!B9=\"\",\"Lütfen Bilgi Sayfasına Okul Müdürü İsim ve Soyismini Yazınız\",UPPER(Bilgi!B9))","v":"YUSUF YILDIRIM"}]

{"sheet":"12 B","index":17,"n_rows":34,"n_cols":7,"rows_kept":34,"cut":false,"hidden":false,"merged":[[0,0,0,6],[1,0,1,6],[2,0,34,0],[2,1,2,6]]}
[{"$f":"IF(Bilgi!B4=\"\",\"Lütfen Bilgi Sayfasına Okul Adını Yazınız\",UPPER(Bilgi!B4))","v":"İSKENDERUN MESLEKİ VE TEKNİK ANADOLU LİSESİ"}]
[{"$f":"Bilgi!B3&\" EĞİTİM ÖĞRETİM YILI\"","v":"2022-2023 EĞİTİM ÖĞRETİM YILI"}]
["YAPILACAK ÇALIŞMALAR","12. SINIF B ŞUBESİ SINIF REHBERLİK PLANI"]
[null,"EYLÜL","TARİH","EKİM","TARİH","KASIM","TARİH"]
[null,"Rehberlik Yürütme Komisyonu Toplantısı","2. Hafta","4- Zamanını, ihtiyaçları ve sorumlulukları çerçevesinde planlar.","2. Hafta","8- Akademik çalışmalarını zamanında bitirmede kararlı olur.","1. Hafta"]
[null,"1- Sahip olduğu karakter güçlerini zorluklar karşısında kullanır.","3. Hafta","5- Bilişim teknolojileri kullanımı konusunda kendini değerlendirir.","3. Hafta","9- Kariyer planlama sürecinde kişisel özelliklerini kullanır.","2. Hafta"]
[null,"Bilgi Fişlerinin Doldurulması","3. Hafta","Psikososyal (İşin Aslı)","3. Hafta","10- Ortaöğretim sonrası kariyer tercihleri ile ilgili yardım alabileceği kaynaklara başvurur.","4. Hafta"]
[null,"Sınıf Rehberlik Planının Hazırlanması","3. Hafta","6- Kendi bedenine ilişkin olumlu tutum geliştirir.","4. Hafta","Psikososyal (Duygı Düşünce Kartları)","4. Hafta"]
[null,"2- Okula hazırlıklı gelme ile akademik gelişimi arasında bağ kurar.","4. Hafta","7- Üst öğretim kurumlarına geçiş sınavlarına hazırlanmak ve başarılı olmak için stratejiler geliştirir.","5. Hafta","11- Kültürel farklılıklara duyarlı bakış açısı geliştirir.","5. Hafta"]
[null,"BEP 'lerin Oluşturulması","4. Hafta","Veli Toplantısı","5. Hafta","Veli Ziyaretleri","5. Hafta"]
[null,"3- Zamanını, ihtiyaçları ve sorumlulukları çerçevesinde planlar.","5. Hafta"]
[null,"ARALIK","TARİH","OCAK","TARİH","ŞUBAT","TARİH"]
[null,"12- Kültürel farklılıklara duyarlı davranışlar sergiler.","2. Hafta","16- Öz geçmiş yazar.","1. Hafta","19- İş görüşme becerilerini açıklar.","2. Hafta"]
[null,"13- Adil olmayı güçlendirmek için “hak savunuculuğu” yapar.","3. Hafta","Toplantı (Diğer)","1. Hafta","Psikososyal (Ortak Özelliklerimiz)","2. Hafta"]
[null,"14- Yaşam amaçlarıyla ilgili eylem planını gözden geçirir.","4. Hafta","17- Öz geçmiş yazar.","2. Hafta","20- İş görüşme becerilerini kullanır.","3. Hafta"]
[null,"Psikososyal (Duygu Listem)","4. Hafta","18- Stres yaratan kaynakları fark eder.","3. Hafta","21- Toplum için gönüllü çalışmada duyarlı davranır.","4. Hafta"]
[null,"15- Yaşadığı yoğun duyguları yönetir.","5. Hafta"]
[null,"Veli Ziyaretleri","5. Hafta"]
[]
[null,"MART","TARİH","NİSAN","TARİH","MAYIS","TARİH"]
[null,"22- Karakter güçleri ile iyi oluş arasında bağ kurar.","1. Hafta","27- Üst öğretim kurumuna ya da iş yaşamına ilişkin kariyer kararını verir.","2. Hafta","30- Sınavlara ilişkin yoğun duygularını yönetir.","1. Hafta"]
[null,"23- İyi oluşunu destekleyen duyguları yaşamında sıklıkla deneyimler.","2. Hafta","Psikososyal (Doğal Tepkiler)","2. Hafta","RİBA Uygulaması","1. Hafta"]
[null,"Psikososyal (Ergenim Farkındayım)","2. Hafta","28- Değişim ve belirsizlikle baş eder.","3. Hafta","31- Öğrenmenin hayat boyu devam ettiğine inanır.","2. Hafta"]
[null,"24- Mesleki bilgi kaynaklarını kullanır","3. Hafta","29- Sınavlara ilişkin yoğun duygularını yönetir.","5. Hafta","32- Üst öğretim kurumlarına geçiş sınavlarıyla ilgili bilgi edinir.","3. Hafta"]
[null,"25- Seçmeyi düşündüğü mesleklerle ilgili kariyer planlaması yapar.","4. Hafta","Veli Ziyaretleri","5. Hafta","33- Bir üst öğretim kurumuna ilişkin ön bilgiler edinir.","4. Hafta"]
[null,"26- Meslek seçiminde karar verme becerisini kullanır.","5. Hafta",null,null,"Veli Ziyaretleri","4. Hafta"]
[null,"Veli Ziyaretleri","5. Hafta",null,null,"34- Bir üst öğretim kurumuna ve iş yaşamına geçiş sürecine yönelik duygu ve düşüncelerini ifade eder.","5. Hafta"]
[null,"HAZİRAN","TARİH"]
[null,"35- Eğitim öğretim hayatının kendisine kattıklarını değerlendirir.","2. Hafta","İMZA",null,"İMZA"]
[null,"36- Sınıf rehberlik programı etkinliklerine/yaşantılarına ilişkin duygu ve düşüncelerini yansıtır.","3. Hafta"]
[]
[]
[null,null,null,"ÖĞRETMENİN ADI SOYADI",null,"OKUL MÜDÜRÜNÜN ADI SOYADI"]
[null,null,null,"FUNDA AKGÜL",null,{"$f":"IF(Bilgi!B9=\"\",\"Lütfen Bilgi Sayfasına Okul Müdürü İsim ve Soyismini Yazınız\",UPPER(Bilgi!B9))","v":"YUSUF YILDIRIM"}]

{"sheet":"12 A","index":18,"n_rows":34,"n_cols":7,"rows_kept":34,"cut":false,"hidden":false,"merged":[[0,0,0,6],[1,0,1,6],[2,0,34,0],[2,1,2,6]]}
[{"$f":"IF(Bilgi!B4=\"\",\"Lütfen Bilgi Sayfasına Okul Adını Yazınız\",UPPER(Bilgi!B4))","v":"İSKENDERUN MESLEKİ VE TEKNİK ANADOLU LİSESİ"}]
[{"$f":"Bilgi!B3&\" EĞİTİM ÖĞRETİM YILI\"","v":"2022-2023 EĞİTİM ÖĞRETİM YILI"}]
["YAPILACAK ÇALIŞMALAR","12. SINIF A ŞUBESİ SINIF REHBERLİK PLANI"]
[null,"EYLÜL","TARİH","EKİM","TARİH","KASIM","TARİH"]
[null,"Rehberlik Yürütme Komisyonu Toplantısı","2. Hafta","4- Zamanını, ihtiyaçları ve sorumlulukları çerçevesinde planlar.","2. Hafta","8- Akademik çalışmalarını zamanında bitirmede kararlı olur.","1. Hafta"]
[null,"1- Sahip olduğu karakter güçlerini zorluklar karşısında kullanır.","3. Hafta","5- Bilişim teknolojileri kullanımı konusunda kendini değerlendirir.","3. Hafta","9- Kariyer planlama sürecinde kişisel özelliklerini kullanır.","2. Hafta"]
[null,"Bilgi Fişlerinin Doldurulması","3. Hafta","Psikososyal (İşin Aslı)","3. Hafta","10- Ortaöğretim sonrası kariyer tercihleri ile ilgili yardım alabileceği kaynaklara başvurur.","4. Hafta"]
[null,"Sınıf Rehberlik Planının Hazırlanması","3. Hafta","6- Kendi bedenine ilişkin olumlu tutum geliştirir.","4. Hafta","Psikososyal (Duygı Düşünce Kartları)","4. Hafta"]
[null,"2- Okula hazırlıklı gelme ile akademik gelişimi arasında bağ kurar.","4. Hafta","7- Üst öğretim kurumlarına geçiş sınavlarına hazırlanmak ve başarılı olmak için stratejiler geliştirir.","5. Hafta","11- Kültürel farklılıklara duyarlı bakış açısı geliştirir.","5. Hafta"]
[null,"BEP 'lerin Oluşturulması","4. Hafta","Veli Toplantısı","5. Hafta","Veli Ziyaretleri","5. Hafta"]
[null,"3- Zamanını, ihtiyaçları ve sorumlulukları çerçevesinde planlar.","5. Hafta"]
[null,"ARALIK","TARİH","OCAK","TARİH","ŞUBAT","TARİH"]
[null,"12- Kültürel farklılıklara duyarlı davranışlar sergiler.","2. Hafta","16- Öz geçmiş yazar.","1. Hafta","19- İş görüşme becerilerini açıklar.","2. Hafta"]
[null,"13- Adil olmayı güçlendirmek için “hak savunuculuğu” yapar.","3. Hafta","Toplantı (Diğer)","1. Hafta","Psikososyal (Ortak Özelliklerimiz)","2. Hafta"]
[null,"14- Yaşam amaçlarıyla ilgili eylem planını gözden geçirir.","4. Hafta","17- Öz geçmiş yazar.","2. Hafta","20- İş görüşme becerilerini kullanır.","3. Hafta"]
[null,"Psikososyal (Duygu Listem)","4. Hafta","18- Stres yaratan kaynakları fark eder.","3. Hafta","21- Toplum için gönüllü çalışmada duyarlı davranır.","4. Hafta"]
[null,"15- Yaşadığı yoğun duyguları yönetir.","5. Hafta"]
[null,"Veli Ziyaretleri","5. Hafta"]
[]
[null,"MART","TARİH","NİSAN","TARİH","MAYIS","TARİH"]
[null,"22- Karakter güçleri ile iyi oluş arasında bağ kurar.","1. Hafta","27- Üst öğretim kurumuna ya da iş yaşamına ilişkin kariyer kararını verir.","2. Hafta","30- Sınavlara ilişkin yoğun duygularını yönetir.","1. Hafta"]
[null,"23- İyi oluşunu destekleyen duyguları yaşamında sıklıkla deneyimler.","2. Hafta","Psikososyal (Doğal Tepkiler)","2. Hafta","RİBA Uygulaması","1. Hafta"]
[null,"Psikososyal (Ergenim Farkındayım)","2. Hafta","28- Değişim ve belirsizlikle baş eder.","3. Hafta","31- Öğrenmenin hayat boyu devam ettiğine inanır.","2. Hafta"]
[null,"24- Mesleki bilgi kaynaklarını kullanır","3. Hafta","29- Sınavlara ilişkin yoğun duygularını yönetir.","5. Hafta","32- Üst öğretim kurumlarına geçiş sınavlarıyla ilgili bilgi edinir.","3. Hafta"]
[null,"25- Seçmeyi düşündüğü mesleklerle ilgili kariyer planlaması yapar.","4. Hafta","Veli Ziyaretleri","5. Hafta","33- Bir üst öğretim kurumuna ilişkin ön bilgiler edinir.","4. Hafta"]
[null,"26- Meslek seçiminde karar verme becerisini kullanır.","5. Hafta",null,null,"Veli Ziyaretleri","4. Hafta"]
[null,"Veli Ziyaretleri","5. Hafta",null,null,"34- Bir üst öğretim kurumuna ve iş yaşamına geçiş sürecine yönelik duygu ve düşüncelerini ifade eder.","5. Hafta"]
[null,"HAZİRAN","TARİH"]
[null,"35- Eğitim öğretim hayatının kendisine kattıklarını değerlendirir.","2. Hafta","İMZA",null,"İMZA"]
[null,"36- Sınıf rehberlik programı etkinliklerine/yaşantılarına ilişkin duygu ve düşüncelerini yansıtır.","3. Hafta"]
[]
[]
[null,null,null,"ÖĞRETMENİN ADI SOYADI",null,"OKUL MÜDÜRÜNÜN ADI SOYADI"]
[null,null,null,"EMEL HACIKERİMLİ",null,{"$f":"IF(Bilgi!B9=\"\",\"Lütfen Bilgi Sayfasına Okul Müdürü İsim ve Soyismini Yazınız\",UPPER(Bilgi!B9))","v":"YUSUF YILDIRIM"}]

{"sheet":"11 I","index":19,"n_rows":34,"n_cols":7,"rows_kept":34,"cut":false,"hidden":false,"merged":[[0,0,0,6],[1,0,1,6],[2,0,34,0],[2,1,2,6]]}
[{"$f":"IF(Bilgi!B4=\"\",\"Lütfen Bilgi Sayfasına Okul Adını Yazınız\",UPPER(Bilgi!B4))","v":"İSKENDERUN MESLEKİ VE TEKNİK ANADOLU LİSESİ"}]
[{"$f":"Bilgi!B3&\" EĞİTİM ÖĞRETİM YILI\"","v":"2022-2023 EĞİTİM ÖĞRETİM YILI"}]
["YAPILACAK ÇALIŞMALAR","11. SINIF I ŞUBESİ SINIF REHBERLİK PLANI"]
[null,"EYLÜL","TARİH","EKİM","TARİH","KASIM","TARİH"]
[null,"Rehberlik Yürütme Komisyonu Toplantısı","2. Hafta","4- Kişilik özelliklerine ilişkin farkındalık geliştirir.","2. Hafta","8- Yaşam değerleri ve davranışları arasında bağ kurar.","1. Hafta"]
[null,"1- Başarılı olduğu durumlarda kendini takdir eder.","3. Hafta","5- Ergen-ebeveyn ilişkilerini değerlendirir.","3. Hafta","9- İlgi, yetenek ve mesleki değerlerini ilişkilendirir.","2. Hafta"]
[null,"Bilgi Fişlerinin Doldurulması","3. Hafta","Psikososyal (İşin Aslı)","3. Hafta","10- Eğitsel etkinliklerdeki başarısızlıkların öğrenme sürecinin bir parçası olduğunu kabul eder.","4. Hafta"]
[null,"Sınıf Rehberlik Planının Hazırlanması","3. Hafta","6- Akademik başarının önündeki engelleri fark eder.","4. Hafta","Psikososyal (Duygı Düşünce Kartları)","4. Hafta"]
[null,"2- Akademik konulardaki güçlü ve geliştirilmesi gereken özelliklerini fark eder.","4. Hafta","7- Akademik sorumluluklarını ertelemenin sonuçlarını fark eder.","5. Hafta","11- Öğrenme sürecinde deneyimlediği başarısızlıkların üstesinden gelmek için farklı çözüm yolları dener.","5. Hafta"]
[null,"BEP 'lerin Oluşturulması","4. Hafta","Veli Toplantısı","5. Hafta","Veli Ziyaretleri","5. Hafta"]
[null,"3- Başarmak için çalışmanın gerekliliğine inanır.","5. Hafta"]
[null,"ARALIK","TARİH","OCAK","TARİH","ŞUBAT","TARİH"]
[null,"12- Geleceğini hayal ederek başarılı yaşam amaçları oluşturur.","2. Hafta","16- Grup çalışmalarına aktif olarak katılır.","1. Hafta","19- İyi oluşu ile duyguları arasında bağ kurar.","2. Hafta"]
[null,"13- Yaşam amaçlarına ulaşmak için bir eylem planı hazırlar.","3. Hafta","Toplantı (Diğer)","1. Hafta","Psikososyal (Ortak Özelliklerimiz)","2. Hafta"]
[null,"14- Liderlik özellikleri açısından kendini değerlendirir.","4. Hafta","17- Okulda topluma katkı sağlayacak projeler üretir.","2. Hafta","20- Arkadaşlık ilişkilerinde yaşadığı sorunları yapıcı yollarla çözer.","3. Hafta"]
[null,"Psikososyal (Duygu Listem)","4. Hafta","18- Okulda topluma katkı sağlayacak projeler üretir.","3. Hafta","21- Bilgi kaynaklarının güvenilirliğini sorgular.","4. Hafta"]
[null,"15- Yerel ve küresel sorunları tartışır.","5. Hafta"]
[null,"Veli Ziyaretleri","5. Hafta"]
[]
[null,"MART","TARİH","NİSAN","TARİH","MAYIS","TARİH"]
[null,"22- Sağlıklı yaşam alışkanlıkları ile bedensel ve psikolojik sağlığı arasında bağ kurar.","1. Hafta","27- Kişisel seçimleri ile toplumsal rollerin gerektirdiği sorumluluklar arasında denge kurar.","2. Hafta","30- Seçmeyi düşündüğü mesleklerle ilgili kariyer planlaması yapar.","1. Hafta"]
[null,"23- Beden imgesi ile fiziksel ve psikolojik sağlığını ilişkilendirir.","2. Hafta","Psikososyal (Doğal Tepkiler)","2. Hafta","RİBA Uygulaması","1. Hafta"]
[null,"Psikososyal (Ergenim Farkındayım)","2. Hafta","28- Mesleki bilgi kaynaklarını kullanır.","3. Hafta","31- Meslek seçiminde karar verme becerisini kullanır.","2. Hafta"]
[null,"24- Sınavlara hazırlanmayı etkileyen faktörleri açıklar.","3. Hafta","29- Mesleki bilgi kaynaklarını kullanır.","5. Hafta","32- Akademik amaçlarıyla kariyer seçenekleri arasındaki ilişkiyi açıklar.","3. Hafta"]
[null,"25- Akran grubunun yaşamındaki yerini açıklar.","4. Hafta","Veli Ziyaretleri","5. Hafta","33- Kimlik gelişimi ile sosyal bağlamları ilişkilendirir.","4. Hafta"]
[null,"26- Kararlarında aile ve akranlarının etkilerini değerlendirir.","5. Hafta",null,null,"Veli Ziyaretleri","4. Hafta"]
[null,"Veli Ziyaretleri","5. Hafta",null,null,"34- Ortaöğretim sonrası kariyer tercihleri ile ilgili yardım alabileceği kaynaklara başvurur.","5. Hafta"]
[null,"HAZİRAN","TARİH"]
[null,"35- Kişisel değerleri ile yaşam amaçları arasında bağ kurar.","2. Hafta","İMZA",null,"İMZA"]
[null,"36- Sınıf rehberlik programı etkinliklerine/yaşantılarına ilişkin duygu ve düşüncelerini yansıtır.","3. Hafta"]
[]
[]
[null,null,null,"ÖĞRETMENİN ADI SOYADI",null,"OKUL MÜDÜRÜNÜN ADI SOYADI"]
[null,null,null,"EMİNE ÇİÇEK TERZİ",null,{"$f":"IF(Bilgi!B9=\"\",\"Lütfen Bilgi Sayfasına Okul Müdürü İsim ve Soyismini Yazınız\",UPPER(Bilgi!B9))","v":"YUSUF YILDIRIM"}]

{"sheet":"11 G","index":20,"n_rows":34,"n_cols":7,"rows_kept":34,"cut":false,"hidden":false,"merged":[[0,0,0,6],[1,0,1,6],[2,0,34,0],[2,1,2,6]]}
[{"$f":"IF(Bilgi!B4=\"\",\"Lütfen Bilgi Sayfasına Okul Adını Yazınız\",UPPER(Bilgi!B4))","v":"İSKENDERUN MESLEKİ VE TEKNİK ANADOLU LİSESİ"}]
[{"$f":"Bilgi!B3&\" EĞİTİM ÖĞRETİM YILI\"","v":"2022-2023 EĞİTİM ÖĞRETİM YILI"}]
["YAPILACAK ÇALIŞMALAR","11. SINIF G ŞUBESİ SINIF REHBERLİK PLANI"]
[null,"EYLÜL","TARİH","EKİM","TARİH","KASIM","TARİH"]
[null,"Rehberlik Yürütme Komisyonu Toplantısı","2. Hafta","4- Kişilik özelliklerine ilişkin farkındalık geliştirir.","2. Hafta","8- Yaşam değerleri ve davranışları arasında bağ kurar.","1. Hafta"]
[null,"1- Başarılı olduğu durumlarda kendini takdir eder.","3. Hafta","5- Ergen-ebeveyn ilişkilerini değerlendirir.","3. Hafta","9- İlgi, yetenek ve mesleki değerlerini ilişkilendirir.","2. Hafta"]
[null,"Bilgi Fişlerinin Doldurulması","3. Hafta","Psikososyal (İşin Aslı)","3. Hafta","10- Eğitsel etkinliklerdeki başarısızlıkların öğrenme sürecinin bir parçası olduğunu kabul eder.","4. Hafta"]
[null,"Sınıf Rehberlik Planının Hazırlanması","3. Hafta","6- Akademik başarının önündeki engelleri fark eder.","4. Hafta","Psikososyal (Duygı Düşünce Kartları)","4. Hafta"]
[null,"2- Akademik konulardaki güçlü ve geliştirilmesi gereken özelliklerini fark eder.","4. Hafta","7- Akademik sorumluluklarını ertelemenin sonuçlarını fark eder.","5. Hafta","11- Öğrenme sürecinde deneyimlediği başarısızlıkların üstesinden gelmek için farklı çözüm yolları dener.","5. Hafta"]
[null,"BEP 'lerin Oluşturulması","4. Hafta","Veli Toplantısı","5. Hafta","Veli Ziyaretleri","5. Hafta"]
[null,"3- Başarmak için çalışmanın gerekliliğine inanır.","5. Hafta"]
[null,"ARALIK","TARİH","OCAK","TARİH","ŞUBAT","TARİH"]
[null,"12- Geleceğini hayal ederek başarılı yaşam amaçları oluşturur.","2. Hafta","16- Grup çalışmalarına aktif olarak katılır.","1. Hafta","19- İyi oluşu ile duyguları arasında bağ kurar.","2. Hafta"]
[null,"13- Yaşam amaçlarına ulaşmak için bir eylem planı hazırlar.","3. Hafta","Toplantı (Diğer)","1. Hafta","Psikososyal (Ortak Özelliklerimiz)","2. Hafta"]
[null,"14- Liderlik özellikleri açısından kendini değerlendirir.","4. Hafta","17- Okulda topluma katkı sağlayacak projeler üretir.","2. Hafta","20- Arkadaşlık ilişkilerinde yaşadığı sorunları yapıcı yollarla çözer.","3. Hafta"]
[null,"Psikososyal (Duygu Listem)","4. Hafta","18- Okulda topluma katkı sağlayacak projeler üretir.","3. Hafta","21- Bilgi kaynaklarının güvenilirliğini sorgular.","4. Hafta"]
[null,"15- Yerel ve küresel sorunları tartışır.","5. Hafta"]
[null,"Veli Ziyaretleri","5. Hafta"]
[]
[null,"MART","TARİH","NİSAN","TARİH","MAYIS","TARİH"]
[null,"22- Sağlıklı yaşam alışkanlıkları ile bedensel ve psikolojik sağlığı arasında bağ kurar.","1. Hafta","27- Kişisel seçimleri ile toplumsal rollerin gerektirdiği sorumluluklar arasında denge kurar.","2. Hafta","30- Seçmeyi düşündüğü mesleklerle ilgili kariyer planlaması yapar.","1. Hafta"]
[null,"23- Beden imgesi ile fiziksel ve psikolojik sağlığını ilişkilendirir.","2. Hafta","Psikososyal (Doğal Tepkiler)","2. Hafta","RİBA Uygulaması","1. Hafta"]
[null,"Psikososyal (Ergenim Farkındayım)","2. Hafta","28- Mesleki bilgi kaynaklarını kullanır.","3. Hafta","31- Meslek seçiminde karar verme becerisini kullanır.","2. Hafta"]
[null,"24- Sınavlara hazırlanmayı etkileyen faktörleri açıklar.","3. Hafta","29- Mesleki bilgi kaynaklarını kullanır.","5. Hafta","32- Akademik amaçlarıyla kariyer seçenekleri arasındaki ilişkiyi açıklar.","3. Hafta"]
[null,"25- Akran grubunun yaşamındaki yerini açıklar.","4. Hafta","Veli Ziyaretleri","5. Hafta","33- Kimlik gelişimi ile sosyal bağlamları ilişkilendirir.","4. Hafta"]
[null,"26- Kararlarında aile ve akranlarının etkilerini değerlendirir.","5. Hafta",null,null,"Veli Ziyaretleri","4. Hafta"]
[null,"Veli Ziyaretleri","5. Hafta",null,null,"34- Ortaöğretim sonrası kariyer tercihleri ile ilgili yardım alabileceği kaynaklara başvurur.","5. Hafta"]
[null,"HAZİRAN","TARİH"]
[null,"35- Kişisel değerleri ile yaşam amaçları arasında bağ kurar.","2. Hafta","İMZA",null,"İMZA"]
[null,"36- Sınıf rehberlik programı etkinliklerine/yaşantılarına ilişkin duygu ve düşüncelerini yansıtır.","3. Hafta"]
[]
[]
[null,null,null,"ÖĞRETMENİN ADI SOYADI",null,"OKUL MÜDÜRÜNÜN ADI SOYADI"]
[null,null,null,"NASRETTİN TAÇYILDIZ",null,{"$f":"IF(Bilgi!B9=\"\",\"Lütfen Bilgi Sayfasına Okul Müdürü İsim ve Soyismini Yazınız\",UPPER(Bilgi!B9))","v":"YUSUF YILDIRIM"}]

{"sheet":"11 F","index":21,"n_rows":34,"n_cols":7,"rows_kept":34,"cut":false,"hidden":false,"merged":[[0,0,0,6],[1,0,1,6],[2,0,34,0],[2,1,2,6]]}
[{"$f":"IF(Bilgi!B4=\"\",\"Lütfen Bilgi Sayfasına Okul Adını Yazınız\",UPPER(Bilgi!B4))","v":"İSKENDERUN MESLEKİ VE TEKNİK ANADOLU LİSESİ"}]
[{"$f":"Bilgi!B3&\" EĞİTİM ÖĞRETİM YILI\"","v":"2022-2023 EĞİTİM ÖĞRETİM YILI"}]
["YAPILACAK ÇALIŞMALAR","11. SINIF F ŞUBESİ SINIF REHBERLİK PLANI"]
[null,"EYLÜL","TARİH","EKİM","TARİH","KASIM","TARİH"]
[null,"Rehberlik Yürütme Komisyonu Toplantısı","2. Hafta","4- Kişilik özelliklerine ilişkin farkındalık geliştirir.","2. Hafta","8- Yaşam değerleri ve davranışları arasında bağ kurar.","1. Hafta"]
[null,"1- Başarılı olduğu durumlarda kendini takdir eder.","3. Hafta","5- Ergen-ebeveyn ilişkilerini değerlendirir.","3. Hafta","9- İlgi, yetenek ve mesleki değerlerini ilişkilendirir.","2. Hafta"]
[null,"Bilgi Fişlerinin Doldurulması","3. Hafta","Psikososyal (İşin Aslı)","3. Hafta","10- Eğitsel etkinliklerdeki başarısızlıkların öğrenme sürecinin bir parçası olduğunu kabul eder.","4. Hafta"]
[null,"Sınıf Rehberlik Planının Hazırlanması","3. Hafta","6- Akademik başarının önündeki engelleri fark eder.","4. Hafta","Psikososyal (Duygı Düşünce Kartları)","4. Hafta"]
[null,"2- Akademik konulardaki güçlü ve geliştirilmesi gereken özelliklerini fark eder.","4. Hafta","7- Akademik sorumluluklarını ertelemenin sonuçlarını fark eder.","5. Hafta","11- Öğrenme sürecinde deneyimlediği başarısızlıkların üstesinden gelmek için farklı çözüm yolları dener.","5. Hafta"]
[null,"BEP 'lerin Oluşturulması","4. Hafta","Veli Toplantısı","5. Hafta","Veli Ziyaretleri","5. Hafta"]
[null,"3- Başarmak için çalışmanın gerekliliğine inanır.","5. Hafta"]
[null,"ARALIK","TARİH","OCAK","TARİH","ŞUBAT","TARİH"]
[null,"12- Geleceğini hayal ederek başarılı yaşam amaçları oluşturur.","2. Hafta","16- Grup çalışmalarına aktif olarak katılır.","1. Hafta","19- İyi oluşu ile duyguları arasında bağ kurar.","2. Hafta"]
[null,"13- Yaşam amaçlarına ulaşmak için bir eylem planı hazırlar.","3. Hafta","Toplantı (Diğer)","1. Hafta","Psikososyal (Ortak Özelliklerimiz)","2. Hafta"]
[null,"14- Liderlik özellikleri açısından kendini değerlendirir.","4. Hafta","17- Okulda topluma katkı sağlayacak projeler üretir.","2. Hafta","20- Arkadaşlık ilişkilerinde yaşadığı sorunları yapıcı yollarla çözer.","3. Hafta"]
[null,"Psikososyal (Duygu Listem)","4. Hafta","18- Okulda topluma katkı sağlayacak projeler üretir.","3. Hafta","21- Bilgi kaynaklarının güvenilirliğini sorgular.","4. Hafta"]
[null,"15- Yerel ve küresel sorunları tartışır.","5. Hafta"]
[null,"Veli Ziyaretleri","5. Hafta"]
[]
[null,"MART","TARİH","NİSAN","TARİH","MAYIS","TARİH"]
[null,"22- Sağlıklı yaşam alışkanlıkları ile bedensel ve psikolojik sağlığı arasında bağ kurar.","1. Hafta","27- Kişisel seçimleri ile toplumsal rollerin gerektirdiği sorumluluklar arasında denge kurar.","2. Hafta","30- Seçmeyi düşündüğü mesleklerle ilgili kariyer planlaması yapar.","1. Hafta"]
[null,"23- Beden imgesi ile fiziksel ve psikolojik sağlığını ilişkilendirir.","2. Hafta","Psikososyal (Doğal Tepkiler)","2. Hafta","RİBA Uygulaması","1. Hafta"]
[null,"Psikososyal (Ergenim Farkındayım)","2. Hafta","28- Mesleki bilgi kaynaklarını kullanır.","3. Hafta","31- Meslek seçiminde karar verme becerisini kullanır.","2. Hafta"]
[null,"24- Sınavlara hazırlanmayı etkileyen faktörleri açıklar.","3. Hafta","29- Mesleki bilgi kaynaklarını kullanır.","5. Hafta","32- Akademik amaçlarıyla kariyer seçenekleri arasındaki ilişkiyi açıklar.","3. Hafta"]
[null,"25- Akran grubunun yaşamındaki yerini açıklar.","4. Hafta","Veli Ziyaretleri","5. Hafta","33- Kimlik gelişimi ile sosyal bağlamları ilişkilendirir.","4. Hafta"]
[null,"26- Kararlarında aile ve akranlarının etkilerini değerlendirir.","5. Hafta",null,null,"Veli Ziyaretleri","4. Hafta"]
[null,"Veli Ziyaretleri","5. Hafta",null,null,"34- Ortaöğretim sonrası kariyer tercihleri ile ilgili yardım alabileceği kaynaklara başvurur.","5. Hafta"]
[null,"HAZİRAN","TARİH"]
[null,"35- Kişisel değerleri ile yaşam amaçları arasında bağ kurar.","2. Hafta","İMZA",null,"İMZA"]
[null,"36- Sınıf rehberlik programı etkinliklerine/yaşantılarına ilişkin duygu ve düşüncelerini yansıtır.","3. Hafta"]
[]
[]
[null,null,null,"ÖĞRETMENİN ADI SOYADI",null,"OKUL MÜDÜRÜNÜN ADI SOYADI"]
[null,null,null,"MEHMET BİLİR",null,{"$f":"IF(Bilgi!B9=\"\",\"Lütfen Bilgi Sayfasına Okul Müdürü İsim ve Soyismini Yazınız\",UPPER(Bilgi!B9))","v":"YUSUF YILDIRIM"}]

{"sheet":"11 E","index":22,"n_rows":34,"n_cols":7,"rows_kept":34,"cut":false,"hidden":false,"merged":[[0,0,0,6],[1,0,1,6],[2,0,34,0],[2,1,2,6]]}
[{"$f":"IF(Bilgi!B4=\"\",\"Lütfen Bilgi Sayfasına Okul Adını Yazınız\",UPPER(Bilgi!B4))","v":"İSKENDERUN MESLEKİ VE TEKNİK ANADOLU LİSESİ"}]
[{"$f":"Bilgi!B3&\" EĞİTİM ÖĞRETİM YILI\"","v":"2022-2023 EĞİTİM ÖĞRETİM YILI"}]
["YAPILACAK ÇALIŞMALAR","11. SINIF E ŞUBESİ SINIF REHBERLİK PLANI"]
[null,"EYLÜL","TARİH","EKİM","TARİH","KASIM","TARİH"]
[null,"Rehberlik Yürütme Komisyonu Toplantısı","2. Hafta","4- Kişilik özelliklerine ilişkin farkındalık geliştirir.","2. Hafta","8- Yaşam değerleri ve davranışları arasında bağ kurar.","1. Hafta"]
[null,"1- Başarılı olduğu durumlarda kendini takdir eder.","3. Hafta","5- Ergen-ebeveyn ilişkilerini değerlendirir.","3. Hafta","9- İlgi, yetenek ve mesleki değerlerini ilişkilendirir.","2. Hafta"]
[null,"Bilgi Fişlerinin Doldurulması","3. Hafta","Psikososyal (İşin Aslı)","3. Hafta","10- Eğitsel etkinliklerdeki başarısızlıkların öğrenme sürecinin bir parçası olduğunu kabul eder.","4. Hafta"]
[null,"Sınıf Rehberlik Planının Hazırlanması","3. Hafta","6- Akademik başarının önündeki engelleri fark eder.","4. Hafta","Psikososyal (Duygı Düşünce Kartları)","4. Hafta"]
[null,"2- Akademik konulardaki güçlü ve geliştirilmesi gereken özelliklerini fark eder.","4. Hafta","7- Akademik sorumluluklarını ertelemenin sonuçlarını fark eder.","5. Hafta","11- Öğrenme sürecinde deneyimlediği başarısızlıkların üstesinden gelmek için farklı çözüm yolları dener.","5. Hafta"]
[null,"BEP 'lerin Oluşturulması","4. Hafta","Veli Toplantısı","5. Hafta","Veli Ziyaretleri","5. Hafta"]
[null,"3- Başarmak için çalışmanın gerekliliğine inanır.","5. Hafta"]
[null,"ARALIK","TARİH","OCAK","TARİH","ŞUBAT","TARİH"]
[null,"12- Geleceğini hayal ederek başarılı yaşam amaçları oluşturur.","2. Hafta","16- Grup çalışmalarına aktif olarak katılır.","1. Hafta","19- İyi oluşu ile duyguları arasında bağ kurar.","2. Hafta"]
[null,"13- Yaşam amaçlarına ulaşmak için bir eylem planı hazırlar.","3. Hafta","Toplantı (Diğer)","1. Hafta","Psikososyal (Ortak Özelliklerimiz)","2. Hafta"]
[null,"14- Liderlik özellikleri açısından kendini değerlendirir.","4. Hafta","17- Okulda topluma katkı sağlayacak projeler üretir.","2. Hafta","20- Arkadaşlık ilişkilerinde yaşadığı sorunları yapıcı yollarla çözer.","3. Hafta"]
[null,"Psikososyal (Duygu Listem)","4. Hafta","18- Okulda topluma katkı sağlayacak projeler üretir.","3. Hafta","21- Bilgi kaynaklarının güvenilirliğini sorgular.","4. Hafta"]
[null,"15- Yerel ve küresel sorunları tartışır.","5. Hafta"]
[null,"Veli Ziyaretleri","5. Hafta"]
[]
[null,"MART","TARİH","NİSAN","TARİH","MAYIS","TARİH"]
[null,"22- Sağlıklı yaşam alışkanlıkları ile bedensel ve psikolojik sağlığı arasında bağ kurar.","1. Hafta","27- Kişisel seçimleri ile toplumsal rollerin gerektirdiği sorumluluklar arasında denge kurar.","2. Hafta","30- Seçmeyi düşündüğü mesleklerle ilgili kariyer planlaması yapar.","1. Hafta"]
[null,"23- Beden imgesi ile fiziksel ve psikolojik sağlığını ilişkilendirir.","2. Hafta","Psikososyal (Doğal Tepkiler)","2. Hafta","RİBA Uygulaması","1. Hafta"]
[null,"Psikososyal (Ergenim Farkındayım)","2. Hafta","28- Mesleki bilgi kaynaklarını kullanır.","3. Hafta","31- Meslek seçiminde karar verme becerisini kullanır.","2. Hafta"]
[null,"24- Sınavlara hazırlanmayı etkileyen faktörleri açıklar.","3. Hafta","29- Mesleki bilgi kaynaklarını kullanır.","5. Hafta","32- Akademik amaçlarıyla kariyer seçenekleri arasındaki ilişkiyi açıklar.","3. Hafta"]
[null,"25- Akran grubunun yaşamındaki yerini açıklar.","4. Hafta","Veli Ziyaretleri","5. Hafta","33- Kimlik gelişimi ile sosyal bağlamları ilişkilendirir.","4. Hafta"]
[null,"26- Kararlarında aile ve akranlarının etkilerini değerlendirir.","5. Hafta",null,null,"Veli Ziyaretleri","4. Hafta"]
[null,"Veli Ziyaretleri","5. Hafta",null,null,"34- Ortaöğretim sonrası kariyer tercihleri ile ilgili yardım alabileceği kaynaklara başvurur.","5. Hafta"]
[null,"HAZİRAN","TARİH"]
[null,"35- Kişisel değerleri ile yaşam amaçları arasında bağ kurar.","2. Hafta","İMZA",null,"İMZA"]
[null,"36- Sınıf rehberlik programı etkinliklerine/yaşantılarına ilişkin duygu ve düşüncelerini yansıtır.","3. Hafta"]
[]
[]
[null,null,null,"ÖĞRETMENİN ADI SOYADI",null,"OKUL MÜDÜRÜNÜN ADI SOYADI"]
[null,null,null,"İSMAİL TÜRKMEN",null,{"$f":"IF(Bilgi!B9=\"\",\"Lütfen Bilgi Sayfasına Okul Müdürü İsim ve Soyismini Yazınız\",UPPER(Bilgi!B9))","v":"YUSUF YILDIRIM"}]

{"sheet":"11 C","index":23,"n_rows":34,"n_cols":7,"rows_kept":34,"cut":false,"hidden":false,"merged":[[0,0,0,6],[1,0,1,6],[2,0,34,0],[2,1,2,6]]}
[{"$f":"IF(Bilgi!B4=\"\",\"Lütfen Bilgi Sayfasına Okul Adını Yazınız\",UPPER(Bilgi!B4))","v":"İSKENDERUN MESLEKİ VE TEKNİK ANADOLU LİSESİ"}]
[{"$f":"Bilgi!B3&\" EĞİTİM ÖĞRETİM YILI\"","v":"2022-2023 EĞİTİM ÖĞRETİM YILI"}]
["YAPILACAK ÇALIŞMALAR","11. SINIF C ŞUBESİ SINIF REHBERLİK PLANI"]
[null,"EYLÜL","TARİH","EKİM","TARİH","KASIM","TARİH"]
[null,"Rehberlik Yürütme Komisyonu Toplantısı","2. Hafta","4- Kişilik özelliklerine ilişkin farkındalık geliştirir.","2. Hafta","8- Yaşam değerleri ve davranışları arasında bağ kurar.","1. Hafta"]
[null,"1- Başarılı olduğu durumlarda kendini takdir eder.","3. Hafta","5- Ergen-ebeveyn ilişkilerini değerlendirir.","3. Hafta","9- İlgi, yetenek ve mesleki değerlerini ilişkilendirir.","2. Hafta"]
[null,"Bilgi Fişlerinin Doldurulması","3. Hafta","Psikososyal (İşin Aslı)","3. Hafta","10- Eğitsel etkinliklerdeki başarısızlıkların öğrenme sürecinin bir parçası olduğunu kabul eder.","4. Hafta"]
[null,"Sınıf Rehberlik Planının Hazırlanması","3. Hafta","6- Akademik başarının önündeki engelleri fark eder.","4. Hafta","Psikososyal (Duygı Düşünce Kartları)","4. Hafta"]
[null,"2- Akademik konulardaki güçlü ve geliştirilmesi gereken özelliklerini fark eder.","4. Hafta","7- Akademik sorumluluklarını ertelemenin sonuçlarını fark eder.","5. Hafta","11- Öğrenme sürecinde deneyimlediği başarısızlıkların üstesinden gelmek için farklı çözüm yolları dener.","5. Hafta"]
[null,"BEP 'lerin Oluşturulması","4. Hafta","Veli Toplantısı","5. Hafta","Veli Ziyaretleri","5. Hafta"]
[null,"3- Başarmak için çalışmanın gerekliliğine inanır.","5. Hafta"]
[null,"ARALIK","TARİH","OCAK","TARİH","ŞUBAT","TARİH"]
[null,"12- Geleceğini hayal ederek başarılı yaşam amaçları oluşturur.","2. Hafta","16- Grup çalışmalarına aktif olarak katılır.","1. Hafta","19- İyi oluşu ile duyguları arasında bağ kurar.","2. Hafta"]
[null,"13- Yaşam amaçlarına ulaşmak için bir eylem planı hazırlar.","3. Hafta","Toplantı (Diğer)","1. Hafta","Psikososyal (Ortak Özelliklerimiz)","2. Hafta"]
[null,"14- Liderlik özellikleri açısından kendini değerlendirir.","4. Hafta","17- Okulda topluma katkı sağlayacak projeler üretir.","2. Hafta","20- Arkadaşlık ilişkilerinde yaşadığı sorunları yapıcı yollarla çözer.","3. Hafta"]
[null,"Psikososyal (Duygu Listem)","4. Hafta","18- Okulda topluma katkı sağlayacak projeler üretir.","3. Hafta","21- Bilgi kaynaklarının güvenilirliğini sorgular.","4. Hafta"]
[null,"15- Yerel ve küresel sorunları tartışır.","5. Hafta"]
[null,"Veli Ziyaretleri","5. Hafta"]
[]
[null,"MART","TARİH","NİSAN","TARİH","MAYIS","TARİH"]
[null,"22- Sağlıklı yaşam alışkanlıkları ile bedensel ve psikolojik sağlığı arasında bağ kurar.","1. Hafta","27- Kişisel seçimleri ile toplumsal rollerin gerektirdiği sorumluluklar arasında denge kurar.","2. Hafta","30- Seçmeyi düşündüğü mesleklerle ilgili kariyer planlaması yapar.","1. Hafta"]
[null,"23- Beden imgesi ile fiziksel ve psikolojik sağlığını ilişkilendirir.","2. Hafta","Psikososyal (Doğal Tepkiler)","2. Hafta","RİBA Uygulaması","1. Hafta"]
[null,"Psikososyal (Ergenim Farkındayım)","2. Hafta","28- Mesleki bilgi kaynaklarını kullanır.","3. Hafta","31- Meslek seçiminde karar verme becerisini kullanır.","2. Hafta"]
[null,"24- Sınavlara hazırlanmayı etkileyen faktörleri açıklar.","3. Hafta","29- Mesleki bilgi kaynaklarını kullanır.","5. Hafta","32- Akademik amaçlarıyla kariyer seçenekleri arasındaki ilişkiyi açıklar.","3. Hafta"]
[null,"25- Akran grubunun yaşamındaki yerini açıklar.","4. Hafta","Veli Ziyaretleri","5. Hafta","33- Kimlik gelişimi ile sosyal bağlamları ilişkilendirir.","4. Hafta"]
[null,"26- Kararlarında aile ve akranlarının etkilerini değerlendirir.","5. Hafta",null,null,"Veli Ziyaretleri","4. Hafta"]
[null,"Veli Ziyaretleri","5. Hafta",null,null,"34- Ortaöğretim sonrası kariyer tercihleri ile ilgili yardım alabileceği kaynaklara başvurur.","5. Hafta"]
[null,"HAZİRAN","TARİH"]
[null,"35- Kişisel değerleri ile yaşam amaçları arasında bağ kurar.","2. Hafta","İMZA",null,"İMZA"]
[null,"36- Sınıf rehberlik programı etkinliklerine/yaşantılarına ilişkin duygu ve düşüncelerini yansıtır.","3. Hafta"]
[]
[]
[null,null,null,"ÖĞRETMENİN ADI SOYADI",null,"OKUL MÜDÜRÜNÜN ADI SOYADI"]
[null,null,null,"ENİS GÖÇER",null,{"$f":"IF(Bilgi!B9=\"\",\"Lütfen Bilgi Sayfasına Okul Müdürü İsim ve Soyismini Yazınız\",UPPER(Bilgi!B9))","v":"YUSUF YILDIRIM"}]

{"sheet":"11 B","index":24,"n_rows":34,"n_cols":7,"rows_kept":34,"cut":false,"hidden":false,"merged":[[0,0,0,6],[1,0,1,6],[2,0,34,0],[2,1,2,6]]}
[{"$f":"IF(Bilgi!B4=\"\",\"Lütfen Bilgi Sayfasına Okul Adını Yazınız\",UPPER(Bilgi!B4))","v":"İSKENDERUN MESLEKİ VE TEKNİK ANADOLU LİSESİ"}]
[{"$f":"Bilgi!B3&\" EĞİTİM ÖĞRETİM YILI\"","v":"2022-2023 EĞİTİM ÖĞRETİM YILI"}]
["YAPILACAK ÇALIŞMALAR","11. SINIF B ŞUBESİ SINIF REHBERLİK PLANI"]
[null,"EYLÜL","TARİH","EKİM","TARİH","KASIM","TARİH"]
[null,"Rehberlik Yürütme Komisyonu Toplantısı","2. Hafta","4- Kişilik özelliklerine ilişkin farkındalık geliştirir.","2. Hafta","8- Yaşam değerleri ve davranışları arasında bağ kurar.","1. Hafta"]
[null,"1- Başarılı olduğu durumlarda kendini takdir eder.","3. Hafta","5- Ergen-ebeveyn ilişkilerini değerlendirir.","3. Hafta","9- İlgi, yetenek ve mesleki değerlerini ilişkilendirir.","2. Hafta"]
[null,"Bilgi Fişlerinin Doldurulması","3. Hafta","Psikososyal (İşin Aslı)","3. Hafta","10- Eğitsel etkinliklerdeki başarısızlıkların öğrenme sürecinin bir parçası olduğunu kabul eder.","4. Hafta"]
[null,"Sınıf Rehberlik Planının Hazırlanması","3. Hafta","6- Akademik başarının önündeki engelleri fark eder.","4. Hafta","Psikososyal (Duygı Düşünce Kartları)","4. Hafta"]
[null,"2- Akademik konulardaki güçlü ve geliştirilmesi gereken özelliklerini fark eder.","4. Hafta","7- Akademik sorumluluklarını ertelemenin sonuçlarını fark eder.","5. Hafta","11- Öğrenme sürecinde deneyimlediği başarısızlıkların üstesinden gelmek için farklı çözüm yolları dener.","5. Hafta"]
[null,"BEP 'lerin Oluşturulması","4. Hafta","Veli Toplantısı","5. Hafta","Veli Ziyaretleri","5. Hafta"]
[null,"3- Başarmak için çalışmanın gerekliliğine inanır.","5. Hafta"]
[null,"ARALIK","TARİH","OCAK","TARİH","ŞUBAT","TARİH"]
[null,"12- Geleceğini hayal ederek başarılı yaşam amaçları oluşturur.","2. Hafta","16- Grup çalışmalarına aktif olarak katılır.","1. Hafta","19- İyi oluşu ile duyguları arasında bağ kurar.","2. Hafta"]
[null,"13- Yaşam amaçlarına ulaşmak için bir eylem planı hazırlar.","3. Hafta","Toplantı (Diğer)","1. Hafta","Psikososyal (Ortak Özelliklerimiz)","2. Hafta"]
[null,"14- Liderlik özellikleri açısından kendini değerlendirir.","4. Hafta","17- Okulda topluma katkı sağlayacak projeler üretir.","2. Hafta","20- Arkadaşlık ilişkilerinde yaşadığı sorunları yapıcı yollarla çözer.","3. Hafta"]
[null,"Psikososyal (Duygu Listem)","4. Hafta","18- Okulda topluma katkı sağlayacak projeler üretir.","3. Hafta","21- Bilgi kaynaklarının güvenilirliğini sorgular.","4. Hafta"]
[null,"15- Yerel ve küresel sorunları tartışır.","5. Hafta"]
[null,"Veli Ziyaretleri","5. Hafta"]
[]
[null,"MART","TARİH","NİSAN","TARİH","MAYIS","TARİH"]
[null,"22- Sağlıklı yaşam alışkanlıkları ile bedensel ve psikolojik sağlığı arasında bağ kurar.","1. Hafta","27- Kişisel seçimleri ile toplumsal rollerin gerektirdiği sorumluluklar arasında denge kurar.","2. Hafta","30- Seçmeyi düşündüğü mesleklerle ilgili kariyer planlaması yapar.","1. Hafta"]
[null,"23- Beden imgesi ile fiziksel ve psikolojik sağlığını ilişkilendirir.","2. Hafta","Psikososyal (Doğal Tepkiler)","2. Hafta","RİBA Uygulaması","1. Hafta"]
[null,"Psikososyal (Ergenim Farkındayım)","2. Hafta","28- Mesleki bilgi kaynaklarını kullanır.","3. Hafta","31- Meslek seçiminde karar verme becerisini kullanır.","2. Hafta"]
[null,"24- Sınavlara hazırlanmayı etkileyen faktörleri açıklar.","3. Hafta","29- Mesleki bilgi kaynaklarını kullanır.","5. Hafta","32- Akademik amaçlarıyla kariyer seçenekleri arasındaki ilişkiyi açıklar.","3. Hafta"]
[null,"25- Akran grubunun yaşamındaki yerini açıklar.","4. Hafta","Veli Ziyaretleri","5. Hafta","33- Kimlik gelişimi ile sosyal bağlamları ilişkilendirir.","4. Hafta"]
[null,"26- Kararlarında aile ve akranlarının etkilerini değerlendirir.","5. Hafta",null,null,"Veli Ziyaretleri","4. Hafta"]
[null,"Veli Ziyaretleri","5. Hafta",null,null,"34- Ortaöğretim sonrası kariyer tercihleri ile ilgili yardım alabileceği kaynaklara başvurur.","5. Hafta"]
[null,"HAZİRAN","TARİH"]
[null,"35- Kişisel değerleri ile yaşam amaçları arasında bağ kurar.","2. Hafta","İMZA",null,"İMZA"]
[null,"36- Sınıf rehberlik programı etkinliklerine/yaşantılarına ilişkin duygu ve düşüncelerini yansıtır.","3. Hafta"]
[]
[]
[null,null,null,"ÖĞRETMENİN ADI SOYADI",null,"OKUL MÜDÜRÜNÜN ADI SOYADI"]
[null,null,null,"MEHMET TÜMÜKAYA",null,{"$f":"IF(Bilgi!B9=\"\",\"Lütfen Bilgi Sayfasına Okul Müdürü İsim ve Soyismini Yazınız\",UPPER(Bilgi!B9))","v":"YUSUF YILDIRIM"}]

{"sheet":"10 F","index":25,"n_rows":34,"n_cols":7,"rows_kept":34,"cut":false,"hidden":false,"merged":[[0,0,0,6],[1,0,1,6],[2,0,34,0],[2,1,2,6]]}
[{"$f":"IF(Bilgi!B4=\"\",\"Lütfen Bilgi Sayfasına Okul Adını Yazınız\",UPPER(Bilgi!B4))","v":"İSKENDERUN MESLEKİ VE TEKNİK ANADOLU LİSESİ"}]
[{"$f":"Bilgi!B3&\" EĞİTİM ÖĞRETİM YILI\"","v":"2022-2023 EĞİTİM ÖĞRETİM YILI"}]
["YAPILACAK ÇALIŞMALAR","10. SINIF F ŞUBESİ SINIF REHBERLİK PLANI"]
[null,"EYLÜL","TARİH","EKİM","TARİH","KASIM","TARİH"]
[null,"Rehberlik Yürütme Komisyonu Toplantısı","2. Hafta","4- Yaşamındaki karar verme sürecini etkileyen faktörleri açıklar.","2. Hafta","8- Hatırlamayı zorlaştıran ve unutmaya neden olan faktörleri açıklar.","1. Hafta"]
[null,"1- Okul içinde ve dışında eğitsel ve sosyal etkinliklere katılmanın gelişimine katkılarını değerlendirir.","3. Hafta","5- Karar verme basamaklarını kullanır.","3. Hafta","9- Öğrenme ve verimli çalışma stratejilerini kullanma açısından kendisini değerlendirir.","2. Hafta"]
[null,"Bilgi Fişlerinin Doldurulması","3. Hafta","Psikososyal (İşin Aslı)","3. Hafta","10- Kısa ve uzun vadeli kariyer amaçlarını belirler.","4. Hafta"]
[null,"Sınıf Rehberlik Planının Hazırlanması","3. Hafta","6- Öğrenme ve verimli çalışma stratejilerini açıklar.","4. Hafta","Psikososyal (Duygı Düşünce Kartları)","4. Hafta"]
[null,"2- Okul içinde veya dışında etkinliklere katılırken ilgi ve yeteneklerini dikkate alır.","4. Hafta","7- Öğrenme ve verimli çalışma stratejilerini açıklar.","5. Hafta","11- Kısa ve uzun vadeli kariyer amaçlarını belirler.","5. Hafta"]
[null,"BEP 'lerin Oluşturulması","4. Hafta","Veli Toplantısı","5. Hafta","Veli Ziyaretleri","5. Hafta"]
[null,"3- Alan/bölüm/dal/ders seçiminde ilgi, yetenek ve mesleki değerleri dikkate alır.","5. Hafta"]
[null,"ARALIK","TARİH","OCAK","TARİH","ŞUBAT","TARİH"]
[null,"12- Akademik amaçlarıyla seçmek istediği kariyerlerin gerektirdiği akademik koşullar arasında bağ kurar.","2. Hafta","16- Kariyer beklentileri ile kariyer amaçlarını karşılaştırır.","1. Hafta","19- Ders/alan/dal seçerken karar verme becerisini kullanır.","2. Hafta"]
[null,"13- Beden imgesini etkileyen faktörler açısından kendini değerlendirir.","3. Hafta","Toplantı (Diğer)","1. Hafta","Psikososyal (Ortak Özelliklerimiz)","2. Hafta"]
[null,"14- Gelişim dönemi ile duygusal dalgalanmaları arasında bağ kurar.","4. Hafta","17- Kariyer karar verme süreçlerinde kendi görüşleri ile aile ve yakın çevresinin görüşlerini karşılaştırır.","2. Hafta","20- Kariyer hazırlığı sürecinde belirlediği amaçlar doğrultusunda alan/dal/ders seçimi yapar.","3. Hafta"]
[null,"Psikososyal (Duygu Listem)","4. Hafta","18- Derslerin mesleklerle ilişkisini açıklar.","3. Hafta","21- Eğitsel çabanın akademik hedeflere ulaşmadaki etkisini değerlendirir.","4. Hafta"]
[null,"15- Kariyer beklentileri ile kariyer amaçlarını karşılaştırır.","5. Hafta"]
[null,"Veli Ziyaretleri","5. Hafta"]
[]
[null,"MART","TARİH","NİSAN","TARİH","MAYIS","TARİH"]
[null,"22- Sosyal ipuçlarını yorumlayarak uygun tepkiler verir.","1. Hafta","27- İyilik hâline ilişkin edindiği bilgileri yaşamında uygulamayı alışkanlık hâline getirir.","2. Hafta","30- Öğrenme ortamlarındaki duygularını düzenler.","1. Hafta"]
[null,"23- Sahip olduğu karakter güçlerini geliştirmek için çaba gösterir.","2. Hafta","Psikososyal (Doğal Tepkiler)","2. Hafta","RİBA Uygulaması","1. Hafta"]
[null,"Psikososyal (Ergenim Farkındayım)","2. Hafta","28- Bilişim teknolojileri kullanımında kendini yönetir.","3. Hafta","31- Gerektiğinde arkadaşlığını sonlandırır.","2. Hafta"]
[null,"24- Yaşamda karşılaşılan zorlukların çaba ve zaman ile üstesinden gelinebileceğini fark eder.","3. Hafta","29- Yerel ve küresel sorunları fark eder.","5. Hafta","32- Gerektiğinde arkadaşlığını sonlandırır.","3. Hafta"]
[null,"25- Yaşamda karşılaşılan zorlukların çaba ve zaman ile üstesinden gelinebileceğini fark eder.","4. Hafta","Veli Ziyaretleri","5. Hafta","33- Takım çalışmalarının kişisel gelişimine olan etkilerini fark eder.","4. Hafta"]
[null,"26- Çatışma çözme becerilerini kullanır.","5. Hafta",null,null,"Veli Ziyaretleri","4. Hafta"]
[null,"Veli Ziyaretleri","5. Hafta",null,null,"34- Kişisel hakların korunması ve kişisel güvenliğin sağlanması için yönergeleri izlemeyi alışkanlık hâline getirir.","5. Hafta"]
[null,"HAZİRAN","TARİH"]
[null,"35- Doğal yaşamı korumak için duyarlı davranır.","2. Hafta","İMZA",null,"İMZA"]
[null,"36- Sınıf rehberlik programı etkinliklerine/yaşantılarına ilişkin duygu ve düşüncelerini yansıtır.","3. Hafta"]
[]
[]
[null,null,null,"ÖĞRETMENİN ADI SOYADI",null,"OKUL MÜDÜRÜNÜN ADI SOYADI"]
[null,null,null,"CEMİL TÜMKAYA (MOBİLYA-MOTOR)",null,{"$f":"IF(Bilgi!B9=\"\",\"Lütfen Bilgi Sayfasına Okul Müdürü İsim ve Soyismini Yazınız\",UPPER(Bilgi!B9))","v":"YUSUF YILDIRIM"}]

{"sheet":"10 E","index":26,"n_rows":34,"n_cols":7,"rows_kept":34,"cut":false,"hidden":false,"merged":[[0,0,0,6],[1,0,1,6],[2,0,34,0],[2,1,2,6]]}
[{"$f":"IF(Bilgi!B4=\"\",\"Lütfen Bilgi Sayfasına Okul Adını Yazınız\",UPPER(Bilgi!B4))","v":"İSKENDERUN MESLEKİ VE TEKNİK ANADOLU LİSESİ"}]
[{"$f":"Bilgi!B3&\" EĞİTİM ÖĞRETİM YILI\"","v":"2022-2023 EĞİTİM ÖĞRETİM YILI"}]
["YAPILACAK ÇALIŞMALAR","10. SINIF E ŞUBESİ SINIF REHBERLİK PLANI"]
[null,"EYLÜL","TARİH","EKİM","TARİH","KASIM","TARİH"]
[null,"Rehberlik Yürütme Komisyonu Toplantısı","2. Hafta","4- Yaşamındaki karar verme sürecini etkileyen faktörleri açıklar.","2. Hafta","8- Hatırlamayı zorlaştıran ve unutmaya neden olan faktörleri açıklar.","1. Hafta"]
[null,"1- Okul içinde ve dışında eğitsel ve sosyal etkinliklere katılmanın gelişimine katkılarını değerlendirir.","3. Hafta","5- Karar verme basamaklarını kullanır.","3. Hafta","9- Öğrenme ve verimli çalışma stratejilerini kullanma açısından kendisini değerlendirir.","2. Hafta"]
[null,"Bilgi Fişlerinin Doldurulması","3. Hafta","Psikososyal (İşin Aslı)","3. Hafta","10- Kısa ve uzun vadeli kariyer amaçlarını belirler.","4. Hafta"]
[null,"Sınıf Rehberlik Planının Hazırlanması","3. Hafta","6- Öğrenme ve verimli çalışma stratejilerini açıklar.","4. Hafta","Psikososyal (Duygı Düşünce Kartları)","4. Hafta"]
[null,"2- Okul içinde veya dışında etkinliklere katılırken ilgi ve yeteneklerini dikkate alır.","4. Hafta","7- Öğrenme ve verimli çalışma stratejilerini açıklar.","5. Hafta","11- Kısa ve uzun vadeli kariyer amaçlarını belirler.","5. Hafta"]
[null,"BEP 'lerin Oluşturulması","4. Hafta","Veli Toplantısı","5. Hafta","Veli Ziyaretleri","5. Hafta"]
[null,"3- Alan/bölüm/dal/ders seçiminde ilgi, yetenek ve mesleki değerleri dikkate alır.","5. Hafta"]
[null,"ARALIK","TARİH","OCAK","TARİH","ŞUBAT","TARİH"]
[null,"12- Akademik amaçlarıyla seçmek istediği kariyerlerin gerektirdiği akademik koşullar arasında bağ kurar.","2. Hafta","16- Kariyer beklentileri ile kariyer amaçlarını karşılaştırır.","1. Hafta","19- Ders/alan/dal seçerken karar verme becerisini kullanır.","2. Hafta"]
[null,"13- Beden imgesini etkileyen faktörler açısından kendini değerlendirir.","3. Hafta","Toplantı (Diğer)","1. Hafta","Psikososyal (Ortak Özelliklerimiz)","2. Hafta"]
[null,"14- Gelişim dönemi ile duygusal dalgalanmaları arasında bağ kurar.","4. Hafta","17- Kariyer karar verme süreçlerinde kendi görüşleri ile aile ve yakın çevresinin görüşlerini karşılaştırır.","2. Hafta","20- Kariyer hazırlığı sürecinde belirlediği amaçlar doğrultusunda alan/dal/ders seçimi yapar.","3. Hafta"]
[null,"Psikososyal (Duygu Listem)","4. Hafta","18- Derslerin mesleklerle ilişkisini açıklar.","3. Hafta","21- Eğitsel çabanın akademik hedeflere ulaşmadaki etkisini değerlendirir.","4. Hafta"]
[null,"15- Kariyer beklentileri ile kariyer amaçlarını karşılaştırır.","5. Hafta"]
[null,"Veli Ziyaretleri","5. Hafta"]
[]
[null,"MART","TARİH","NİSAN","TARİH","MAYIS","TARİH"]
[null,"22- Sosyal ipuçlarını yorumlayarak uygun tepkiler verir.","1. Hafta","27- İyilik hâline ilişkin edindiği bilgileri yaşamında uygulamayı alışkanlık hâline getirir.","2. Hafta","30- Öğrenme ortamlarındaki duygularını düzenler.","1. Hafta"]
[null,"23- Sahip olduğu karakter güçlerini geliştirmek için çaba gösterir.","2. Hafta","Psikososyal (Doğal Tepkiler)","2. Hafta","RİBA Uygulaması","1. Hafta"]
[null,"Psikososyal (Ergenim Farkındayım)","2. Hafta","28- Bilişim teknolojileri kullanımında kendini yönetir.","3. Hafta","31- Gerektiğinde arkadaşlığını sonlandırır.","2. Hafta"]
[null,"24- Yaşamda karşılaşılan zorlukların çaba ve zaman ile üstesinden gelinebileceğini fark eder.","3. Hafta","29- Yerel ve küresel sorunları fark eder.","5. Hafta","32- Gerektiğinde arkadaşlığını sonlandırır.","3. Hafta"]
[null,"25- Yaşamda karşılaşılan zorlukların çaba ve zaman ile üstesinden gelinebileceğini fark eder.","4. Hafta","Veli Ziyaretleri","5. Hafta","33- Takım çalışmalarının kişisel gelişimine olan etkilerini fark eder.","4. Hafta"]
[null,"26- Çatışma çözme becerilerini kullanır.","5. Hafta",null,null,"Veli Ziyaretleri","4. Hafta"]
[null,"Veli Ziyaretleri","5. Hafta",null,null,"34- Kişisel hakların korunması ve kişisel güvenliğin sağlanması için yönergeleri izlemeyi alışkanlık hâline getirir.","5. Hafta"]
[null,"HAZİRAN","TARİH"]
[null,"35- Doğal yaşamı korumak için duyarlı davranır.","2. Hafta","İMZA",null,"İMZA"]
[null,"36- Sınıf rehberlik programı etkinliklerine/yaşantılarına ilişkin duygu ve düşüncelerini yansıtır.","3. Hafta"]
[]
[]
[null,null,null,"ÖĞRETMENİN ADI SOYADI",null,"OKUL MÜDÜRÜNÜN ADI SOYADI"]
[null,null,null,"VAHİT DİNÇ",null,{"$f":"IF(Bilgi!B9=\"\",\"Lütfen Bilgi Sayfasına Okul Müdürü İsim ve Soyismini Yazınız\",UPPER(Bilgi!B9))","v":"YUSUF YILDIRIM"}]

{"sheet":"10 D","index":27,"n_rows":34,"n_cols":7,"rows_kept":34,"cut":false,"hidden":false,"merged":[[0,0,0,6],[1,0,1,6],[2,0,34,0],[2,1,2,6]]}
[{"$f":"IF(Bilgi!B4=\"\",\"Lütfen Bilgi Sayfasına Okul Adını Yazınız\",UPPER(Bilgi!B4))","v":"İSKENDERUN MESLEKİ VE TEKNİK ANADOLU LİSESİ"}]
[{"$f":"Bilgi!B3&\" EĞİTİM ÖĞRETİM YILI\"","v":"2022-2023 EĞİTİM ÖĞRETİM YILI"}]
["YAPILACAK ÇALIŞMALAR","10. SINIF D ŞUBESİ SINIF REHBERLİK PLANI"]
[null,"EYLÜL","TARİH","EKİM","TARİH","KASIM","TARİH"]
[null,"Rehberlik Yürütme Komisyonu Toplantısı","2. Hafta","4- Yaşamındaki karar verme sürecini etkileyen faktörleri açıklar.","2. Hafta","8- Hatırlamayı zorlaştıran ve unutmaya neden olan faktörleri açıklar.","1. Hafta"]
[null,"1- Okul içinde ve dışında eğitsel ve sosyal etkinliklere katılmanın gelişimine katkılarını değerlendirir.","3. Hafta","5- Karar verme basamaklarını kullanır.","3. Hafta","9- Öğrenme ve verimli çalışma stratejilerini kullanma açısından kendisini değerlendirir.","2. Hafta"]
[null,"Bilgi Fişlerinin Doldurulması","3. Hafta","Psikososyal (İşin Aslı)","3. Hafta","10- Kısa ve uzun vadeli kariyer amaçlarını belirler.","4. Hafta"]
[null,"Sınıf Rehberlik Planının Hazırlanması","3. Hafta","6- Öğrenme ve verimli çalışma stratejilerini açıklar.","4. Hafta","Psikososyal (Duygı Düşünce Kartları)","4. Hafta"]
[null,"2- Okul içinde veya dışında etkinliklere katılırken ilgi ve yeteneklerini dikkate alır.","4. Hafta","7- Öğrenme ve verimli çalışma stratejilerini açıklar.","5. Hafta","11- Kısa ve uzun vadeli kariyer amaçlarını belirler.","5. Hafta"]
[null,"BEP 'lerin Oluşturulması","4. Hafta","Veli Toplantısı","5. Hafta","Veli Ziyaretleri","5. Hafta"]
[null,"3- Alan/bölüm/dal/ders seçiminde ilgi, yetenek ve mesleki değerleri dikkate alır.","5. Hafta"]
[null,"ARALIK","TARİH","OCAK","TARİH","ŞUBAT","TARİH"]
[null,"12- Akademik amaçlarıyla seçmek istediği kariyerlerin gerektirdiği akademik koşullar arasında bağ kurar.","2. Hafta","16- Kariyer beklentileri ile kariyer amaçlarını karşılaştırır.","1. Hafta","19- Ders/alan/dal seçerken karar verme becerisini kullanır.","2. Hafta"]
[null,"13- Beden imgesini etkileyen faktörler açısından kendini değerlendirir.","3. Hafta","Toplantı (Diğer)","1. Hafta","Psikososyal (Ortak Özelliklerimiz)","2. Hafta"]
[null,"14- Gelişim dönemi ile duygusal dalgalanmaları arasında bağ kurar.","4. Hafta","17- Kariyer karar verme süreçlerinde kendi görüşleri ile aile ve yakın çevresinin görüşlerini karşılaştırır.","2. Hafta","20- Kariyer hazırlığı sürecinde belirlediği amaçlar doğrultusunda alan/dal/ders seçimi yapar.","3. Hafta"]
[null,"Psikososyal (Duygu Listem)","4. Hafta","18- Derslerin mesleklerle ilişkisini açıklar.","3. Hafta","21- Eğitsel çabanın akademik hedeflere ulaşmadaki etkisini değerlendirir.","4. Hafta"]
[null,"15- Kariyer beklentileri ile kariyer amaçlarını karşılaştırır.","5. Hafta"]
[null,"Veli Ziyaretleri","5. Hafta"]
[]
[null,"MART","TARİH","NİSAN","TARİH","MAYIS","TARİH"]
[null,"22- Sosyal ipuçlarını yorumlayarak uygun tepkiler verir.","1. Hafta","27- İyilik hâline ilişkin edindiği bilgileri yaşamında uygulamayı alışkanlık hâline getirir.","2. Hafta","30- Öğrenme ortamlarındaki duygularını düzenler.","1. Hafta"]
[null,"23- Sahip olduğu karakter güçlerini geliştirmek için çaba gösterir.","2. Hafta","Psikososyal (Doğal Tepkiler)","2. Hafta","RİBA Uygulaması","1. Hafta"]
[null,"Psikososyal (Ergenim Farkındayım)","2. Hafta","28- Bilişim teknolojileri kullanımında kendini yönetir.","3. Hafta","31- Gerektiğinde arkadaşlığını sonlandırır.","2. Hafta"]
[null,"24- Yaşamda karşılaşılan zorlukların çaba ve zaman ile üstesinden gelinebileceğini fark eder.","3. Hafta","29- Yerel ve küresel sorunları fark eder.","5. Hafta","32- Gerektiğinde arkadaşlığını sonlandırır.","3. Hafta"]
[null,"25- Yaşamda karşılaşılan zorlukların çaba ve zaman ile üstesinden gelinebileceğini fark eder.","4. Hafta","Veli Ziyaretleri","5. Hafta","33- Takım çalışmalarının kişisel gelişimine olan etkilerini fark eder.","4. Hafta"]
[null,"26- Çatışma çözme becerilerini kullanır.","5. Hafta",null,null,"Veli Ziyaretleri","4. Hafta"]
[null,"Veli Ziyaretleri","5. Hafta",null,null,"34- Kişisel hakların korunması ve kişisel güvenliğin sağlanması için yönergeleri izlemeyi alışkanlık hâline getirir.","5. Hafta"]
[null,"HAZİRAN","TARİH"]
[null,"35- Doğal yaşamı korumak için duyarlı davranır.","2. Hafta","İMZA",null,"İMZA"]
[null,"36- Sınıf rehberlik programı etkinliklerine/yaşantılarına ilişkin duygu ve düşüncelerini yansıtır.","3. Hafta"]
[]
[]
[null,null,null,"ÖĞRETMENİN ADI SOYADI",null,"OKUL MÜDÜRÜNÜN ADI SOYADI"]
[null,null,null,"ABİDİN REVAN",null,{"$f":"IF(Bilgi!B9=\"\",\"Lütfen Bilgi Sayfasına Okul Müdürü İsim ve Soyismini Yazınız\",UPPER(Bilgi!B9))","v":"YUSUF YILDIRIM"}]

{"sheet":"10 C","index":28,"n_rows":34,"n_cols":7,"rows_kept":34,"cut":false,"hidden":false,"merged":[[0,0,0,6],[1,0,1,6],[2,0,34,0],[2,1,2,6]]}
[{"$f":"IF(Bilgi!B4=\"\",\"Lütfen Bilgi Sayfasına Okul Adını Yazınız\",UPPER(Bilgi!B4))","v":"İSKENDERUN MESLEKİ VE TEKNİK ANADOLU LİSESİ"}]
[{"$f":"Bilgi!B3&\" EĞİTİM ÖĞRETİM YILI\"","v":"2022-2023 EĞİTİM ÖĞRETİM YILI"}]
["YAPILACAK ÇALIŞMALAR","10. SINIF C ŞUBESİ SINIF REHBERLİK PLANI"]
[null,"EYLÜL","TARİH","EKİM","TARİH","KASIM","TARİH"]
[null,"Rehberlik Yürütme Komisyonu Toplantısı","2. Hafta","4- Yaşamındaki karar verme sürecini etkileyen faktörleri açıklar.","2. Hafta","8- Hatırlamayı zorlaştıran ve unutmaya neden olan faktörleri açıklar.","1. Hafta"]
[null,"1- Okul içinde ve dışında eğitsel ve sosyal etkinliklere katılmanın gelişimine katkılarını değerlendirir.","3. Hafta","5- Karar verme basamaklarını kullanır.","3. Hafta","9- Öğrenme ve verimli çalışma stratejilerini kullanma açısından kendisini değerlendirir.","2. Hafta"]
[null,"Bilgi Fişlerinin Doldurulması","3. Hafta","Psikososyal (İşin Aslı)","3. Hafta","10- Kısa ve uzun vadeli kariyer amaçlarını belirler.","4. Hafta"]
[null,"Sınıf Rehberlik Planının Hazırlanması","3. Hafta","6- Öğrenme ve verimli çalışma stratejilerini açıklar.","4. Hafta","Psikososyal (Duygı Düşünce Kartları)","4. Hafta"]
[null,"2- Okul içinde veya dışında etkinliklere katılırken ilgi ve yeteneklerini dikkate alır.","4. Hafta","7- Öğrenme ve verimli çalışma stratejilerini açıklar.","5. Hafta","11- Kısa ve uzun vadeli kariyer amaçlarını belirler.","5. Hafta"]
[null,"BEP 'lerin Oluşturulması","4. Hafta","Veli Toplantısı","5. Hafta","Veli Ziyaretleri","5. Hafta"]
[null,"3- Alan/bölüm/dal/ders seçiminde ilgi, yetenek ve mesleki değerleri dikkate alır.","5. Hafta"]
[null,"ARALIK","TARİH","OCAK","TARİH","ŞUBAT","TARİH"]
[null,"12- Akademik amaçlarıyla seçmek istediği kariyerlerin gerektirdiği akademik koşullar arasında bağ kurar.","2. Hafta","16- Kariyer beklentileri ile kariyer amaçlarını karşılaştırır.","1. Hafta","19- Ders/alan/dal seçerken karar verme becerisini kullanır.","2. Hafta"]
[null,"13- Beden imgesini etkileyen faktörler açısından kendini değerlendirir.","3. Hafta","Toplantı (Diğer)","1. Hafta","Psikososyal (Ortak Özelliklerimiz)","2. Hafta"]
[null,"14- Gelişim dönemi ile duygusal dalgalanmaları arasında bağ kurar.","4. Hafta","17- Kariyer karar verme süreçlerinde kendi görüşleri ile aile ve yakın çevresinin görüşlerini karşılaştırır.","2. Hafta","20- Kariyer hazırlığı sürecinde belirlediği amaçlar doğrultusunda alan/dal/ders seçimi yapar.","3. Hafta"]
[null,"Psikososyal (Duygu Listem)","4. Hafta","18- Derslerin mesleklerle ilişkisini açıklar.","3. Hafta","21- Eğitsel çabanın akademik hedeflere ulaşmadaki etkisini değerlendirir.","4. Hafta"]
[null,"15- Kariyer beklentileri ile kariyer amaçlarını karşılaştırır.","5. Hafta"]
[null,"Veli Ziyaretleri","5. Hafta"]
[]
[null,"MART","TARİH","NİSAN","TARİH","MAYIS","TARİH"]
[null,"22- Sosyal ipuçlarını yorumlayarak uygun tepkiler verir.","1. Hafta","27- İyilik hâline ilişkin edindiği bilgileri yaşamında uygulamayı alışkanlık hâline getirir.","2. Hafta","30- Öğrenme ortamlarındaki duygularını düzenler.","1. Hafta"]
[null,"23- Sahip olduğu karakter güçlerini geliştirmek için çaba gösterir.","2. Hafta","Psikososyal (Doğal Tepkiler)","2. Hafta","RİBA Uygulaması","1. Hafta"]
[null,"Psikososyal (Ergenim Farkındayım)","2. Hafta","28- Bilişim teknolojileri kullanımında kendini yönetir.","3. Hafta","31- Gerektiğinde arkadaşlığını sonlandırır.","2. Hafta"]
[null,"24- Yaşamda karşılaşılan zorlukların çaba ve zaman ile üstesinden gelinebileceğini fark eder.","3. Hafta","29- Yerel ve küresel sorunları fark eder.","5. Hafta","32- Gerektiğinde arkadaşlığını sonlandırır.","3. Hafta"]
[null,"25- Yaşamda karşılaşılan zorlukların çaba ve zaman ile üstesinden gelinebileceğini fark eder.","4. Hafta","Veli Ziyaretleri","5. Hafta","33- Takım çalışmalarının kişisel gelişimine olan etkilerini fark eder.","4. Hafta"]
[null,"26- Çatışma çözme becerilerini kullanır.","5. Hafta",null,null,"Veli Ziyaretleri","4. Hafta"]
[null,"Veli Ziyaretleri","5. Hafta",null,null,"34- Kişisel hakların korunması ve kişisel güvenliğin sağlanması için yönergeleri izlemeyi alışkanlık hâline getirir.","5. Hafta"]
[null,"HAZİRAN","TARİH"]
[null,"35- Doğal yaşamı korumak için duyarlı davranır.","2. Hafta","İMZA",null,"İMZA"]
[null,"36- Sınıf rehberlik programı etkinliklerine/yaşantılarına ilişkin duygu ve düşüncelerini yansıtır.","3. Hafta"]
[]
[]
[null,null,null,"ÖĞRETMENİN ADI SOYADI",null,"OKUL MÜDÜRÜNÜN ADI SOYADI"]
[null,null,null,"NİHAT ÇOKAN",null,{"$f":"IF(Bilgi!B9=\"\",\"Lütfen Bilgi Sayfasına Okul Müdürü İsim ve Soyismini Yazınız\",UPPER(Bilgi!B9))","v":"YUSUF YILDIRIM"}]

{"sheet":"10 B","index":29,"n_rows":34,"n_cols":7,"rows_kept":34,"cut":false,"hidden":false,"merged":[[0,0,0,6],[1,0,1,6],[2,0,34,0],[2,1,2,6]]}
[{"$f":"IF(Bilgi!B4=\"\",\"Lütfen Bilgi Sayfasına Okul Adını Yazınız\",UPPER(Bilgi!B4))","v":"İSKENDERUN MESLEKİ VE TEKNİK ANADOLU LİSESİ"}]
[{"$f":"Bilgi!B3&\" EĞİTİM ÖĞRETİM YILI\"","v":"2022-2023 EĞİTİM ÖĞRETİM YILI"}]
["YAPILACAK ÇALIŞMALAR","10. SINIF B ŞUBESİ SINIF REHBERLİK PLANI"]
[null,"EYLÜL","TARİH","EKİM","TARİH","KASIM","TARİH"]
[null,"Rehberlik Yürütme Komisyonu Toplantısı","2. Hafta","4- Yaşamındaki karar verme sürecini etkileyen faktörleri açıklar.","2. Hafta","8- Hatırlamayı zorlaştıran ve unutmaya neden olan faktörleri açıklar.","1. Hafta"]
[null,"1- Okul içinde ve dışında eğitsel ve sosyal etkinliklere katılmanın gelişimine katkılarını değerlendirir.","3. Hafta","5- Karar verme basamaklarını kullanır.","3. Hafta","9- Öğrenme ve verimli çalışma stratejilerini kullanma açısından kendisini değerlendirir.","2. Hafta"]
[null,"Bilgi Fişlerinin Doldurulması","3. Hafta","Psikososyal (İşin Aslı)","3. Hafta","10- Kısa ve uzun vadeli kariyer amaçlarını belirler.","4. Hafta"]
[null,"Sınıf Rehberlik Planının Hazırlanması","3. Hafta","6- Öğrenme ve verimli çalışma stratejilerini açıklar.","4. Hafta","Psikososyal (Duygı Düşünce Kartları)","4. Hafta"]
[null,"2- Okul içinde veya dışında etkinliklere katılırken ilgi ve yeteneklerini dikkate alır.","4. Hafta","7- Öğrenme ve verimli çalışma stratejilerini açıklar.","5. Hafta","11- Kısa ve uzun vadeli kariyer amaçlarını belirler.","5. Hafta"]
[null,"BEP 'lerin Oluşturulması","4. Hafta","Veli Toplantısı","5. Hafta","Veli Ziyaretleri","5. Hafta"]
[null,"3- Alan/bölüm/dal/ders seçiminde ilgi, yetenek ve mesleki değerleri dikkate alır.","5. Hafta"]
[null,"ARALIK","TARİH","OCAK","TARİH","ŞUBAT","TARİH"]
[null,"12- Akademik amaçlarıyla seçmek istediği kariyerlerin gerektirdiği akademik koşullar arasında bağ kurar.","2. Hafta","16- Kariyer beklentileri ile kariyer amaçlarını karşılaştırır.","1. Hafta","19- Ders/alan/dal seçerken karar verme becerisini kullanır.","2. Hafta"]
[null,"13- Beden imgesini etkileyen faktörler açısından kendini değerlendirir.","3. Hafta","Toplantı (Diğer)","1. Hafta","Psikososyal (Ortak Özelliklerimiz)","2. Hafta"]
[null,"14- Gelişim dönemi ile duygusal dalgalanmaları arasında bağ kurar.","4. Hafta","17- Kariyer karar verme süreçlerinde kendi görüşleri ile aile ve yakın çevresinin görüşlerini karşılaştırır.","2. Hafta","20- Kariyer hazırlığı sürecinde belirlediği amaçlar doğrultusunda alan/dal/ders seçimi yapar.","3. Hafta"]
[null,"Psikososyal (Duygu Listem)","4. Hafta","18- Derslerin mesleklerle ilişkisini açıklar.","3. Hafta","21- Eğitsel çabanın akademik hedeflere ulaşmadaki etkisini değerlendirir.","4. Hafta"]
[null,"15- Kariyer beklentileri ile kariyer amaçlarını karşılaştırır.","5. Hafta"]
[null,"Veli Ziyaretleri","5. Hafta"]
[]
[null,"MART","TARİH","NİSAN","TARİH","MAYIS","TARİH"]
[null,"22- Sosyal ipuçlarını yorumlayarak uygun tepkiler verir.","1. Hafta","27- İyilik hâline ilişkin edindiği bilgileri yaşamında uygulamayı alışkanlık hâline getirir.","2. Hafta","30- Öğrenme ortamlarındaki duygularını düzenler.","1. Hafta"]
[null,"23- Sahip olduğu karakter güçlerini geliştirmek için çaba gösterir.","2. Hafta","Psikososyal (Doğal Tepkiler)","2. Hafta","RİBA Uygulaması","1. Hafta"]
[null,"Psikososyal (Ergenim Farkındayım)","2. Hafta","28- Bilişim teknolojileri kullanımında kendini yönetir.","3. Hafta","31- Gerektiğinde arkadaşlığını sonlandırır.","2. Hafta"]
[null,"24- Yaşamda karşılaşılan zorlukların çaba ve zaman ile üstesinden gelinebileceğini fark eder.","3. Hafta","29- Yerel ve küresel sorunları fark eder.","5. Hafta","32- Gerektiğinde arkadaşlığını sonlandırır.","3. Hafta"]
[null,"25- Yaşamda karşılaşılan zorlukların çaba ve zaman ile üstesinden gelinebileceğini fark eder.","4. Hafta","Veli Ziyaretleri","5. Hafta","33- Takım çalışmalarının kişisel gelişimine olan etkilerini fark eder.","4. Hafta"]
[null,"26- Çatışma çözme becerilerini kullanır.","5. Hafta",null,null,"Veli Ziyaretleri","4. Hafta"]
[null,"Veli Ziyaretleri","5. Hafta",null,null,"34- Kişisel hakların korunması ve kişisel güvenliğin sağlanması için yönergeleri izlemeyi alışkanlık hâline getirir.","5. Hafta"]
[null,"HAZİRAN","TARİH"]
[null,"35- Doğal yaşamı korumak için duyarlı davranır.","2. Hafta","İMZA",null,"İMZA"]
[null,"36- Sınıf rehberlik programı etkinliklerine/yaşantılarına ilişkin duygu ve düşüncelerini yansıtır.","3. Hafta"]
[]
[]
[null,null,null,"ÖĞRETMENİN ADI SOYADI",null,"OKUL MÜDÜRÜNÜN ADI SOYADI"]
[null,null,null,"BERKAY KAPLAN",null,{"$f":"IF(Bilgi!B9=\"\",\"Lütfen Bilgi Sayfasına Okul Müdürü İsim ve Soyismini Yazınız\",UPPER(Bilgi!B9))","v":"YUSUF YILDIRIM"}]

{"sheet":"10 A","index":30,"n_rows":34,"n_cols":7,"rows_kept":34,"cut":false,"hidden":false,"merged":[[0,0,0,6],[1,0,1,6],[2,0,34,0],[2,1,2,6]]}
[{"$f":"IF(Bilgi!B4=\"\",\"Lütfen Bilgi Sayfasına Okul Adını Yazınız\",UPPER(Bilgi!B4))","v":"İSKENDERUN MESLEKİ VE TEKNİK ANADOLU LİSESİ"}]
[{"$f":"Bilgi!B3&\" EĞİTİM ÖĞRETİM YILI\"","v":"2022-2023 EĞİTİM ÖĞRETİM YILI"}]
["YAPILACAK ÇALIŞMALAR","10. SINIF A ŞUBESİ SINIF REHBERLİK PLANI"]
[null,"EYLÜL","TARİH","EKİM","TARİH","KASIM","TARİH"]
[null,"Rehberlik Yürütme Komisyonu Toplantısı","2. Hafta","4- Yaşamındaki karar verme sürecini etkileyen faktörleri açıklar.","2. Hafta","8- Hatırlamayı zorlaştıran ve unutmaya neden olan faktörleri açıklar.","1. Hafta"]
[null,"1- Okul içinde ve dışında eğitsel ve sosyal etkinliklere katılmanın gelişimine katkılarını değerlendirir.","3. Hafta","5- Karar verme basamaklarını kullanır.","3. Hafta","9- Öğrenme ve verimli çalışma stratejilerini kullanma açısından kendisini değerlendirir.","2. Hafta"]
[null,"Bilgi Fişlerinin Doldurulması","3. Hafta","Psikososyal (İşin Aslı)","3. Hafta","10- Kısa ve uzun vadeli kariyer amaçlarını belirler.","4. Hafta"]
[null,"Sınıf Rehberlik Planının Hazırlanması","3. Hafta","6- Öğrenme ve verimli çalışma stratejilerini açıklar.","4. Hafta","Psikososyal (Duygı Düşünce Kartları)","4. Hafta"]
[null,"2- Okul içinde veya dışında etkinliklere katılırken ilgi ve yeteneklerini dikkate alır.","4. Hafta","7- Öğrenme ve verimli çalışma stratejilerini açıklar.","5. Hafta","11- Kısa ve uzun vadeli kariyer amaçlarını belirler.","5. Hafta"]
[null,"BEP 'lerin Oluşturulması","4. Hafta","Veli Toplantısı","5. Hafta","Veli Ziyaretleri","5. Hafta"]
[null,"3- Alan/bölüm/dal/ders seçiminde ilgi, yetenek ve mesleki değerleri dikkate alır.","5. Hafta"]
[null,"ARALIK","TARİH","OCAK","TARİH","ŞUBAT","TARİH"]
[null,"12- Akademik amaçlarıyla seçmek istediği kariyerlerin gerektirdiği akademik koşullar arasında bağ kurar.","2. Hafta","16- Kariyer beklentileri ile kariyer amaçlarını karşılaştırır.","1. Hafta","19- Ders/alan/dal seçerken karar verme becerisini kullanır.","2. Hafta"]
[null,"13- Beden imgesini etkileyen faktörler açısından kendini değerlendirir.","3. Hafta","Toplantı (Diğer)","1. Hafta","Psikososyal (Ortak Özelliklerimiz)","2. Hafta"]
[null,"14- Gelişim dönemi ile duygusal dalgalanmaları arasında bağ kurar.","4. Hafta","17- Kariyer karar verme süreçlerinde kendi görüşleri ile aile ve yakın çevresinin görüşlerini karşılaştırır.","2. Hafta","20- Kariyer hazırlığı sürecinde belirlediği amaçlar doğrultusunda alan/dal/ders seçimi yapar.","3. Hafta"]
[null,"Psikososyal (Duygu Listem)","4. Hafta","18- Derslerin mesleklerle ilişkisini açıklar.","3. Hafta","21- Eğitsel çabanın akademik hedeflere ulaşmadaki etkisini değerlendirir.","4. Hafta"]
[null,"15- Kariyer beklentileri ile kariyer amaçlarını karşılaştırır.","5. Hafta"]
[null,"Veli Ziyaretleri","5. Hafta"]
[]
[null,"MART","TARİH","NİSAN","TARİH","MAYIS","TARİH"]
[null,"22- Sosyal ipuçlarını yorumlayarak uygun tepkiler verir.","1. Hafta","27- İyilik hâline ilişkin edindiği bilgileri yaşamında uygulamayı alışkanlık hâline getirir.","2. Hafta","30- Öğrenme ortamlarındaki duygularını düzenler.","1. Hafta"]
[null,"23- Sahip olduğu karakter güçlerini geliştirmek için çaba gösterir.","2. Hafta","Psikososyal (Doğal Tepkiler)","2. Hafta","RİBA Uygulaması","1. Hafta"]
[null,"Psikososyal (Ergenim Farkındayım)","2. Hafta","28- Bilişim teknolojileri kullanımında kendini yönetir.","3. Hafta","31- Gerektiğinde arkadaşlığını sonlandırır.","2. Hafta"]
[null,"24- Yaşamda karşılaşılan zorlukların çaba ve zaman ile üstesinden gelinebileceğini fark eder.","3. Hafta","29- Yerel ve küresel sorunları fark eder.","5. Hafta","32- Gerektiğinde arkadaşlığını sonlandırır.","3. Hafta"]
[null,"25- Yaşamda karşılaşılan zorlukların çaba ve zaman ile üstesinden gelinebileceğini fark eder.","4. Hafta","Veli Ziyaretleri","5. Hafta","33- Takım çalışmalarının kişisel gelişimine olan etkilerini fark eder.","4. Hafta"]
[null,"26- Çatışma çözme becerilerini kullanır.","5. Hafta",null,null,"Veli Ziyaretleri","4. Hafta"]
[null,"Veli Ziyaretleri","5. Hafta",null,null,"34- Kişisel hakların korunması ve kişisel güvenliğin sağlanması için yönergeleri izlemeyi alışkanlık hâline getirir.","5. Hafta"]
[null,"HAZİRAN","TARİH"]
[null,"35- Doğal yaşamı korumak için duyarlı davranır.","2. Hafta","İMZA",null,"İMZA"]
[null,"36- Sınıf rehberlik programı etkinliklerine/yaşantılarına ilişkin duygu ve düşüncelerini yansıtır.","3. Hafta"]
[]
[]
[null,null,null,"ÖĞRETMENİN ADI SOYADI",null,"OKUL MÜDÜRÜNÜN ADI SOYADI"]
[null,null,null,"MUSTAFA TAŞKAN",null,{"$f":"IF(Bilgi!B9=\"\",\"Lütfen Bilgi Sayfasına Okul Müdürü İsim ve Soyismini Yazınız\",UPPER(Bilgi!B9))","v":"YUSUF YILDIRIM"}]

{"sheet":"9. F","index":31,"n_rows":34,"n_cols":7,"rows_kept":34,"cut":false,"hidden":false,"merged":[[0,0,0,6],[1,0,1,6],[2,0,34,0],[2,1,2,6]]}
[{"$f":"IF(Bilgi!B4=\"\",\"Lütfen Bilgi Sayfasına Okul Adını Yazınız\",UPPER(Bilgi!B4))","v":"İSKENDERUN MESLEKİ VE TEKNİK ANADOLU LİSESİ"}]
[{"$f":"Bilgi!B3&\" EĞİTİM ÖĞRETİM YILI\"","v":"2022-2023 EĞİTİM ÖĞRETİM YILI"}]
["YAPILACAK ÇALIŞMALAR","9. SINIF F ŞUBESİ SINIF REHBERLİK PLANI"]
[null,"EYLÜL","TARİH","EKİM","TARİH","KASIM","TARİH"]
[null,"Rehberlik Yürütme Komisyonu Toplantısı","2. Hafta","4- Okulunun ve sınıfının bir üyesi olduğunu fark eder.","2. Hafta","8- Kendi mesleki değerlerinin farkına varır.","1. Hafta"]
[null,"1- Okulun yakın çevresini, bölümlerini ve okulda çalışan personeli tanır.","3. Hafta","5- Okul hazırlığına ilişkin sorumluluklarını üstlenir.","3. Hafta","9- Kendi mesleki değerlerinin farkına varır.","2. Hafta"]
[null,"Bilgi Fişlerinin Doldurulması","3. Hafta","Psikososyal (İşin Aslı)","3. Hafta","10- Akademik gelişimi için amaçlar oluşturur.","4. Hafta"]
[null,"Sınıf Rehberlik Planının Hazırlanması","3. Hafta","6- Okulun eğitsel imkânları hakkında bilgi edinir.","4. Hafta","Psikososyal (Duygı Düşünce Kartları)","4. Hafta"]
[null,"2- Eğitim öğretim sürecine ilişkin yönetmeliklerin kendisini ilgilendiren kısımları hakkında bilgi sahibi olur.","4. Hafta","7- Yaşam değerlerinin farkına varır.","5. Hafta","11- Okula devam etme ile akademik gelişimi arasındaki ilişkiyi değerlendirir.","5. Hafta"]
[null,"BEP 'lerin Oluşturulması","4. Hafta","Veli Toplantısı","5. Hafta","Veli Ziyaretleri","5. Hafta"]
[null,"3- İlgi ve hobilerini ayırt eder.","5. Hafta"]
[null,"ARALIK","TARİH","OCAK","TARİH","ŞUBAT","TARİH"]
[null,"12- Kişilerarası ilişkilerde duyguları ifade etmenin önemini fark eder.","2. Hafta","16- Fiziksel, duygusal, sosyal ve kültürel açıdan bireysel farklılıkları kabul eder.","1. Hafta","19- Başlangıç sosyal becerileri kullanır.","2. Hafta"]
[null,"13- Yaşam değerleri ile mesleki değerlerini ayırt eder.","3. Hafta","Toplantı (Diğer)","1. Hafta","Psikososyal (Ortak Özelliklerimiz)","2. Hafta"]
[null,"14- Okul ve çevresinde risk oluşturabilecek durum ve ortamlara karşı kendisini korur.","4. Hafta","17- Mesleklerin zaman içindeki değişimini ve gelişimini takip eder.","2. Hafta","20- Başlangıç sosyal becerileri kullanır.","3. Hafta"]
[null,"Psikososyal (Duygu Listem)","4. Hafta","18- Zorbalık ve türlerini bilir.","3. Hafta","21- İyilik hâlini destekleyen davranışlar açısından kendini gözden geçirir.","4. Hafta"]
[null,"15- Kısa ve uzun vadeli kariyer amaçlarını tekrar inceler.","5. Hafta"]
[null,"Veli Ziyaretleri","5. Hafta"]
[]
[null,"MART","TARİH","NİSAN","TARİH","MAYIS","TARİH"]
[null,"22- Kendi özellikleriyle kariyer kararlarını ilişkilendirir.","1. Hafta","27- Sahip olduğu karakter güçlerini fark eder.","2. Hafta","30- Toplumsal rollerinin gerektirdiği sorumlulukları yerine getirmediğinde karşılaşabileceği sonuçları değerlendirir.","1. Hafta"]
[null,"23- Siber zorbalığın yaşamındaki etkilerini fark eder.","2. Hafta","Psikososyal (Doğal Tepkiler)","2. Hafta","RİBA Uygulaması","1. Hafta"]
[null,"Psikososyal (Ergenim Farkındayım)","2. Hafta","28- Alan/bölüm/dal/ders seçiminde ilgi, yetenek ve mesleki değerleri dikkate alır.","3. Hafta","31- Sahip olduğu karakter güçlerini zorluklar karşısında kullanmayı bilir.","2. Hafta"]
[null,"24- Zorbalıkla baş etme yollarını kullanır.","3. Hafta","29- Kişisel güvenliği için “Hayır!” demeyi alışkanlık hâline getirir.","5. Hafta","32- Kariyer hazırlığı sürecinde belirlediği amaçlar doğrultusunda alan/dal/ders seçiminde karar verme becerisini kullanır.","3. Hafta"]
[null,"25- Sanal arkadaşlığı arkadaşlık ilişkileri kapsamında sorgular.","4. Hafta","Veli Ziyaretleri","5. Hafta","33- Kariyer hazırlığı sürecinde belirlediği amaçlar doğrultusunda alan/dal/ders seçiminde karar verme becerisini kullanır.","4. Hafta"]
[null,"26- Sahip olduğu karakter güçlerini fark eder.","5. Hafta",null,null,"Veli Ziyaretleri","4. Hafta"]
[null,"Veli Ziyaretleri","5. Hafta",null,null,"34- Kimden, nereden, ne zaman ve nasıl yardım isteyebileceğini bilir.","5. Hafta"]
[null,"HAZİRAN","TARİH"]
[null,"35- Akademik amaçlarını gerçekleştirme konusunda kendini değerlendirir.","2. Hafta","İMZA",null,"İMZA"]
[null,"36- Sınıf rehberlik programı etkinliklerine/yaşantılarına ilişkin duygu ve düşüncelerini yansıtır.","3. Hafta"]
[]
[]
[null,null,null,"ÖĞRETMENİN ADI SOYADI",null,"OKUL MÜDÜRÜNÜN ADI SOYADI"]
[null,null,null,"MEHMET KÜÇÜKDAĞ",null,{"$f":"IF(Bilgi!B9=\"\",\"Lütfen Bilgi Sayfasına Okul Müdürü İsim ve Soyismini Yazınız\",UPPER(Bilgi!B9))","v":"YUSUF YILDIRIM"}]

{"sheet":"9. E","index":32,"n_rows":34,"n_cols":7,"rows_kept":34,"cut":false,"hidden":false,"merged":[[0,0,0,6],[1,0,1,6],[2,0,34,0],[2,1,2,6]]}
[{"$f":"IF(Bilgi!B4=\"\",\"Lütfen Bilgi Sayfasına Okul Adını Yazınız\",UPPER(Bilgi!B4))","v":"İSKENDERUN MESLEKİ VE TEKNİK ANADOLU LİSESİ"}]
[{"$f":"Bilgi!B3&\" EĞİTİM ÖĞRETİM YILI\"","v":"2022-2023 EĞİTİM ÖĞRETİM YILI"}]
["YAPILACAK ÇALIŞMALAR","9. SINIF E ŞUBESİ SINIF REHBERLİK PLANI"]
[null,"EYLÜL","TARİH","EKİM","TARİH","KASIM","TARİH"]
[null,"Rehberlik Yürütme Komisyonu Toplantısı","2. Hafta","4- Okulunun ve sınıfının bir üyesi olduğunu fark eder.","2. Hafta","8- Kendi mesleki değerlerinin farkına varır.","1. Hafta"]
[null,"1- Okulun yakın çevresini, bölümlerini ve okulda çalışan personeli tanır.","3. Hafta","5- Okul hazırlığına ilişkin sorumluluklarını üstlenir.","3. Hafta","9- Kendi mesleki değerlerinin farkına varır.","2. Hafta"]
[null,"Bilgi Fişlerinin Doldurulması","3. Hafta","Psikososyal (İşin Aslı)","3. Hafta","10- Akademik gelişimi için amaçlar oluşturur.","4. Hafta"]
[null,"Sınıf Rehberlik Planının Hazırlanması","3. Hafta","6- Okulun eğitsel imkânları hakkında bilgi edinir.","4. Hafta","Psikososyal (Duygı Düşünce Kartları)","4. Hafta"]
[null,"2- Eğitim öğretim sürecine ilişkin yönetmeliklerin kendisini ilgilendiren kısımları hakkında bilgi sahibi olur.","4. Hafta","7- Yaşam değerlerinin farkına varır.","5. Hafta","11- Okula devam etme ile akademik gelişimi arasındaki ilişkiyi değerlendirir.","5. Hafta"]
[null,"BEP 'lerin Oluşturulması","4. Hafta","Veli Toplantısı","5. Hafta","Veli Ziyaretleri","5. Hafta"]
[null,"3- İlgi ve hobilerini ayırt eder.","5. Hafta"]
[null,"ARALIK","TARİH","OCAK","TARİH","ŞUBAT","TARİH"]
[null,"12- Kişilerarası ilişkilerde duyguları ifade etmenin önemini fark eder.","2. Hafta","16- Fiziksel, duygusal, sosyal ve kültürel açıdan bireysel farklılıkları kabul eder.","1. Hafta","19- Başlangıç sosyal becerileri kullanır.","2. Hafta"]
[null,"13- Yaşam değerleri ile mesleki değerlerini ayırt eder.","3. Hafta","Toplantı (Diğer)","1. Hafta","Psikososyal (Ortak Özelliklerimiz)","2. Hafta"]
[null,"14- Okul ve çevresinde risk oluşturabilecek durum ve ortamlara karşı kendisini korur.","4. Hafta","17- Mesleklerin zaman içindeki değişimini ve gelişimini takip eder.","2. Hafta","20- Başlangıç sosyal becerileri kullanır.","3. Hafta"]
[null,"Psikososyal (Duygu Listem)","4. Hafta","18- Zorbalık ve türlerini bilir.","3. Hafta","21- İyilik hâlini destekleyen davranışlar açısından kendini gözden geçirir.","4. Hafta"]
[null,"15- Kısa ve uzun vadeli kariyer amaçlarını tekrar inceler.","5. Hafta"]
[null,"Veli Ziyaretleri","5. Hafta"]
[]
[null,"MART","TARİH","NİSAN","TARİH","MAYIS","TARİH"]
[null,"22- Kendi özellikleriyle kariyer kararlarını ilişkilendirir.","1. Hafta","27- Sahip olduğu karakter güçlerini fark eder.","2. Hafta","30- Toplumsal rollerinin gerektirdiği sorumlulukları yerine getirmediğinde karşılaşabileceği sonuçları değerlendirir.","1. Hafta"]
[null,"23- Siber zorbalığın yaşamındaki etkilerini fark eder.","2. Hafta","Psikososyal (Doğal Tepkiler)","2. Hafta","RİBA Uygulaması","1. Hafta"]
[null,"Psikososyal (Ergenim Farkındayım)","2. Hafta","28- Alan/bölüm/dal/ders seçiminde ilgi, yetenek ve mesleki değerleri dikkate alır.","3. Hafta","31- Sahip olduğu karakter güçlerini zorluklar karşısında kullanmayı bilir.","2. Hafta"]
[null,"24- Zorbalıkla baş etme yollarını kullanır.","3. Hafta","29- Kişisel güvenliği için “Hayır!” demeyi alışkanlık hâline getirir.","5. Hafta","32- Kariyer hazırlığı sürecinde belirlediği amaçlar doğrultusunda alan/dal/ders seçiminde karar verme becerisini kullanır.","3. Hafta"]
[null,"25- Sanal arkadaşlığı arkadaşlık ilişkileri kapsamında sorgular.","4. Hafta","Veli Ziyaretleri","5. Hafta","33- Kariyer hazırlığı sürecinde belirlediği amaçlar doğrultusunda alan/dal/ders seçiminde karar verme becerisini kullanır.","4. Hafta"]
[null,"26- Sahip olduğu karakter güçlerini fark eder.","5. Hafta",null,null,"Veli Ziyaretleri","4. Hafta"]
[null,"Veli Ziyaretleri","5. Hafta",null,null,"34- Kimden, nereden, ne zaman ve nasıl yardım isteyebileceğini bilir.","5. Hafta"]
[null,"HAZİRAN","TARİH"]
[null,"35- Akademik amaçlarını gerçekleştirme konusunda kendini değerlendirir.","2. Hafta","İMZA",null,"İMZA"]
[null,"36- Sınıf rehberlik programı etkinliklerine/yaşantılarına ilişkin duygu ve düşüncelerini yansıtır.","3. Hafta"]
[]
[]
[null,null,null,"ÖĞRETMENİN ADI SOYADI",null,"OKUL MÜDÜRÜNÜN ADI SOYADI"]
[null,null,null,"SEMİH EFETÜRK",null,{"$f":"IF(Bilgi!B9=\"\",\"Lütfen Bilgi Sayfasına Okul Müdürü İsim ve Soyismini Yazınız\",UPPER(Bilgi!B9))","v":"YUSUF YILDIRIM"}]

{"sheet":"9. D","index":33,"n_rows":34,"n_cols":7,"rows_kept":34,"cut":false,"hidden":false,"merged":[[0,0,0,6],[1,0,1,6],[2,0,34,0],[2,1,2,6]]}
[{"$f":"IF(Bilgi!B4=\"\",\"Lütfen Bilgi Sayfasına Okul Adını Yazınız\",UPPER(Bilgi!B4))","v":"İSKENDERUN MESLEKİ VE TEKNİK ANADOLU LİSESİ"}]
[{"$f":"Bilgi!B3&\" EĞİTİM ÖĞRETİM YILI\"","v":"2022-2023 EĞİTİM ÖĞRETİM YILI"}]
["YAPILACAK ÇALIŞMALAR","9. SINIF D ŞUBESİ SINIF REHBERLİK PLANI"]
[null,"EYLÜL","TARİH","EKİM","TARİH","KASIM","TARİH"]
[null,"Rehberlik Yürütme Komisyonu Toplantısı","2. Hafta","4- Okulunun ve sınıfının bir üyesi olduğunu fark eder.","2. Hafta","8- Kendi mesleki değerlerinin farkına varır.","1. Hafta"]
[null,"1- Okulun yakın çevresini, bölümlerini ve okulda çalışan personeli tanır.","3. Hafta","5- Okul hazırlığına ilişkin sorumluluklarını üstlenir.","3. Hafta","9- Kendi mesleki değerlerinin farkına varır.","2. Hafta"]
[null,"Bilgi Fişlerinin Doldurulması","3. Hafta","Psikososyal (İşin Aslı)","3. Hafta","10- Akademik gelişimi için amaçlar oluşturur.","4. Hafta"]
[null,"Sınıf Rehberlik Planının Hazırlanması","3. Hafta","6- Okulun eğitsel imkânları hakkında bilgi edinir.","4. Hafta","Psikososyal (Duygı Düşünce Kartları)","4. Hafta"]
[null,"2- Eğitim öğretim sürecine ilişkin yönetmeliklerin kendisini ilgilendiren kısımları hakkında bilgi sahibi olur.","4. Hafta","7- Yaşam değerlerinin farkına varır.","5. Hafta","11- Okula devam etme ile akademik gelişimi arasındaki ilişkiyi değerlendirir.","5. Hafta"]
[null,"BEP 'lerin Oluşturulması","4. Hafta","Veli Toplantısı","5. Hafta","Veli Ziyaretleri","5. Hafta"]
[null,"3- İlgi ve hobilerini ayırt eder.","5. Hafta"]
[null,"ARALIK","TARİH","OCAK","TARİH","ŞUBAT","TARİH"]
[null,"12- Kişilerarası ilişkilerde duyguları ifade etmenin önemini fark eder.","2. Hafta","16- Fiziksel, duygusal, sosyal ve kültürel açıdan bireysel farklılıkları kabul eder.","1. Hafta","19- Başlangıç sosyal becerileri kullanır.","2. Hafta"]
[null,"13- Yaşam değerleri ile mesleki değerlerini ayırt eder.","3. Hafta","Toplantı (Diğer)","1. Hafta","Psikososyal (Ortak Özelliklerimiz)","2. Hafta"]
[null,"14- Okul ve çevresinde risk oluşturabilecek durum ve ortamlara karşı kendisini korur.","4. Hafta","17- Mesleklerin zaman içindeki değişimini ve gelişimini takip eder.","2. Hafta","20- Başlangıç sosyal becerileri kullanır.","3. Hafta"]
[null,"Psikososyal (Duygu Listem)","4. Hafta","18- Zorbalık ve türlerini bilir.","3. Hafta","21- İyilik hâlini destekleyen davranışlar açısından kendini gözden geçirir.","4. Hafta"]
[null,"15- Kısa ve uzun vadeli kariyer amaçlarını tekrar inceler.","5. Hafta"]
[null,"Veli Ziyaretleri","5. Hafta"]
[]
[null,"MART","TARİH","NİSAN","TARİH","MAYIS","TARİH"]
[null,"22- Kendi özellikleriyle kariyer kararlarını ilişkilendirir.","1. Hafta","27- Sahip olduğu karakter güçlerini fark eder.","2. Hafta","30- Toplumsal rollerinin gerektirdiği sorumlulukları yerine getirmediğinde karşılaşabileceği sonuçları değerlendirir.","1. Hafta"]
[null,"23- Siber zorbalığın yaşamındaki etkilerini fark eder.","2. Hafta","Psikososyal (Doğal Tepkiler)","2. Hafta","RİBA Uygulaması","1. Hafta"]
[null,"Psikososyal (Ergenim Farkındayım)","2. Hafta","28- Alan/bölüm/dal/ders seçiminde ilgi, yetenek ve mesleki değerleri dikkate alır.","3. Hafta","31- Sahip olduğu karakter güçlerini zorluklar karşısında kullanmayı bilir.","2. Hafta"]
[null,"24- Zorbalıkla baş etme yollarını kullanır.","3. Hafta","29- Kişisel güvenliği için “Hayır!” demeyi alışkanlık hâline getirir.","5. Hafta","32- Kariyer hazırlığı sürecinde belirlediği amaçlar doğrultusunda alan/dal/ders seçiminde karar verme becerisini kullanır.","3. Hafta"]
[null,"25- Sanal arkadaşlığı arkadaşlık ilişkileri kapsamında sorgular.","4. Hafta","Veli Ziyaretleri","5. Hafta","33- Kariyer hazırlığı sürecinde belirlediği amaçlar doğrultusunda alan/dal/ders seçiminde karar verme becerisini kullanır.","4. Hafta"]
[null,"26- Sahip olduğu karakter güçlerini fark eder.","5. Hafta",null,null,"Veli Ziyaretleri","4. Hafta"]
[null,"Veli Ziyaretleri","5. Hafta",null,null,"34- Kimden, nereden, ne zaman ve nasıl yardım isteyebileceğini bilir.","5. Hafta"]
[null,"HAZİRAN","TARİH"]
[null,"35- Akademik amaçlarını gerçekleştirme konusunda kendini değerlendirir.","2. Hafta","İMZA",null,"İMZA"]
[null,"36- Sınıf rehberlik programı etkinliklerine/yaşantılarına ilişkin duygu ve düşüncelerini yansıtır.","3. Hafta"]
[]
[]
[null,null,null,"ÖĞRETMENİN ADI SOYADI",null,"OKUL MÜDÜRÜNÜN ADI SOYADI"]
[null,null,null,"BİRGÜL ASLANTAŞ",null,{"$f":"IF(Bilgi!B9=\"\",\"Lütfen Bilgi Sayfasına Okul Müdürü İsim ve Soyismini Yazınız\",UPPER(Bilgi!B9))","v":"YUSUF YILDIRIM"}]

{"sheet":"9. C","index":34,"n_rows":34,"n_cols":7,"rows_kept":34,"cut":false,"hidden":false,"merged":[[0,0,0,6],[1,0,1,6],[2,0,34,0],[2,1,2,6]]}
[{"$f":"IF(Bilgi!B4=\"\",\"Lütfen Bilgi Sayfasına Okul Adını Yazınız\",UPPER(Bilgi!B4))","v":"İSKENDERUN MESLEKİ VE TEKNİK ANADOLU LİSESİ"}]
[{"$f":"Bilgi!B3&\" EĞİTİM ÖĞRETİM YILI\"","v":"2022-2023 EĞİTİM ÖĞRETİM YILI"}]
["YAPILACAK ÇALIŞMALAR","9. SINIF C ŞUBESİ SINIF REHBERLİK PLANI"]
[null,"EYLÜL","TARİH","EKİM","TARİH","KASIM","TARİH"]
[null,"Rehberlik Yürütme Komisyonu Toplantısı","2. Hafta","4- Okulunun ve sınıfının bir üyesi olduğunu fark eder.","2. Hafta","8- Kendi mesleki değerlerinin farkına varır.","1. Hafta"]
[null,"1- Okulun yakın çevresini, bölümlerini ve okulda çalışan personeli tanır.","3. Hafta","5- Okul hazırlığına ilişkin sorumluluklarını üstlenir.","3. Hafta","9- Kendi mesleki değerlerinin farkına varır.","2. Hafta"]
[null,"Bilgi Fişlerinin Doldurulması","3. Hafta","Psikososyal (İşin Aslı)","3. Hafta","10- Akademik gelişimi için amaçlar oluşturur.","4. Hafta"]
[null,"Sınıf Rehberlik Planının Hazırlanması","3. Hafta","6- Okulun eğitsel imkânları hakkında bilgi edinir.","4. Hafta","Psikososyal (Duygı Düşünce Kartları)","4. Hafta"]
[null,"2- Eğitim öğretim sürecine ilişkin yönetmeliklerin kendisini ilgilendiren kısımları hakkında bilgi sahibi olur.","4. Hafta","7- Yaşam değerlerinin farkına varır.","5. Hafta","11- Okula devam etme ile akademik gelişimi arasındaki ilişkiyi değerlendirir.","5. Hafta"]
[null,"BEP 'lerin Oluşturulması","4. Hafta","Veli Toplantısı","5. Hafta","Veli Ziyaretleri","5. Hafta"]
[null,"3- İlgi ve hobilerini ayırt eder.","5. Hafta"]
[null,"ARALIK","TARİH","OCAK","TARİH","ŞUBAT","TARİH"]
[null,"12- Kişilerarası ilişkilerde duyguları ifade etmenin önemini fark eder.","2. Hafta","16- Fiziksel, duygusal, sosyal ve kültürel açıdan bireysel farklılıkları kabul eder.","1. Hafta","19- Başlangıç sosyal becerileri kullanır.","2. Hafta"]
[null,"13- Yaşam değerleri ile mesleki değerlerini ayırt eder.","3. Hafta","Toplantı (Diğer)","1. Hafta","Psikososyal (Ortak Özelliklerimiz)","2. Hafta"]
[null,"14- Okul ve çevresinde risk oluşturabilecek durum ve ortamlara karşı kendisini korur.","4. Hafta","17- Mesleklerin zaman içindeki değişimini ve gelişimini takip eder.","2. Hafta","20- Başlangıç sosyal becerileri kullanır.","3. Hafta"]
[null,"Psikososyal (Duygu Listem)","4. Hafta","18- Zorbalık ve türlerini bilir.","3. Hafta","21- İyilik hâlini destekleyen davranışlar açısından kendini gözden geçirir.","4. Hafta"]
[null,"15- Kısa ve uzun vadeli kariyer amaçlarını tekrar inceler.","5. Hafta"]
[null,"Veli Ziyaretleri","5. Hafta"]
[]
[null,"MART","TARİH","NİSAN","TARİH","MAYIS","TARİH"]
[null,"22- Kendi özellikleriyle kariyer kararlarını ilişkilendirir.","1. Hafta","27- Sahip olduğu karakter güçlerini fark eder.","2. Hafta","30- Toplumsal rollerinin gerektirdiği sorumlulukları yerine getirmediğinde karşılaşabileceği sonuçları değerlendirir.","1. Hafta"]
[null,"23- Siber zorbalığın yaşamındaki etkilerini fark eder.","2. Hafta","Psikososyal (Doğal Tepkiler)","2. Hafta","RİBA Uygulaması","1. Hafta"]
[null,"Psikososyal (Ergenim Farkındayım)","2. Hafta","28- Alan/bölüm/dal/ders seçiminde ilgi, yetenek ve mesleki değerleri dikkate alır.","3. Hafta","31- Sahip olduğu karakter güçlerini zorluklar karşısında kullanmayı bilir.","2. Hafta"]
[null,"24- Zorbalıkla baş etme yollarını kullanır.","3. Hafta","29- Kişisel güvenliği için “Hayır!” demeyi alışkanlık hâline getirir.","5. Hafta","32- Kariyer hazırlığı sürecinde belirlediği amaçlar doğrultusunda alan/dal/ders seçiminde karar verme becerisini kullanır.","3. Hafta"]
[null,"25- Sanal arkadaşlığı arkadaşlık ilişkileri kapsamında sorgular.","4. Hafta","Veli Ziyaretleri","5. Hafta","33- Kariyer hazırlığı sürecinde belirlediği amaçlar doğrultusunda alan/dal/ders seçiminde karar verme becerisini kullanır.","4. Hafta"]
[null,"26- Sahip olduğu karakter güçlerini fark eder.","5. Hafta",null,null,"Veli Ziyaretleri","4. Hafta"]
[null,"Veli Ziyaretleri","5. Hafta",null,null,"34- Kimden, nereden, ne zaman ve nasıl yardım isteyebileceğini bilir.","5. Hafta"]
[null,"HAZİRAN","TARİH"]
[null,"35- Akademik amaçlarını gerçekleştirme konusunda kendini değerlendirir.","2. Hafta","İMZA",null,"İMZA"]
[null,"36- Sınıf rehberlik programı etkinliklerine/yaşantılarına ilişkin duygu ve düşüncelerini yansıtır.","3. Hafta"]
[]
[]
[null,null,null,"ÖĞRETMENİN ADI SOYADI",null,"OKUL MÜDÜRÜNÜN ADI SOYADI"]
[null,null,null,"ŞÜKRÜ ÇEKİÇ",null,{"$f":"IF(Bilgi!B9=\"\",\"Lütfen Bilgi Sayfasına Okul Müdürü İsim ve Soyismini Yazınız\",UPPER(Bilgi!B9))","v":"YUSUF YILDIRIM"}]

{"sheet":"9. B","index":35,"n_rows":34,"n_cols":7,"rows_kept":34,"cut":false,"hidden":false,"merged":[[0,0,0,6],[1,0,1,6],[2,0,34,0],[2,1,2,6]]}
[{"$f":"IF(Bilgi!B4=\"\",\"Lütfen Bilgi Sayfasına Okul Adını Yazınız\",UPPER(Bilgi!B4))","v":"İSKENDERUN MESLEKİ VE TEKNİK ANADOLU LİSESİ"}]
[{"$f":"Bilgi!B3&\" EĞİTİM ÖĞRETİM YILI\"","v":"2022-2023 EĞİTİM ÖĞRETİM YILI"}]
["YAPILACAK ÇALIŞMALAR","9. SINIF B ŞUBESİ SINIF REHBERLİK PLANI"]
[null,"EYLÜL","TARİH","EKİM","TARİH","KASIM","TARİH"]
[null,"Rehberlik Yürütme Komisyonu Toplantısı","2. Hafta","4- Okulunun ve sınıfının bir üyesi olduğunu fark eder.","2. Hafta","8- Kendi mesleki değerlerinin farkına varır.","1. Hafta"]
[null,"1- Okulun yakın çevresini, bölümlerini ve okulda çalışan personeli tanır.","3. Hafta","5- Okul hazırlığına ilişkin sorumluluklarını üstlenir.","3. Hafta","9- Kendi mesleki değerlerinin farkına varır.","2. Hafta"]
[null,"Bilgi Fişlerinin Doldurulması","3. Hafta","Psikososyal (İşin Aslı)","3. Hafta","10- Akademik gelişimi için amaçlar oluşturur.","4. Hafta"]
[null,"Sınıf Rehberlik Planının Hazırlanması","3. Hafta","6- Okulun eğitsel imkânları hakkında bilgi edinir.","4. Hafta","Psikososyal (Duygı Düşünce Kartları)","4. Hafta"]
[null,"2- Eğitim öğretim sürecine ilişkin yönetmeliklerin kendisini ilgilendiren kısımları hakkında bilgi sahibi olur.","4. Hafta","7- Yaşam değerlerinin farkına varır.","5. Hafta","11- Okula devam etme ile akademik gelişimi arasındaki ilişkiyi değerlendirir.","5. Hafta"]
[null,"BEP 'lerin Oluşturulması","4. Hafta","Veli Toplantısı","5. Hafta","Veli Ziyaretleri","5. Hafta"]
[null,"3- İlgi ve hobilerini ayırt eder.","5. Hafta"]
[null,"ARALIK","TARİH","OCAK","TARİH","ŞUBAT","TARİH"]
[null,"12- Kişilerarası ilişkilerde duyguları ifade etmenin önemini fark eder.","2. Hafta","16- Fiziksel, duygusal, sosyal ve kültürel açıdan bireysel farklılıkları kabul eder.","1. Hafta","19- Başlangıç sosyal becerileri kullanır.","2. Hafta"]
[null,"13- Yaşam değerleri ile mesleki değerlerini ayırt eder.","3. Hafta","Toplantı (Diğer)","1. Hafta","Psikososyal (Ortak Özelliklerimiz)","2. Hafta"]
[null,"14- Okul ve çevresinde risk oluşturabilecek durum ve ortamlara karşı kendisini korur.","4. Hafta","17- Mesleklerin zaman içindeki değişimini ve gelişimini takip eder.","2. Hafta","20- Başlangıç sosyal becerileri kullanır.","3. Hafta"]
[null,"Psikososyal (Duygu Listem)","4. Hafta","18- Zorbalık ve türlerini bilir.","3. Hafta","21- İyilik hâlini destekleyen davranışlar açısından kendini gözden geçirir.","4. Hafta"]
[null,"15- Kısa ve uzun vadeli kariyer amaçlarını tekrar inceler.","5. Hafta"]
[null,"Veli Ziyaretleri","5. Hafta"]
[]
[null,"MART","TARİH","NİSAN","TARİH","MAYIS","TARİH"]
[null,"22- Kendi özellikleriyle kariyer kararlarını ilişkilendirir.","1. Hafta","27- Sahip olduğu karakter güçlerini fark eder.","2. Hafta","30- Toplumsal rollerinin gerektirdiği sorumlulukları yerine getirmediğinde karşılaşabileceği sonuçları değerlendirir.","1. Hafta"]
[null,"23- Siber zorbalığın yaşamındaki etkilerini fark eder.","2. Hafta","Psikososyal (Doğal Tepkiler)","2. Hafta","RİBA Uygulaması","1. Hafta"]
[null,"Psikososyal (Ergenim Farkındayım)","2. Hafta","28- Alan/bölüm/dal/ders seçiminde ilgi, yetenek ve mesleki değerleri dikkate alır.","3. Hafta","31- Sahip olduğu karakter güçlerini zorluklar karşısında kullanmayı bilir.","2. Hafta"]
[null,"24- Zorbalıkla baş etme yollarını kullanır.","3. Hafta","29- Kişisel güvenliği için “Hayır!” demeyi alışkanlık hâline getirir.","5. Hafta","32- Kariyer hazırlığı sürecinde belirlediği amaçlar doğrultusunda alan/dal/ders seçiminde karar verme becerisini kullanır.","3. Hafta"]
[null,"25- Sanal arkadaşlığı arkadaşlık ilişkileri kapsamında sorgular.","4. Hafta","Veli Ziyaretleri","5. Hafta","33- Kariyer hazırlığı sürecinde belirlediği amaçlar doğrultusunda alan/dal/ders seçiminde karar verme becerisini kullanır.","4. Hafta"]
[null,"26- Sahip olduğu karakter güçlerini fark eder.","5. Hafta",null,null,"Veli Ziyaretleri","4. Hafta"]
[null,"Veli Ziyaretleri","5. Hafta",null,null,"34- Kimden, nereden, ne zaman ve nasıl yardım isteyebileceğini bilir.","5. Hafta"]
[null,"HAZİRAN","TARİH"]
[null,"35- Akademik amaçlarını gerçekleştirme konusunda kendini değerlendirir.","2. Hafta","İMZA",null,"İMZA"]
[null,"36- Sınıf rehberlik programı etkinliklerine/yaşantılarına ilişkin duygu ve düşüncelerini yansıtır.","3. Hafta"]
[]
[]
[null,null,null,"ÖĞRETMENİN ADI SOYADI",null,"OKUL MÜDÜRÜNÜN ADI SOYADI"]
[null,null,null,"ÖZKAN PARLAR",null,{"$f":"IF(Bilgi!B9=\"\",\"Lütfen Bilgi Sayfasına Okul Müdürü İsim ve Soyismini Yazınız\",UPPER(Bilgi!B9))","v":"YUSUF YILDIRIM"}]

{"sheet":"9. A","index":36,"n_rows":34,"n_cols":7,"rows_kept":34,"cut":false,"hidden":false,"merged":[[0,0,0,6],[1,0,1,6],[2,0,34,0],[2,1,2,6]]}
[{"$f":"IF(Bilgi!B4=\"\",\"Lütfen Bilgi Sayfasına Okul Adını Yazınız\",UPPER(Bilgi!B4))","v":"İSKENDERUN MESLEKİ VE TEKNİK ANADOLU LİSESİ"}]
[{"$f":"Bilgi!B3&\" EĞİTİM ÖĞRETİM YILI\"","v":"2022-2023 EĞİTİM ÖĞRETİM YILI"}]
["YAPILACAK ÇALIŞMALAR","9. SINIF A ŞUBESİ SINIF REHBERLİK PLANI"]
[null,"EYLÜL","TARİH","EKİM","TARİH","KASIM","TARİH"]
[null,"Rehberlik Yürütme Komisyonu Toplantısı","2. Hafta","4- Okulunun ve sınıfının bir üyesi olduğunu fark eder.","2. Hafta","8- Kendi mesleki değerlerinin farkına varır.","1. Hafta"]
[null,"1- Okulun yakın çevresini, bölümlerini ve okulda çalışan personeli tanır.","3. Hafta","5- Okul hazırlığına ilişkin sorumluluklarını üstlenir.","3. Hafta","9- Kendi mesleki değerlerinin farkına varır.","2. Hafta"]
[null,"Bilgi Fişlerinin Doldurulması","3. Hafta","Psikososyal (İşin Aslı)","3. Hafta","10- Akademik gelişimi için amaçlar oluşturur.","4. Hafta"]
[null,"Sınıf Rehberlik Planının Hazırlanması","3. Hafta","6- Okulun eğitsel imkânları hakkında bilgi edinir.","4. Hafta","Psikososyal (Duygı Düşünce Kartları)","4. Hafta"]
[null,"2- Eğitim öğretim sürecine ilişkin yönetmeliklerin kendisini ilgilendiren kısımları hakkında bilgi sahibi olur.","4. Hafta","7- Yaşam değerlerinin farkına varır.","5. Hafta","11- Okula devam etme ile akademik gelişimi arasındaki ilişkiyi değerlendirir.","5. Hafta"]
[null,"BEP 'lerin Oluşturulması","4. Hafta","Veli Toplantısı","5. Hafta","Veli Ziyaretleri","5. Hafta"]
[null,"3- İlgi ve hobilerini ayırt eder.","5. Hafta"]
[null,"ARALIK","TARİH","OCAK","TARİH","ŞUBAT","TARİH"]
[null,"12- Kişilerarası ilişkilerde duyguları ifade etmenin önemini fark eder.","2. Hafta","16- Fiziksel, duygusal, sosyal ve kültürel açıdan bireysel farklılıkları kabul eder.","1. Hafta","19- Başlangıç sosyal becerileri kullanır.","2. Hafta"]
[null,"13- Yaşam değerleri ile mesleki değerlerini ayırt eder.","3. Hafta","Toplantı (Diğer)","1. Hafta","Psikososyal (Ortak Özelliklerimiz)","2. Hafta"]
[null,"14- Okul ve çevresinde risk oluşturabilecek durum ve ortamlara karşı kendisini korur.","4. Hafta","17- Mesleklerin zaman içindeki değişimini ve gelişimini takip eder.","2. Hafta","20- Başlangıç sosyal becerileri kullanır.","3. Hafta"]
[null,"Psikososyal (Duygu Listem)","4. Hafta","18- Zorbalık ve türlerini bilir.","3. Hafta","21- İyilik hâlini destekleyen davranışlar açısından kendini gözden geçirir.","4. Hafta"]
[null,"15- Kısa ve uzun vadeli kariyer amaçlarını tekrar inceler.","5. Hafta"]
[null,"Veli Ziyaretleri","5. Hafta"]
[]
[null,"MART","TARİH","NİSAN","TARİH","MAYIS","TARİH"]
[null,"22- Kendi özellikleriyle kariyer kararlarını ilişkilendirir.","1. Hafta","27- Sahip olduğu karakter güçlerini fark eder.","2. Hafta","30- Toplumsal rollerinin gerektirdiği sorumlulukları yerine getirmediğinde karşılaşabileceği sonuçları değerlendirir.","1. Hafta"]
[null,"23- Siber zorbalığın yaşamındaki etkilerini fark eder.","2. Hafta","Psikososyal (Doğal Tepkiler)","2. Hafta","RİBA Uygulaması","1. Hafta"]
[null,"Psikososyal (Ergenim Farkındayım)","2. Hafta","28- Alan/bölüm/dal/ders seçiminde ilgi, yetenek ve mesleki değerleri dikkate alır.","3. Hafta","31- Sahip olduğu karakter güçlerini zorluklar karşısında kullanmayı bilir.","2. Hafta"]
[null,"24- Zorbalıkla baş etme yollarını kullanır.","3. Hafta","29- Kişisel güvenliği için “Hayır!” demeyi alışkanlık hâline getirir.","5. Hafta","32- Kariyer hazırlığı sürecinde belirlediği amaçlar doğrultusunda alan/dal/ders seçiminde karar verme becerisini kullanır.","3. Hafta"]
[null,"25- Sanal arkadaşlığı arkadaşlık ilişkileri kapsamında sorgular.","4. Hafta","Veli Ziyaretleri","5. Hafta","33- Kariyer hazırlığı sürecinde belirlediği amaçlar doğrultusunda alan/dal/ders seçiminde karar verme becerisini kullanır.","4. Hafta"]
[null,"26- Sahip olduğu karakter güçlerini fark eder.","5. Hafta",null,null,"Veli Ziyaretleri","4. Hafta"]
[null,"Veli Ziyaretleri","5. Hafta",null,null,"34- Kimden, nereden, ne zaman ve nasıl yardım isteyebileceğini bilir.","5. Hafta"]
[null,"HAZİRAN","TARİH"]
[null,"35- Akademik amaçlarını gerçekleştirme konusunda kendini değerlendirir.","2. Hafta","İMZA",null,"İMZA"]
[null,"36- Sınıf rehberlik programı etkinliklerine/yaşantılarına ilişkin duygu ve düşüncelerini yansıtır.","3. Hafta"]
[]
[]
[null,null,null,"ÖĞRETMENİN ADI SOYADI",null,"OKUL MÜDÜRÜNÜN ADI SOYADI"]
[null,null,null,"FİKRET UZUN",null,{"$f":"IF(Bilgi!B9=\"\",\"Lütfen Bilgi Sayfasına Okul Müdürü İsim ve Soyismini Yazınız\",UPPER(Bilgi!B9))","v":"YUSUF YILDIRIM"}]

{"sheet":"Sayfa1","index":37,"n_rows":71,"n_cols":13,"rows_kept":71,"cut":false,"hidden":false,"merged":[]}
[null,null,"1. Hafta","2. Hafta","3. Hafta","4. Hafta","5. Hafta","Seçim","Hafta",null,null,null,"SINIF REHBERLİK PROGRAMI’NIN ÖZELLİKLERİ"]
["Eylül",1,null,{"$f":"Sayfa2!N3","v":"Rehberlik Yürütme Komisyonu Toplantısı"},null,null,null,{"$f":"IF(C2<>\"\",C2,IF(D2<>\"\",D2,IF(E2<>\"\",E2,IF(F2<>\"\",F2,IF(G2<>\"\",G2,\"zzz\")))))","v":"Rehberlik Yürütme Komisyonu Toplantısı"},{"$f":"IF(C2<>\"\",\"1. Hafta\",IF(D2<>\"\",\"2. Hafta\",IF(E2<>\"\",\"3. Hafta\",IF(F2<>\"\",\"4. Hafta\",IF(G2<>\"\",\"5. Hafta\",\"zzz\")))))","v":"2. Hafta"},null,null,null,"Sınıf   Rehberlik   Programı,   günümüz   ihtiyaçları   ve   güncel   okul   PDR   programı yaklaşımları dikkate alınarak hazırlanan yeni bir programdır. Bu programda;"]
["Eylül",2,null,null,{"$f":"Sayfa2!N4","v":"Sınıf Rehberlik Planının Hazırlanması"},null,null,{"$f":"IF(C3<>\"\",C3,IF(D3<>\"\",D3,IF(E3<>\"\",E3,IF(F3<>\"\",F3,IF(G3<>\"\",G3,\"zzz\")))))","v":"Sınıf Rehberlik Planının Hazırlanması"},{"$f":"IF(C3<>\"\",\"1. Hafta\",IF(D3<>\"\",\"2. Hafta\",IF(E3<>\"\",\"3. Hafta\",IF(F3<>\"\",\"4. Hafta\",IF(G3<>\"\",\"5. Hafta\",\"zzz\")))))","v":"3. Hafta"},null,null,null,"  Tek bir modele dayanmak yerine özellikle gelişimsel, yeterlik,  güç temelli, problem odaklı ve kültürel farklılıkları dikkate alan kapsayıcı bir yaklaşım benimsenmiştir."]
["Eylül",3,null,null,null,{"$f":"Sayfa2!N11","v":"BEP 'lerin Oluşturulması"},null,"BEP 'lerin Oluşturulması","4. Hafta",null,null,null,"  Akademik,   kariyer   ve   sosyal   duygusal   olmak   üzere   üç   temel   gelişim   alanı belirlenmiştir.  Bu  gelişim  alanlarına  ait  kazanım  ifadeleri  birbirinden  ayrı  olmakla birlikte birbirini destekleyecek şekilde yazılmıştır."]
["Eylül",4,null,null,{"$f":"Sayfa2!N20","v":"1- Sahip olduğu karakter güçlerini zorluklar karşısında kullanır."},null,null,{"$f":"IF(C5<>\"\",C5,IF(D5<>\"\",D5,IF(E5<>\"\",E5,IF(F5<>\"\",F5,IF(G5<>\"\",G5,\"zzz\")))))","v":"1- Sahip olduğu karakter güçlerini zorluklar karşısında kullanır."},{"$f":"IF(C5<>\"\",\"1. Hafta\",IF(D5<>\"\",\"2. Hafta\",IF(E5<>\"\",\"3. Hafta\",IF(F5<>\"\",\"4. Hafta\",IF(G5<>\"\",\"5. Hafta\",\"zzz\")))))","v":"3. Hafta"},null,null,null,"  Gelişim   alanlarına   ilişkin   yeterlik   alanları   çeşitlendirilmiş   ve   açık   bir   şekilde belirlenmiştir.   Yeterlikler   ve   kazanımlar;   öğrencilerin   yaşları,   zihinsel,   sosyal duygusal ve fiziksel gelişimleri ile gelişim görevleri dikkate alınarak hazırlanmıştır."]
["Eylül",5,null,null,null,{"$f":"Sayfa2!N21","v":"2- Okula hazırlıklı gelme ile akademik gelişimi arasında bağ kurar."},null,{"$f":"IF(C6<>\"\",C6,IF(D6<>\"\",D6,IF(E6<>\"\",E6,IF(F6<>\"\",F6,IF(G6<>\"\",G6,\"zzz\")))))","v":"2- Okula hazırlıklı gelme ile akademik gelişimi arasında bağ kurar."},{"$f":"IF(C6<>\"\",\"1. Hafta\",IF(D6<>\"\",\"2. Hafta\",IF(E6<>\"\",\"3. Hafta\",IF(F6<>\"\",\"4. Hafta\",IF(G6<>\"\",\"5. Hafta\",\"zzz\")))))","v":"4. Hafta"},null,null,null,"  Gelişim alanlarında duyguların farkındalığına ve ifade edilmesine özen gösterilmiştir."]
["Eylül",6,null,null,{"$f":"Sayfa2!N7","v":"Bilgi Fişlerinin Doldurulması"},null,null,{"$f":"IF(C7<>\"\",C7,IF(D7<>\"\",D7,IF(E7<>\"\",E7,IF(F7<>\"\",F7,IF(G7<>\"\",G7,\"zzz\")))))","v":"Bilgi Fişlerinin Doldurulması"},{"$f":"IF(C7<>\"\",\"1. Hafta\",IF(D7<>\"\",\"2. Hafta\",IF(E7<>\"\",\"3. Hafta\",IF(F7<>\"\",\"4. Hafta\",IF(G7<>\"\",\"5. Hafta\",\"zzz\")))))","v":"3. Hafta"},null,null,null,"  Kazanımlar   yazılırken   program   geliştirme   sürecinde   öğrencilerin,   velilerin   ve öğretmenlerin    rehberlik    ihtiyacını    ortaya    koyan    RİBA    sonuçları,    çalıştaylar kapsamında  öğretmenlere  uygulanan  ihtiyaç  analizi  ile  elde  edilen  veriler,“Karakter Güçleri ve Erdemler”, “21. Yüzyıl Becerileri” olarak adlandırılan yeni nesil beceriler ve Millî Eğitim Bakanlığı tarafından tanımlanan “Kök Değerler” dikkate alınmıştır."]
["Eylül",7,null,null,null,null,{"$f":"Sayfa2!N22","v":"3- Zamanını, ihtiyaçları ve sorumlulukları çerçevesinde planlar."},"3- Zamanını, ihtiyaçları ve sorumlulukları çerçevesinde planlar.","5. Hafta",null,null,null,"  Duyuşsal davranış kazandırmanın bir süreç olduğu ve tekrarlanması gerektiği dikkate alınarak  kazanımların  kapsayıcı  olmasına  özen  gösterilmiş  ve  bazı  kazanımlar  farklı sınıf düzeylerinde tekrar edilmiştir."]
["Ekim",1,null,null,{"$f":"Sayfa2!N14","v":"Psikososyal (İşin Aslı)"},null,null,"Psikososyal (İşin Aslı)","3. Hafta",null,null,null,"  Akademik  gelişim  alanında,  hayat  boyu  gelişim  ve  değişim  anlayışından  hareketle öğrencilerin    kendi    öğrenmelerinin    sorumluluğunu    alması,    akademik    anlayış geliştirmeleri,   akademik   çalışmalarında   öz   düzenleme   becerilerini   kazanmaları amaçlanmaktadır.  Bu  kapsamda  öğrencilerin  okula  aidiyet  geliştirmeleri,  akademik gelişimleri   ile   ilgili   öz   değerlendirme   yaparak   gelişimlerini   destekleyebilecek planlamalar  yapabilmeleri,  eğitsel  başarıya  götürecek  kendilerine  uygun  öğrenme stillerini    ve    stratejilerini,    zaman    yönetimi    becerilerini    geliştirmeleri    önemli görülmüştür."]
["Ekim",2,null,{"$f":"Sayfa2!N23","v":"4- Zamanını, ihtiyaçları ve sorumlulukları çerçevesinde planlar."},null,null,null,"4- Zamanını, ihtiyaçları ve sorumlulukları çerçevesinde planlar.","2. Hafta",null,null,null,"  Kariyer  gelişim  alanında,  içinde  bulunduğumuz  dijital  çağda  mesleklerin  hızlı  ve sürekli olarak değiştiği fikrinden hareketle öğrencilerin mesleklerin değişebileceği ve gelişebileceği anlayışını kazanmaları ve kendi kariyer planlarını bu anlayışa dayanarak geliştirmeleri  benimsenmiştir.  Bu  kapsamda,  öğrencilerin  kariyer  seçimi  açısından kendini  tanıması,  mesleki  bilgi  kaynaklarından  güvenilir  olan  ve  olmayanları  ayırt etmesi, çalışma ve üretmenin bireyin gelişimine katkısına inanması ve kendine uygun kariyer kararını vermesi önemli görülmüştür."]
["Ekim",3,null,null,null,null,{"$f":"Sayfa2!N9","v":"Veli Toplantısı"},"Veli Toplantısı","5. Hafta",null,null,null,"  Kariyer gelişim alanında, öğrencilerin içinde bulundukları kariyer gelişim döneminin özellikleri ve kariyer gelişim görevleri dikkate alınmıştır."]
["Ekim",4,null,null,{"$f":"Sayfa2!N24","v":"5- Bilişim teknolojileri kullanımı konusunda kendini değerlendirir."},null,null,"5- Bilişim teknolojileri kullanımı konusunda kendini değerlendirir.","3. Hafta",null,null,null,"  Sosyal  duygusal  gelişim  alanında,  öğrencilerin  içinde  bulundukları  sosyal  gruplarda başarılı olmaları için neleri bilmeleri ve nasıl davranmaları gerektiğiyle ilgili becerileri kazandırmak  benimsenmiştir.  Bunun  yanı  sıra,  zihinsel  gelişime  de  destek  sağlayan duygularını    anlamalarına,    tanımalarına,    ifade    etmelerine    ve    yönetmelerine odaklanılmıştır.  Bu  kapsamda,  benlik  farkındalığı  kazanma,  duyguları  anlama  ve yönetme,  sorumlu  karar  verme,  kişisel  güvenliğini  sağlama  ve  kişilerarası  iletişim becerileri gibi sosyal duygusal öğrenme becerilerini geliştirmeleri önemli görülmüştür."]
["Ekim",5,null,null,null,{"$f":"Sayfa2!N25","v":"6- Kendi bedenine ilişkin olumlu tutum geliştirir."},null,"6- Kendi bedenine ilişkin olumlu tutum geliştirir.","4. Hafta",null,null,null,"  Sınıf Rehberlik Programı’nda iyi oluş, iyilik hâli, beden imgesi, sanal arkadaşlık, hak savunuculuğu,  karakter  güçleri,  hayal  etme,  liderlik  becerileri,  kariyer  amaç  ve beklentileri,  kariyer  portfolyosu  anlayışı  geliştirme,  kariyer  planlama,  hayat  boyu öğrenme anlayışı, çaba gösterme, çalışma anlayışı ve önemi, üretme davranışı, okul ve eğitimin  önemi,  akademik  erteleme,  öğrenmenin  bir  parçası  olarak  hata/başarısızlık, öğrenme  etkinlik  ve  ortamlarına  yönelik  duygu  ve  düşünce  temalarına  ilk  kez  yer verilmiştir."]
["Ekim",6,null,null,null,null,{"$f":"Sayfa2!N26","v":"7- Üst öğretim kurumlarına geçiş sınavlarına hazırlanmak ve başarılı olmak için stratejiler geliştirir."},{"$f":"IF(C14<>\"\",C14,IF(D14<>\"\",D14,IF(E14<>\"\",E14,IF(F14<>\"\",F14,IF(G14<>\"\",G14,\"zzz\")))))","v":"7- Üst öğretim kurumlarına geçiş sınavlarına hazırlanmak ve başarılı olmak için stratejiler geliştirir."},{"$f":"IF(C14<>\"\",\"1. Hafta\",IF(D14<>\"\",\"2. Hafta\",IF(E14<>\"\",\"3. Hafta\",IF(F14<>\"\",\"4. Hafta\",IF(G14<>\"\",\"5. Hafta\",\"zzz\")))))","v":"5. Hafta"},null,null,null,"  Akademik  gelişimde  ve  kariyer  gelişiminde  olduğu  gibi  sosyal  duygusal  gelişim alanında   da   öğrencilerin   güçlü   yönlerini   ortaya   çıkarmaları   ve   olumlu   kişilik özelliklerini geliştirmeleri benimsenmiştir."]
["Ekim",7,null,null,null,null,null,{"$f":"IF(C15<>\"\",C15,IF(D15<>\"\",D15,IF(E15<>\"\",E15,IF(F15<>\"\",F15,IF(G15<>\"\",G15,\"zzz\")))))","v":"zzz"},{"$f":"IF(C15<>\"\",\"1. Hafta\",IF(D15<>\"\",\"2. Hafta\",IF(E15<>\"\",\"3. Hafta\",IF(F15<>\"\",\"4. Hafta\",IF(G15<>\"\",\"5. Hafta\",\"zzz\")))))","v":"zzz"},null,null,null,"  Akademik, kariyer ve sosyal duygusal gelişim alanlarında, öğrencilerin güçlü yanlarını ortaya çıkarmak, kök değerleri kazanmalarına katkıda bulunmak benimsenmiştir. Bu kapsamda,  öğrencilere  sağlıklı  bir  akademik  gelişim,  sağlıklı  bir  kariyer  gelişimi  ve sağlıklı bir sosyal duygusal gelişim sağlayarak öğrencilerin iyi oluş ve uyum düzeyi yüksek bireyler olarak yetişmeleri beklenmektedir."]
["Kasım",1,{"$f":"Sayfa2!N6","v":"Sınıf Risk Analizi"}]
["Kasım",2,{"$f":"Sayfa2!N27","v":"8- Akademik çalışmalarını zamanında bitirmede kararlı olur."},null,null,null,null,"8- Akademik çalışmalarını zamanında bitirmede kararlı olur.","1. Hafta"]
["Kasım",3,null,{"$f":"Sayfa2!N28","v":"9- Kariyer planlama sürecinde kişisel özelliklerini kullanır."},null,null,null,"9- Kariyer planlama sürecinde kişisel özelliklerini kullanır.","2. Hafta"]
["Kasım",4,null,null,null,{"$f":"Sayfa2!N29","v":"10- Ortaöğretim sonrası kariyer tercihleri ile ilgili yardım alabileceği kaynaklara başvurur."},null,"10- Ortaöğretim sonrası kariyer tercihleri ile ilgili yardım alabileceği kaynaklara başvurur.","4. Hafta"]
["Kasım",5,null,null,null,null,{"$f":"Sayfa2!N30","v":"11- Kültürel farklılıklara duyarlı bakış açısı geliştirir."},"11- Kültürel farklılıklara duyarlı bakış açısı geliştirir.","5. Hafta"]
["Kasım",6,null,null,null,{"$f":"Sayfa2!N15","v":"Psikososyal (Duygı Düşünce Kartları)"},null,"Psikososyal (Duygı Düşünce Kartları)","4. Hafta"]
["Kasım",7,null,null,null,null,{"$f":"Sayfa2!N10","v":"Veli Ziyaretleri"},"Veli Ziyaretleri","5. Hafta"]
["Aralık",1,null,{"$f":"Sayfa2!N31","v":"12- Kültürel farklılıklara duyarlı davranışlar sergiler."},null,null,null,"12- Kültürel farklılıklara duyarlı davranışlar sergiler.","2. Hafta"]
["Aralık",2,null,null,{"$f":"Sayfa2!N32","v":"13- Adil olmayı güçlendirmek için “hak savunuculuğu” yapar."},null,null,"13- Adil olmayı güçlendirmek için “hak savunuculuğu” yapar.","3. Hafta"]
["Aralık",3,null,null,null,{"$f":"Sayfa2!N33","v":"14- Yaşam amaçlarıyla ilgili eylem planını gözden geçirir."},null,"14- Yaşam amaçlarıyla ilgili eylem planını gözden geçirir.","4. Hafta"]
["Aralık",4,null,null,null,null,{"$f":"Sayfa2!N34","v":"15- Yaşadığı yoğun duyguları yönetir."},"15- Yaşadığı yoğun duyguları yönetir.","5. Hafta"]
["Aralık",5,null,null,null,{"$f":"Sayfa2!N16","v":"Psikososyal (Duygu Listem)"},null,"Psikososyal (Duygu Listem)","4. Hafta"]
["Aralık",6,null,null,null,null,{"$f":"Sayfa2!N10","v":"Veli Ziyaretleri"},"Veli Ziyaretleri","5. Hafta"]
["Aralık",7,null,null,null,null,null,"zzz","zzz"]
["Ocak",1,{"$f":"Sayfa2!N35","v":"16- Öz geçmiş yazar."},null,null,null,null,"16- Öz geçmiş yazar.","1. Hafta"]
["Ocak",2,null,{"$f":"Sayfa2!N36","v":"17- Öz geçmiş yazar."},null,null,null,"17- Öz geçmiş yazar.","2. Hafta"]
["Ocak",3,null,null,{"$f":"Sayfa2!N37","v":"18- Stres yaratan kaynakları fark eder."},null,null,"18- Stres yaratan kaynakları fark eder.","3. Hafta"]
["Ocak",4,{"$f":"Sayfa2!N13","v":"Toplantı (Diğer)"},null,null,null,null,"Toplantı (Diğer)","1. Hafta"]
["Ocak",5,null,null,null,null,null,"zzz","zzz"]
["Ocak",6,null,null,null,null,null,"zzz","zzz"]
["Ocak",7,null,null,null,null,null,"zzz","zzz"]
["Şubat",1,null,{"$f":"Sayfa2!N38","v":"19- İş görüşme becerilerini açıklar."},null,null,null,"19- İş görüşme becerilerini açıklar.","2. Hafta"]
["Şubat",2,null,null,{"$f":"Sayfa2!N39","v":"20- İş görüşme becerilerini kullanır."},null,null,"20- İş görüşme becerilerini kullanır.","3. Hafta"]
["Şubat",3,null,null,null,{"$f":"Sayfa2!N40","v":"21- Toplum için gönüllü çalışmada duyarlı davranır."},null,"21- Toplum için gönüllü çalışmada duyarlı davranır.","4. Hafta"]
["Şubat",4,null,{"$f":"Sayfa2!N17","v":"Psikososyal (Ortak Özelliklerimiz)"},null,null,null,"Psikososyal (Ortak Özelliklerimiz)","2. Hafta"]
["Şubat",5,null,null,null,null,null,"zzz","zzz"]
["Şubat",6,null,null,null,null,null,"zzz","zzz"]
["Şubat",7,null,null,null,null,null,"zzz","zzz"]
["Mart",1,{"$f":"Sayfa2!N41","v":"22- Karakter güçleri ile iyi oluş arasında bağ kurar."},null,null,null,null,"22- Karakter güçleri ile iyi oluş arasında bağ kurar.","1. Hafta"]
["Mart",2,null,{"$f":"Sayfa2!N42","v":"23- İyi oluşunu destekleyen duyguları yaşamında sıklıkla deneyimler."},null,null,null,"23- İyi oluşunu destekleyen duyguları yaşamında sıklıkla deneyimler.","2. Hafta"]
["Mart",3,null,null,{"$f":"Sayfa2!N43","v":"24- Mesleki bilgi kaynaklarını kullanır"},null,null,"24- Mesleki bilgi kaynaklarını kullanır","3. Hafta"]
["Mart",4,null,null,null,{"$f":"Sayfa2!N44","v":"25- Seçmeyi düşündüğü mesleklerle ilgili kariyer planlaması yapar."},null,"25- Seçmeyi düşündüğü mesleklerle ilgili kariyer planlaması yapar.","4. Hafta"]
["Mart",5,null,null,null,null,{"$f":"Sayfa2!N45","v":"26- Meslek seçiminde karar verme becerisini kullanır."},"26- Meslek seçiminde karar verme becerisini kullanır.","5. Hafta"]
["Mart",6,null,{"$f":"Sayfa2!N18","v":"Psikososyal (Ergenim Farkındayım)"},null,null,null,"Psikososyal (Ergenim Farkındayım)","2. Hafta"]
["Mart",7,null,null,null,null,{"$f":"Sayfa2!N10","v":"Veli Ziyaretleri"},"Veli Ziyaretleri","5. Hafta"]
["Nisan",1,null,{"$f":"Sayfa2!N46","v":"27- Üst öğretim kurumuna ya da iş yaşamına ilişkin kariyer kararını verir."},null,null,null,"27- Üst öğretim kurumuna ya da iş yaşamına ilişkin kariyer kararını verir.","2. Hafta"]
["Nisan",2,null,null,{"$f":"Sayfa2!N47","v":"28- Değişim ve belirsizlikle baş eder."},null,null,"28- Değişim ve belirsizlikle baş eder.","3. Hafta"]
["Nisan",3,null,null,null,null,{"$f":"Sayfa2!N48","v":"29- Sınavlara ilişkin yoğun duygularını yönetir."},"29- Sınavlara ilişkin yoğun duygularını yönetir.","5. Hafta"]
["Nisan",4,null,null,null,null,null,"zzz","zzz"]
["Nisan",5,null,null,null,null,null,"zzz","zzz"]
["Nisan",6,null,{"$f":"Sayfa2!N19","v":"Psikososyal (Doğal Tepkiler)"},null,null,null,"Psikososyal (Doğal Tepkiler)","2. Hafta"]
["Nisan",7,null,null,null,null,{"$f":"Sayfa2!N10","v":"Veli Ziyaretleri"},"Veli Ziyaretleri","5. Hafta"]
["Mayıs",1,{"$f":"Sayfa2!N5","v":"RİBA Uygulaması"},null,null,null,null,"RİBA Uygulaması","1. Hafta"]
["Mayıs",2,{"$f":"Sayfa2!N49","v":"30- Sınavlara ilişkin yoğun duygularını yönetir."},null,null,null,null,"30- Sınavlara ilişkin yoğun duygularını yönetir.","1. Hafta"]
["Mayıs",3,null,{"$f":"Sayfa2!N50","v":"31- Öğrenmenin hayat boyu devam ettiğine inanır."},null,null,null,"31- Öğrenmenin hayat boyu devam ettiğine inanır.","2. Hafta"]
["Mayıs",4,null,null,{"$f":"Sayfa2!N51","v":"32- Üst öğretim kurumlarına geçiş sınavlarıyla ilgili bilgi edinir."},null,null,"32- Üst öğretim kurumlarına geçiş sınavlarıyla ilgili bilgi edinir.","3. Hafta"]
["Mayıs",5,null,null,null,{"$f":"Sayfa2!N52","v":"33- Bir üst öğretim kurumuna ilişkin ön bilgiler edinir."},null,"33- Bir üst öğretim kurumuna ilişkin ön bilgiler edinir.","4. Hafta"]
["Mayıs",6,null,null,null,null,{"$f":"Sayfa2!N53","v":"34- Bir üst öğretim kurumuna ve iş yaşamına geçiş sürecine yönelik duygu ve düşüncelerini ifade eder."},"34- Bir üst öğretim kurumuna ve iş yaşamına geçiş sürecine yönelik duygu ve düşüncelerini ifade eder.","5. Hafta"]
["Mayıs",7,null,null,null,{"$f":"Sayfa2!N10","v":"Veli Ziyaretleri"},null,"Veli Ziyaretleri","4. Hafta"]
["Haziran",1,null,{"$f":"Sayfa2!N54","v":"35- Eğitim öğretim hayatının kendisine kattıklarını değerlendirir."},null,null,null,"35- Eğitim öğretim hayatının kendisine kattıklarını değerlendirir.","2. Hafta"]
["Haziran",2,null,null,{"$f":"Sayfa2!N55","v":"36- Sınıf rehberlik programı etkinliklerine/yaşantılarına ilişkin duygu ve düşüncelerini yansıtır."},null,null,"36- Sınıf rehberlik programı etkinliklerine/yaşantılarına ilişkin duygu ve düşüncelerini yansıtır.","3. Hafta"]
["Haziran",3,null,null,null,null,null,{"$f":"IF(C67<>\"\",C67,IF(D67<>\"\",D67,IF(E67<>\"\",E67,IF(F67<>\"\",F67,IF(G67<>\"\",G67,\"zzz\")))))","v":"zzz"},{"$f":"IF(C67<>\"\",\"1. Hafta\",IF(D67<>\"\",\"2. Hafta\",IF(E67<>\"\",\"3. Hafta\",IF(F67<>\"\",\"4. Hafta\",IF(G67<>\"\",\"5. Hafta\",\"zzz\")))))","v":"zzz"}]
["Haziran",4,null,null,null,null,null,{"$f":"IF(C68<>\"\",C68,IF(D68<>\"\",D68,IF(E68<>\"\",E68,IF(F68<>\"\",F68,IF(G68<>\"\",G68,\"zzz\")))))","v":"zzz"},{"$f":"IF(C68<>\"\",\"1. Hafta\",IF(D68<>\"\",\"2. Hafta\",IF(E68<>\"\",\"3. Hafta\",IF(F68<>\"\",\"4. Hafta\",IF(G68<>\"\",\"5. Hafta\",\"zzz\")))))","v":"zzz"}]
["Haziran",5,null,null,null,null,null,{"$f":"IF(C69<>\"\",C69,IF(D69<>\"\",D69,IF(E69<>\"\",E69,IF(F69<>\"\",F69,IF(G69<>\"\",G69,\"zzz\")))))","v":"zzz"},{"$f":"IF(C69<>\"\",\"1. Hafta\",IF(D69<>\"\",\"2. Hafta\",IF(E69<>\"\",\"3. Hafta\",IF(F69<>\"\",\"4. Hafta\",IF(G69<>\"\",\"5. Hafta\",\"zzz\")))))","v":"zzz"}]
["Haziran",6,null,null,null,null,null,{"$f":"IF(C70<>\"\",C70,IF(D70<>\"\",D70,IF(E70<>\"\",E70,IF(F70<>\"\",F70,IF(G70<>\"\",G70,\"zzz\")))))","v":"zzz"},{"$f":"IF(C70<>\"\",\"1. Hafta\",IF(D70<>\"\",\"2. Hafta\",IF(E70<>\"\",\"3. Hafta\",IF(F70<>\"\",\"4. Hafta\",IF(G70<>\"\",\"5. Hafta\",\"zzz\")))))","v":"zzz"}]
["Haziran",7,null,null,null,null,null,{"$f":"IF(C71<>\"\",C71,IF(D71<>\"\",D71,IF(E71<>\"\",E71,IF(F71<>\"\",F71,IF(G71<>\"\",G71,\"zzz\")))))","v":"zzz"},{"$f":"IF(C71<>\"\",\"1. Hafta\",IF(D71<>\"\",\"2. Hafta\",IF(E71<>\"\",\"3. Hafta\",IF(F71<>\"\",\"4. Hafta\",IF(G71<>\"\",\"5. Hafta\",\"zzz\")))))","v":"zzz"}]

{"sheet":"Sayfa2","index":38,"n_rows":55,"n_cols":24,"rows_kept":55,"cut":false,"hidden":true,"merged":[]}
["Okul Öncesi","1. Sınıf","2. Sınıf","3. Sınıf","4. Sınıf","5. Sınıf","6. Sınıf","7. Sınıf","8. Sınıf","9. Sınıf","10. Sınıf","11. Sınıf","12. Sınıf","Seçim Ekranı","ÖzelEğitimMeslekOkulu9.Sınıf","ÖzelEğitimMeslekOkulu10.Sınıf","ÖzelEğitimMeslekOkulu11.Sınıf","ÖzelEğitimMeslekOkulu12.Sınıf",null,"Okul Öncesi Öneri Çalışmalar","İlkokul Öneri Çalışmalar","Ortaokul Öneri Çalışmalar","Lise Öneri Çalışmalar","ÖzelEğitimMeslekOkulu12.Sınıf"]
["Rehberlik Yürütme Komisyonu Toplantısı","Rehberlik Yürütme Komisyonu Toplantısı","Rehberlik Yürütme Komisyonu Toplantısı","Rehberlik Yürütme Komisyonu Toplantısı","Rehberlik Yürütme Komisyonu Toplantısı","Rehberlik Yürütme Komisyonu Toplantısı","Rehberlik Yürütme Komisyonu Toplantısı","Rehberlik Yürütme Komisyonu Toplantısı","Rehberlik Yürütme Komisyonu Toplantısı","Rehberlik Yürütme Komisyonu Toplantısı","Rehberlik Yürütme Komisyonu Toplantısı","Rehberlik Yürütme Komisyonu Toplantısı","Rehberlik Yürütme Komisyonu Toplantısı",{"$f":"\"\"","v":""},"Rehberlik Yürütme Komisyonu Toplantısı","Rehberlik Yürütme Komisyonu Toplantısı","Rehberlik Yürütme Komisyonu Toplantısı","Rehberlik Yürütme Komisyonu Toplantısı",null,"Rehberlik Yürütme Komisyonu Toplantısı","Rehberlik Yürütme Komisyonu Toplantısı","Rehberlik Yürütme Komisyonu Toplantısı","Rehberlik Yürütme Komisyonu Toplantısı","Rehberlik Yürütme Komisyonu Toplantısı"]
["Sınıf Rehberlik Planının Hazırlanması","Sınıf Rehberlik Planının Hazırlanması","Sınıf Rehberlik Planının Hazırlanması","Sınıf Rehberlik Planının Hazırlanması","Sınıf Rehberlik Planının Hazırlanması","Sınıf Rehberlik Planının Hazırlanması","Sınıf Rehberlik Planının Hazırlanması","Sınıf Rehberlik Planının Hazırlanması","Sınıf Rehberlik Planının Hazırlanması","Sınıf Rehberlik Planının Hazırlanması","Sınıf Rehberlik Planının Hazırlanması","Sınıf Rehberlik Planının Hazırlanması","Sınıf Rehberlik Planının Hazırlanması",{"$f":"IF(IF(Bilgi!$B$5=\"\",\"\",IF(Bilgi!$B$5=\"Okul Öncesi\",Sayfa2!A2,IF(Bilgi!$B$5=\"1. Sınıf\",Sayfa2!B2,IF(Bilgi!$B$5=\"2. Sınıf\",Sayfa2!C2,IF(Bilgi!$B$5=\"3. Sınıf\",Sayfa2!D2,IF(Bilgi!$B$5=\"4. Sınıf\",Sayfa2!E2,IF(Bilgi!$B$5=\"5. Sınıf\",Sayfa2!F2,IF(Bilgi!$B$5=\"6. Sınıf\",Sayfa2!G2,IF(Bilgi!$B$5=\"7. Sınıf\",Sayfa2!H2,IF(Bilgi!$B$5=\"8. Sınıf\",Sayfa2!I2,IF(Bilgi!$B$5=\"9. Sınıf\",Sayfa2!J2,IF(Bilgi!$B$5=\"10. Sınıf\",Sayfa2!K2,IF(Bilgi!$B$5=\"11. Sınıf\",Sayfa2!L2,IF(Bilgi!$B$5=\"12. Sınıf\",Sayfa2!M2,IF(Bilgi!$B$5=\"9. Sınıf ÖEMO\",Sayfa2!O2,IF(Bilgi!$B$5=\"10. Sınıf ÖEMO\",Sayfa2!P2,IF(Bilgi!$B$5=\"11. Sınıf ÖEMO\",Sayfa2!Q2,IF(Bilgi!$B$5=\"12. Sınıf ÖEMO\",Sayfa2!R2,\"Lütfen Bilgi Sayfasından Sınıf Seçimi Yapınız\"))))))))))))))))))=0,\"\",(IF(Bilgi!$B$5=\"\",\"\",IF(Bilgi!$B$5=\"Okul Öncesi\",Sayfa2!A2,IF(Bilgi!$B$5=\"1. Sınıf\",Sayfa2!B2,IF(Bilgi!$B$5=\"2. Sınıf\",Sayfa2!C2,IF(Bilgi!$B$5=\"3. Sınıf\",Sayfa2!D2,IF(Bilgi!$B$5=\"4. Sınıf\",Sayfa2!E2,IF(Bilgi!$B$5=\"5. Sınıf\",Sayfa2!F2,IF(Bilgi!$B$5=\"6. Sınıf\",Sayfa2!G2,IF(Bilgi!$B$5=\"7. Sınıf\",Sayfa2!H2,IF(Bilgi!$B$5=\"8. Sınıf\",Sayfa2!I2,IF(Bilgi!$B$5=\"9. Sınıf\",Sayfa2!J2,IF(Bilgi!$B$5=\"10. Sınıf\",Sayfa2!K2,IF(Bilgi!$B$5=\"11. Sınıf\",Sayfa2!L2,IF(Bilgi!$B$5=\"12. Sınıf\",Sayfa2!M2,IF(Bilgi!$B$5=\"9. Sınıf ÖEMO\",Sayfa2!O2,IF(Bilgi!$B$5=\"10. Sınıf ÖEMO\",Sayfa2!P2,IF(Bilgi!$B$5=\"11. Sınıf ÖEMO\",Sayfa2!Q2,IF(Bilgi!$B$5=\"12. Sınıf ÖEMO\",Sayfa2!R2,\"Lütfen Bilgi Sayfasından Sınıf Seçimi Yapınız\"))))))))))))))))))))","v":"Rehberlik Yürütme Komisyonu Toplantısı"},"Sınıf Rehberlik Planının Hazırlanması","Sınıf Rehberlik Planının Hazırlanması","Sınıf Rehberlik Planının Hazırlanması","Sınıf Rehberlik Planının Hazırlanması",null,"Sınıf Rehberlik Planının Hazırlanması","Sınıf Rehberlik Planının Hazırlanması","Sınıf Rehberlik Planının Hazırlanması","Sınıf Rehberlik Planının Hazırlanması","Sınıf Rehberlik Planının Hazırlanması"]
["RİBA Uygulaması","RİBA Uygulaması","RİBA Uygulaması","RİBA Uygulaması","RİBA Uygulaması","RİBA Uygulaması","RİBA Uygulaması","RİBA Uygulaması","RİBA Uygulaması","RİBA Uygulaması","RİBA Uygulaması","RİBA Uygulaması","RİBA Uygulaması",{"$f":"IF(IF(Bilgi!$B$5=\"\",\"\",IF(Bilgi!$B$5=\"Okul Öncesi\",Sayfa2!A3,IF(Bilgi!$B$5=\"1. Sınıf\",Sayfa2!B3,IF(Bilgi!$B$5=\"2. Sınıf\",Sayfa2!C3,IF(Bilgi!$B$5=\"3. Sınıf\",Sayfa2!D3,IF(Bilgi!$B$5=\"4. Sınıf\",Sayfa2!E3,IF(Bilgi!$B$5=\"5. Sınıf\",Sayfa2!F3,IF(Bilgi!$B$5=\"6. Sınıf\",Sayfa2!G3,IF(Bilgi!$B$5=\"7. Sınıf\",Sayfa2!H3,IF(Bilgi!$B$5=\"8. Sınıf\",Sayfa2!I3,IF(Bilgi!$B$5=\"9. Sınıf\",Sayfa2!J3,IF(Bilgi!$B$5=\"10. Sınıf\",Sayfa2!K3,IF(Bilgi!$B$5=\"11. Sınıf\",Sayfa2!L3,IF(Bilgi!$B$5=\"12. Sınıf\",Sayfa2!M3,IF(Bilgi!$B$5=\"9. Sınıf ÖEMO\",Sayfa2!O3,IF(Bilgi!$B$5=\"10. Sınıf ÖEMO\",Sayfa2!P3,IF(Bilgi!$B$5=\"11. Sınıf ÖEMO\",Sayfa2!Q3,IF(Bilgi!$B$5=\"12. Sınıf ÖEMO\",Sayfa2!R3,\"Lütfen Bilgi Sayfasından Sınıf Seçimi Yapınız\"))))))))))))))))))=0,\"\",(IF(Bilgi!$B$5=\"\",\"\",IF(Bilgi!$B$5=\"Okul Öncesi\",Sayfa2!A3,IF(Bilgi!$B$5=\"1. Sınıf\",Sayfa2!B3,IF(Bilgi!$B$5=\"2. Sınıf\",Sayfa2!C3,IF(Bilgi!$B$5=\"3. Sınıf\",Sayfa2!D3,IF(Bilgi!$B$5=\"4. Sınıf\",Sayfa2!E3,IF(Bilgi!$B$5=\"5. Sınıf\",Sayfa2!F3,IF(Bilgi!$B$5=\"6. Sınıf\",Sayfa2!G3,IF(Bilgi!$B$5=\"7. Sınıf\",Sayfa2!H3,IF(Bilgi!$B$5=\"8. Sınıf\",Sayfa2!I3,IF(Bilgi!$B$5=\"9. Sınıf\",Sayfa2!J3,IF(Bilgi!$B$5=\"10. Sınıf\",Sayfa2!K3,IF(Bilgi!$B$5=\"11. Sınıf\",Sayfa2!L3,IF(Bilgi!$B$5=\"12. Sınıf\",Sayfa2!M3,IF(Bilgi!$B$5=\"9. Sınıf ÖEMO\",Sayfa2!O3,IF(Bilgi!$B$5=\"10. Sınıf ÖEMO\",Sayfa2!P3,IF(Bilgi!$B$5=\"11. Sınıf ÖEMO\",Sayfa2!Q3,IF(Bilgi!$B$5=\"12. Sınıf ÖEMO\",Sayfa2!R3,\"Lütfen Bilgi Sayfasından Sınıf Seçimi Yapınız\"))))))))))))))))))))","v":"Sınıf Rehberlik Planının Hazırlanması"},"RİBA Uygulaması","RİBA Uygulaması","RİBA Uygulaması","RİBA Uygulaması",null,"RİBA Uygulaması","RİBA Uygulaması","RİBA Uygulaması","RİBA Uygulaması","RİBA Uygulaması"]
["Sınıf Risk Analizi","Sınıf Risk Analizi","Sınıf Risk Analizi","Sınıf Risk Analizi","Sınıf Risk Analizi","Sınıf Risk Analizi","Sınıf Risk Analizi","Sınıf Risk Analizi","Sınıf Risk Analizi","Sınıf Risk Analizi","Sınıf Risk Analizi","Sınıf Risk Analizi","Sınıf Risk Analizi",{"$f":"IF(IF(Bilgi!$B$5=\"\",\"\",IF(Bilgi!$B$5=\"Okul Öncesi\",Sayfa2!A4,IF(Bilgi!$B$5=\"1. Sınıf\",Sayfa2!B4,IF(Bilgi!$B$5=\"2. Sınıf\",Sayfa2!C4,IF(Bilgi!$B$5=\"3. Sınıf\",Sayfa2!D4,IF(Bilgi!$B$5=\"4. Sınıf\",Sayfa2!E4,IF(Bilgi!$B$5=\"5. Sınıf\",Sayfa2!F4,IF(Bilgi!$B$5=\"6. Sınıf\",Sayfa2!G4,IF(Bilgi!$B$5=\"7. Sınıf\",Sayfa2!H4,IF(Bilgi!$B$5=\"8. Sınıf\",Sayfa2!I4,IF(Bilgi!$B$5=\"9. Sınıf\",Sayfa2!J4,IF(Bilgi!$B$5=\"10. Sınıf\",Sayfa2!K4,IF(Bilgi!$B$5=\"11. Sınıf\",Sayfa2!L4,IF(Bilgi!$B$5=\"12. Sınıf\",Sayfa2!M4,IF(Bilgi!$B$5=\"9. Sınıf ÖEMO\",Sayfa2!O4,IF(Bilgi!$B$5=\"10. Sınıf ÖEMO\",Sayfa2!P4,IF(Bilgi!$B$5=\"11. Sınıf ÖEMO\",Sayfa2!Q4,IF(Bilgi!$B$5=\"12. Sınıf ÖEMO\",Sayfa2!R4,\"Lütfen Bilgi Sayfasından Sınıf Seçimi Yapınız\"))))))))))))))))))=0,\"\",(IF(Bilgi!$B$5=\"\",\"\",IF(Bilgi!$B$5=\"Okul Öncesi\",Sayfa2!A4,IF(Bilgi!$B$5=\"1. Sınıf\",Sayfa2!B4,IF(Bilgi!$B$5=\"2. Sınıf\",Sayfa2!C4,IF(Bilgi!$B$5=\"3. Sınıf\",Sayfa2!D4,IF(Bilgi!$B$5=\"4. Sınıf\",Sayfa2!E4,IF(Bilgi!$B$5=\"5. Sınıf\",Sayfa2!F4,IF(Bilgi!$B$5=\"6. Sınıf\",Sayfa2!G4,IF(Bilgi!$B$5=\"7. Sınıf\",Sayfa2!H4,IF(Bilgi!$B$5=\"8. Sınıf\",Sayfa2!I4,IF(Bilgi!$B$5=\"9. Sınıf\",Sayfa2!J4,IF(Bilgi!$B$5=\"10. Sınıf\",Sayfa2!K4,IF(Bilgi!$B$5=\"11. Sınıf\",Sayfa2!L4,IF(Bilgi!$B$5=\"12. Sınıf\",Sayfa2!M4,IF(Bilgi!$B$5=\"9. Sınıf ÖEMO\",Sayfa2!O4,IF(Bilgi!$B$5=\"10. Sınıf ÖEMO\",Sayfa2!P4,IF(Bilgi!$B$5=\"11. Sınıf ÖEMO\",Sayfa2!Q4,IF(Bilgi!$B$5=\"12. Sınıf ÖEMO\",Sayfa2!R4,\"Lütfen Bilgi Sayfasından Sınıf Seçimi Yapınız\"))))))))))))))))))))","v":"RİBA Uygulaması"},"Sınıf Risk Analizi","Sınıf Risk Analizi","Sınıf Risk Analizi","Sınıf Risk Analizi",null,"Sınıf Risk Analizi","Sınıf Risk Analizi","Sınıf Risk Analizi","Sınıf Risk Analizi","Sınıf Risk Analizi"]
["Bilgi Fişlerinin Doldurulması","Bilgi Fişlerinin Doldurulması","Bilgi Fişlerinin Doldurulması","Bilgi Fişlerinin Doldurulması","Bilgi Fişlerinin Doldurulması","Bilgi Fişlerinin Doldurulması","Bilgi Fişlerinin Doldurulması","Bilgi Fişlerinin Doldurulması","Bilgi Fişlerinin Doldurulması","Bilgi Fişlerinin Doldurulması","Bilgi Fişlerinin Doldurulması","Bilgi Fişlerinin Doldurulması","Bilgi Fişlerinin Doldurulması",{"$f":"IF(IF(Bilgi!$B$5=\"\",\"\",IF(Bilgi!$B$5=\"Okul Öncesi\",Sayfa2!A5,IF(Bilgi!$B$5=\"1. Sınıf\",Sayfa2!B5,IF(Bilgi!$B$5=\"2. Sınıf\",Sayfa2!C5,IF(Bilgi!$B$5=\"3. Sınıf\",Sayfa2!D5,IF(Bilgi!$B$5=\"4. Sınıf\",Sayfa2!E5,IF(Bilgi!$B$5=\"5. Sınıf\",Sayfa2!F5,IF(Bilgi!$B$5=\"6. Sınıf\",Sayfa2!G5,IF(Bilgi!$B$5=\"7. Sınıf\",Sayfa2!H5,IF(Bilgi!$B$5=\"8. Sınıf\",Sayfa2!I5,IF(Bilgi!$B$5=\"9. Sınıf\",Sayfa2!J5,IF(Bilgi!$B$5=\"10. Sınıf\",Sayfa2!K5,IF(Bilgi!$B$5=\"11. Sınıf\",Sayfa2!L5,IF(Bilgi!$B$5=\"12. Sınıf\",Sayfa2!M5,IF(Bilgi!$B$5=\"9. Sınıf ÖEMO\",Sayfa2!O5,IF(Bilgi!$B$5=\"10. Sınıf ÖEMO\",Sayfa2!P5,IF(Bilgi!$B$5=\"11. Sınıf ÖEMO\",Sayfa2!Q5,IF(Bilgi!$B$5=\"12. Sınıf ÖEMO\",Sayfa2!R5,\"Lütfen Bilgi Sayfasından Sınıf Seçimi Yapınız\"))))))))))))))))))=0,\"\",(IF(Bilgi!$B$5=\"\",\"\",IF(Bilgi!$B$5=\"Okul Öncesi\",Sayfa2!A5,IF(Bilgi!$B$5=\"1. Sınıf\",Sayfa2!B5,IF(Bilgi!$B$5=\"2. Sınıf\",Sayfa2!C5,IF(Bilgi!$B$5=\"3. Sınıf\",Sayfa2!D5,IF(Bilgi!$B$5=\"4. Sınıf\",Sayfa2!E5,IF(Bilgi!$B$5=\"5. Sınıf\",Sayfa2!F5,IF(Bilgi!$B$5=\"6. Sınıf\",Sayfa2!G5,IF(Bilgi!$B$5=\"7. Sınıf\",Sayfa2!H5,IF(Bilgi!$B$5=\"8. Sınıf\",Sayfa2!I5,IF(Bilgi!$B$5=\"9. Sınıf\",Sayfa2!J5,IF(Bilgi!$B$5=\"10. Sınıf\",Sayfa2!K5,IF(Bilgi!$B$5=\"11. Sınıf\",Sayfa2!L5,IF(Bilgi!$B$5=\"12. Sınıf\",Sayfa2!M5,IF(Bilgi!$B$5=\"9. Sınıf ÖEMO\",Sayfa2!O5,IF(Bilgi!$B$5=\"10. Sınıf ÖEMO\",Sayfa2!P5,IF(Bilgi!$B$5=\"11. Sınıf ÖEMO\",Sayfa2!Q5,IF(Bilgi!$B$5=\"12. Sınıf ÖEMO\",Sayfa2!R5,\"Lütfen Bilgi Sayfasından Sınıf Seçimi Yapınız\"))))))))))))))))))))","v":"Sınıf Risk Analizi"},"Bilgi Fişlerinin Doldurulması","Bilgi Fişlerinin Doldurulması","Bilgi Fişlerinin Doldurulması","Bilgi Fişlerinin Doldurulması",null,"Bilgi Fişlerinin Doldurulması","Bilgi Fişlerinin Doldurulması","Bilgi Fişlerinin Doldurulması","Bilgi Fişlerinin Doldurulması","Bilgi Fişlerinin Doldurulması"]
["Oturma Düzeni","Oturma Düzeni","Oturma Düzeni","Oturma Düzeni","Oturma Düzeni","Oturma Düzeni","Oturma Düzeni","Oturma Düzeni","Oturma Düzeni","Oturma Düzeni","Oturma Düzeni","Oturma Düzeni","Oturma Düzeni",{"$f":"IF(IF(Bilgi!$B$5=\"\",\"\",IF(Bilgi!$B$5=\"Okul Öncesi\",Sayfa2!A6,IF(Bilgi!$B$5=\"1. Sınıf\",Sayfa2!B6,IF(Bilgi!$B$5=\"2. Sınıf\",Sayfa2!C6,IF(Bilgi!$B$5=\"3. Sınıf\",Sayfa2!D6,IF(Bilgi!$B$5=\"4. Sınıf\",Sayfa2!E6,IF(Bilgi!$B$5=\"5. Sınıf\",Sayfa2!F6,IF(Bilgi!$B$5=\"6. Sınıf\",Sayfa2!G6,IF(Bilgi!$B$5=\"7. Sınıf\",Sayfa2!H6,IF(Bilgi!$B$5=\"8. Sınıf\",Sayfa2!I6,IF(Bilgi!$B$5=\"9. Sınıf\",Sayfa2!J6,IF(Bilgi!$B$5=\"10. Sınıf\",Sayfa2!K6,IF(Bilgi!$B$5=\"11. Sınıf\",Sayfa2!L6,IF(Bilgi!$B$5=\"12. Sınıf\",Sayfa2!M6,IF(Bilgi!$B$5=\"9. Sınıf ÖEMO\",Sayfa2!O6,IF(Bilgi!$B$5=\"10. Sınıf ÖEMO\",Sayfa2!P6,IF(Bilgi!$B$5=\"11. Sınıf ÖEMO\",Sayfa2!Q6,IF(Bilgi!$B$5=\"12. Sınıf ÖEMO\",Sayfa2!R6,\"Lütfen Bilgi Sayfasından Sınıf Seçimi Yapınız\"))))))))))))))))))=0,\"\",(IF(Bilgi!$B$5=\"\",\"\",IF(Bilgi!$B$5=\"Okul Öncesi\",Sayfa2!A6,IF(Bilgi!$B$5=\"1. Sınıf\",Sayfa2!B6,IF(Bilgi!$B$5=\"2. Sınıf\",Sayfa2!C6,IF(Bilgi!$B$5=\"3. Sınıf\",Sayfa2!D6,IF(Bilgi!$B$5=\"4. Sınıf\",Sayfa2!E6,IF(Bilgi!$B$5=\"5. Sınıf\",Sayfa2!F6,IF(Bilgi!$B$5=\"6. Sınıf\",Sayfa2!G6,IF(Bilgi!$B$5=\"7. Sınıf\",Sayfa2!H6,IF(Bilgi!$B$5=\"8. Sınıf\",Sayfa2!I6,IF(Bilgi!$B$5=\"9. Sınıf\",Sayfa2!J6,IF(Bilgi!$B$5=\"10. Sınıf\",Sayfa2!K6,IF(Bilgi!$B$5=\"11. Sınıf\",Sayfa2!L6,IF(Bilgi!$B$5=\"12. Sınıf\",Sayfa2!M6,IF(Bilgi!$B$5=\"9. Sınıf ÖEMO\",Sayfa2!O6,IF(Bilgi!$B$5=\"10. Sınıf ÖEMO\",Sayfa2!P6,IF(Bilgi!$B$5=\"11. Sınıf ÖEMO\",Sayfa2!Q6,IF(Bilgi!$B$5=\"12. Sınıf ÖEMO\",Sayfa2!R6,\"Lütfen Bilgi Sayfasından Sınıf Seçimi Yapınız\"))))))))))))))))))))","v":"Bilgi Fişlerinin Doldurulması"},"Oturma Düzeni","Oturma Düzeni","Oturma Düzeni","Oturma Düzeni",null,"Oturma Düzeni","Oturma Düzeni","Oturma Düzeni","Oturma Düzeni","Oturma Düzeni"]
["Veli Toplantısı","Veli Toplantısı","Veli Toplantısı","Veli Toplantısı","Veli Toplantısı","Veli Toplantısı","Veli Toplantısı","Veli Toplantısı","Veli Toplantısı","Veli Toplantısı","Veli Toplantısı","Veli Toplantısı","Veli Toplantısı",{"$f":"IF(IF(Bilgi!$B$5=\"\",\"\",IF(Bilgi!$B$5=\"Okul Öncesi\",Sayfa2!A7,IF(Bilgi!$B$5=\"1. Sınıf\",Sayfa2!B7,IF(Bilgi!$B$5=\"2. Sınıf\",Sayfa2!C7,IF(Bilgi!$B$5=\"3. Sınıf\",Sayfa2!D7,IF(Bilgi!$B$5=\"4. Sınıf\",Sayfa2!E7,IF(Bilgi!$B$5=\"5. Sınıf\",Sayfa2!F7,IF(Bilgi!$B$5=\"6. Sınıf\",Sayfa2!G7,IF(Bilgi!$B$5=\"7. Sınıf\",Sayfa2!H7,IF(Bilgi!$B$5=\"8. Sınıf\",Sayfa2!I7,IF(Bilgi!$B$5=\"9. Sınıf\",Sayfa2!J7,IF(Bilgi!$B$5=\"10. Sınıf\",Sayfa2!K7,IF(Bilgi!$B$5=\"11. Sınıf\",Sayfa2!L7,IF(Bilgi!$B$5=\"12. Sınıf\",Sayfa2!M7,IF(Bilgi!$B$5=\"9. Sınıf ÖEMO\",Sayfa2!O7,IF(Bilgi!$B$5=\"10. Sınıf ÖEMO\",Sayfa2!P7,IF(Bilgi!$B$5=\"11. Sınıf ÖEMO\",Sayfa2!Q7,IF(Bilgi!$B$5=\"12. Sınıf ÖEMO\",Sayfa2!R7,\"Lütfen Bilgi Sayfasından Sınıf Seçimi Yapınız\"))))))))))))))))))=0,\"\",(IF(Bilgi!$B$5=\"\",\"\",IF(Bilgi!$B$5=\"Okul Öncesi\",Sayfa2!A7,IF(Bilgi!$B$5=\"1. Sınıf\",Sayfa2!B7,IF(Bilgi!$B$5=\"2. Sınıf\",Sayfa2!C7,IF(Bilgi!$B$5=\"3. Sınıf\",Sayfa2!D7,IF(Bilgi!$B$5=\"4. Sınıf\",Sayfa2!E7,IF(Bilgi!$B$5=\"5. Sınıf\",Sayfa2!F7,IF(Bilgi!$B$5=\"6. Sınıf\",Sayfa2!G7,IF(Bilgi!$B$5=\"7. Sınıf\",Sayfa2!H7,IF(Bilgi!$B$5=\"8. Sınıf\",Sayfa2!I7,IF(Bilgi!$B$5=\"9. Sınıf\",Sayfa2!J7,IF(Bilgi!$B$5=\"10. Sınıf\",Sayfa2!K7,IF(Bilgi!$B$5=\"11. Sınıf\",Sayfa2!L7,IF(Bilgi!$B$5=\"12. Sınıf\",Sayfa2!M7,IF(Bilgi!$B$5=\"9. Sınıf ÖEMO\",Sayfa2!O7,IF(Bilgi!$B$5=\"10. Sınıf ÖEMO\",Sayfa2!P7,IF(Bilgi!$B$5=\"11. Sınıf ÖEMO\",Sayfa2!Q7,IF(Bilgi!$B$5=\"12. Sınıf ÖEMO\",Sayfa2!R7,\"Lütfen Bilgi Sayfasından Sınıf Seçimi Yapınız\"))))))))))))))))))))","v":"Oturma Düzeni"},"Veli Toplantısı","Veli Toplantısı","Veli Toplantısı","Veli Toplantısı",null,"Veli Toplantısı","Veli Toplantısı","Veli Toplantısı","Veli Toplantısı","Veli Toplantısı"]
["Veli Ziyaretleri","Veli Ziyaretleri","Veli Ziyaretleri","Veli Ziyaretleri","Veli Ziyaretleri","Veli Ziyaretleri","Veli Ziyaretleri","Veli Ziyaretleri","Veli Ziyaretleri","Veli Ziyaretleri","Veli Ziyaretleri","Veli Ziyaretleri","Veli Ziyaretleri",{"$f":"IF(IF(Bilgi!$B$5=\"\",\"\",IF(Bilgi!$B$5=\"Okul Öncesi\",Sayfa2!A8,IF(Bilgi!$B$5=\"1. Sınıf\",Sayfa2!B8,IF(Bilgi!$B$5=\"2. Sınıf\",Sayfa2!C8,IF(Bilgi!$B$5=\"3. Sınıf\",Sayfa2!D8,IF(Bilgi!$B$5=\"4. Sınıf\",Sayfa2!E8,IF(Bilgi!$B$5=\"5. Sınıf\",Sayfa2!F8,IF(Bilgi!$B$5=\"6. Sınıf\",Sayfa2!G8,IF(Bilgi!$B$5=\"7. Sınıf\",Sayfa2!H8,IF(Bilgi!$B$5=\"8. Sınıf\",Sayfa2!I8,IF(Bilgi!$B$5=\"9. Sınıf\",Sayfa2!J8,IF(Bilgi!$B$5=\"10. Sınıf\",Sayfa2!K8,IF(Bilgi!$B$5=\"11. Sınıf\",Sayfa2!L8,IF(Bilgi!$B$5=\"12. Sınıf\",Sayfa2!M8,IF(Bilgi!$B$5=\"9. Sınıf ÖEMO\",Sayfa2!O8,IF(Bilgi!$B$5=\"10. Sınıf ÖEMO\",Sayfa2!P8,IF(Bilgi!$B$5=\"11. Sınıf ÖEMO\",Sayfa2!Q8,IF(Bilgi!$B$5=\"12. Sınıf ÖEMO\",Sayfa2!R8,\"Lütfen Bilgi Sayfasından Sınıf Seçimi Yapınız\"))))))))))))))))))=0,\"\",(IF(Bilgi!$B$5=\"\",\"\",IF(Bilgi!$B$5=\"Okul Öncesi\",Sayfa2!A8,IF(Bilgi!$B$5=\"1. Sınıf\",Sayfa2!B8,IF(Bilgi!$B$5=\"2. Sınıf\",Sayfa2!C8,IF(Bilgi!$B$5=\"3. Sınıf\",Sayfa2!D8,IF(Bilgi!$B$5=\"4. Sınıf\",Sayfa2!E8,IF(Bilgi!$B$5=\"5. Sınıf\",Sayfa2!F8,IF(Bilgi!$B$5=\"6. Sınıf\",Sayfa2!G8,IF(Bilgi!$B$5=\"7. Sınıf\",Sayfa2!H8,IF(Bilgi!$B$5=\"8. Sınıf\",Sayfa2!I8,IF(Bilgi!$B$5=\"9. Sınıf\",Sayfa2!J8,IF(Bilgi!$B$5=\"10. Sınıf\",Sayfa2!K8,IF(Bilgi!$B$5=\"11. Sınıf\",Sayfa2!L8,IF(Bilgi!$B$5=\"12. Sınıf\",Sayfa2!M8,IF(Bilgi!$B$5=\"9. Sınıf ÖEMO\",Sayfa2!O8,IF(Bilgi!$B$5=\"10. Sınıf ÖEMO\",Sayfa2!P8,IF(Bilgi!$B$5=\"11. Sınıf ÖEMO\",Sayfa2!Q8,IF(Bilgi!$B$5=\"12. Sınıf ÖEMO\",Sayfa2!R8,\"Lütfen Bilgi Sayfasından Sınıf Seçimi Yapınız\"))))))))))))))))))))","v":"Veli Toplantısı"},"Veli Ziyaretleri","Veli Ziyaretleri","Veli Ziyaretleri","Veli Ziyaretleri",null,"Veli Ziyaretleri","Veli Ziyaretleri","Veli Ziyaretleri","Veli Ziyaretleri","Veli Ziyaretleri"]
["BEP 'lerin Oluşturulması","BEP 'lerin Oluşturulması","BEP 'lerin Oluşturulması","BEP 'lerin Oluşturulması","BEP 'lerin Oluşturulması","BEP 'lerin Oluşturulması","BEP 'lerin Oluşturulması","BEP 'lerin Oluşturulması","BEP 'lerin Oluşturulması","BEP 'lerin Oluşturulması","BEP 'lerin Oluşturulması","BEP 'lerin Oluşturulması","BEP 'lerin Oluşturulması",{"$f":"IF(IF(Bilgi!$B$5=\"\",\"\",IF(Bilgi!$B$5=\"Okul Öncesi\",Sayfa2!A9,IF(Bilgi!$B$5=\"1. Sınıf\",Sayfa2!B9,IF(Bilgi!$B$5=\"2. Sınıf\",Sayfa2!C9,IF(Bilgi!$B$5=\"3. Sınıf\",Sayfa2!D9,IF(Bilgi!$B$5=\"4. Sınıf\",Sayfa2!E9,IF(Bilgi!$B$5=\"5. Sınıf\",Sayfa2!F9,IF(Bilgi!$B$5=\"6. Sınıf\",Sayfa2!G9,IF(Bilgi!$B$5=\"7. Sınıf\",Sayfa2!H9,IF(Bilgi!$B$5=\"8. Sınıf\",Sayfa2!I9,IF(Bilgi!$B$5=\"9. Sınıf\",Sayfa2!J9,IF(Bilgi!$B$5=\"10. Sınıf\",Sayfa2!K9,IF(Bilgi!$B$5=\"11. Sınıf\",Sayfa2!L9,IF(Bilgi!$B$5=\"12. Sınıf\",Sayfa2!M9,IF(Bilgi!$B$5=\"9. Sınıf ÖEMO\",Sayfa2!O9,IF(Bilgi!$B$5=\"10. Sınıf ÖEMO\",Sayfa2!P9,IF(Bilgi!$B$5=\"11. Sınıf ÖEMO\",Sayfa2!Q9,IF(Bilgi!$B$5=\"12. Sınıf ÖEMO\",Sayfa2!R9,\"Lütfen Bilgi Sayfasından Sınıf Seçimi Yapınız\"))))))))))))))))))=0,\"\",(IF(Bilgi!$B$5=\"\",\"\",IF(Bilgi!$B$5=\"Okul Öncesi\",Sayfa2!A9,IF(Bilgi!$B$5=\"1. Sınıf\",Sayfa2!B9,IF(Bilgi!$B$5=\"2. Sınıf\",Sayfa2!C9,IF(Bilgi!$B$5=\"3. Sınıf\",Sayfa2!D9,IF(Bilgi!$B$5=\"4. Sınıf\",Sayfa2!E9,IF(Bilgi!$B$5=\"5. Sınıf\",Sayfa2!F9,IF(Bilgi!$B$5=\"6. Sınıf\",Sayfa2!G9,IF(Bilgi!$B$5=\"7. Sınıf\",Sayfa2!H9,IF(Bilgi!$B$5=\"8. Sınıf\",Sayfa2!I9,IF(Bilgi!$B$5=\"9. Sınıf\",Sayfa2!J9,IF(Bilgi!$B$5=\"10. Sınıf\",Sayfa2!K9,IF(Bilgi!$B$5=\"11. Sınıf\",Sayfa2!L9,IF(Bilgi!$B$5=\"12. Sınıf\",Sayfa2!M9,IF(Bilgi!$B$5=\"9. Sınıf ÖEMO\",Sayfa2!O9,IF(Bilgi!$B$5=\"10. Sınıf ÖEMO\",Sayfa2!P9,IF(Bilgi!$B$5=\"11. Sınıf ÖEMO\",Sayfa2!Q9,IF(Bilgi!$B$5=\"12. Sınıf ÖEMO\",Sayfa2!R9,\"Lütfen Bilgi Sayfasından Sınıf Seçimi Yapınız\"))))))))))))))))))))","v":"Veli Ziyaretleri"},"BEP 'lerin Oluşturulması","BEP 'lerin Oluşturulması","BEP 'lerin Oluşturulması","BEP 'lerin Oluşturulması",null,"BEP 'lerin Oluşturması","BEP 'lerin Oluşturması","BEP 'lerin Oluşturması","BEP 'lerin Oluşturması","BEP 'lerin Oluşturulması"]
["Anket, Envanter veya Araştırma Çalışmaları","Anket, Envanter veya Araştırma Çalışmaları","Anket, Envanter veya Araştırma Çalışmaları","Anket, Envanter veya Araştırma Çalışmaları","Anket, Envanter veya Araştırma Çalışmaları","Anket, Envanter veya Araştırma Çalışmaları","Anket, Envanter veya Araştırma Çalışmaları","Anket, Envanter veya Araştırma Çalışmaları","Anket, Envanter veya Araştırma Çalışmaları","Anket, Envanter veya Araştırma Çalışmaları","Anket, Envanter veya Araştırma Çalışmaları","Anket, Envanter veya Araştırma Çalışmaları","Anket, Envanter veya Araştırma Çalışmaları",{"$f":"IF(IF(Bilgi!$B$5=\"\",\"\",IF(Bilgi!$B$5=\"Okul Öncesi\",Sayfa2!A10,IF(Bilgi!$B$5=\"1. Sınıf\",Sayfa2!B10,IF(Bilgi!$B$5=\"2. Sınıf\",Sayfa2!C10,IF(Bilgi!$B$5=\"3. Sınıf\",Sayfa2!D10,IF(Bilgi!$B$5=\"4. Sınıf\",Sayfa2!E10,IF(Bilgi!$B$5=\"5. Sınıf\",Sayfa2!F10,IF(Bilgi!$B$5=\"6. Sınıf\",Sayfa2!G10,IF(Bilgi!$B$5=\"7. Sınıf\",Sayfa2!H10,IF(Bilgi!$B$5=\"8. Sınıf\",Sayfa2!I10,IF(Bilgi!$B$5=\"9. Sınıf\",Sayfa2!J10,IF(Bilgi!$B$5=\"10. Sınıf\",Sayfa2!K10,IF(Bilgi!$B$5=\"11. Sınıf\",Sayfa2!L10,IF(Bilgi!$B$5=\"12. Sınıf\",Sayfa2!M10,IF(Bilgi!$B$5=\"9. Sınıf ÖEMO\",Sayfa2!O10,IF(Bilgi!$B$5=\"10. Sınıf ÖEMO\",Sayfa2!P10,IF(Bilgi!$B$5=\"11. Sınıf ÖEMO\",Sayfa2!Q10,IF(Bilgi!$B$5=\"12. Sınıf ÖEMO\",Sayfa2!R10,\"Lütfen Bilgi Sayfasından Sınıf Seçimi Yapınız\"))))))))))))))))))=0,\"\",(IF(Bilgi!$B$5=\"\",\"\",IF(Bilgi!$B$5=\"Okul Öncesi\",Sayfa2!A10,IF(Bilgi!$B$5=\"1. Sınıf\",Sayfa2!B10,IF(Bilgi!$B$5=\"2. Sınıf\",Sayfa2!C10,IF(Bilgi!$B$5=\"3. Sınıf\",Sayfa2!D10,IF(Bilgi!$B$5=\"4. Sınıf\",Sayfa2!E10,IF(Bilgi!$B$5=\"5. Sınıf\",Sayfa2!F10,IF(Bilgi!$B$5=\"6. Sınıf\",Sayfa2!G10,IF(Bilgi!$B$5=\"7. Sınıf\",Sayfa2!H10,IF(Bilgi!$B$5=\"8. Sınıf\",Sayfa2!I10,IF(Bilgi!$B$5=\"9. Sınıf\",Sayfa2!J10,IF(Bilgi!$B$5=\"10. Sınıf\",Sayfa2!K10,IF(Bilgi!$B$5=\"11. Sınıf\",Sayfa2!L10,IF(Bilgi!$B$5=\"12. Sınıf\",Sayfa2!M10,IF(Bilgi!$B$5=\"9. Sınıf ÖEMO\",Sayfa2!O10,IF(Bilgi!$B$5=\"10. Sınıf ÖEMO\",Sayfa2!P10,IF(Bilgi!$B$5=\"11. Sınıf ÖEMO\",Sayfa2!Q10,IF(Bilgi!$B$5=\"12. Sınıf ÖEMO\",Sayfa2!R10,\"Lütfen Bilgi Sayfasından Sınıf Seçimi Yapınız\"))))))))))))))))))))","v":"BEP 'lerin Oluşturulması"},"Anket, Envanter veya Araştırma Çalışmaları","Anket, Envanter veya Araştırma Çalışmaları","Anket, Envanter veya Araştırma Çalışmaları","Anket, Envanter veya Araştırma Çalışmaları",null,"Anket, Envanter veya Araştırma Çalışmaları","Anket, Envanter veya Araştırma Çalışmaları","Anket, Envanter veya Araştırma Çalışmaları","Anket, Envanter veya Araştırma Çalışmaları","Anket, Envanter veya Araştırma Çalışmaları"]
["Toplantı (Diğer)","Toplantı (Diğer)","Toplantı (Diğer)","Toplantı (Diğer)","Toplantı (Diğer)","Toplantı (Diğer)","Toplantı (Diğer)","Toplantı (Diğer)","Toplantı (Diğer)","Toplantı (Diğer)","Toplantı (Diğer)","Toplantı (Diğer)","Toplantı (Diğer)",{"$f":"IF(IF(Bilgi!$B$5=\"\",\"\",IF(Bilgi!$B$5=\"Okul Öncesi\",Sayfa2!A11,IF(Bilgi!$B$5=\"1. Sınıf\",Sayfa2!B11,IF(Bilgi!$B$5=\"2. Sınıf\",Sayfa2!C11,IF(Bilgi!$B$5=\"3. Sınıf\",Sayfa2!D11,IF(Bilgi!$B$5=\"4. Sınıf\",Sayfa2!E11,IF(Bilgi!$B$5=\"5. Sınıf\",Sayfa2!F11,IF(Bilgi!$B$5=\"6. Sınıf\",Sayfa2!G11,IF(Bilgi!$B$5=\"7. Sınıf\",Sayfa2!H11,IF(Bilgi!$B$5=\"8. Sınıf\",Sayfa2!I11,IF(Bilgi!$B$5=\"9. Sınıf\",Sayfa2!J11,IF(Bilgi!$B$5=\"10. Sınıf\",Sayfa2!K11,IF(Bilgi!$B$5=\"11. Sınıf\",Sayfa2!L11,IF(Bilgi!$B$5=\"12. Sınıf\",Sayfa2!M11,IF(Bilgi!$B$5=\"9. Sınıf ÖEMO\",Sayfa2!O11,IF(Bilgi!$B$5=\"10. Sınıf ÖEMO\",Sayfa2!P11,IF(Bilgi!$B$5=\"11. Sınıf ÖEMO\",Sayfa2!Q11,IF(Bilgi!$B$5=\"12. Sınıf ÖEMO\",Sayfa2!R11,\"Lütfen Bilgi Sayfasından Sınıf Seçimi Yapınız\"))))))))))))))))))=0,\"\",(IF(Bilgi!$B$5=\"\",\"\",IF(Bilgi!$B$5=\"Okul Öncesi\",Sayfa2!A11,IF(Bilgi!$B$5=\"1. Sınıf\",Sayfa2!B11,IF(Bilgi!$B$5=\"2. Sınıf\",Sayfa2!C11,IF(Bilgi!$B$5=\"3. Sınıf\",Sayfa2!D11,IF(Bilgi!$B$5=\"4. Sınıf\",Sayfa2!E11,IF(Bilgi!$B$5=\"5. Sınıf\",Sayfa2!F11,IF(Bilgi!$B$5=\"6. Sınıf\",Sayfa2!G11,IF(Bilgi!$B$5=\"7. Sınıf\",Sayfa2!H11,IF(Bilgi!$B$5=\"8. Sınıf\",Sayfa2!I11,IF(Bilgi!$B$5=\"9. Sınıf\",Sayfa2!J11,IF(Bilgi!$B$5=\"10. Sınıf\",Sayfa2!K11,IF(Bilgi!$B$5=\"11. Sınıf\",Sayfa2!L11,IF(Bilgi!$B$5=\"12. Sınıf\",Sayfa2!M11,IF(Bilgi!$B$5=\"9. Sınıf ÖEMO\",Sayfa2!O11,IF(Bilgi!$B$5=\"10. Sınıf ÖEMO\",Sayfa2!P11,IF(Bilgi!$B$5=\"11. Sınıf ÖEMO\",Sayfa2!Q11,IF(Bilgi!$B$5=\"12. Sınıf ÖEMO\",Sayfa2!R11,\"Lütfen Bilgi Sayfasından Sınıf Seçimi Yapınız\"))))))))))))))))))))","v":"Anket, Envanter veya Araştırma Çalışmaları"},"Toplantı (Diğer)","Toplantı (Diğer)","Toplantı (Diğer)","Toplantı (Diğer)",null,"Toplantı (Diğer)","Toplantı (Diğer)","Toplantı (Diğer)","Toplantı (Diğer)","Toplantı (Diğer)"]
["Psikososyal (Hayatımızdaki Kahramanlar)","Psikososyal (Hayatımızdaki Kahramanlar)","Psikososyal (Hayatımızdaki Kahramanlar)","Psikososyal (Hayatımızdaki Kahramanlar)","Psikososyal (Hayatımızdaki Kahramanlar)","Psikososyal (İşin Aslı)","Psikososyal (İşin Aslı)","Psikososyal (İşin Aslı)","Psikososyal (İşin Aslı)","Psikososyal (İşin Aslı)","Psikososyal (İşin Aslı)","Psikososyal (İşin Aslı)","Psikososyal (İşin Aslı)",{"$f":"IF(IF(Bilgi!$B$5=\"\",\"\",IF(Bilgi!$B$5=\"Okul Öncesi\",Sayfa2!A12,IF(Bilgi!$B$5=\"1. Sınıf\",Sayfa2!B12,IF(Bilgi!$B$5=\"2. Sınıf\",Sayfa2!C12,IF(Bilgi!$B$5=\"3. Sınıf\",Sayfa2!D12,IF(Bilgi!$B$5=\"4. Sınıf\",Sayfa2!E12,IF(Bilgi!$B$5=\"5. Sınıf\",Sayfa2!F12,IF(Bilgi!$B$5=\"6. Sınıf\",Sayfa2!G12,IF(Bilgi!$B$5=\"7. Sınıf\",Sayfa2!H12,IF(Bilgi!$B$5=\"8. Sınıf\",Sayfa2!I12,IF(Bilgi!$B$5=\"9. Sınıf\",Sayfa2!J12,IF(Bilgi!$B$5=\"10. Sınıf\",Sayfa2!K12,IF(Bilgi!$B$5=\"11. Sınıf\",Sayfa2!L12,IF(Bilgi!$B$5=\"12. Sınıf\",Sayfa2!M12,IF(Bilgi!$B$5=\"9. Sınıf ÖEMO\",Sayfa2!O12,IF(Bilgi!$B$5=\"10. Sınıf ÖEMO\",Sayfa2!P12,IF(Bilgi!$B$5=\"11. Sınıf ÖEMO\",Sayfa2!Q12,IF(Bilgi!$B$5=\"12. Sınıf ÖEMO\",Sayfa2!R12,\"Lütfen Bilgi Sayfasından Sınıf Seçimi Yapınız\"))))))))))))))))))=0,\"\",(IF(Bilgi!$B$5=\"\",\"\",IF(Bilgi!$B$5=\"Okul Öncesi\",Sayfa2!A12,IF(Bilgi!$B$5=\"1. Sınıf\",Sayfa2!B12,IF(Bilgi!$B$5=\"2. Sınıf\",Sayfa2!C12,IF(Bilgi!$B$5=\"3. Sınıf\",Sayfa2!D12,IF(Bilgi!$B$5=\"4. Sınıf\",Sayfa2!E12,IF(Bilgi!$B$5=\"5. Sınıf\",Sayfa2!F12,IF(Bilgi!$B$5=\"6. Sınıf\",Sayfa2!G12,IF(Bilgi!$B$5=\"7. Sınıf\",Sayfa2!H12,IF(Bilgi!$B$5=\"8. Sınıf\",Sayfa2!I12,IF(Bilgi!$B$5=\"9. Sınıf\",Sayfa2!J12,IF(Bilgi!$B$5=\"10. Sınıf\",Sayfa2!K12,IF(Bilgi!$B$5=\"11. Sınıf\",Sayfa2!L12,IF(Bilgi!$B$5=\"12. Sınıf\",Sayfa2!M12,IF(Bilgi!$B$5=\"9. Sınıf ÖEMO\",Sayfa2!O12,IF(Bilgi!$B$5=\"10. Sınıf ÖEMO\",Sayfa2!P12,IF(Bilgi!$B$5=\"11. Sınıf ÖEMO\",Sayfa2!Q12,IF(Bilgi!$B$5=\"12. Sınıf ÖEMO\",Sayfa2!R12,\"Lütfen Bilgi Sayfasından Sınıf Seçimi Yapınız\"))))))))))))))))))))","v":"Toplantı (Diğer)"},"Psikososyal (İşin Aslı)","Psikososyal (İşin Aslı)","Psikososyal (İşin Aslı)","Psikososyal (İşin Aslı)",null,"Psikososyal (Hayatımızdaki Kahramanlar)","Psikososyal (Hayatımızdaki Kahramanlar)","Psikososyal (Hayatımızdaki Kahramanlar)","Psikososyal (İşin Aslı)","Psikososyal (İşin Aslı)"]
["Psikososyal (Bana Dokunulduğunda Ne Hissediyorum)","Psikososyal (Bana Dokunulduğunda Ne Hissediyorum)","Psikososyal (Bana Dokunulduğunda Ne Hissediyorum)","Psikososyal (Bana Dokunulduğunda Ne Hissediyorum)","Psikososyal (Bana Dokunulduğunda Ne Hissediyorum)","Psikososyal (Duygı Düşünce Kartları)","Psikososyal (Duygı Düşünce Kartları)","Psikososyal (Duygı Düşünce Kartları)","Psikososyal (Duygı Düşünce Kartları)","Psikososyal (Duygı Düşünce Kartları)","Psikososyal (Duygı Düşünce Kartları)","Psikososyal (Duygı Düşünce Kartları)","Psikososyal (Duygı Düşünce Kartları)",{"$f":"IF(IF(Bilgi!$B$5=\"\",\"\",IF(Bilgi!$B$5=\"Okul Öncesi\",Sayfa2!A13,IF(Bilgi!$B$5=\"1. Sınıf\",Sayfa2!B13,IF(Bilgi!$B$5=\"2. Sınıf\",Sayfa2!C13,IF(Bilgi!$B$5=\"3. Sınıf\",Sayfa2!D13,IF(Bilgi!$B$5=\"4. Sınıf\",Sayfa2!E13,IF(Bilgi!$B$5=\"5. Sınıf\",Sayfa2!F13,IF(Bilgi!$B$5=\"6. Sınıf\",Sayfa2!G13,IF(Bilgi!$B$5=\"7. Sınıf\",Sayfa2!H13,IF(Bilgi!$B$5=\"8. Sınıf\",Sayfa2!I13,IF(Bilgi!$B$5=\"9. Sınıf\",Sayfa2!J13,IF(Bilgi!$B$5=\"10. Sınıf\",Sayfa2!K13,IF(Bilgi!$B$5=\"11. Sınıf\",Sayfa2!L13,IF(Bilgi!$B$5=\"12. Sınıf\",Sayfa2!M13,IF(Bilgi!$B$5=\"9. Sınıf ÖEMO\",Sayfa2!O13,IF(Bilgi!$B$5=\"10. Sınıf ÖEMO\",Sayfa2!P13,IF(Bilgi!$B$5=\"11. Sınıf ÖEMO\",Sayfa2!Q13,IF(Bilgi!$B$5=\"12. Sınıf ÖEMO\",Sayfa2!R13,\"Lütfen Bilgi Sayfasından Sınıf Seçimi Yapınız\"))))))))))))))))))=0,\"\",(IF(Bilgi!$B$5=\"\",\"\",IF(Bilgi!$B$5=\"Okul Öncesi\",Sayfa2!A13,IF(Bilgi!$B$5=\"1. Sınıf\",Sayfa2!B13,IF(Bilgi!$B$5=\"2. Sınıf\",Sayfa2!C13,IF(Bilgi!$B$5=\"3. Sınıf\",Sayfa2!D13,IF(Bilgi!$B$5=\"4. Sınıf\",Sayfa2!E13,IF(Bilgi!$B$5=\"5. Sınıf\",Sayfa2!F13,IF(Bilgi!$B$5=\"6. Sınıf\",Sayfa2!G13,IF(Bilgi!$B$5=\"7. Sınıf\",Sayfa2!H13,IF(Bilgi!$B$5=\"8. Sınıf\",Sayfa2!I13,IF(Bilgi!$B$5=\"9. Sınıf\",Sayfa2!J13,IF(Bilgi!$B$5=\"10. Sınıf\",Sayfa2!K13,IF(Bilgi!$B$5=\"11. Sınıf\",Sayfa2!L13,IF(Bilgi!$B$5=\"12. Sınıf\",Sayfa2!M13,IF(Bilgi!$B$5=\"9. Sınıf ÖEMO\",Sayfa2!O13,IF(Bilgi!$B$5=\"10. Sınıf ÖEMO\",Sayfa2!P13,IF(Bilgi!$B$5=\"11. Sınıf ÖEMO\",Sayfa2!Q13,IF(Bilgi!$B$5=\"12. Sınıf ÖEMO\",Sayfa2!R13,\"Lütfen Bilgi Sayfasından Sınıf Seçimi Yapınız\"))))))))))))))))))))","v":"Psikososyal (İşin Aslı)"},"Psikososyal (Duygı Düşünce Kartları)","Psikososyal (Duygı Düşünce Kartları)","Psikososyal (Duygı Düşünce Kartları)","Psikososyal (Duygı Düşünce Kartları)",null,"Psikososyal (Bana Dokunulduğunda Ne Hissediyorum)","Psikososyal (Bana Dokunulduğunda Ne Hissediyorum)","Psikososyal (Bana Dokunulduğunda Ne Hissediyorum)","Psikososyal (Duygı Düşünce Kartları)","Psikososyal (Duygı Düşünce Kartları)"]
["Psikososyal (Parlayan Güneşim)","Psikososyal (Parlayan Güneşim)","Psikososyal (Parlayan Güneşim)","Psikososyal (Parlayan Güneşim)","Psikososyal (Parlayan Güneşim)","Psikososyal (Duygu Listem)","Psikososyal (Duygu Listem)","Psikososyal (Duygu Listem)","Psikososyal (Duygu Listem)","Psikososyal (Duygu Listem)","Psikososyal (Duygu Listem)","Psikososyal (Duygu Listem)","Psikososyal (Duygu Listem)",{"$f":"IF(IF(Bilgi!$B$5=\"\",\"\",IF(Bilgi!$B$5=\"Okul Öncesi\",Sayfa2!A14,IF(Bilgi!$B$5=\"1. Sınıf\",Sayfa2!B14,IF(Bilgi!$B$5=\"2. Sınıf\",Sayfa2!C14,IF(Bilgi!$B$5=\"3. Sınıf\",Sayfa2!D14,IF(Bilgi!$B$5=\"4. Sınıf\",Sayfa2!E14,IF(Bilgi!$B$5=\"5. Sınıf\",Sayfa2!F14,IF(Bilgi!$B$5=\"6. Sınıf\",Sayfa2!G14,IF(Bilgi!$B$5=\"7. Sınıf\",Sayfa2!H14,IF(Bilgi!$B$5=\"8. Sınıf\",Sayfa2!I14,IF(Bilgi!$B$5=\"9. Sınıf\",Sayfa2!J14,IF(Bilgi!$B$5=\"10. Sınıf\",Sayfa2!K14,IF(Bilgi!$B$5=\"11. Sınıf\",Sayfa2!L14,IF(Bilgi!$B$5=\"12. Sınıf\",Sayfa2!M14,IF(Bilgi!$B$5=\"9. Sınıf ÖEMO\",Sayfa2!O14,IF(Bilgi!$B$5=\"10. Sınıf ÖEMO\",Sayfa2!P14,IF(Bilgi!$B$5=\"11. Sınıf ÖEMO\",Sayfa2!Q14,IF(Bilgi!$B$5=\"12. Sınıf ÖEMO\",Sayfa2!R14,\"Lütfen Bilgi Sayfasından Sınıf Seçimi Yapınız\"))))))))))))))))))=0,\"\",(IF(Bilgi!$B$5=\"\",\"\",IF(Bilgi!$B$5=\"Okul Öncesi\",Sayfa2!A14,IF(Bilgi!$B$5=\"1. Sınıf\",Sayfa2!B14,IF(Bilgi!$B$5=\"2. Sınıf\",Sayfa2!C14,IF(Bilgi!$B$5=\"3. Sınıf\",Sayfa2!D14,IF(Bilgi!$B$5=\"4. Sınıf\",Sayfa2!E14,IF(Bilgi!$B$5=\"5. Sınıf\",Sayfa2!F14,IF(Bilgi!$B$5=\"6. Sınıf\",Sayfa2!G14,IF(Bilgi!$B$5=\"7. Sınıf\",Sayfa2!H14,IF(Bilgi!$B$5=\"8. Sınıf\",Sayfa2!I14,IF(Bilgi!$B$5=\"9. Sınıf\",Sayfa2!J14,IF(Bilgi!$B$5=\"10. Sınıf\",Sayfa2!K14,IF(Bilgi!$B$5=\"11. Sınıf\",Sayfa2!L14,IF(Bilgi!$B$5=\"12. Sınıf\",Sayfa2!M14,IF(Bilgi!$B$5=\"9. Sınıf ÖEMO\",Sayfa2!O14,IF(Bilgi!$B$5=\"10. Sınıf ÖEMO\",Sayfa2!P14,IF(Bilgi!$B$5=\"11. Sınıf ÖEMO\",Sayfa2!Q14,IF(Bilgi!$B$5=\"12. Sınıf ÖEMO\",Sayfa2!R14,\"Lütfen Bilgi Sayfasından Sınıf Seçimi Yapınız\"))))))))))))))))))))","v":"Psikososyal (Duygı Düşünce Kartları)"},"Psikososyal (Duygu Listem)","Psikososyal (Duygu Listem)","Psikososyal (Duygu Listem)","Psikososyal (Duygu Listem)",null,"Psikososyal (Parlayan Güneşim)","Psikososyal (Parlayan Güneşim)","Psikososyal (Parlayan Güneşim)","Psikososyal (Duygu Listem)","Psikososyal (Duygu Listem)"]
["Psikososyal (Sevgi Küpü)","Psikososyal (Sevgi Küpü)","Psikososyal (Sevgi Küpü)","Psikososyal (Sevgi Küpü)","Psikososyal (Sevgi Küpü)","Psikososyal (Ortak Özelliklerimiz)","Psikososyal (Ortak Özelliklerimiz)","Psikososyal (Ortak Özelliklerimiz)","Psikososyal (Ortak Özelliklerimiz)","Psikososyal (Ortak Özelliklerimiz)","Psikososyal (Ortak Özelliklerimiz)","Psikososyal (Ortak Özelliklerimiz)","Psikososyal (Ortak Özelliklerimiz)",{"$f":"IF(IF(Bilgi!$B$5=\"\",\"\",IF(Bilgi!$B$5=\"Okul Öncesi\",Sayfa2!A15,IF(Bilgi!$B$5=\"1. Sınıf\",Sayfa2!B15,IF(Bilgi!$B$5=\"2. Sınıf\",Sayfa2!C15,IF(Bilgi!$B$5=\"3. Sınıf\",Sayfa2!D15,IF(Bilgi!$B$5=\"4. Sınıf\",Sayfa2!E15,IF(Bilgi!$B$5=\"5. Sınıf\",Sayfa2!F15,IF(Bilgi!$B$5=\"6. Sınıf\",Sayfa2!G15,IF(Bilgi!$B$5=\"7. Sınıf\",Sayfa2!H15,IF(Bilgi!$B$5=\"8. Sınıf\",Sayfa2!I15,IF(Bilgi!$B$5=\"9. Sınıf\",Sayfa2!J15,IF(Bilgi!$B$5=\"10. Sınıf\",Sayfa2!K15,IF(Bilgi!$B$5=\"11. Sınıf\",Sayfa2!L15,IF(Bilgi!$B$5=\"12. Sınıf\",Sayfa2!M15,IF(Bilgi!$B$5=\"9. Sınıf ÖEMO\",Sayfa2!O15,IF(Bilgi!$B$5=\"10. Sınıf ÖEMO\",Sayfa2!P15,IF(Bilgi!$B$5=\"11. Sınıf ÖEMO\",Sayfa2!Q15,IF(Bilgi!$B$5=\"12. Sınıf ÖEMO\",Sayfa2!R15,\"Lütfen Bilgi Sayfasından Sınıf Seçimi Yapınız\"))))))))))))))))))=0,\"\",(IF(Bilgi!$B$5=\"\",\"\",IF(Bilgi!$B$5=\"Okul Öncesi\",Sayfa2!A15,IF(Bilgi!$B$5=\"1. Sınıf\",Sayfa2!B15,IF(Bilgi!$B$5=\"2. Sınıf\",Sayfa2!C15,IF(Bilgi!$B$5=\"3. Sınıf\",Sayfa2!D15,IF(Bilgi!$B$5=\"4. Sınıf\",Sayfa2!E15,IF(Bilgi!$B$5=\"5. Sınıf\",Sayfa2!F15,IF(Bilgi!$B$5=\"6. Sınıf\",Sayfa2!G15,IF(Bilgi!$B$5=\"7. Sınıf\",Sayfa2!H15,IF(Bilgi!$B$5=\"8. Sınıf\",Sayfa2!I15,IF(Bilgi!$B$5=\"9. Sınıf\",Sayfa2!J15,IF(Bilgi!$B$5=\"10. Sınıf\",Sayfa2!K15,IF(Bilgi!$B$5=\"11. Sınıf\",Sayfa2!L15,IF(Bilgi!$B$5=\"12. Sınıf\",Sayfa2!M15,IF(Bilgi!$B$5=\"9. Sınıf ÖEMO\",Sayfa2!O15,IF(Bilgi!$B$5=\"10. Sınıf ÖEMO\",Sayfa2!P15,IF(Bilgi!$B$5=\"11. Sınıf ÖEMO\",Sayfa2!Q15,IF(Bilgi!$B$5=\"12. Sınıf ÖEMO\",Sayfa2!R15,\"Lütfen Bilgi Sayfasından Sınıf Seçimi Yapınız\"))))))))))))))))))))","v":"Psikososyal (Duygu Listem)"},"Psikososyal (Ortak Özelliklerimiz)","Psikososyal (Ortak Özelliklerimiz)","Psikososyal (Ortak Özelliklerimiz)","Psikososyal (Ortak Özelliklerimiz)",null,"Psikososyal (Sevgi Küpü)","Psikososyal (Sevgi Küpü)","Psikososyal (Sevgi Küpü)","Psikososyal (Ortak Özelliklerimiz)","Psikososyal (Ortak Özelliklerimiz)"]
["Psikososyal (Doğrular ve Yanlışlar)","Psikososyal (Doğrular ve Yanlışlar)","Psikososyal (Doğrular ve Yanlışlar)","Psikososyal (Doğrular ve Yanlışlar)","Psikososyal (Doğrular ve Yanlışlar)","Psikososyal (Ergenim Farkındayım)","Psikososyal (Ergenim Farkındayım)","Psikososyal (Ergenim Farkındayım)","Psikososyal (Ergenim Farkındayım)","Psikososyal (Ergenim Farkındayım)","Psikososyal (Ergenim Farkındayım)","Psikososyal (Ergenim Farkındayım)","Psikososyal (Ergenim Farkındayım)",{"$f":"IF(IF(Bilgi!$B$5=\"\",\"\",IF(Bilgi!$B$5=\"Okul Öncesi\",Sayfa2!A16,IF(Bilgi!$B$5=\"1. Sınıf\",Sayfa2!B16,IF(Bilgi!$B$5=\"2. Sınıf\",Sayfa2!C16,IF(Bilgi!$B$5=\"3. Sınıf\",Sayfa2!D16,IF(Bilgi!$B$5=\"4. Sınıf\",Sayfa2!E16,IF(Bilgi!$B$5=\"5. Sınıf\",Sayfa2!F16,IF(Bilgi!$B$5=\"6. Sınıf\",Sayfa2!G16,IF(Bilgi!$B$5=\"7. Sınıf\",Sayfa2!H16,IF(Bilgi!$B$5=\"8. Sınıf\",Sayfa2!I16,IF(Bilgi!$B$5=\"9. Sınıf\",Sayfa2!J16,IF(Bilgi!$B$5=\"10. Sınıf\",Sayfa2!K16,IF(Bilgi!$B$5=\"11. Sınıf\",Sayfa2!L16,IF(Bilgi!$B$5=\"12. Sınıf\",Sayfa2!M16,IF(Bilgi!$B$5=\"9. Sınıf ÖEMO\",Sayfa2!O16,IF(Bilgi!$B$5=\"10. Sınıf ÖEMO\",Sayfa2!P16,IF(Bilgi!$B$5=\"11. Sınıf ÖEMO\",Sayfa2!Q16,IF(Bilgi!$B$5=\"12. Sınıf ÖEMO\",Sayfa2!R16,\"Lütfen Bilgi Sayfasından Sınıf Seçimi Yapınız\"))))))))))))))))))=0,\"\",(IF(Bilgi!$B$5=\"\",\"\",IF(Bilgi!$B$5=\"Okul Öncesi\",Sayfa2!A16,IF(Bilgi!$B$5=\"1. Sınıf\",Sayfa2!B16,IF(Bilgi!$B$5=\"2. Sınıf\",Sayfa2!C16,IF(Bilgi!$B$5=\"3. Sınıf\",Sayfa2!D16,IF(Bilgi!$B$5=\"4. Sınıf\",Sayfa2!E16,IF(Bilgi!$B$5=\"5. Sınıf\",Sayfa2!F16,IF(Bilgi!$B$5=\"6. Sınıf\",Sayfa2!G16,IF(Bilgi!$B$5=\"7. Sınıf\",Sayfa2!H16,IF(Bilgi!$B$5=\"8. Sınıf\",Sayfa2!I16,IF(Bilgi!$B$5=\"9. Sınıf\",Sayfa2!J16,IF(Bilgi!$B$5=\"10. Sınıf\",Sayfa2!K16,IF(Bilgi!$B$5=\"11. Sınıf\",Sayfa2!L16,IF(Bilgi!$B$5=\"12. Sınıf\",Sayfa2!M16,IF(Bilgi!$B$5=\"9. Sınıf ÖEMO\",Sayfa2!O16,IF(Bilgi!$B$5=\"10. Sınıf ÖEMO\",Sayfa2!P16,IF(Bilgi!$B$5=\"11. Sınıf ÖEMO\",Sayfa2!Q16,IF(Bilgi!$B$5=\"12. Sınıf ÖEMO\",Sayfa2!R16,\"Lütfen Bilgi Sayfasından Sınıf Seçimi Yapınız\"))))))))))))))))))))","v":"Psikososyal (Ortak Özelliklerimiz)"},"Psikososyal (Ergenim Farkındayım)","Psikososyal (Ergenim Farkındayım)","Psikososyal (Ergenim Farkındayım)","Psikososyal (Ergenim Farkındayım)",null,"Psikososyal (Doğrular ve Yanlışlar)","Psikososyal (Doğrular ve Yanlışlar)","Psikososyal (Doğrular ve Yanlışlar)","Psikososyal (Ergenim Farkındayım)","Psikososyal (Ergenim Farkındayım)"]
["Psikososyal (Doğal Yüzler)","Psikososyal (Doğal Yüzler)","Psikososyal (Doğal Yüzler)","Psikososyal (Doğal Yüzler)","Psikososyal (Doğal Yüzler)","Psikososyal (Doğal Tepkiler)","Psikososyal (Doğal Tepkiler)","Psikososyal (Doğal Tepkiler)","Psikososyal (Doğal Tepkiler)","Psikososyal (Doğal Tepkiler)","Psikososyal (Doğal Tepkiler)","Psikososyal (Doğal Tepkiler)","Psikososyal (Doğal Tepkiler)",{"$f":"IF(IF(Bilgi!$B$5=\"\",\"\",IF(Bilgi!$B$5=\"Okul Öncesi\",Sayfa2!A17,IF(Bilgi!$B$5=\"1. Sınıf\",Sayfa2!B17,IF(Bilgi!$B$5=\"2. Sınıf\",Sayfa2!C17,IF(Bilgi!$B$5=\"3. Sınıf\",Sayfa2!D17,IF(Bilgi!$B$5=\"4. Sınıf\",Sayfa2!E17,IF(Bilgi!$B$5=\"5. Sınıf\",Sayfa2!F17,IF(Bilgi!$B$5=\"6. Sınıf\",Sayfa2!G17,IF(Bilgi!$B$5=\"7. Sınıf\",Sayfa2!H17,IF(Bilgi!$B$5=\"8. Sınıf\",Sayfa2!I17,IF(Bilgi!$B$5=\"9. Sınıf\",Sayfa2!J17,IF(Bilgi!$B$5=\"10. Sınıf\",Sayfa2!K17,IF(Bilgi!$B$5=\"11. Sınıf\",Sayfa2!L17,IF(Bilgi!$B$5=\"12. Sınıf\",Sayfa2!M17,IF(Bilgi!$B$5=\"9. Sınıf ÖEMO\",Sayfa2!O17,IF(Bilgi!$B$5=\"10. Sınıf ÖEMO\",Sayfa2!P17,IF(Bilgi!$B$5=\"11. Sınıf ÖEMO\",Sayfa2!Q17,IF(Bilgi!$B$5=\"12. Sınıf ÖEMO\",Sayfa2!R17,\"Lütfen Bilgi Sayfasından Sınıf Seçimi Yapınız\"))))))))))))))))))=0,\"\",(IF(Bilgi!$B$5=\"\",\"\",IF(Bilgi!$B$5=\"Okul Öncesi\",Sayfa2!A17,IF(Bilgi!$B$5=\"1. Sınıf\",Sayfa2!B17,IF(Bilgi!$B$5=\"2. Sınıf\",Sayfa2!C17,IF(Bilgi!$B$5=\"3. Sınıf\",Sayfa2!D17,IF(Bilgi!$B$5=\"4. Sınıf\",Sayfa2!E17,IF(Bilgi!$B$5=\"5. Sınıf\",Sayfa2!F17,IF(Bilgi!$B$5=\"6. Sınıf\",Sayfa2!G17,IF(Bilgi!$B$5=\"7. Sınıf\",Sayfa2!H17,IF(Bilgi!$B$5=\"8. Sınıf\",Sayfa2!I17,IF(Bilgi!$B$5=\"9. Sınıf\",Sayfa2!J17,IF(Bilgi!$B$5=\"10. Sınıf\",Sayfa2!K17,IF(Bilgi!$B$5=\"11. Sınıf\",Sayfa2!L17,IF(Bilgi!$B$5=\"12. Sınıf\",Sayfa2!M17,IF(Bilgi!$B$5=\"9. Sınıf ÖEMO\",Sayfa2!O17,IF(Bilgi!$B$5=\"10. Sınıf ÖEMO\",Sayfa2!P17,IF(Bilgi!$B$5=\"11. Sınıf ÖEMO\",Sayfa2!Q17,IF(Bilgi!$B$5=\"12. Sınıf ÖEMO\",Sayfa2!R17,\"Lütfen Bilgi Sayfasından Sınıf Seçimi Yapınız\"))))))))))))))))))))","v":"Psikososyal (Ergenim Farkındayım)"},"Psikososyal (Doğal Tepkiler)","Psikososyal (Doğal Tepkiler)","Psikososyal (Doğal Tepkiler)","Psikososyal (Doğal Tepkiler)",null,"Psikososyal (Doğal Yüzler)","Psikososyal (Doğal Yüzler)","Psikososyal (Doğal Yüzler)","Psikososyal (Doğal Tepkiler)","Psikososyal (Doğal Tepkiler)"]
["1- Okula başlamaya ilişkin duygularını ifade eder. ","1- Okula başlamaya ilişkin duygularını ifade eder.","1- Okulun kendisi için önemini açıklar.","1- Okula ilişkin duygu ve düşüncelerini ifade eder.","1- Okul ve çevresinde risk oluşturabilecek durum ve ortamlara karşı kendini korur.","1- Okulun bölümlerini ve okulda çalışan personeli tanır.","1- İyilik hâlini destekleyen davranışları, yaşamında uygular.","1- Yeni durumlar ve değişimlerle ilgili duygularını ifade eder.","1- Öz bakım becerileri sergiler.","1- Okulun yakın çevresini, bölümlerini ve okulda çalışan personeli tanır.","1- Okul içinde ve dışında eğitsel ve sosyal etkinliklere katılmanın gelişimine katkılarını değerlendirir.","1- Başarılı olduğu durumlarda kendini takdir eder.","1- Sahip olduğu karakter güçlerini zorluklar karşısında kullanır.",{"$f":"IF(IF(Bilgi!$B$5=\"\",\"\",IF(Bilgi!$B$5=\"Okul Öncesi\",Sayfa2!A18,IF(Bilgi!$B$5=\"1. Sınıf\",Sayfa2!B18,IF(Bilgi!$B$5=\"2. Sınıf\",Sayfa2!C18,IF(Bilgi!$B$5=\"3. Sınıf\",Sayfa2!D18,IF(Bilgi!$B$5=\"4. Sınıf\",Sayfa2!E18,IF(Bilgi!$B$5=\"5. Sınıf\",Sayfa2!F18,IF(Bilgi!$B$5=\"6. Sınıf\",Sayfa2!G18,IF(Bilgi!$B$5=\"7. Sınıf\",Sayfa2!H18,IF(Bilgi!$B$5=\"8. Sınıf\",Sayfa2!I18,IF(Bilgi!$B$5=\"9. Sınıf\",Sayfa2!J18,IF(Bilgi!$B$5=\"10. Sınıf\",Sayfa2!K18,IF(Bilgi!$B$5=\"11. Sınıf\",Sayfa2!L18,IF(Bilgi!$B$5=\"12. Sınıf\",Sayfa2!M18,IF(Bilgi!$B$5=\"9. Sınıf ÖEMO\",Sayfa2!O18,IF(Bilgi!$B$5=\"10. Sınıf ÖEMO\",Sayfa2!P18,IF(Bilgi!$B$5=\"11. Sınıf ÖEMO\",Sayfa2!Q18,IF(Bilgi!$B$5=\"12. Sınıf ÖEMO\",Sayfa2!R18,\"Lütfen Bilgi Sayfasından Sınıf Seçimi Yapınız\"))))))))))))))))))=0,\"\",(IF(Bilgi!$B$5=\"\",\"\",IF(Bilgi!$B$5=\"Okul Öncesi\",Sayfa2!A18,IF(Bilgi!$B$5=\"1. Sınıf\",Sayfa2!B18,IF(Bilgi!$B$5=\"2. Sınıf\",Sayfa2!C18,IF(Bilgi!$B$5=\"3. Sınıf\",Sayfa2!D18,IF(Bilgi!$B$5=\"4. Sınıf\",Sayfa2!E18,IF(Bilgi!$B$5=\"5. Sınıf\",Sayfa2!F18,IF(Bilgi!$B$5=\"6. Sınıf\",Sayfa2!G18,IF(Bilgi!$B$5=\"7. Sınıf\",Sayfa2!H18,IF(Bilgi!$B$5=\"8. Sınıf\",Sayfa2!I18,IF(Bilgi!$B$5=\"9. Sınıf\",Sayfa2!J18,IF(Bilgi!$B$5=\"10. Sınıf\",Sayfa2!K18,IF(Bilgi!$B$5=\"11. Sınıf\",Sayfa2!L18,IF(Bilgi!$B$5=\"12. Sınıf\",Sayfa2!M18,IF(Bilgi!$B$5=\"9. Sınıf ÖEMO\",Sayfa2!O18,IF(Bilgi!$B$5=\"10. Sınıf ÖEMO\",Sayfa2!P18,IF(Bilgi!$B$5=\"11. Sınıf ÖEMO\",Sayfa2!Q18,IF(Bilgi!$B$5=\"12. Sınıf ÖEMO\",Sayfa2!R18,\"Lütfen Bilgi Sayfasından Sınıf Seçimi Yapınız\"))))))))))))))))))))","v":"Psikososyal (Doğal Tepkiler)"}]
["2- Okula başlamaya ilişkin duygularını ifade eder. ","2- Okulun bölümlerini ve okulda çalışan personeli tanır.","2- Okul ve sınıf kurallarına uyulmadığında ortaya çıkabilecek sonuçları tartışır.","2- Okula hazırlıklı gelme ile akademik gelişimi arasında bağ kurar.","2- Kişisel güvenliği için farklı yaşam alanlarında gerekli tedbirleri alır.","2- Okulun yakınındaki çevreyi tanır.","2- Zamanını ihtiyaçları ve sorumlulukları çerçevesinde planlar.","2- Zamanını etkili kullanmanın akademik gelişimine etkisini açıklar.","2- Yapabildiği ve hoşlandığı etkinliklere dayalı olarak ilgi ve yeteneklerine örnekler verir.","2- Eğitim öğretim sürecine ilişkin yönetmeliklerin kendisini ilgilendiren kısımları hakkında bilgi sahibi olur.","2- Okul içinde veya dışında etkinliklere katılırken ilgi ve yeteneklerini dikkate alır.","2- Akademik konulardaki güçlü ve geliştirilmesi gereken özelliklerini fark eder.","2- Okula hazırlıklı gelme ile akademik gelişimi arasında bağ kurar.",{"$f":"IF(IF(Bilgi!$B$5=\"\",\"\",IF(Bilgi!$B$5=\"Okul Öncesi\",Sayfa2!A19,IF(Bilgi!$B$5=\"1. Sınıf\",Sayfa2!B19,IF(Bilgi!$B$5=\"2. Sınıf\",Sayfa2!C19,IF(Bilgi!$B$5=\"3. Sınıf\",Sayfa2!D19,IF(Bilgi!$B$5=\"4. Sınıf\",Sayfa2!E19,IF(Bilgi!$B$5=\"5. Sınıf\",Sayfa2!F19,IF(Bilgi!$B$5=\"6. Sınıf\",Sayfa2!G19,IF(Bilgi!$B$5=\"7. Sınıf\",Sayfa2!H19,IF(Bilgi!$B$5=\"8. Sınıf\",Sayfa2!I19,IF(Bilgi!$B$5=\"9. Sınıf\",Sayfa2!J19,IF(Bilgi!$B$5=\"10. Sınıf\",Sayfa2!K19,IF(Bilgi!$B$5=\"11. Sınıf\",Sayfa2!L19,IF(Bilgi!$B$5=\"12. Sınıf\",Sayfa2!M19,IF(Bilgi!$B$5=\"9. Sınıf ÖEMO\",Sayfa2!O19,IF(Bilgi!$B$5=\"10. Sınıf ÖEMO\",Sayfa2!P19,IF(Bilgi!$B$5=\"11. Sınıf ÖEMO\",Sayfa2!Q19,IF(Bilgi!$B$5=\"12. Sınıf ÖEMO\",Sayfa2!R19,\"Lütfen Bilgi Sayfasından Sınıf Seçimi Yapınız\"))))))))))))))))))=0,\"\",(IF(Bilgi!$B$5=\"\",\"\",IF(Bilgi!$B$5=\"Okul Öncesi\",Sayfa2!A19,IF(Bilgi!$B$5=\"1. Sınıf\",Sayfa2!B19,IF(Bilgi!$B$5=\"2. Sınıf\",Sayfa2!C19,IF(Bilgi!$B$5=\"3. Sınıf\",Sayfa2!D19,IF(Bilgi!$B$5=\"4. Sınıf\",Sayfa2!E19,IF(Bilgi!$B$5=\"5. Sınıf\",Sayfa2!F19,IF(Bilgi!$B$5=\"6. Sınıf\",Sayfa2!G19,IF(Bilgi!$B$5=\"7. Sınıf\",Sayfa2!H19,IF(Bilgi!$B$5=\"8. Sınıf\",Sayfa2!I19,IF(Bilgi!$B$5=\"9. Sınıf\",Sayfa2!J19,IF(Bilgi!$B$5=\"10. Sınıf\",Sayfa2!K19,IF(Bilgi!$B$5=\"11. Sınıf\",Sayfa2!L19,IF(Bilgi!$B$5=\"12. Sınıf\",Sayfa2!M19,IF(Bilgi!$B$5=\"9. Sınıf ÖEMO\",Sayfa2!O19,IF(Bilgi!$B$5=\"10. Sınıf ÖEMO\",Sayfa2!P19,IF(Bilgi!$B$5=\"11. Sınıf ÖEMO\",Sayfa2!Q19,IF(Bilgi!$B$5=\"12. Sınıf ÖEMO\",Sayfa2!R19,\"Lütfen Bilgi Sayfasından Sınıf Seçimi Yapınız\"))))))))))))))))))))","v":"1- Sahip olduğu karakter güçlerini zorluklar karşısında kullanır."}]
["3- Okulun bölümlerini ve okulda çalışan personeli tanır. ","3- Okulun bölümlerini ve okulda çalışan personeli tanır.","3- Okul hazırlığına ilişkin sorumluluklarını üstlenir.","3- Karakter güçlerinin önemini açıklar.","3- Zamanını etkili kullanmanın akademik gelişimine etkisini açıklar.","3- Sınıf kurallarının oluşturulmasına katkı sağlar.","3- Okula hazırlıklı gelme ile akademik gelişimi arasında bağ kurar.","3- Zamanını etkili kullanmanın akademik gelişimine etkisini açıklar.","3- Okul içi veya okul dışındaki etkinliklere katılırken ilgi ve yeteneklerini dikkate alır.","3- İlgi ve hobilerini ayırt eder.","3- Alan/bölüm/dal/ders seçiminde ilgi, yetenek ve mesleki değerleri dikkate alır.","3- Başarmak için çalışmanın gerekliliğine inanır.","3- Zamanını, ihtiyaçları ve sorumlulukları çerçevesinde planlar.",{"$f":"IF(IF(Bilgi!$B$5=\"\",\"\",IF(Bilgi!$B$5=\"Okul Öncesi\",Sayfa2!A20,IF(Bilgi!$B$5=\"1. Sınıf\",Sayfa2!B20,IF(Bilgi!$B$5=\"2. Sınıf\",Sayfa2!C20,IF(Bilgi!$B$5=\"3. Sınıf\",Sayfa2!D20,IF(Bilgi!$B$5=\"4. Sınıf\",Sayfa2!E20,IF(Bilgi!$B$5=\"5. Sınıf\",Sayfa2!F20,IF(Bilgi!$B$5=\"6. Sınıf\",Sayfa2!G20,IF(Bilgi!$B$5=\"7. Sınıf\",Sayfa2!H20,IF(Bilgi!$B$5=\"8. Sınıf\",Sayfa2!I20,IF(Bilgi!$B$5=\"9. Sınıf\",Sayfa2!J20,IF(Bilgi!$B$5=\"10. Sınıf\",Sayfa2!K20,IF(Bilgi!$B$5=\"11. Sınıf\",Sayfa2!L20,IF(Bilgi!$B$5=\"12. Sınıf\",Sayfa2!M20,IF(Bilgi!$B$5=\"9. Sınıf ÖEMO\",Sayfa2!O20,IF(Bilgi!$B$5=\"10. Sınıf ÖEMO\",Sayfa2!P20,IF(Bilgi!$B$5=\"11. Sınıf ÖEMO\",Sayfa2!Q20,IF(Bilgi!$B$5=\"12. Sınıf ÖEMO\",Sayfa2!R20,\"Lütfen Bilgi Sayfasından Sınıf Seçimi Yapınız\"))))))))))))))))))=0,\"\",(IF(Bilgi!$B$5=\"\",\"\",IF(Bilgi!$B$5=\"Okul Öncesi\",Sayfa2!A20,IF(Bilgi!$B$5=\"1. Sınıf\",Sayfa2!B20,IF(Bilgi!$B$5=\"2. Sınıf\",Sayfa2!C20,IF(Bilgi!$B$5=\"3. Sınıf\",Sayfa2!D20,IF(Bilgi!$B$5=\"4. Sınıf\",Sayfa2!E20,IF(Bilgi!$B$5=\"5. Sınıf\",Sayfa2!F20,IF(Bilgi!$B$5=\"6. Sınıf\",Sayfa2!G20,IF(Bilgi!$B$5=\"7. Sınıf\",Sayfa2!H20,IF(Bilgi!$B$5=\"8. Sınıf\",Sayfa2!I20,IF(Bilgi!$B$5=\"9. Sınıf\",Sayfa2!J20,IF(Bilgi!$B$5=\"10. Sınıf\",Sayfa2!K20,IF(Bilgi!$B$5=\"11. Sınıf\",Sayfa2!L20,IF(Bilgi!$B$5=\"12. Sınıf\",Sayfa2!M20,IF(Bilgi!$B$5=\"9. Sınıf ÖEMO\",Sayfa2!O20,IF(Bilgi!$B$5=\"10. Sınıf ÖEMO\",Sayfa2!P20,IF(Bilgi!$B$5=\"11. Sınıf ÖEMO\",Sayfa2!Q20,IF(Bilgi!$B$5=\"12. Sınıf ÖEMO\",Sayfa2!R20,\"Lütfen Bilgi Sayfasından Sınıf Seçimi Yapınız\"))))))))))))))))))))","v":"2- Okula hazırlıklı gelme ile akademik gelişimi arasında bağ kurar."},"1- Öğretmenini ve sınıf arkadaşlarını tanır.","15- Hatalı davranışları ayırt eder.","29- Arkadaşları tarafından dışlandığında uygun olan davranışı gösterir.","42- Günlük hayatında tehlike oluşturacak durumları fark eder."]
["4- Okula geliş gidiş yolunda gördüklerini söyler. ","4- Okulun yakınındaki çevreyi tanır.","4- Okul hazırlığına ilişkin sorumluluklarını üstlenir.","4- Sahip olduğu karakter güçlerini fark eder.","4- Her duygunun hissedilebilir olduğunu fark eder.","4- Okul ve çevresinde risk oluşturabilecek durum ve ortamlara karşı kendini korur.","4- Başarmak için çalışmanın gerekliliğini fark eder.","4- Eğitsel çabanın akademik hedeflere ulaşmadaki etkisini değerlendirir.","4- Akademik sorumluluklarını ertelemenin sonuçlarını fark eder.","4- Okulunun ve sınıfının bir üyesi olduğunu fark eder.","4- Yaşamındaki karar verme sürecini etkileyen faktörleri açıklar.","4- Kişilik özelliklerine ilişkin farkındalık geliştirir.","4- Zamanını, ihtiyaçları ve sorumlulukları çerçevesinde planlar.",{"$f":"IF(IF(Bilgi!$B$5=\"\",\"\",IF(Bilgi!$B$5=\"Okul Öncesi\",Sayfa2!A21,IF(Bilgi!$B$5=\"1. Sınıf\",Sayfa2!B21,IF(Bilgi!$B$5=\"2. Sınıf\",Sayfa2!C21,IF(Bilgi!$B$5=\"3. Sınıf\",Sayfa2!D21,IF(Bilgi!$B$5=\"4. Sınıf\",Sayfa2!E21,IF(Bilgi!$B$5=\"5. Sınıf\",Sayfa2!F21,IF(Bilgi!$B$5=\"6. Sınıf\",Sayfa2!G21,IF(Bilgi!$B$5=\"7. Sınıf\",Sayfa2!H21,IF(Bilgi!$B$5=\"8. Sınıf\",Sayfa2!I21,IF(Bilgi!$B$5=\"9. Sınıf\",Sayfa2!J21,IF(Bilgi!$B$5=\"10. Sınıf\",Sayfa2!K21,IF(Bilgi!$B$5=\"11. Sınıf\",Sayfa2!L21,IF(Bilgi!$B$5=\"12. Sınıf\",Sayfa2!M21,IF(Bilgi!$B$5=\"9. Sınıf ÖEMO\",Sayfa2!O21,IF(Bilgi!$B$5=\"10. Sınıf ÖEMO\",Sayfa2!P21,IF(Bilgi!$B$5=\"11. Sınıf ÖEMO\",Sayfa2!Q21,IF(Bilgi!$B$5=\"12. Sınıf ÖEMO\",Sayfa2!R21,\"Lütfen Bilgi Sayfasından Sınıf Seçimi Yapınız\"))))))))))))))))))=0,\"\",(IF(Bilgi!$B$5=\"\",\"\",IF(Bilgi!$B$5=\"Okul Öncesi\",Sayfa2!A21,IF(Bilgi!$B$5=\"1. Sınıf\",Sayfa2!B21,IF(Bilgi!$B$5=\"2. Sınıf\",Sayfa2!C21,IF(Bilgi!$B$5=\"3. Sınıf\",Sayfa2!D21,IF(Bilgi!$B$5=\"4. Sınıf\",Sayfa2!E21,IF(Bilgi!$B$5=\"5. Sınıf\",Sayfa2!F21,IF(Bilgi!$B$5=\"6. Sınıf\",Sayfa2!G21,IF(Bilgi!$B$5=\"7. Sınıf\",Sayfa2!H21,IF(Bilgi!$B$5=\"8. Sınıf\",Sayfa2!I21,IF(Bilgi!$B$5=\"9. Sınıf\",Sayfa2!J21,IF(Bilgi!$B$5=\"10. Sınıf\",Sayfa2!K21,IF(Bilgi!$B$5=\"11. Sınıf\",Sayfa2!L21,IF(Bilgi!$B$5=\"12. Sınıf\",Sayfa2!M21,IF(Bilgi!$B$5=\"9. Sınıf ÖEMO\",Sayfa2!O21,IF(Bilgi!$B$5=\"10. Sınıf ÖEMO\",Sayfa2!P21,IF(Bilgi!$B$5=\"11. Sınıf ÖEMO\",Sayfa2!Q21,IF(Bilgi!$B$5=\"12. Sınıf ÖEMO\",Sayfa2!R21,\"Lütfen Bilgi Sayfasından Sınıf Seçimi Yapınız\"))))))))))))))))))))","v":"3- Zamanını, ihtiyaçları ve sorumlulukları çerçevesinde planlar."},"Belirli Gün ve Haftalar / Sosyal Kulüp Çalışmaları","Belirli Gün ve Haftalar / Sosyal Kulüp Çalışmaları","Belirli Gün ve Haftalar / Sosyal Kulüp Çalışmaları","Belirli Gün ve Haftalar / Sosyal Kulüp Çalışmaları"]
["5- Kişisel Güvenliğini Sağlama","5- Kuralların yaşamı kolaylaştıracağını fark eder.","5- Günlük yaşamda yaptığı tercihleri etkileyen faktörleri fark eder.","5- Sahip olduğu karakter güçlerini fark eder.","5- Her duyguyu hissetmenin doğal olduğunu fark eder.","5- Kimden, nereden, ne zaman ve nasıl yardım isteyebileceğini bilir.","5- Karakter güçleriyle kendi yaşamı arasında bağ kurar.","5- Akademik çalışmalarını zamanında bitirmede kararlı olur.","5- Beden imgesini etkileyen faktörleri bilir.","5- Okul hazırlığına ilişkin sorumluluklarını üstlenir.","5- Karar verme basamaklarını kullanır.","5- Ergen-ebeveyn ilişkilerini değerlendirir.","5- Bilişim teknolojileri kullanımı konusunda kendini değerlendirir.",{"$f":"IF(IF(Bilgi!$B$5=\"\",\"\",IF(Bilgi!$B$5=\"Okul Öncesi\",Sayfa2!A22,IF(Bilgi!$B$5=\"1. Sınıf\",Sayfa2!B22,IF(Bilgi!$B$5=\"2. Sınıf\",Sayfa2!C22,IF(Bilgi!$B$5=\"3. Sınıf\",Sayfa2!D22,IF(Bilgi!$B$5=\"4. Sınıf\",Sayfa2!E22,IF(Bilgi!$B$5=\"5. Sınıf\",Sayfa2!F22,IF(Bilgi!$B$5=\"6. Sınıf\",Sayfa2!G22,IF(Bilgi!$B$5=\"7. Sınıf\",Sayfa2!H22,IF(Bilgi!$B$5=\"8. Sınıf\",Sayfa2!I22,IF(Bilgi!$B$5=\"9. Sınıf\",Sayfa2!J22,IF(Bilgi!$B$5=\"10. Sınıf\",Sayfa2!K22,IF(Bilgi!$B$5=\"11. Sınıf\",Sayfa2!L22,IF(Bilgi!$B$5=\"12. Sınıf\",Sayfa2!M22,IF(Bilgi!$B$5=\"9. Sınıf ÖEMO\",Sayfa2!O22,IF(Bilgi!$B$5=\"10. Sınıf ÖEMO\",Sayfa2!P22,IF(Bilgi!$B$5=\"11. Sınıf ÖEMO\",Sayfa2!Q22,IF(Bilgi!$B$5=\"12. Sınıf ÖEMO\",Sayfa2!R22,\"Lütfen Bilgi Sayfasından Sınıf Seçimi Yapınız\"))))))))))))))))))=0,\"\",(IF(Bilgi!$B$5=\"\",\"\",IF(Bilgi!$B$5=\"Okul Öncesi\",Sayfa2!A22,IF(Bilgi!$B$5=\"1. Sınıf\",Sayfa2!B22,IF(Bilgi!$B$5=\"2. Sınıf\",Sayfa2!C22,IF(Bilgi!$B$5=\"3. Sınıf\",Sayfa2!D22,IF(Bilgi!$B$5=\"4. Sınıf\",Sayfa2!E22,IF(Bilgi!$B$5=\"5. Sınıf\",Sayfa2!F22,IF(Bilgi!$B$5=\"6. Sınıf\",Sayfa2!G22,IF(Bilgi!$B$5=\"7. Sınıf\",Sayfa2!H22,IF(Bilgi!$B$5=\"8. Sınıf\",Sayfa2!I22,IF(Bilgi!$B$5=\"9. Sınıf\",Sayfa2!J22,IF(Bilgi!$B$5=\"10. Sınıf\",Sayfa2!K22,IF(Bilgi!$B$5=\"11. Sınıf\",Sayfa2!L22,IF(Bilgi!$B$5=\"12. Sınıf\",Sayfa2!M22,IF(Bilgi!$B$5=\"9. Sınıf ÖEMO\",Sayfa2!O22,IF(Bilgi!$B$5=\"10. Sınıf ÖEMO\",Sayfa2!P22,IF(Bilgi!$B$5=\"11. Sınıf ÖEMO\",Sayfa2!Q22,IF(Bilgi!$B$5=\"12. Sınıf ÖEMO\",Sayfa2!R22,\"Lütfen Bilgi Sayfasından Sınıf Seçimi Yapınız\"))))))))))))))))))))","v":"4- Zamanını, ihtiyaçları ve sorumlulukları çerçevesinde planlar."},"2- Sınıf kurallarına uyar.","16- Hatalı davranışların nasıl düzeltileceğini fark eder","30- Öfkelendiğinde yaşadıklarının farkında olur.","43- Kendini tehlike oluşturacak durumlardan korur."]
["6- Sınıf kurallarının oluşturulmasına katkı sağlar.","6- Okuldaki riskli olabilecek durum, ortam ve davranışları açıklar.","6- Sosyal ilişkilerinde nezaket ifadeleri kullanır.","6- Yapacağı bir işin ne kadar süreceğini tahmin eder.","6- Sanatsal ve sportif etkinliklerde başarabildiklerini ayırt eder.","6- Okul ve sınıf kurallarına uyulmadığında ortaya çıkabilecek sonuçları tartışır.","6- Takım çalışmalarının kişisel gelişimine etkilerini fark eder.","6- Yapabildiği ve hoşlandığı etkinliklere dayalı olarak ilgi ve yeteneklerine örnekler verir.","6- Bir üst öğretim kurumuna ilişkin ön bilgiler edinir.","6- Okulun eğitsel imkânları hakkında bilgi edinir.","6- Öğrenme ve verimli çalışma stratejilerini açıklar.","6- Akademik başarının önündeki engelleri fark eder.","6- Kendi bedenine ilişkin olumlu tutum geliştirir.",{"$f":"IF(IF(Bilgi!$B$5=\"\",\"\",IF(Bilgi!$B$5=\"Okul Öncesi\",Sayfa2!A23,IF(Bilgi!$B$5=\"1. Sınıf\",Sayfa2!B23,IF(Bilgi!$B$5=\"2. Sınıf\",Sayfa2!C23,IF(Bilgi!$B$5=\"3. Sınıf\",Sayfa2!D23,IF(Bilgi!$B$5=\"4. Sınıf\",Sayfa2!E23,IF(Bilgi!$B$5=\"5. Sınıf\",Sayfa2!F23,IF(Bilgi!$B$5=\"6. Sınıf\",Sayfa2!G23,IF(Bilgi!$B$5=\"7. Sınıf\",Sayfa2!H23,IF(Bilgi!$B$5=\"8. Sınıf\",Sayfa2!I23,IF(Bilgi!$B$5=\"9. Sınıf\",Sayfa2!J23,IF(Bilgi!$B$5=\"10. Sınıf\",Sayfa2!K23,IF(Bilgi!$B$5=\"11. Sınıf\",Sayfa2!L23,IF(Bilgi!$B$5=\"12. Sınıf\",Sayfa2!M23,IF(Bilgi!$B$5=\"9. Sınıf ÖEMO\",Sayfa2!O23,IF(Bilgi!$B$5=\"10. Sınıf ÖEMO\",Sayfa2!P23,IF(Bilgi!$B$5=\"11. Sınıf ÖEMO\",Sayfa2!Q23,IF(Bilgi!$B$5=\"12. Sınıf ÖEMO\",Sayfa2!R23,\"Lütfen Bilgi Sayfasından Sınıf Seçimi Yapınız\"))))))))))))))))))=0,\"\",(IF(Bilgi!$B$5=\"\",\"\",IF(Bilgi!$B$5=\"Okul Öncesi\",Sayfa2!A23,IF(Bilgi!$B$5=\"1. Sınıf\",Sayfa2!B23,IF(Bilgi!$B$5=\"2. Sınıf\",Sayfa2!C23,IF(Bilgi!$B$5=\"3. Sınıf\",Sayfa2!D23,IF(Bilgi!$B$5=\"4. Sınıf\",Sayfa2!E23,IF(Bilgi!$B$5=\"5. Sınıf\",Sayfa2!F23,IF(Bilgi!$B$5=\"6. Sınıf\",Sayfa2!G23,IF(Bilgi!$B$5=\"7. Sınıf\",Sayfa2!H23,IF(Bilgi!$B$5=\"8. Sınıf\",Sayfa2!I23,IF(Bilgi!$B$5=\"9. Sınıf\",Sayfa2!J23,IF(Bilgi!$B$5=\"10. Sınıf\",Sayfa2!K23,IF(Bilgi!$B$5=\"11. Sınıf\",Sayfa2!L23,IF(Bilgi!$B$5=\"12. Sınıf\",Sayfa2!M23,IF(Bilgi!$B$5=\"9. Sınıf ÖEMO\",Sayfa2!O23,IF(Bilgi!$B$5=\"10. Sınıf ÖEMO\",Sayfa2!P23,IF(Bilgi!$B$5=\"11. Sınıf ÖEMO\",Sayfa2!Q23,IF(Bilgi!$B$5=\"12. Sınıf ÖEMO\",Sayfa2!R23,\"Lütfen Bilgi Sayfasından Sınıf Seçimi Yapınız\"))))))))))))))))))))","v":"5- Bilişim teknolojileri kullanımı konusunda kendini değerlendirir."},"Belirli Gün ve Haftalar / Sosyal Kulüp Çalışmaları","Belirli Gün ve Haftalar / Sosyal Kulüp Çalışmaları","Belirli Gün ve Haftalar / Sosyal Kulüp Çalışmaları","Belirli Gün ve Haftalar / Sosyal Kulüp Çalışmaları"]
["7- Ailesindeki rol ve sorumluluklarını fark eder. ","7- Günlük yaşamda yaptığı tercihleri açıklar.","7- Duyguların insan yaşamı için önemini fark eder.","7- Problem çözerken başvurduğu yolları açıklar.","7- Akran baskısıyla baş etmede uygun yolları kullanır.","7- Okul ve sınıf kurallarına uyar.","7- Öğrenme etkinliklerine katılmasını engelleyen düşünce ve davranışlarını fark eder.","7- İlgi ve hobilerini ayırt eder.","7- Üst öğretim kurumlarına geçiş sınavlarıyla ilgili bilgi edinir.","7- Yaşam değerlerinin farkına varır.","7- Öğrenme ve verimli çalışma stratejilerini açıklar.","7- Akademik sorumluluklarını ertelemenin sonuçlarını fark eder.","7- Üst öğretim kurumlarına geçiş sınavlarına hazırlanmak ve başarılı olmak için stratejiler geliştirir.",{"$f":"IF(IF(Bilgi!$B$5=\"\",\"\",IF(Bilgi!$B$5=\"Okul Öncesi\",Sayfa2!A24,IF(Bilgi!$B$5=\"1. Sınıf\",Sayfa2!B24,IF(Bilgi!$B$5=\"2. Sınıf\",Sayfa2!C24,IF(Bilgi!$B$5=\"3. Sınıf\",Sayfa2!D24,IF(Bilgi!$B$5=\"4. Sınıf\",Sayfa2!E24,IF(Bilgi!$B$5=\"5. Sınıf\",Sayfa2!F24,IF(Bilgi!$B$5=\"6. Sınıf\",Sayfa2!G24,IF(Bilgi!$B$5=\"7. Sınıf\",Sayfa2!H24,IF(Bilgi!$B$5=\"8. Sınıf\",Sayfa2!I24,IF(Bilgi!$B$5=\"9. Sınıf\",Sayfa2!J24,IF(Bilgi!$B$5=\"10. Sınıf\",Sayfa2!K24,IF(Bilgi!$B$5=\"11. Sınıf\",Sayfa2!L24,IF(Bilgi!$B$5=\"12. Sınıf\",Sayfa2!M24,IF(Bilgi!$B$5=\"9. Sınıf ÖEMO\",Sayfa2!O24,IF(Bilgi!$B$5=\"10. Sınıf ÖEMO\",Sayfa2!P24,IF(Bilgi!$B$5=\"11. Sınıf ÖEMO\",Sayfa2!Q24,IF(Bilgi!$B$5=\"12. Sınıf ÖEMO\",Sayfa2!R24,\"Lütfen Bilgi Sayfasından Sınıf Seçimi Yapınız\"))))))))))))))))))=0,\"\",(IF(Bilgi!$B$5=\"\",\"\",IF(Bilgi!$B$5=\"Okul Öncesi\",Sayfa2!A24,IF(Bilgi!$B$5=\"1. Sınıf\",Sayfa2!B24,IF(Bilgi!$B$5=\"2. Sınıf\",Sayfa2!C24,IF(Bilgi!$B$5=\"3. Sınıf\",Sayfa2!D24,IF(Bilgi!$B$5=\"4. Sınıf\",Sayfa2!E24,IF(Bilgi!$B$5=\"5. Sınıf\",Sayfa2!F24,IF(Bilgi!$B$5=\"6. Sınıf\",Sayfa2!G24,IF(Bilgi!$B$5=\"7. Sınıf\",Sayfa2!H24,IF(Bilgi!$B$5=\"8. Sınıf\",Sayfa2!I24,IF(Bilgi!$B$5=\"9. Sınıf\",Sayfa2!J24,IF(Bilgi!$B$5=\"10. Sınıf\",Sayfa2!K24,IF(Bilgi!$B$5=\"11. Sınıf\",Sayfa2!L24,IF(Bilgi!$B$5=\"12. Sınıf\",Sayfa2!M24,IF(Bilgi!$B$5=\"9. Sınıf ÖEMO\",Sayfa2!O24,IF(Bilgi!$B$5=\"10. Sınıf ÖEMO\",Sayfa2!P24,IF(Bilgi!$B$5=\"11. Sınıf ÖEMO\",Sayfa2!Q24,IF(Bilgi!$B$5=\"12. Sınıf ÖEMO\",Sayfa2!R24,\"Lütfen Bilgi Sayfasından Sınıf Seçimi Yapınız\"))))))))))))))))))))","v":"6- Kendi bedenine ilişkin olumlu tutum geliştirir."},"3- Okulun bölümlerini tanır.","17- Başkalarıyla etkili iletişim kurar.","31-  İletişimde nezaket sözcüklerini yerinde kullanır.","44- Zararlı alışkanlıklardan kendini korumanın önemini kavrar."]
["8- Okuldaki rol ve sorumluluklarını fark eder.","8- Günlük yaşamda yaptığı tercihleri etkileyen faktörleri fark eder.","8- Sınıfta söz isteyerek düşüncelerini ifade etmeye istekli olur.","8- Problem çözme basamaklarını açıklar.","8- Kendisinin özel olduğunu fark eder.","8- Okulun eğitsel imkânları hakkında bilgi edinir.","8- Duyguların insan yaşamı için önemini kabul eder.","8- İlgi ve hobilerini ayırt eder.","8- Stresle baş etmede uygun yöntemler kullanır.","8- Kendi mesleki değerlerinin farkına varır.","8- Hatırlamayı zorlaştıran ve unutmaya neden olan faktörleri açıklar.","8- Yaşam değerleri ve davranışları arasında bağ kurar.","8- Akademik çalışmalarını zamanında bitirmede kararlı olur.",{"$f":"IF(IF(Bilgi!$B$5=\"\",\"\",IF(Bilgi!$B$5=\"Okul Öncesi\",Sayfa2!A25,IF(Bilgi!$B$5=\"1. Sınıf\",Sayfa2!B25,IF(Bilgi!$B$5=\"2. Sınıf\",Sayfa2!C25,IF(Bilgi!$B$5=\"3. Sınıf\",Sayfa2!D25,IF(Bilgi!$B$5=\"4. Sınıf\",Sayfa2!E25,IF(Bilgi!$B$5=\"5. Sınıf\",Sayfa2!F25,IF(Bilgi!$B$5=\"6. Sınıf\",Sayfa2!G25,IF(Bilgi!$B$5=\"7. Sınıf\",Sayfa2!H25,IF(Bilgi!$B$5=\"8. Sınıf\",Sayfa2!I25,IF(Bilgi!$B$5=\"9. Sınıf\",Sayfa2!J25,IF(Bilgi!$B$5=\"10. Sınıf\",Sayfa2!K25,IF(Bilgi!$B$5=\"11. Sınıf\",Sayfa2!L25,IF(Bilgi!$B$5=\"12. Sınıf\",Sayfa2!M25,IF(Bilgi!$B$5=\"9. Sınıf ÖEMO\",Sayfa2!O25,IF(Bilgi!$B$5=\"10. Sınıf ÖEMO\",Sayfa2!P25,IF(Bilgi!$B$5=\"11. Sınıf ÖEMO\",Sayfa2!Q25,IF(Bilgi!$B$5=\"12. Sınıf ÖEMO\",Sayfa2!R25,\"Lütfen Bilgi Sayfasından Sınıf Seçimi Yapınız\"))))))))))))))))))=0,\"\",(IF(Bilgi!$B$5=\"\",\"\",IF(Bilgi!$B$5=\"Okul Öncesi\",Sayfa2!A25,IF(Bilgi!$B$5=\"1. Sınıf\",Sayfa2!B25,IF(Bilgi!$B$5=\"2. Sınıf\",Sayfa2!C25,IF(Bilgi!$B$5=\"3. Sınıf\",Sayfa2!D25,IF(Bilgi!$B$5=\"4. Sınıf\",Sayfa2!E25,IF(Bilgi!$B$5=\"5. Sınıf\",Sayfa2!F25,IF(Bilgi!$B$5=\"6. Sınıf\",Sayfa2!G25,IF(Bilgi!$B$5=\"7. Sınıf\",Sayfa2!H25,IF(Bilgi!$B$5=\"8. Sınıf\",Sayfa2!I25,IF(Bilgi!$B$5=\"9. Sınıf\",Sayfa2!J25,IF(Bilgi!$B$5=\"10. Sınıf\",Sayfa2!K25,IF(Bilgi!$B$5=\"11. Sınıf\",Sayfa2!L25,IF(Bilgi!$B$5=\"12. Sınıf\",Sayfa2!M25,IF(Bilgi!$B$5=\"9. Sınıf ÖEMO\",Sayfa2!O25,IF(Bilgi!$B$5=\"10. Sınıf ÖEMO\",Sayfa2!P25,IF(Bilgi!$B$5=\"11. Sınıf ÖEMO\",Sayfa2!Q25,IF(Bilgi!$B$5=\"12. Sınıf ÖEMO\",Sayfa2!R25,\"Lütfen Bilgi Sayfasından Sınıf Seçimi Yapınız\"))))))))))))))))))))","v":"7- Üst öğretim kurumlarına geçiş sınavlarına hazırlanmak ve başarılı olmak için stratejiler geliştirir."},"Belirli Gün ve Haftalar / Sosyal Kulüp Çalışmaları","Belirli Gün ve Haftalar / Sosyal Kulüp Çalışmaları","Belirli Gün ve Haftalar / Sosyal Kulüp Çalışmaları","Belirli Gün ve Haftalar / Sosyal Kulüp Çalışmaları"]
["9- Yakın çevresindeki kişilerin mesleklerini tanır.","9- Yaşamındaki rol ve sorumluluklarına örnek verir.","9- Öğrenme etkinliklerine katılmaya istekli olur.","9- Kendisi için verimli öğrenme ve çalışma koşullarını oluşturur.","9- Adil olmayı güçlendirmek için “hak savunuculuğu” yapar.","9- Sanatsal ve sportif etkinliklerden hoşlandıklarını ayırt eder.","9- Duygularını uygun biçimde ifade etme alışkanlığı kazanır.","9- Akademik çalışmaları ile ilgili değişen durumlara uygun davranışlar sergiler.","9- Stresle baş etmede uygun yöntemler kullanır.","9- Kendi mesleki değerlerinin farkına varır.","9- Öğrenme ve verimli çalışma stratejilerini kullanma açısından kendisini değerlendirir.","9- İlgi, yetenek ve mesleki değerlerini ilişkilendirir.","9- Kariyer planlama sürecinde kişisel özelliklerini kullanır.",{"$f":"IF(IF(Bilgi!$B$5=\"\",\"\",IF(Bilgi!$B$5=\"Okul Öncesi\",Sayfa2!A26,IF(Bilgi!$B$5=\"1. Sınıf\",Sayfa2!B26,IF(Bilgi!$B$5=\"2. Sınıf\",Sayfa2!C26,IF(Bilgi!$B$5=\"3. Sınıf\",Sayfa2!D26,IF(Bilgi!$B$5=\"4. Sınıf\",Sayfa2!E26,IF(Bilgi!$B$5=\"5. Sınıf\",Sayfa2!F26,IF(Bilgi!$B$5=\"6. Sınıf\",Sayfa2!G26,IF(Bilgi!$B$5=\"7. Sınıf\",Sayfa2!H26,IF(Bilgi!$B$5=\"8. Sınıf\",Sayfa2!I26,IF(Bilgi!$B$5=\"9. Sınıf\",Sayfa2!J26,IF(Bilgi!$B$5=\"10. Sınıf\",Sayfa2!K26,IF(Bilgi!$B$5=\"11. Sınıf\",Sayfa2!L26,IF(Bilgi!$B$5=\"12. Sınıf\",Sayfa2!M26,IF(Bilgi!$B$5=\"9. Sınıf ÖEMO\",Sayfa2!O26,IF(Bilgi!$B$5=\"10. Sınıf ÖEMO\",Sayfa2!P26,IF(Bilgi!$B$5=\"11. Sınıf ÖEMO\",Sayfa2!Q26,IF(Bilgi!$B$5=\"12. Sınıf ÖEMO\",Sayfa2!R26,\"Lütfen Bilgi Sayfasından Sınıf Seçimi Yapınız\"))))))))))))))))))=0,\"\",(IF(Bilgi!$B$5=\"\",\"\",IF(Bilgi!$B$5=\"Okul Öncesi\",Sayfa2!A26,IF(Bilgi!$B$5=\"1. Sınıf\",Sayfa2!B26,IF(Bilgi!$B$5=\"2. Sınıf\",Sayfa2!C26,IF(Bilgi!$B$5=\"3. Sınıf\",Sayfa2!D26,IF(Bilgi!$B$5=\"4. Sınıf\",Sayfa2!E26,IF(Bilgi!$B$5=\"5. Sınıf\",Sayfa2!F26,IF(Bilgi!$B$5=\"6. Sınıf\",Sayfa2!G26,IF(Bilgi!$B$5=\"7. Sınıf\",Sayfa2!H26,IF(Bilgi!$B$5=\"8. Sınıf\",Sayfa2!I26,IF(Bilgi!$B$5=\"9. Sınıf\",Sayfa2!J26,IF(Bilgi!$B$5=\"10. Sınıf\",Sayfa2!K26,IF(Bilgi!$B$5=\"11. Sınıf\",Sayfa2!L26,IF(Bilgi!$B$5=\"12. Sınıf\",Sayfa2!M26,IF(Bilgi!$B$5=\"9. Sınıf ÖEMO\",Sayfa2!O26,IF(Bilgi!$B$5=\"10. Sınıf ÖEMO\",Sayfa2!P26,IF(Bilgi!$B$5=\"11. Sınıf ÖEMO\",Sayfa2!Q26,IF(Bilgi!$B$5=\"12. Sınıf ÖEMO\",Sayfa2!R26,\"Lütfen Bilgi Sayfasından Sınıf Seçimi Yapınız\"))))))))))))))))))))","v":"8- Akademik çalışmalarını zamanında bitirmede kararlı olur."},"4- Okul servisi kurallarına uyar.","18- Gerekli durumlarda sırasını bekler.","32- Öfke ile başa çıkma yollarını kullanır.","45- Okul araç gereçlerini tanır."]
["10- Her çocuğun hak ve sorumlulukları olduğunu fark eder.","10- Her çocuğun hak ve sorumluluklarının olduğunu bilir.","10- Arkadaşlarının olumlu özelliklerini takdir eder.","10- Takım çalışmalarının kişisel gelişimine etkilerini fark eder.","10- Adil olmayı güçlendirmek için “hak savunuculuğu” yapar.","10- Okul hazırlığına ilişkin sorumluluklarını üstlenir.","10- Çatışma çözme becerilerini kullanır.","10- Mesleklerle ilgili bilgi kaynaklarına ulaşır.","10- Sınavlara ilişkin duygularını açıklar","10- Akademik gelişimi için amaçlar oluşturur.","10- Kısa ve uzun vadeli kariyer amaçlarını belirler.","10- Eğitsel etkinliklerdeki başarısızlıkların öğrenme sürecinin bir parçası olduğunu kabul eder.","10- Ortaöğretim sonrası kariyer tercihleri ile ilgili yardım alabileceği kaynaklara başvurur.",{"$f":"IF(IF(Bilgi!$B$5=\"\",\"\",IF(Bilgi!$B$5=\"Okul Öncesi\",Sayfa2!A27,IF(Bilgi!$B$5=\"1. Sınıf\",Sayfa2!B27,IF(Bilgi!$B$5=\"2. Sınıf\",Sayfa2!C27,IF(Bilgi!$B$5=\"3. Sınıf\",Sayfa2!D27,IF(Bilgi!$B$5=\"4. Sınıf\",Sayfa2!E27,IF(Bilgi!$B$5=\"5. Sınıf\",Sayfa2!F27,IF(Bilgi!$B$5=\"6. Sınıf\",Sayfa2!G27,IF(Bilgi!$B$5=\"7. Sınıf\",Sayfa2!H27,IF(Bilgi!$B$5=\"8. Sınıf\",Sayfa2!I27,IF(Bilgi!$B$5=\"9. Sınıf\",Sayfa2!J27,IF(Bilgi!$B$5=\"10. Sınıf\",Sayfa2!K27,IF(Bilgi!$B$5=\"11. Sınıf\",Sayfa2!L27,IF(Bilgi!$B$5=\"12. Sınıf\",Sayfa2!M27,IF(Bilgi!$B$5=\"9. Sınıf ÖEMO\",Sayfa2!O27,IF(Bilgi!$B$5=\"10. Sınıf ÖEMO\",Sayfa2!P27,IF(Bilgi!$B$5=\"11. Sınıf ÖEMO\",Sayfa2!Q27,IF(Bilgi!$B$5=\"12. Sınıf ÖEMO\",Sayfa2!R27,\"Lütfen Bilgi Sayfasından Sınıf Seçimi Yapınız\"))))))))))))))))))=0,\"\",(IF(Bilgi!$B$5=\"\",\"\",IF(Bilgi!$B$5=\"Okul Öncesi\",Sayfa2!A27,IF(Bilgi!$B$5=\"1. Sınıf\",Sayfa2!B27,IF(Bilgi!$B$5=\"2. Sınıf\",Sayfa2!C27,IF(Bilgi!$B$5=\"3. Sınıf\",Sayfa2!D27,IF(Bilgi!$B$5=\"4. Sınıf\",Sayfa2!E27,IF(Bilgi!$B$5=\"5. Sınıf\",Sayfa2!F27,IF(Bilgi!$B$5=\"6. Sınıf\",Sayfa2!G27,IF(Bilgi!$B$5=\"7. Sınıf\",Sayfa2!H27,IF(Bilgi!$B$5=\"8. Sınıf\",Sayfa2!I27,IF(Bilgi!$B$5=\"9. Sınıf\",Sayfa2!J27,IF(Bilgi!$B$5=\"10. Sınıf\",Sayfa2!K27,IF(Bilgi!$B$5=\"11. Sınıf\",Sayfa2!L27,IF(Bilgi!$B$5=\"12. Sınıf\",Sayfa2!M27,IF(Bilgi!$B$5=\"9. Sınıf ÖEMO\",Sayfa2!O27,IF(Bilgi!$B$5=\"10. Sınıf ÖEMO\",Sayfa2!P27,IF(Bilgi!$B$5=\"11. Sınıf ÖEMO\",Sayfa2!Q27,IF(Bilgi!$B$5=\"12. Sınıf ÖEMO\",Sayfa2!R27,\"Lütfen Bilgi Sayfasından Sınıf Seçimi Yapınız\"))))))))))))))))))))","v":"9- Kariyer planlama sürecinde kişisel özelliklerini kullanır."},"Belirli Gün ve Haftalar / Sosyal Kulüp Çalışmaları","Belirli Gün ve Haftalar / Sosyal Kulüp Çalışmaları","Belirli Gün ve Haftalar / Sosyal Kulüp Çalışmaları","Belirli Gün ve Haftalar / Sosyal Kulüp Çalışmaları"]
["11- Fiziksel özelliklerini söyler.","11- Fiziksel özelliklerini söyler.","11- Grup çalışmalarında katılımcıları dinler.","11- Okul içinde ve dışında katıldığı etkinliklerde yapabildiklerini fark eder.","11- Bilişim teknolojileri kullanımında kendini yönetir.","11- Okulunun ve sınıfının bir üyesi olduğunu fark eder.","11- Çatışma çözme becerilerini kullanır.","11- Her bireyin hak ve sorumlulukları olduğunu bilir.","11- Üst öğretim kurumlarına geçiş sınavlarına hazırlanmak ve başarılı olmak için stratejiler geliştirir.","11- Okula devam etme ile akademik gelişimi arasındaki ilişkiyi değerlendirir.","11- Kısa ve uzun vadeli kariyer amaçlarını belirler.","11- Öğrenme sürecinde deneyimlediği başarısızlıkların üstesinden gelmek için farklı çözüm yolları dener.","11- Kültürel farklılıklara duyarlı bakış açısı geliştirir.",{"$f":"IF(IF(Bilgi!$B$5=\"\",\"\",IF(Bilgi!$B$5=\"Okul Öncesi\",Sayfa2!A28,IF(Bilgi!$B$5=\"1. Sınıf\",Sayfa2!B28,IF(Bilgi!$B$5=\"2. Sınıf\",Sayfa2!C28,IF(Bilgi!$B$5=\"3. Sınıf\",Sayfa2!D28,IF(Bilgi!$B$5=\"4. Sınıf\",Sayfa2!E28,IF(Bilgi!$B$5=\"5. Sınıf\",Sayfa2!F28,IF(Bilgi!$B$5=\"6. Sınıf\",Sayfa2!G28,IF(Bilgi!$B$5=\"7. Sınıf\",Sayfa2!H28,IF(Bilgi!$B$5=\"8. Sınıf\",Sayfa2!I28,IF(Bilgi!$B$5=\"9. Sınıf\",Sayfa2!J28,IF(Bilgi!$B$5=\"10. Sınıf\",Sayfa2!K28,IF(Bilgi!$B$5=\"11. Sınıf\",Sayfa2!L28,IF(Bilgi!$B$5=\"12. Sınıf\",Sayfa2!M28,IF(Bilgi!$B$5=\"9. Sınıf ÖEMO\",Sayfa2!O28,IF(Bilgi!$B$5=\"10. Sınıf ÖEMO\",Sayfa2!P28,IF(Bilgi!$B$5=\"11. Sınıf ÖEMO\",Sayfa2!Q28,IF(Bilgi!$B$5=\"12. Sınıf ÖEMO\",Sayfa2!R28,\"Lütfen Bilgi Sayfasından Sınıf Seçimi Yapınız\"))))))))))))))))))=0,\"\",(IF(Bilgi!$B$5=\"\",\"\",IF(Bilgi!$B$5=\"Okul Öncesi\",Sayfa2!A28,IF(Bilgi!$B$5=\"1. Sınıf\",Sayfa2!B28,IF(Bilgi!$B$5=\"2. Sınıf\",Sayfa2!C28,IF(Bilgi!$B$5=\"3. Sınıf\",Sayfa2!D28,IF(Bilgi!$B$5=\"4. Sınıf\",Sayfa2!E28,IF(Bilgi!$B$5=\"5. Sınıf\",Sayfa2!F28,IF(Bilgi!$B$5=\"6. Sınıf\",Sayfa2!G28,IF(Bilgi!$B$5=\"7. Sınıf\",Sayfa2!H28,IF(Bilgi!$B$5=\"8. Sınıf\",Sayfa2!I28,IF(Bilgi!$B$5=\"9. Sınıf\",Sayfa2!J28,IF(Bilgi!$B$5=\"10. Sınıf\",Sayfa2!K28,IF(Bilgi!$B$5=\"11. Sınıf\",Sayfa2!L28,IF(Bilgi!$B$5=\"12. Sınıf\",Sayfa2!M28,IF(Bilgi!$B$5=\"9. Sınıf ÖEMO\",Sayfa2!O28,IF(Bilgi!$B$5=\"10. Sınıf ÖEMO\",Sayfa2!P28,IF(Bilgi!$B$5=\"11. Sınıf ÖEMO\",Sayfa2!Q28,IF(Bilgi!$B$5=\"12. Sınıf ÖEMO\",Sayfa2!R28,\"Lütfen Bilgi Sayfasından Sınıf Seçimi Yapınız\"))))))))))))))))))))","v":"10- Ortaöğretim sonrası kariyer tercihleri ile ilgili yardım alabileceği kaynaklara başvurur."},"Belirli Gün ve Haftalar / Sosyal Kulüp Çalışmaları","Belirli Gün ve Haftalar / Sosyal Kulüp Çalışmaları","Belirli Gün ve Haftalar / Sosyal Kulüp Çalışmaları","Belirli Gün ve Haftalar / Sosyal Kulüp Çalışmaları"]
["12- Kendini tanıtır.","12- Bireylerin birbirinden fiziksel açıdan farklılığının doğal olduğunu bilir.","12- Bireylerin birbirinden fiziksel ve kişilik özellikleri açısından farklılığının doğal olduğunu bilir.","12- Okul içindeki ve dışındaki eğitsel ve sosyal etkinliklere katılmanın gelişimine katkılarını değerlendirir.","12- Akademik sorumlulukları ertelemenin sonuçlarını fark eder.","12- Akademik gelişimi için amaçlar oluşturur.","12- Durum ve olayların bireylerin duygusuna etkisini fark eder.","12- Kendisi için verimli öğrenme ve ders çalışma koşullarını oluşturur.","12- Davranışları ve değerleri arasında bağ kurar.","12- Kişilerarası ilişkilerde duyguları ifade etmenin önemini fark eder.","12- Akademik amaçlarıyla seçmek istediği kariyerlerin gerektirdiği akademik koşullar arasında bağ kurar.","12- Geleceğini hayal ederek başarılı yaşam amaçları oluşturur.","12- Kültürel farklılıklara duyarlı davranışlar sergiler.",{"$f":"IF(IF(Bilgi!$B$5=\"\",\"\",IF(Bilgi!$B$5=\"Okul Öncesi\",Sayfa2!A29,IF(Bilgi!$B$5=\"1. Sınıf\",Sayfa2!B29,IF(Bilgi!$B$5=\"2. Sınıf\",Sayfa2!C29,IF(Bilgi!$B$5=\"3. Sınıf\",Sayfa2!D29,IF(Bilgi!$B$5=\"4. Sınıf\",Sayfa2!E29,IF(Bilgi!$B$5=\"5. Sınıf\",Sayfa2!F29,IF(Bilgi!$B$5=\"6. Sınıf\",Sayfa2!G29,IF(Bilgi!$B$5=\"7. Sınıf\",Sayfa2!H29,IF(Bilgi!$B$5=\"8. Sınıf\",Sayfa2!I29,IF(Bilgi!$B$5=\"9. Sınıf\",Sayfa2!J29,IF(Bilgi!$B$5=\"10. Sınıf\",Sayfa2!K29,IF(Bilgi!$B$5=\"11. Sınıf\",Sayfa2!L29,IF(Bilgi!$B$5=\"12. Sınıf\",Sayfa2!M29,IF(Bilgi!$B$5=\"9. Sınıf ÖEMO\",Sayfa2!O29,IF(Bilgi!$B$5=\"10. Sınıf ÖEMO\",Sayfa2!P29,IF(Bilgi!$B$5=\"11. Sınıf ÖEMO\",Sayfa2!Q29,IF(Bilgi!$B$5=\"12. Sınıf ÖEMO\",Sayfa2!R29,\"Lütfen Bilgi Sayfasından Sınıf Seçimi Yapınız\"))))))))))))))))))=0,\"\",(IF(Bilgi!$B$5=\"\",\"\",IF(Bilgi!$B$5=\"Okul Öncesi\",Sayfa2!A29,IF(Bilgi!$B$5=\"1. Sınıf\",Sayfa2!B29,IF(Bilgi!$B$5=\"2. Sınıf\",Sayfa2!C29,IF(Bilgi!$B$5=\"3. Sınıf\",Sayfa2!D29,IF(Bilgi!$B$5=\"4. Sınıf\",Sayfa2!E29,IF(Bilgi!$B$5=\"5. Sınıf\",Sayfa2!F29,IF(Bilgi!$B$5=\"6. Sınıf\",Sayfa2!G29,IF(Bilgi!$B$5=\"7. Sınıf\",Sayfa2!H29,IF(Bilgi!$B$5=\"8. Sınıf\",Sayfa2!I29,IF(Bilgi!$B$5=\"9. Sınıf\",Sayfa2!J29,IF(Bilgi!$B$5=\"10. Sınıf\",Sayfa2!K29,IF(Bilgi!$B$5=\"11. Sınıf\",Sayfa2!L29,IF(Bilgi!$B$5=\"12. Sınıf\",Sayfa2!M29,IF(Bilgi!$B$5=\"9. Sınıf ÖEMO\",Sayfa2!O29,IF(Bilgi!$B$5=\"10. Sınıf ÖEMO\",Sayfa2!P29,IF(Bilgi!$B$5=\"11. Sınıf ÖEMO\",Sayfa2!Q29,IF(Bilgi!$B$5=\"12. Sınıf ÖEMO\",Sayfa2!R29,\"Lütfen Bilgi Sayfasından Sınıf Seçimi Yapınız\"))))))))))))))))))))","v":"11- Kültürel farklılıklara duyarlı bakış açısı geliştirir."},"5- Okul kurallarına uyar.","19- Soru sorma becerisi geliştirir.","33- Zorbalıkla başa çıkma yollarını bilir.","46- Okul araç gereçlerinin kullanımına özen gösterir."]
["13- Bireylerin birbirinden fiziksel açıdan farklılığının doğal olduğunu bilir.","13- Yakın çevresindeki kişilerin mesleklerini tanır.","13- Bireylerin birbirinden fiziksel ve kişilik özellikleri açısından farklılığının doğal olduğunu bilir.","13- Bireysel farklılıkları kabul eder.","13- Bir davranış sergilemeden önce mevcut seçenekleri göz önünde bulundurur.","13- Sahip olduğu karakter güçlerini fark eder.","13- Sınıf tartışmalarında dinleyici ve katılımcı rolü üstlenir.","13- Öğrenme etkinliklerine yönelik duygu ve düşüncelerini ifade eder.","13- Mesleki değerlerinin farkına varır.","13- Yaşam değerleri ile mesleki değerlerini ayırt eder.","13- Beden imgesini etkileyen faktörler açısından kendini değerlendirir.","13- Yaşam amaçlarına ulaşmak için bir eylem planı hazırlar.","13- Adil olmayı güçlendirmek için “hak savunuculuğu” yapar.",{"$f":"IF(IF(Bilgi!$B$5=\"\",\"\",IF(Bilgi!$B$5=\"Okul Öncesi\",Sayfa2!A30,IF(Bilgi!$B$5=\"1. Sınıf\",Sayfa2!B30,IF(Bilgi!$B$5=\"2. Sınıf\",Sayfa2!C30,IF(Bilgi!$B$5=\"3. Sınıf\",Sayfa2!D30,IF(Bilgi!$B$5=\"4. Sınıf\",Sayfa2!E30,IF(Bilgi!$B$5=\"5. Sınıf\",Sayfa2!F30,IF(Bilgi!$B$5=\"6. Sınıf\",Sayfa2!G30,IF(Bilgi!$B$5=\"7. Sınıf\",Sayfa2!H30,IF(Bilgi!$B$5=\"8. Sınıf\",Sayfa2!I30,IF(Bilgi!$B$5=\"9. Sınıf\",Sayfa2!J30,IF(Bilgi!$B$5=\"10. Sınıf\",Sayfa2!K30,IF(Bilgi!$B$5=\"11. Sınıf\",Sayfa2!L30,IF(Bilgi!$B$5=\"12. Sınıf\",Sayfa2!M30,IF(Bilgi!$B$5=\"9. Sınıf ÖEMO\",Sayfa2!O30,IF(Bilgi!$B$5=\"10. Sınıf ÖEMO\",Sayfa2!P30,IF(Bilgi!$B$5=\"11. Sınıf ÖEMO\",Sayfa2!Q30,IF(Bilgi!$B$5=\"12. Sınıf ÖEMO\",Sayfa2!R30,\"Lütfen Bilgi Sayfasından Sınıf Seçimi Yapınız\"))))))))))))))))))=0,\"\",(IF(Bilgi!$B$5=\"\",\"\",IF(Bilgi!$B$5=\"Okul Öncesi\",Sayfa2!A30,IF(Bilgi!$B$5=\"1. Sınıf\",Sayfa2!B30,IF(Bilgi!$B$5=\"2. Sınıf\",Sayfa2!C30,IF(Bilgi!$B$5=\"3. Sınıf\",Sayfa2!D30,IF(Bilgi!$B$5=\"4. Sınıf\",Sayfa2!E30,IF(Bilgi!$B$5=\"5. Sınıf\",Sayfa2!F30,IF(Bilgi!$B$5=\"6. Sınıf\",Sayfa2!G30,IF(Bilgi!$B$5=\"7. Sınıf\",Sayfa2!H30,IF(Bilgi!$B$5=\"8. Sınıf\",Sayfa2!I30,IF(Bilgi!$B$5=\"9. Sınıf\",Sayfa2!J30,IF(Bilgi!$B$5=\"10. Sınıf\",Sayfa2!K30,IF(Bilgi!$B$5=\"11. Sınıf\",Sayfa2!L30,IF(Bilgi!$B$5=\"12. Sınıf\",Sayfa2!M30,IF(Bilgi!$B$5=\"9. Sınıf ÖEMO\",Sayfa2!O30,IF(Bilgi!$B$5=\"10. Sınıf ÖEMO\",Sayfa2!P30,IF(Bilgi!$B$5=\"11. Sınıf ÖEMO\",Sayfa2!Q30,IF(Bilgi!$B$5=\"12. Sınıf ÖEMO\",Sayfa2!R30,\"Lütfen Bilgi Sayfasından Sınıf Seçimi Yapınız\"))))))))))))))))))))","v":"12- Kültürel farklılıklara duyarlı davranışlar sergiler."},"Belirli Gün ve Haftalar / Sosyal Kulüp Çalışmaları","Belirli Gün ve Haftalar / Sosyal Kulüp Çalışmaları","Belirli Gün ve Haftalar / Sosyal Kulüp Çalışmaları","Belirli Gün ve Haftalar / Sosyal Kulüp Çalışmaları"]
["14- Okuldaki riskli olabilecek durum, ortam ve davranışları açıklar.","14- Yaşadığı duyguları fark eder.","14- Kişisel güvenliği için kişisel alanların gerekliliğini fark eder.","14- Bireysel farklılıkları kabul eder.","14- Hoşlandığı etkinliklerle mesleklerin özelliklerini ilişkilendirir.","14- Sahip olduğu karakter güçlerini fark eder.","14- Hoşlandığı etkinliklerin ilgilerinin bir göstergesi olabileceğini fark eder.","14- Arkadaşlarının olumlu özelliklerini takdir eder.","14- Kısa ve uzun vadeli kariyer amaçları oluşturur.","14- Okul ve çevresinde risk oluşturabilecek durum ve ortamlara karşı kendisini korur.","14- Gelişim dönemi ile duygusal dalgalanmaları arasında bağ kurar.","14- Liderlik özellikleri açısından kendini değerlendirir.","14- Yaşam amaçlarıyla ilgili eylem planını gözden geçirir.",{"$f":"IF(IF(Bilgi!$B$5=\"\",\"\",IF(Bilgi!$B$5=\"Okul Öncesi\",Sayfa2!A31,IF(Bilgi!$B$5=\"1. Sınıf\",Sayfa2!B31,IF(Bilgi!$B$5=\"2. Sınıf\",Sayfa2!C31,IF(Bilgi!$B$5=\"3. Sınıf\",Sayfa2!D31,IF(Bilgi!$B$5=\"4. Sınıf\",Sayfa2!E31,IF(Bilgi!$B$5=\"5. Sınıf\",Sayfa2!F31,IF(Bilgi!$B$5=\"6. Sınıf\",Sayfa2!G31,IF(Bilgi!$B$5=\"7. Sınıf\",Sayfa2!H31,IF(Bilgi!$B$5=\"8. Sınıf\",Sayfa2!I31,IF(Bilgi!$B$5=\"9. Sınıf\",Sayfa2!J31,IF(Bilgi!$B$5=\"10. Sınıf\",Sayfa2!K31,IF(Bilgi!$B$5=\"11. Sınıf\",Sayfa2!L31,IF(Bilgi!$B$5=\"12. Sınıf\",Sayfa2!M31,IF(Bilgi!$B$5=\"9. Sınıf ÖEMO\",Sayfa2!O31,IF(Bilgi!$B$5=\"10. Sınıf ÖEMO\",Sayfa2!P31,IF(Bilgi!$B$5=\"11. Sınıf ÖEMO\",Sayfa2!Q31,IF(Bilgi!$B$5=\"12. Sınıf ÖEMO\",Sayfa2!R31,\"Lütfen Bilgi Sayfasından Sınıf Seçimi Yapınız\"))))))))))))))))))=0,\"\",(IF(Bilgi!$B$5=\"\",\"\",IF(Bilgi!$B$5=\"Okul Öncesi\",Sayfa2!A31,IF(Bilgi!$B$5=\"1. Sınıf\",Sayfa2!B31,IF(Bilgi!$B$5=\"2. Sınıf\",Sayfa2!C31,IF(Bilgi!$B$5=\"3. Sınıf\",Sayfa2!D31,IF(Bilgi!$B$5=\"4. Sınıf\",Sayfa2!E31,IF(Bilgi!$B$5=\"5. Sınıf\",Sayfa2!F31,IF(Bilgi!$B$5=\"6. Sınıf\",Sayfa2!G31,IF(Bilgi!$B$5=\"7. Sınıf\",Sayfa2!H31,IF(Bilgi!$B$5=\"8. Sınıf\",Sayfa2!I31,IF(Bilgi!$B$5=\"9. Sınıf\",Sayfa2!J31,IF(Bilgi!$B$5=\"10. Sınıf\",Sayfa2!K31,IF(Bilgi!$B$5=\"11. Sınıf\",Sayfa2!L31,IF(Bilgi!$B$5=\"12. Sınıf\",Sayfa2!M31,IF(Bilgi!$B$5=\"9. Sınıf ÖEMO\",Sayfa2!O31,IF(Bilgi!$B$5=\"10. Sınıf ÖEMO\",Sayfa2!P31,IF(Bilgi!$B$5=\"11. Sınıf ÖEMO\",Sayfa2!Q31,IF(Bilgi!$B$5=\"12. Sınıf ÖEMO\",Sayfa2!R31,\"Lütfen Bilgi Sayfasından Sınıf Seçimi Yapınız\"))))))))))))))))))))","v":"13- Adil olmayı güçlendirmek için “hak savunuculuğu” yapar."},"6- Okulun yakın çevresini tanır.","20- Arkadaşlık ilişkilerinde yardımlaşmanın önemini fark eder.","34- Kişisel sınırların farkında olur.","47- Grupta işbirliği içinde çalışır."]
["15- Okul çevresindeki riskli olabilecek durum, ortam ve davranışları açıklar.","15- Duyguların uygun olan ve olmayan ifade etme biçimlerini ayırt eder.","15- Kişisel güvenliği için kişisel alanların gerekliliğini fark eder.","15- Çalışma ve üretmenin kendisi için önemini fark eder.","15- Hoşlandığı etkinliklerle mesleklerin özelliklerini ilişkilendirir.","15- Arkadaşlık kurmada karakter güçlerini kullanır.","15- İlgileri ile dersleri ilişkilendirir.","15- Arkadaşlık ilişkilerinde yaşadığı sorunları yapıcı yollarla çözer.","15- İhtiyaç duyduğunda yardım arar.","15- Kısa ve uzun vadeli kariyer amaçlarını tekrar inceler.","15- Kariyer beklentileri ile kariyer amaçlarını karşılaştırır.","15- Yerel ve küresel sorunları tartışır.","15- Yaşadığı yoğun duyguları yönetir.",{"$f":"IF(IF(Bilgi!$B$5=\"\",\"\",IF(Bilgi!$B$5=\"Okul Öncesi\",Sayfa2!A32,IF(Bilgi!$B$5=\"1. Sınıf\",Sayfa2!B32,IF(Bilgi!$B$5=\"2. Sınıf\",Sayfa2!C32,IF(Bilgi!$B$5=\"3. Sınıf\",Sayfa2!D32,IF(Bilgi!$B$5=\"4. Sınıf\",Sayfa2!E32,IF(Bilgi!$B$5=\"5. Sınıf\",Sayfa2!F32,IF(Bilgi!$B$5=\"6. Sınıf\",Sayfa2!G32,IF(Bilgi!$B$5=\"7. Sınıf\",Sayfa2!H32,IF(Bilgi!$B$5=\"8. Sınıf\",Sayfa2!I32,IF(Bilgi!$B$5=\"9. Sınıf\",Sayfa2!J32,IF(Bilgi!$B$5=\"10. Sınıf\",Sayfa2!K32,IF(Bilgi!$B$5=\"11. Sınıf\",Sayfa2!L32,IF(Bilgi!$B$5=\"12. Sınıf\",Sayfa2!M32,IF(Bilgi!$B$5=\"9. Sınıf ÖEMO\",Sayfa2!O32,IF(Bilgi!$B$5=\"10. Sınıf ÖEMO\",Sayfa2!P32,IF(Bilgi!$B$5=\"11. Sınıf ÖEMO\",Sayfa2!Q32,IF(Bilgi!$B$5=\"12. Sınıf ÖEMO\",Sayfa2!R32,\"Lütfen Bilgi Sayfasından Sınıf Seçimi Yapınız\"))))))))))))))))))=0,\"\",(IF(Bilgi!$B$5=\"\",\"\",IF(Bilgi!$B$5=\"Okul Öncesi\",Sayfa2!A32,IF(Bilgi!$B$5=\"1. Sınıf\",Sayfa2!B32,IF(Bilgi!$B$5=\"2. Sınıf\",Sayfa2!C32,IF(Bilgi!$B$5=\"3. Sınıf\",Sayfa2!D32,IF(Bilgi!$B$5=\"4. Sınıf\",Sayfa2!E32,IF(Bilgi!$B$5=\"5. Sınıf\",Sayfa2!F32,IF(Bilgi!$B$5=\"6. Sınıf\",Sayfa2!G32,IF(Bilgi!$B$5=\"7. Sınıf\",Sayfa2!H32,IF(Bilgi!$B$5=\"8. Sınıf\",Sayfa2!I32,IF(Bilgi!$B$5=\"9. Sınıf\",Sayfa2!J32,IF(Bilgi!$B$5=\"10. Sınıf\",Sayfa2!K32,IF(Bilgi!$B$5=\"11. Sınıf\",Sayfa2!L32,IF(Bilgi!$B$5=\"12. Sınıf\",Sayfa2!M32,IF(Bilgi!$B$5=\"9. Sınıf ÖEMO\",Sayfa2!O32,IF(Bilgi!$B$5=\"10. Sınıf ÖEMO\",Sayfa2!P32,IF(Bilgi!$B$5=\"11. Sınıf ÖEMO\",Sayfa2!Q32,IF(Bilgi!$B$5=\"12. Sınıf ÖEMO\",Sayfa2!R32,\"Lütfen Bilgi Sayfasından Sınıf Seçimi Yapınız\"))))))))))))))))))))","v":"14- Yaşam amaçlarıyla ilgili eylem planını gözden geçirir."}]
["16- Yaşadığı duyguları fark eder.","16- Duyguların uygun olan ve olmayan ifade etme biçimlerini ayırt eder.","16- Okul içinde ve dışında yapmaktan hoşlandığı etkinlikleri fark eder.","16- Çalışma ve üretmenin kendisi için önemini fark eder.","16- Toplumsal rol ve sorumlulukların önemini savunur.","16- İyi bir dinleyici olur.","16- Yaşam amaçlarına ulaşmak için bir eylem planı hazırlar.","16- Derste dinleme, not alma ve soru sorma gibi teknikleri kullanır.","16- Öğrenme ve verimli çalışma stratejilerini açıklar.","16- Fiziksel, duygusal, sosyal ve kültürel açıdan bireysel farklılıkları kabul eder.","16- Kariyer beklentileri ile kariyer amaçlarını karşılaştırır.","16- Grup çalışmalarına aktif olarak katılır.","16- Öz geçmiş yazar.",{"$f":"IF(IF(Bilgi!$B$5=\"\",\"\",IF(Bilgi!$B$5=\"Okul Öncesi\",Sayfa2!A33,IF(Bilgi!$B$5=\"1. Sınıf\",Sayfa2!B33,IF(Bilgi!$B$5=\"2. Sınıf\",Sayfa2!C33,IF(Bilgi!$B$5=\"3. Sınıf\",Sayfa2!D33,IF(Bilgi!$B$5=\"4. Sınıf\",Sayfa2!E33,IF(Bilgi!$B$5=\"5. Sınıf\",Sayfa2!F33,IF(Bilgi!$B$5=\"6. Sınıf\",Sayfa2!G33,IF(Bilgi!$B$5=\"7. Sınıf\",Sayfa2!H33,IF(Bilgi!$B$5=\"8. Sınıf\",Sayfa2!I33,IF(Bilgi!$B$5=\"9. Sınıf\",Sayfa2!J33,IF(Bilgi!$B$5=\"10. Sınıf\",Sayfa2!K33,IF(Bilgi!$B$5=\"11. Sınıf\",Sayfa2!L33,IF(Bilgi!$B$5=\"12. Sınıf\",Sayfa2!M33,IF(Bilgi!$B$5=\"9. Sınıf ÖEMO\",Sayfa2!O33,IF(Bilgi!$B$5=\"10. Sınıf ÖEMO\",Sayfa2!P33,IF(Bilgi!$B$5=\"11. Sınıf ÖEMO\",Sayfa2!Q33,IF(Bilgi!$B$5=\"12. Sınıf ÖEMO\",Sayfa2!R33,\"Lütfen Bilgi Sayfasından Sınıf Seçimi Yapınız\"))))))))))))))))))=0,\"\",(IF(Bilgi!$B$5=\"\",\"\",IF(Bilgi!$B$5=\"Okul Öncesi\",Sayfa2!A33,IF(Bilgi!$B$5=\"1. Sınıf\",Sayfa2!B33,IF(Bilgi!$B$5=\"2. Sınıf\",Sayfa2!C33,IF(Bilgi!$B$5=\"3. Sınıf\",Sayfa2!D33,IF(Bilgi!$B$5=\"4. Sınıf\",Sayfa2!E33,IF(Bilgi!$B$5=\"5. Sınıf\",Sayfa2!F33,IF(Bilgi!$B$5=\"6. Sınıf\",Sayfa2!G33,IF(Bilgi!$B$5=\"7. Sınıf\",Sayfa2!H33,IF(Bilgi!$B$5=\"8. Sınıf\",Sayfa2!I33,IF(Bilgi!$B$5=\"9. Sınıf\",Sayfa2!J33,IF(Bilgi!$B$5=\"10. Sınıf\",Sayfa2!K33,IF(Bilgi!$B$5=\"11. Sınıf\",Sayfa2!L33,IF(Bilgi!$B$5=\"12. Sınıf\",Sayfa2!M33,IF(Bilgi!$B$5=\"9. Sınıf ÖEMO\",Sayfa2!O33,IF(Bilgi!$B$5=\"10. Sınıf ÖEMO\",Sayfa2!P33,IF(Bilgi!$B$5=\"11. Sınıf ÖEMO\",Sayfa2!Q33,IF(Bilgi!$B$5=\"12. Sınıf ÖEMO\",Sayfa2!R33,\"Lütfen Bilgi Sayfasından Sınıf Seçimi Yapınız\"))))))))))))))))))))","v":"15- Yaşadığı yoğun duyguları yönetir."},"Belirli Gün ve Haftalar / Sosyal Kulüp Çalışmaları","Belirli Gün ve Haftalar / Sosyal Kulüp Çalışmaları","Belirli Gün ve Haftalar / Sosyal Kulüp Çalışmaları","Belirli Gün ve Haftalar / Sosyal Kulüp Çalışmaları"]
["17- Duyguların uygun olan ve olmayan ifade etme biçimlerini ayırt eder.","17- Duyguların; beden diliyle, davranışlar ve yaşanan olaylarla ilişkisini kurar.","17- Okul içinde ve dışında yapmaktan hoşlandığı etkinlikleri fark eder.","17- Arkadaşlık ilişkilerinde yaşadığı sorunları yapıcı yollarla çözer","17- Akademik çalışmalarını zamanında bitirmede kararlı olur.","17- Beden dilinin iletişimdeki önemini fark eder.","17- Yaşadığı yoğun duyguları yönetir.","17- Belleğini güçlendirecek stratejileri açıklar.","17- Belleğini güçlendirecek stratejileri kullanır.","17- Mesleklerin zaman içindeki değişimini ve gelişimini takip eder.","17- Kariyer karar verme süreçlerinde kendi görüşleri ile aile ve yakın çevresinin görüşlerini karşılaştırır.","17- Okulda topluma katkı sağlayacak projeler üretir.","17- Öz geçmiş yazar.",{"$f":"IF(IF(Bilgi!$B$5=\"\",\"\",IF(Bilgi!$B$5=\"Okul Öncesi\",Sayfa2!A34,IF(Bilgi!$B$5=\"1. Sınıf\",Sayfa2!B34,IF(Bilgi!$B$5=\"2. Sınıf\",Sayfa2!C34,IF(Bilgi!$B$5=\"3. Sınıf\",Sayfa2!D34,IF(Bilgi!$B$5=\"4. Sınıf\",Sayfa2!E34,IF(Bilgi!$B$5=\"5. Sınıf\",Sayfa2!F34,IF(Bilgi!$B$5=\"6. Sınıf\",Sayfa2!G34,IF(Bilgi!$B$5=\"7. Sınıf\",Sayfa2!H34,IF(Bilgi!$B$5=\"8. Sınıf\",Sayfa2!I34,IF(Bilgi!$B$5=\"9. Sınıf\",Sayfa2!J34,IF(Bilgi!$B$5=\"10. Sınıf\",Sayfa2!K34,IF(Bilgi!$B$5=\"11. Sınıf\",Sayfa2!L34,IF(Bilgi!$B$5=\"12. Sınıf\",Sayfa2!M34,IF(Bilgi!$B$5=\"9. Sınıf ÖEMO\",Sayfa2!O34,IF(Bilgi!$B$5=\"10. Sınıf ÖEMO\",Sayfa2!P34,IF(Bilgi!$B$5=\"11. Sınıf ÖEMO\",Sayfa2!Q34,IF(Bilgi!$B$5=\"12. Sınıf ÖEMO\",Sayfa2!R34,\"Lütfen Bilgi Sayfasından Sınıf Seçimi Yapınız\"))))))))))))))))))=0,\"\",(IF(Bilgi!$B$5=\"\",\"\",IF(Bilgi!$B$5=\"Okul Öncesi\",Sayfa2!A34,IF(Bilgi!$B$5=\"1. Sınıf\",Sayfa2!B34,IF(Bilgi!$B$5=\"2. Sınıf\",Sayfa2!C34,IF(Bilgi!$B$5=\"3. Sınıf\",Sayfa2!D34,IF(Bilgi!$B$5=\"4. Sınıf\",Sayfa2!E34,IF(Bilgi!$B$5=\"5. Sınıf\",Sayfa2!F34,IF(Bilgi!$B$5=\"6. Sınıf\",Sayfa2!G34,IF(Bilgi!$B$5=\"7. Sınıf\",Sayfa2!H34,IF(Bilgi!$B$5=\"8. Sınıf\",Sayfa2!I34,IF(Bilgi!$B$5=\"9. Sınıf\",Sayfa2!J34,IF(Bilgi!$B$5=\"10. Sınıf\",Sayfa2!K34,IF(Bilgi!$B$5=\"11. Sınıf\",Sayfa2!L34,IF(Bilgi!$B$5=\"12. Sınıf\",Sayfa2!M34,IF(Bilgi!$B$5=\"9. Sınıf ÖEMO\",Sayfa2!O34,IF(Bilgi!$B$5=\"10. Sınıf ÖEMO\",Sayfa2!P34,IF(Bilgi!$B$5=\"11. Sınıf ÖEMO\",Sayfa2!Q34,IF(Bilgi!$B$5=\"12. Sınıf ÖEMO\",Sayfa2!R34,\"Lütfen Bilgi Sayfasından Sınıf Seçimi Yapınız\"))))))))))))))))))))","v":"16- Öz geçmiş yazar."},"7- Eğitim ortamında verilen görevi yapar.","21- Ortak bir eşyayı başkaları ile birlikte uygun şekilde kullanır.","35- Kendini koruma becerisi kazanır","48- Serbest zamanını ilgileri doğrultusunda değerlendirmenin önemini kavrar."]
["18- Duyguların uygun olan ve olmayan ifade etme biçimlerini ayırt eder.","18- Okul içinde ve dışında yapmaktan hoşlandığı etkinlikleri fark eder.","18- Hata yaptığında telafi etme yollarını kullanır.","18- Arkadaşlık ilişkilerinde yaşadığı sorunları yapıcı yollarla çözer","18- Başarılı olduğu durumlar için kendini takdir eder.","18- Sanatsal ve sportif etkinliklerden başarabildiklerini ayırt eder.","18- İyi oluşunu destekleyen duyguların yaşamındaki önemini fark eder.","18- Sınavlara hazırlanmayı etkileyen faktörleri açıklar.","18- İyi oluşunu destekleyen duygu ve davranışları fark eder.","18- Zorbalık ve türlerini bilir.","18- Derslerin mesleklerle ilişkisini açıklar.","18- Okulda topluma katkı sağlayacak projeler üretir.","18- Stres yaratan kaynakları fark eder.",{"$f":"IF(IF(Bilgi!$B$5=\"\",\"\",IF(Bilgi!$B$5=\"Okul Öncesi\",Sayfa2!A35,IF(Bilgi!$B$5=\"1. Sınıf\",Sayfa2!B35,IF(Bilgi!$B$5=\"2. Sınıf\",Sayfa2!C35,IF(Bilgi!$B$5=\"3. Sınıf\",Sayfa2!D35,IF(Bilgi!$B$5=\"4. Sınıf\",Sayfa2!E35,IF(Bilgi!$B$5=\"5. Sınıf\",Sayfa2!F35,IF(Bilgi!$B$5=\"6. Sınıf\",Sayfa2!G35,IF(Bilgi!$B$5=\"7. Sınıf\",Sayfa2!H35,IF(Bilgi!$B$5=\"8. Sınıf\",Sayfa2!I35,IF(Bilgi!$B$5=\"9. Sınıf\",Sayfa2!J35,IF(Bilgi!$B$5=\"10. Sınıf\",Sayfa2!K35,IF(Bilgi!$B$5=\"11. Sınıf\",Sayfa2!L35,IF(Bilgi!$B$5=\"12. Sınıf\",Sayfa2!M35,IF(Bilgi!$B$5=\"9. Sınıf ÖEMO\",Sayfa2!O35,IF(Bilgi!$B$5=\"10. Sınıf ÖEMO\",Sayfa2!P35,IF(Bilgi!$B$5=\"11. Sınıf ÖEMO\",Sayfa2!Q35,IF(Bilgi!$B$5=\"12. Sınıf ÖEMO\",Sayfa2!R35,\"Lütfen Bilgi Sayfasından Sınıf Seçimi Yapınız\"))))))))))))))))))=0,\"\",(IF(Bilgi!$B$5=\"\",\"\",IF(Bilgi!$B$5=\"Okul Öncesi\",Sayfa2!A35,IF(Bilgi!$B$5=\"1. Sınıf\",Sayfa2!B35,IF(Bilgi!$B$5=\"2. Sınıf\",Sayfa2!C35,IF(Bilgi!$B$5=\"3. Sınıf\",Sayfa2!D35,IF(Bilgi!$B$5=\"4. Sınıf\",Sayfa2!E35,IF(Bilgi!$B$5=\"5. Sınıf\",Sayfa2!F35,IF(Bilgi!$B$5=\"6. Sınıf\",Sayfa2!G35,IF(Bilgi!$B$5=\"7. Sınıf\",Sayfa2!H35,IF(Bilgi!$B$5=\"8. Sınıf\",Sayfa2!I35,IF(Bilgi!$B$5=\"9. Sınıf\",Sayfa2!J35,IF(Bilgi!$B$5=\"10. Sınıf\",Sayfa2!K35,IF(Bilgi!$B$5=\"11. Sınıf\",Sayfa2!L35,IF(Bilgi!$B$5=\"12. Sınıf\",Sayfa2!M35,IF(Bilgi!$B$5=\"9. Sınıf ÖEMO\",Sayfa2!O35,IF(Bilgi!$B$5=\"10. Sınıf ÖEMO\",Sayfa2!P35,IF(Bilgi!$B$5=\"11. Sınıf ÖEMO\",Sayfa2!Q35,IF(Bilgi!$B$5=\"12. Sınıf ÖEMO\",Sayfa2!R35,\"Lütfen Bilgi Sayfasından Sınıf Seçimi Yapınız\"))))))))))))))))))))","v":"17- Öz geçmiş yazar."},"Belirli Gün ve Haftalar / Sosyal Kulüp Çalışmaları","Belirli Gün ve Haftalar / Sosyal Kulüp Çalışmaları","Belirli Gün ve Haftalar / Sosyal Kulüp Çalışmaları","Belirli Gün ve Haftalar / Sosyal Kulüp Çalışmaları"]
["19- Okul ve sınıf kurallarına uyar.","19- Okul içinde ve dışında yapmaktan hoşlandığı etkinlikleri fark eder.","19- İyilik hâli için beslenme, temizlik, uyku, dinlenme ve fiziksel egzersizin önemini örneklerle açıklar.","19- Durum ve olayların bireylerin duygularına etkisini fark eder.","19- Kendi öğrenme stillerinin farkına varır.","19- Çalışma ve üretmenin insan yaşamındaki önemini fark eder.","19- Okul içindeki ve dışındaki eğitsel ve sosyal etkinliklere katılmanın gelişimine katkılarını değerlendirir.","19- Sınavlara hazırlanma davranışlarını gözden geçirir.","19- Öğrenme ortamlarındaki duygularını düzenler.","19- Başlangıç sosyal becerileri kullanır.","19- Ders/alan/dal seçerken karar verme becerisini kullanır.","19- İyi oluşu ile duyguları arasında bağ kurar.","19- İş görüşme becerilerini açıklar.",{"$f":"IF(IF(Bilgi!$B$5=\"\",\"\",IF(Bilgi!$B$5=\"Okul Öncesi\",Sayfa2!A36,IF(Bilgi!$B$5=\"1. Sınıf\",Sayfa2!B36,IF(Bilgi!$B$5=\"2. Sınıf\",Sayfa2!C36,IF(Bilgi!$B$5=\"3. Sınıf\",Sayfa2!D36,IF(Bilgi!$B$5=\"4. Sınıf\",Sayfa2!E36,IF(Bilgi!$B$5=\"5. Sınıf\",Sayfa2!F36,IF(Bilgi!$B$5=\"6. Sınıf\",Sayfa2!G36,IF(Bilgi!$B$5=\"7. Sınıf\",Sayfa2!H36,IF(Bilgi!$B$5=\"8. Sınıf\",Sayfa2!I36,IF(Bilgi!$B$5=\"9. Sınıf\",Sayfa2!J36,IF(Bilgi!$B$5=\"10. Sınıf\",Sayfa2!K36,IF(Bilgi!$B$5=\"11. Sınıf\",Sayfa2!L36,IF(Bilgi!$B$5=\"12. Sınıf\",Sayfa2!M36,IF(Bilgi!$B$5=\"9. Sınıf ÖEMO\",Sayfa2!O36,IF(Bilgi!$B$5=\"10. Sınıf ÖEMO\",Sayfa2!P36,IF(Bilgi!$B$5=\"11. Sınıf ÖEMO\",Sayfa2!Q36,IF(Bilgi!$B$5=\"12. Sınıf ÖEMO\",Sayfa2!R36,\"Lütfen Bilgi Sayfasından Sınıf Seçimi Yapınız\"))))))))))))))))))=0,\"\",(IF(Bilgi!$B$5=\"\",\"\",IF(Bilgi!$B$5=\"Okul Öncesi\",Sayfa2!A36,IF(Bilgi!$B$5=\"1. Sınıf\",Sayfa2!B36,IF(Bilgi!$B$5=\"2. Sınıf\",Sayfa2!C36,IF(Bilgi!$B$5=\"3. Sınıf\",Sayfa2!D36,IF(Bilgi!$B$5=\"4. Sınıf\",Sayfa2!E36,IF(Bilgi!$B$5=\"5. Sınıf\",Sayfa2!F36,IF(Bilgi!$B$5=\"6. Sınıf\",Sayfa2!G36,IF(Bilgi!$B$5=\"7. Sınıf\",Sayfa2!H36,IF(Bilgi!$B$5=\"8. Sınıf\",Sayfa2!I36,IF(Bilgi!$B$5=\"9. Sınıf\",Sayfa2!J36,IF(Bilgi!$B$5=\"10. Sınıf\",Sayfa2!K36,IF(Bilgi!$B$5=\"11. Sınıf\",Sayfa2!L36,IF(Bilgi!$B$5=\"12. Sınıf\",Sayfa2!M36,IF(Bilgi!$B$5=\"9. Sınıf ÖEMO\",Sayfa2!O36,IF(Bilgi!$B$5=\"10. Sınıf ÖEMO\",Sayfa2!P36,IF(Bilgi!$B$5=\"11. Sınıf ÖEMO\",Sayfa2!Q36,IF(Bilgi!$B$5=\"12. Sınıf ÖEMO\",Sayfa2!R36,\"Lütfen Bilgi Sayfasından Sınıf Seçimi Yapınız\"))))))))))))))))))))","v":"18- Stres yaratan kaynakları fark eder."},"Belirli Gün ve Haftalar / Sosyal Kulüp Çalışmaları","Belirli Gün ve Haftalar / Sosyal Kulüp Çalışmaları","Belirli Gün ve Haftalar / Sosyal Kulüp Çalışmaları","Belirli Gün ve Haftalar / Sosyal Kulüp Çalışmaları"]
["20- Okul içinde ve dışında yapmaktan hoşlandığı etkinlikleri fark eder.","20- İletişimde dinleme ve konuşma becerisini etkili bir şekilde kullanır.","20- Tanıdığı mesleklerin özelliklerini açıklar.","20- Duygularını uygun biçimde ifade eder.","20- Akademik çalışmalarında kendine uygun öğrenme stillerini kullanır","20- Bir meslek sahibi olmanın kendisi ve toplum için önemini fark eder.","20- Eğitsel etkinliklerdeki başarısızlıkların öğrenme sürecinin bir parçası olduğunu kabul eder.","20- Sosyal ipuçlarını yorumlayarak uygun tepkiler verir.","20- Kariyer amaçları ile kariyer beklentilerini karşılaştırır.","20- Başlangıç sosyal becerileri kullanır.","20- Kariyer hazırlığı sürecinde belirlediği amaçlar doğrultusunda alan/dal/ders seçimi yapar.","20- Arkadaşlık ilişkilerinde yaşadığı sorunları yapıcı yollarla çözer.","20- İş görüşme becerilerini kullanır.",{"$f":"IF(IF(Bilgi!$B$5=\"\",\"\",IF(Bilgi!$B$5=\"Okul Öncesi\",Sayfa2!A37,IF(Bilgi!$B$5=\"1. Sınıf\",Sayfa2!B37,IF(Bilgi!$B$5=\"2. Sınıf\",Sayfa2!C37,IF(Bilgi!$B$5=\"3. Sınıf\",Sayfa2!D37,IF(Bilgi!$B$5=\"4. Sınıf\",Sayfa2!E37,IF(Bilgi!$B$5=\"5. Sınıf\",Sayfa2!F37,IF(Bilgi!$B$5=\"6. Sınıf\",Sayfa2!G37,IF(Bilgi!$B$5=\"7. Sınıf\",Sayfa2!H37,IF(Bilgi!$B$5=\"8. Sınıf\",Sayfa2!I37,IF(Bilgi!$B$5=\"9. Sınıf\",Sayfa2!J37,IF(Bilgi!$B$5=\"10. Sınıf\",Sayfa2!K37,IF(Bilgi!$B$5=\"11. Sınıf\",Sayfa2!L37,IF(Bilgi!$B$5=\"12. Sınıf\",Sayfa2!M37,IF(Bilgi!$B$5=\"9. Sınıf ÖEMO\",Sayfa2!O37,IF(Bilgi!$B$5=\"10. Sınıf ÖEMO\",Sayfa2!P37,IF(Bilgi!$B$5=\"11. Sınıf ÖEMO\",Sayfa2!Q37,IF(Bilgi!$B$5=\"12. Sınıf ÖEMO\",Sayfa2!R37,\"Lütfen Bilgi Sayfasından Sınıf Seçimi Yapınız\"))))))))))))))))))=0,\"\",(IF(Bilgi!$B$5=\"\",\"\",IF(Bilgi!$B$5=\"Okul Öncesi\",Sayfa2!A37,IF(Bilgi!$B$5=\"1. Sınıf\",Sayfa2!B37,IF(Bilgi!$B$5=\"2. Sınıf\",Sayfa2!C37,IF(Bilgi!$B$5=\"3. Sınıf\",Sayfa2!D37,IF(Bilgi!$B$5=\"4. Sınıf\",Sayfa2!E37,IF(Bilgi!$B$5=\"5. Sınıf\",Sayfa2!F37,IF(Bilgi!$B$5=\"6. Sınıf\",Sayfa2!G37,IF(Bilgi!$B$5=\"7. Sınıf\",Sayfa2!H37,IF(Bilgi!$B$5=\"8. Sınıf\",Sayfa2!I37,IF(Bilgi!$B$5=\"9. Sınıf\",Sayfa2!J37,IF(Bilgi!$B$5=\"10. Sınıf\",Sayfa2!K37,IF(Bilgi!$B$5=\"11. Sınıf\",Sayfa2!L37,IF(Bilgi!$B$5=\"12. Sınıf\",Sayfa2!M37,IF(Bilgi!$B$5=\"9. Sınıf ÖEMO\",Sayfa2!O37,IF(Bilgi!$B$5=\"10. Sınıf ÖEMO\",Sayfa2!P37,IF(Bilgi!$B$5=\"11. Sınıf ÖEMO\",Sayfa2!Q37,IF(Bilgi!$B$5=\"12. Sınıf ÖEMO\",Sayfa2!R37,\"Lütfen Bilgi Sayfasından Sınıf Seçimi Yapınız\"))))))))))))))))))))","v":"19- İş görüşme becerilerini açıklar."},"8- Farklı ortamların kendine özgü kuralları olduğunu fark eder.","22- İhtiyaç duyduğu durumlarda yardım alır.","36- Aile içinde kendi sorumluluklarını yerine getirir","49- Okulda yapmaktan hoşlandığı etkinlikleri belirtir."]
["21- Duyguların; beden diliyle, davranışlar ve yaşanan olaylarla ilişkisini kurar.","21- İyilik hâli (iyi hâlde olmak) için beslenme, temizlik, uyku, dinlenme ve fiziksel egzersizin önemini fark eder.","21- Tanıdığı mesleklerin özelliklerini açıklar.","21- Akademik çalışmalarda geliştirilmesi gereken yönlerini fark eder.","21- İletişim sürecinde işittiklerini kendi kelimeleriyle ifade eder.","21- Geleceği hayal ederek yaşam amaçları oluşturur.","21- Öğrenme sürecinde deneyimlediği başarısızlıkların üstesinden gelmek için farklı çözüm yolları dener.","21- Bilişsel yeterlilikleri ve kişilik özelliklerini geliştirebileceğine inanır.","21- Kariyer amaçları ile kariyer beklentilerini karşılaştırır.","21- İyilik hâlini destekleyen davranışlar açısından kendini gözden geçirir.","21- Eğitsel çabanın akademik hedeflere ulaşmadaki etkisini değerlendirir.","21- Bilgi kaynaklarının güvenilirliğini sorgular.","21- Toplum için gönüllü çalışmada duyarlı davranır.",{"$f":"IF(IF(Bilgi!$B$5=\"\",\"\",IF(Bilgi!$B$5=\"Okul Öncesi\",Sayfa2!A38,IF(Bilgi!$B$5=\"1. Sınıf\",Sayfa2!B38,IF(Bilgi!$B$5=\"2. Sınıf\",Sayfa2!C38,IF(Bilgi!$B$5=\"3. Sınıf\",Sayfa2!D38,IF(Bilgi!$B$5=\"4. Sınıf\",Sayfa2!E38,IF(Bilgi!$B$5=\"5. Sınıf\",Sayfa2!F38,IF(Bilgi!$B$5=\"6. Sınıf\",Sayfa2!G38,IF(Bilgi!$B$5=\"7. Sınıf\",Sayfa2!H38,IF(Bilgi!$B$5=\"8. Sınıf\",Sayfa2!I38,IF(Bilgi!$B$5=\"9. Sınıf\",Sayfa2!J38,IF(Bilgi!$B$5=\"10. Sınıf\",Sayfa2!K38,IF(Bilgi!$B$5=\"11. Sınıf\",Sayfa2!L38,IF(Bilgi!$B$5=\"12. Sınıf\",Sayfa2!M38,IF(Bilgi!$B$5=\"9. Sınıf ÖEMO\",Sayfa2!O38,IF(Bilgi!$B$5=\"10. Sınıf ÖEMO\",Sayfa2!P38,IF(Bilgi!$B$5=\"11. Sınıf ÖEMO\",Sayfa2!Q38,IF(Bilgi!$B$5=\"12. Sınıf ÖEMO\",Sayfa2!R38,\"Lütfen Bilgi Sayfasından Sınıf Seçimi Yapınız\"))))))))))))))))))=0,\"\",(IF(Bilgi!$B$5=\"\",\"\",IF(Bilgi!$B$5=\"Okul Öncesi\",Sayfa2!A38,IF(Bilgi!$B$5=\"1. Sınıf\",Sayfa2!B38,IF(Bilgi!$B$5=\"2. Sınıf\",Sayfa2!C38,IF(Bilgi!$B$5=\"3. Sınıf\",Sayfa2!D38,IF(Bilgi!$B$5=\"4. Sınıf\",Sayfa2!E38,IF(Bilgi!$B$5=\"5. Sınıf\",Sayfa2!F38,IF(Bilgi!$B$5=\"6. Sınıf\",Sayfa2!G38,IF(Bilgi!$B$5=\"7. Sınıf\",Sayfa2!H38,IF(Bilgi!$B$5=\"8. Sınıf\",Sayfa2!I38,IF(Bilgi!$B$5=\"9. Sınıf\",Sayfa2!J38,IF(Bilgi!$B$5=\"10. Sınıf\",Sayfa2!K38,IF(Bilgi!$B$5=\"11. Sınıf\",Sayfa2!L38,IF(Bilgi!$B$5=\"12. Sınıf\",Sayfa2!M38,IF(Bilgi!$B$5=\"9. Sınıf ÖEMO\",Sayfa2!O38,IF(Bilgi!$B$5=\"10. Sınıf ÖEMO\",Sayfa2!P38,IF(Bilgi!$B$5=\"11. Sınıf ÖEMO\",Sayfa2!Q38,IF(Bilgi!$B$5=\"12. Sınıf ÖEMO\",Sayfa2!R38,\"Lütfen Bilgi Sayfasından Sınıf Seçimi Yapınız\"))))))))))))))))))))","v":"20- İş görüşme becerilerini kullanır."},"Belirli Gün ve Haftalar / Sosyal Kulüp Çalışmaları","Belirli Gün ve Haftalar / Sosyal Kulüp Çalışmaları","Belirli Gün ve Haftalar / Sosyal Kulüp Çalışmaları","Belirli Gün ve Haftalar / Sosyal Kulüp Çalışmaları"]
["22- Duyguların; beden diliyle, davranışlar ve yaşanan olaylarla ilişkisini kurar.","22- İyilik hâli (iyi hâlde olmak) için beslenme, temizlik, uyku, dinlenme ve fiziksel egzersizin önemini fark eder.","22- Her mesleğin toplumsal yaşama katkısı olduğunu fark eder.","22- Akademik çalışmalarında ihtiyaç duyduğunda yardım arar.","22- Arkadaşlık ilişkilerinin hayatının farklı alanlarına katkılarını fark eder.","22- Arkadaşlık ilişkilerini sürdürme konusunda yapabileceklerini bilir.","22- Kişisel hakların korunması ve kişisel güvenliğin sağlanması için yönergeleri izler.","22- Zorbalık ve türlerini bilir.","22- Akran baskısıyla baş etmede uygun yolları kullanır.","22- Kendi özellikleriyle kariyer kararlarını ilişkilendirir.","22- Sosyal ipuçlarını yorumlayarak uygun tepkiler verir.","22- Sağlıklı yaşam alışkanlıkları ile bedensel ve psikolojik sağlığı arasında bağ kurar.","22- Karakter güçleri ile iyi oluş arasında bağ kurar.",{"$f":"IF(IF(Bilgi!$B$5=\"\",\"\",IF(Bilgi!$B$5=\"Okul Öncesi\",Sayfa2!A39,IF(Bilgi!$B$5=\"1. Sınıf\",Sayfa2!B39,IF(Bilgi!$B$5=\"2. Sınıf\",Sayfa2!C39,IF(Bilgi!$B$5=\"3. Sınıf\",Sayfa2!D39,IF(Bilgi!$B$5=\"4. Sınıf\",Sayfa2!E39,IF(Bilgi!$B$5=\"5. Sınıf\",Sayfa2!F39,IF(Bilgi!$B$5=\"6. Sınıf\",Sayfa2!G39,IF(Bilgi!$B$5=\"7. Sınıf\",Sayfa2!H39,IF(Bilgi!$B$5=\"8. Sınıf\",Sayfa2!I39,IF(Bilgi!$B$5=\"9. Sınıf\",Sayfa2!J39,IF(Bilgi!$B$5=\"10. Sınıf\",Sayfa2!K39,IF(Bilgi!$B$5=\"11. Sınıf\",Sayfa2!L39,IF(Bilgi!$B$5=\"12. Sınıf\",Sayfa2!M39,IF(Bilgi!$B$5=\"9. Sınıf ÖEMO\",Sayfa2!O39,IF(Bilgi!$B$5=\"10. Sınıf ÖEMO\",Sayfa2!P39,IF(Bilgi!$B$5=\"11. Sınıf ÖEMO\",Sayfa2!Q39,IF(Bilgi!$B$5=\"12. Sınıf ÖEMO\",Sayfa2!R39,\"Lütfen Bilgi Sayfasından Sınıf Seçimi Yapınız\"))))))))))))))))))=0,\"\",(IF(Bilgi!$B$5=\"\",\"\",IF(Bilgi!$B$5=\"Okul Öncesi\",Sayfa2!A39,IF(Bilgi!$B$5=\"1. Sınıf\",Sayfa2!B39,IF(Bilgi!$B$5=\"2. Sınıf\",Sayfa2!C39,IF(Bilgi!$B$5=\"3. Sınıf\",Sayfa2!D39,IF(Bilgi!$B$5=\"4. Sınıf\",Sayfa2!E39,IF(Bilgi!$B$5=\"5. Sınıf\",Sayfa2!F39,IF(Bilgi!$B$5=\"6. Sınıf\",Sayfa2!G39,IF(Bilgi!$B$5=\"7. Sınıf\",Sayfa2!H39,IF(Bilgi!$B$5=\"8. Sınıf\",Sayfa2!I39,IF(Bilgi!$B$5=\"9. Sınıf\",Sayfa2!J39,IF(Bilgi!$B$5=\"10. Sınıf\",Sayfa2!K39,IF(Bilgi!$B$5=\"11. Sınıf\",Sayfa2!L39,IF(Bilgi!$B$5=\"12. Sınıf\",Sayfa2!M39,IF(Bilgi!$B$5=\"9. Sınıf ÖEMO\",Sayfa2!O39,IF(Bilgi!$B$5=\"10. Sınıf ÖEMO\",Sayfa2!P39,IF(Bilgi!$B$5=\"11. Sınıf ÖEMO\",Sayfa2!Q39,IF(Bilgi!$B$5=\"12. Sınıf ÖEMO\",Sayfa2!R39,\"Lütfen Bilgi Sayfasından Sınıf Seçimi Yapınız\"))))))))))))))))))))","v":"21- Toplum için gönüllü çalışmada duyarlı davranır."},"9-  Sorumluluklarını yerine getirir.","23- Gerektiğinde başkalarına yardım eder.","37- Aile üyeleriyle birlikte yapılan etkinlikleri açıklar.","50- Verilen işi ne zaman ve nasıl yapacağını planlar."]
["23- Okulunun ve sınıfının bir üyesi olduğunu fark eder.","23- Okulunun ve sınıfının bir üyesi olduğunu fark eder.","23- Her mesleğin toplumsal yaşama katkısı olduğunu fark eder.","23- Sanatsal ve sportif etkinliklerden hoşlandıklarını ayırt eder.","23- Çalışma ve üretmenin insan yaşamındaki önemini fark eder.","23- Değişen duygu durumlarını fark eder.","23- Kişisel güvenliği için “Hayır!” demenin önemine inanır.","23- Zorbalıkla baş etme yollarını kullanır.","23- Bilişim teknolojileri kullanımında kendini yönetir.","23- Siber zorbalığın yaşamındaki etkilerini fark eder.","23- Sahip olduğu karakter güçlerini geliştirmek için çaba gösterir.","23- Beden imgesi ile fiziksel ve psikolojik sağlığını ilişkilendirir.","23- İyi oluşunu destekleyen duyguları yaşamında sıklıkla deneyimler.",{"$f":"IF(IF(Bilgi!$B$5=\"\",\"\",IF(Bilgi!$B$5=\"Okul Öncesi\",Sayfa2!A40,IF(Bilgi!$B$5=\"1. Sınıf\",Sayfa2!B40,IF(Bilgi!$B$5=\"2. Sınıf\",Sayfa2!C40,IF(Bilgi!$B$5=\"3. Sınıf\",Sayfa2!D40,IF(Bilgi!$B$5=\"4. Sınıf\",Sayfa2!E40,IF(Bilgi!$B$5=\"5. Sınıf\",Sayfa2!F40,IF(Bilgi!$B$5=\"6. Sınıf\",Sayfa2!G40,IF(Bilgi!$B$5=\"7. Sınıf\",Sayfa2!H40,IF(Bilgi!$B$5=\"8. Sınıf\",Sayfa2!I40,IF(Bilgi!$B$5=\"9. Sınıf\",Sayfa2!J40,IF(Bilgi!$B$5=\"10. Sınıf\",Sayfa2!K40,IF(Bilgi!$B$5=\"11. Sınıf\",Sayfa2!L40,IF(Bilgi!$B$5=\"12. Sınıf\",Sayfa2!M40,IF(Bilgi!$B$5=\"9. Sınıf ÖEMO\",Sayfa2!O40,IF(Bilgi!$B$5=\"10. Sınıf ÖEMO\",Sayfa2!P40,IF(Bilgi!$B$5=\"11. Sınıf ÖEMO\",Sayfa2!Q40,IF(Bilgi!$B$5=\"12. Sınıf ÖEMO\",Sayfa2!R40,\"Lütfen Bilgi Sayfasından Sınıf Seçimi Yapınız\"))))))))))))))))))=0,\"\",(IF(Bilgi!$B$5=\"\",\"\",IF(Bilgi!$B$5=\"Okul Öncesi\",Sayfa2!A40,IF(Bilgi!$B$5=\"1. Sınıf\",Sayfa2!B40,IF(Bilgi!$B$5=\"2. Sınıf\",Sayfa2!C40,IF(Bilgi!$B$5=\"3. Sınıf\",Sayfa2!D40,IF(Bilgi!$B$5=\"4. Sınıf\",Sayfa2!E40,IF(Bilgi!$B$5=\"5. Sınıf\",Sayfa2!F40,IF(Bilgi!$B$5=\"6. Sınıf\",Sayfa2!G40,IF(Bilgi!$B$5=\"7. Sınıf\",Sayfa2!H40,IF(Bilgi!$B$5=\"8. Sınıf\",Sayfa2!I40,IF(Bilgi!$B$5=\"9. Sınıf\",Sayfa2!J40,IF(Bilgi!$B$5=\"10. Sınıf\",Sayfa2!K40,IF(Bilgi!$B$5=\"11. Sınıf\",Sayfa2!L40,IF(Bilgi!$B$5=\"12. Sınıf\",Sayfa2!M40,IF(Bilgi!$B$5=\"9. Sınıf ÖEMO\",Sayfa2!O40,IF(Bilgi!$B$5=\"10. Sınıf ÖEMO\",Sayfa2!P40,IF(Bilgi!$B$5=\"11. Sınıf ÖEMO\",Sayfa2!Q40,IF(Bilgi!$B$5=\"12. Sınıf ÖEMO\",Sayfa2!R40,\"Lütfen Bilgi Sayfasından Sınıf Seçimi Yapınız\"))))))))))))))))))))","v":"22- Karakter güçleri ile iyi oluş arasında bağ kurar."},"Belirli Gün ve Haftalar / Sosyal Kulüp Çalışmaları","Belirli Gün ve Haftalar / Sosyal Kulüp Çalışmaları","Belirli Gün ve Haftalar / Sosyal Kulüp Çalışmaları","Belirli Gün ve Haftalar / Sosyal Kulüp Çalışmaları"]
["24- Bireysel ve grupla çalışır.","24- Bireysel ve grupla çalışır.","24- Başarılı olduğu durumlara ilişkin örnekler verir.","24- Çalışma ve başarmanın yarattığı duyguları ifade eder.","24- Bir meslek sahibi olmanın kendisi ve toplum için önemini fark eder.","24- Başkalarının duygu ve düşüncelerini anlamak için etkili dinleme stratejilerini kullanır.","24- Fiziksel ve duygusal değişimini fark eder.","24- Yetenekleriyle derslerin etkinliklerini ilişkilendirir.","24- Yaşamda karşılaşılan zorlukların çaba ve zaman ile üstesinden gelinebileceğini fark eder.","24- Zorbalıkla baş etme yollarını kullanır.","24- Yaşamda karşılaşılan zorlukların çaba ve zaman ile üstesinden gelinebileceğini fark eder.","24- Sınavlara hazırlanmayı etkileyen faktörleri açıklar.","24- Mesleki bilgi kaynaklarını kullanır",{"$f":"IF(IF(Bilgi!$B$5=\"\",\"\",IF(Bilgi!$B$5=\"Okul Öncesi\",Sayfa2!A41,IF(Bilgi!$B$5=\"1. Sınıf\",Sayfa2!B41,IF(Bilgi!$B$5=\"2. Sınıf\",Sayfa2!C41,IF(Bilgi!$B$5=\"3. Sınıf\",Sayfa2!D41,IF(Bilgi!$B$5=\"4. Sınıf\",Sayfa2!E41,IF(Bilgi!$B$5=\"5. Sınıf\",Sayfa2!F41,IF(Bilgi!$B$5=\"6. Sınıf\",Sayfa2!G41,IF(Bilgi!$B$5=\"7. Sınıf\",Sayfa2!H41,IF(Bilgi!$B$5=\"8. Sınıf\",Sayfa2!I41,IF(Bilgi!$B$5=\"9. Sınıf\",Sayfa2!J41,IF(Bilgi!$B$5=\"10. Sınıf\",Sayfa2!K41,IF(Bilgi!$B$5=\"11. Sınıf\",Sayfa2!L41,IF(Bilgi!$B$5=\"12. Sınıf\",Sayfa2!M41,IF(Bilgi!$B$5=\"9. Sınıf ÖEMO\",Sayfa2!O41,IF(Bilgi!$B$5=\"10. Sınıf ÖEMO\",Sayfa2!P41,IF(Bilgi!$B$5=\"11. Sınıf ÖEMO\",Sayfa2!Q41,IF(Bilgi!$B$5=\"12. Sınıf ÖEMO\",Sayfa2!R41,\"Lütfen Bilgi Sayfasından Sınıf Seçimi Yapınız\"))))))))))))))))))=0,\"\",(IF(Bilgi!$B$5=\"\",\"\",IF(Bilgi!$B$5=\"Okul Öncesi\",Sayfa2!A41,IF(Bilgi!$B$5=\"1. Sınıf\",Sayfa2!B41,IF(Bilgi!$B$5=\"2. Sınıf\",Sayfa2!C41,IF(Bilgi!$B$5=\"3. Sınıf\",Sayfa2!D41,IF(Bilgi!$B$5=\"4. Sınıf\",Sayfa2!E41,IF(Bilgi!$B$5=\"5. Sınıf\",Sayfa2!F41,IF(Bilgi!$B$5=\"6. Sınıf\",Sayfa2!G41,IF(Bilgi!$B$5=\"7. Sınıf\",Sayfa2!H41,IF(Bilgi!$B$5=\"8. Sınıf\",Sayfa2!I41,IF(Bilgi!$B$5=\"9. Sınıf\",Sayfa2!J41,IF(Bilgi!$B$5=\"10. Sınıf\",Sayfa2!K41,IF(Bilgi!$B$5=\"11. Sınıf\",Sayfa2!L41,IF(Bilgi!$B$5=\"12. Sınıf\",Sayfa2!M41,IF(Bilgi!$B$5=\"9. Sınıf ÖEMO\",Sayfa2!O41,IF(Bilgi!$B$5=\"10. Sınıf ÖEMO\",Sayfa2!P41,IF(Bilgi!$B$5=\"11. Sınıf ÖEMO\",Sayfa2!Q41,IF(Bilgi!$B$5=\"12. Sınıf ÖEMO\",Sayfa2!R41,\"Lütfen Bilgi Sayfasından Sınıf Seçimi Yapınız\"))))))))))))))))))))","v":"23- İyi oluşunu destekleyen duyguları yaşamında sıklıkla deneyimler."},"10- Bedensel özelliklerini belirtir.","24- Öfkenin kontrol edilebilen bir duygu olduğunu açıklar.","38- Sahip olduğu haklarını açıklar.","51- İşyeri kurallarına uygun davranmanın önemini açıklar."]
["25- Oyun oynarken amacının eğlenmek olduğunu fark eder.","25- Sözel, görsel ve yazılı yönergeleri izler.","25- Okul içinde ve dışında katıldığı etkinliklerde yapabildiklerini fark eder.","25- Kişisel bağımsızlığına katkı sağlayan davranışları fark eder.","25- Karar verme sürecini etkileyen faktörleri açıklar.","25- Başkalarının bakış açısının kendi bakış açısından farklı olabileceğini kabul eder.","25- Karar verme sürecinde alternatif düşünceler geliştirmenin önemini açıklar.","25- Yetenekleriyle mesleklerin özelliklerini ilişkilendirir.","25- Kendi özellikleriyle seçmek istediği lise türlerinin özelliklerini ilişkilendirir.","25- Sanal arkadaşlığı arkadaşlık ilişkileri kapsamında sorgular.","25- Yaşamda karşılaşılan zorlukların çaba ve zaman ile üstesinden gelinebileceğini fark eder.","25- Akran grubunun yaşamındaki yerini açıklar.","25- Seçmeyi düşündüğü mesleklerle ilgili kariyer planlaması yapar.",{"$f":"IF(IF(Bilgi!$B$5=\"\",\"\",IF(Bilgi!$B$5=\"Okul Öncesi\",Sayfa2!A42,IF(Bilgi!$B$5=\"1. Sınıf\",Sayfa2!B42,IF(Bilgi!$B$5=\"2. Sınıf\",Sayfa2!C42,IF(Bilgi!$B$5=\"3. Sınıf\",Sayfa2!D42,IF(Bilgi!$B$5=\"4. Sınıf\",Sayfa2!E42,IF(Bilgi!$B$5=\"5. Sınıf\",Sayfa2!F42,IF(Bilgi!$B$5=\"6. Sınıf\",Sayfa2!G42,IF(Bilgi!$B$5=\"7. Sınıf\",Sayfa2!H42,IF(Bilgi!$B$5=\"8. Sınıf\",Sayfa2!I42,IF(Bilgi!$B$5=\"9. Sınıf\",Sayfa2!J42,IF(Bilgi!$B$5=\"10. Sınıf\",Sayfa2!K42,IF(Bilgi!$B$5=\"11. Sınıf\",Sayfa2!L42,IF(Bilgi!$B$5=\"12. Sınıf\",Sayfa2!M42,IF(Bilgi!$B$5=\"9. Sınıf ÖEMO\",Sayfa2!O42,IF(Bilgi!$B$5=\"10. Sınıf ÖEMO\",Sayfa2!P42,IF(Bilgi!$B$5=\"11. Sınıf ÖEMO\",Sayfa2!Q42,IF(Bilgi!$B$5=\"12. Sınıf ÖEMO\",Sayfa2!R42,\"Lütfen Bilgi Sayfasından Sınıf Seçimi Yapınız\"))))))))))))))))))=0,\"\",(IF(Bilgi!$B$5=\"\",\"\",IF(Bilgi!$B$5=\"Okul Öncesi\",Sayfa2!A42,IF(Bilgi!$B$5=\"1. Sınıf\",Sayfa2!B42,IF(Bilgi!$B$5=\"2. Sınıf\",Sayfa2!C42,IF(Bilgi!$B$5=\"3. Sınıf\",Sayfa2!D42,IF(Bilgi!$B$5=\"4. Sınıf\",Sayfa2!E42,IF(Bilgi!$B$5=\"5. Sınıf\",Sayfa2!F42,IF(Bilgi!$B$5=\"6. Sınıf\",Sayfa2!G42,IF(Bilgi!$B$5=\"7. Sınıf\",Sayfa2!H42,IF(Bilgi!$B$5=\"8. Sınıf\",Sayfa2!I42,IF(Bilgi!$B$5=\"9. Sınıf\",Sayfa2!J42,IF(Bilgi!$B$5=\"10. Sınıf\",Sayfa2!K42,IF(Bilgi!$B$5=\"11. Sınıf\",Sayfa2!L42,IF(Bilgi!$B$5=\"12. Sınıf\",Sayfa2!M42,IF(Bilgi!$B$5=\"9. Sınıf ÖEMO\",Sayfa2!O42,IF(Bilgi!$B$5=\"10. Sınıf ÖEMO\",Sayfa2!P42,IF(Bilgi!$B$5=\"11. Sınıf ÖEMO\",Sayfa2!Q42,IF(Bilgi!$B$5=\"12. Sınıf ÖEMO\",Sayfa2!R42,\"Lütfen Bilgi Sayfasından Sınıf Seçimi Yapınız\"))))))))))))))))))))","v":"24- Mesleki bilgi kaynaklarını kullanır"},"Belirli Gün ve Haftalar / Sosyal Kulüp Çalışmaları","Belirli Gün ve Haftalar / Sosyal Kulüp Çalışmaları","Belirli Gün ve Haftalar / Sosyal Kulüp Çalışmaları","Belirli Gün ve Haftalar / Sosyal Kulüp Çalışmaları"]
["26- Oyun oynarken amacının eğlenmek olduğunu fark eder.","26- Eğitsel etkinliklerde yönergeleri izler.","26- Okul içinde ve dışında katıldığı etkinliklerde yapabildiklerini fark eder.","26- Kişisel güvenliği için kişisel alanların gerekliliğine inanır.","26- Karar verme sürecini etkileyen faktörleri açıklar.","26- Kültürel farklılıklara duyarlı bir bakış açısı geliştir.","26- Başarılı olduğu durumlar için kendini takdir eder.","26- Bilişim teknolojileri kullanımında kendini yönetir","26- Kendi özellikleriyle seçmek istediği lise türlerinin özelliklerini ilişkilendirir.","26- Sahip olduğu karakter güçlerini fark eder.","26- Çatışma çözme becerilerini kullanır.","26- Kararlarında aile ve akranlarının etkilerini değerlendirir.","26- Meslek seçiminde karar verme becerisini kullanır.",{"$f":"IF(IF(Bilgi!$B$5=\"\",\"\",IF(Bilgi!$B$5=\"Okul Öncesi\",Sayfa2!A43,IF(Bilgi!$B$5=\"1. Sınıf\",Sayfa2!B43,IF(Bilgi!$B$5=\"2. Sınıf\",Sayfa2!C43,IF(Bilgi!$B$5=\"3. Sınıf\",Sayfa2!D43,IF(Bilgi!$B$5=\"4. Sınıf\",Sayfa2!E43,IF(Bilgi!$B$5=\"5. Sınıf\",Sayfa2!F43,IF(Bilgi!$B$5=\"6. Sınıf\",Sayfa2!G43,IF(Bilgi!$B$5=\"7. Sınıf\",Sayfa2!H43,IF(Bilgi!$B$5=\"8. Sınıf\",Sayfa2!I43,IF(Bilgi!$B$5=\"9. Sınıf\",Sayfa2!J43,IF(Bilgi!$B$5=\"10. Sınıf\",Sayfa2!K43,IF(Bilgi!$B$5=\"11. Sınıf\",Sayfa2!L43,IF(Bilgi!$B$5=\"12. Sınıf\",Sayfa2!M43,IF(Bilgi!$B$5=\"9. Sınıf ÖEMO\",Sayfa2!O43,IF(Bilgi!$B$5=\"10. Sınıf ÖEMO\",Sayfa2!P43,IF(Bilgi!$B$5=\"11. Sınıf ÖEMO\",Sayfa2!Q43,IF(Bilgi!$B$5=\"12. Sınıf ÖEMO\",Sayfa2!R43,\"Lütfen Bilgi Sayfasından Sınıf Seçimi Yapınız\"))))))))))))))))))=0,\"\",(IF(Bilgi!$B$5=\"\",\"\",IF(Bilgi!$B$5=\"Okul Öncesi\",Sayfa2!A43,IF(Bilgi!$B$5=\"1. Sınıf\",Sayfa2!B43,IF(Bilgi!$B$5=\"2. Sınıf\",Sayfa2!C43,IF(Bilgi!$B$5=\"3. Sınıf\",Sayfa2!D43,IF(Bilgi!$B$5=\"4. Sınıf\",Sayfa2!E43,IF(Bilgi!$B$5=\"5. Sınıf\",Sayfa2!F43,IF(Bilgi!$B$5=\"6. Sınıf\",Sayfa2!G43,IF(Bilgi!$B$5=\"7. Sınıf\",Sayfa2!H43,IF(Bilgi!$B$5=\"8. Sınıf\",Sayfa2!I43,IF(Bilgi!$B$5=\"9. Sınıf\",Sayfa2!J43,IF(Bilgi!$B$5=\"10. Sınıf\",Sayfa2!K43,IF(Bilgi!$B$5=\"11. Sınıf\",Sayfa2!L43,IF(Bilgi!$B$5=\"12. Sınıf\",Sayfa2!M43,IF(Bilgi!$B$5=\"9. Sınıf ÖEMO\",Sayfa2!O43,IF(Bilgi!$B$5=\"10. Sınıf ÖEMO\",Sayfa2!P43,IF(Bilgi!$B$5=\"11. Sınıf ÖEMO\",Sayfa2!Q43,IF(Bilgi!$B$5=\"12. Sınıf ÖEMO\",Sayfa2!R43,\"Lütfen Bilgi Sayfasından Sınıf Seçimi Yapınız\"))))))))))))))))))))","v":"25- Seçmeyi düşündüğü mesleklerle ilgili kariyer planlaması yapar."}]
["27- Sözel ve görsel yönergeleri izler.","27- Kişisel güvenliği için “Hayır!” demenin gerekliliğini açıklar.","27- Duyguların çeşitliliğini fark eder.","27- Gerektiğinde “Hayır!” der.","27- Kısa ve uzun vadeli kariyer amaçları oluşturur.","27- Yardım etme becerilerini kullanır.","27- Yapabildiği etkinliklerin, yeteneklerinin bir göstergesi olabileceğini fark eder.","27- Karakter güçleriyle iyi oluşu arasında bağ kurar.","27- Sahip olduğu karakter güçlerini zorluklar karşısında kullanmayı bilir.","27- Sahip olduğu karakter güçlerini fark eder.","27- İyilik hâline ilişkin edindiği bilgileri yaşamında uygulamayı alışkanlık hâline getirir.","27- Kişisel seçimleri ile toplumsal rollerin gerektirdiği sorumluluklar arasında denge kurar.","27- Üst öğretim kurumuna ya da iş yaşamına ilişkin kariyer kararını verir.",{"$f":"IF(IF(Bilgi!$B$5=\"\",\"\",IF(Bilgi!$B$5=\"Okul Öncesi\",Sayfa2!A44,IF(Bilgi!$B$5=\"1. Sınıf\",Sayfa2!B44,IF(Bilgi!$B$5=\"2. Sınıf\",Sayfa2!C44,IF(Bilgi!$B$5=\"3. Sınıf\",Sayfa2!D44,IF(Bilgi!$B$5=\"4. Sınıf\",Sayfa2!E44,IF(Bilgi!$B$5=\"5. Sınıf\",Sayfa2!F44,IF(Bilgi!$B$5=\"6. Sınıf\",Sayfa2!G44,IF(Bilgi!$B$5=\"7. Sınıf\",Sayfa2!H44,IF(Bilgi!$B$5=\"8. Sınıf\",Sayfa2!I44,IF(Bilgi!$B$5=\"9. Sınıf\",Sayfa2!J44,IF(Bilgi!$B$5=\"10. Sınıf\",Sayfa2!K44,IF(Bilgi!$B$5=\"11. Sınıf\",Sayfa2!L44,IF(Bilgi!$B$5=\"12. Sınıf\",Sayfa2!M44,IF(Bilgi!$B$5=\"9. Sınıf ÖEMO\",Sayfa2!O44,IF(Bilgi!$B$5=\"10. Sınıf ÖEMO\",Sayfa2!P44,IF(Bilgi!$B$5=\"11. Sınıf ÖEMO\",Sayfa2!Q44,IF(Bilgi!$B$5=\"12. Sınıf ÖEMO\",Sayfa2!R44,\"Lütfen Bilgi Sayfasından Sınıf Seçimi Yapınız\"))))))))))))))))))=0,\"\",(IF(Bilgi!$B$5=\"\",\"\",IF(Bilgi!$B$5=\"Okul Öncesi\",Sayfa2!A44,IF(Bilgi!$B$5=\"1. Sınıf\",Sayfa2!B44,IF(Bilgi!$B$5=\"2. Sınıf\",Sayfa2!C44,IF(Bilgi!$B$5=\"3. Sınıf\",Sayfa2!D44,IF(Bilgi!$B$5=\"4. Sınıf\",Sayfa2!E44,IF(Bilgi!$B$5=\"5. Sınıf\",Sayfa2!F44,IF(Bilgi!$B$5=\"6. Sınıf\",Sayfa2!G44,IF(Bilgi!$B$5=\"7. Sınıf\",Sayfa2!H44,IF(Bilgi!$B$5=\"8. Sınıf\",Sayfa2!I44,IF(Bilgi!$B$5=\"9. Sınıf\",Sayfa2!J44,IF(Bilgi!$B$5=\"10. Sınıf\",Sayfa2!K44,IF(Bilgi!$B$5=\"11. Sınıf\",Sayfa2!L44,IF(Bilgi!$B$5=\"12. Sınıf\",Sayfa2!M44,IF(Bilgi!$B$5=\"9. Sınıf ÖEMO\",Sayfa2!O44,IF(Bilgi!$B$5=\"10. Sınıf ÖEMO\",Sayfa2!P44,IF(Bilgi!$B$5=\"11. Sınıf ÖEMO\",Sayfa2!Q44,IF(Bilgi!$B$5=\"12. Sınıf ÖEMO\",Sayfa2!R44,\"Lütfen Bilgi Sayfasından Sınıf Seçimi Yapınız\"))))))))))))))))))))","v":"26- Meslek seçiminde karar verme becerisini kullanır."},"11- Başkalarının istek ve duygularını fark eder.","25- Problem çözme sürecinin basamaklarını ifade eder.","39- Çevreyi korumaya karşı duyarlı olur","52- Bir iş başvurusunun nasıl yapılması gerektiğini açıklar."]
["28- Eğitsel etkinliklerde yönergeleri izler.","28- Kimden, nereden, ne zaman ve nasıl yardım isteyebileceğini bilir.","28- Toplumsal rol ve sorumlulukların önemini fark eder.","28- Merak ettiği mesleklere ilişkin duygu ve düşüncelerini ifade eder.","28- Kısa ve uzun vadeli kariyer amaçları oluşturur.","28- Büyüme ve gelişme sürecinde bireysel farklılıklar olduğunu bilir.","28- Derslerin etkinliklerini yetenekleriyle ilişkilendirir.","28- Sahip olduğu karakter güçlerini geliştirmek için çaba gösterir.","28- Toplum için gönüllü çalışmanın gerekliliğini açıklar.","28- Alan/bölüm/dal/ders seçiminde ilgi, yetenek ve mesleki değerleri dikkate alır.","28- Bilişim teknolojileri kullanımında kendini yönetir.","28- Mesleki bilgi kaynaklarını kullanır.","28- Değişim ve belirsizlikle baş eder.",{"$f":"IF(IF(Bilgi!$B$5=\"\",\"\",IF(Bilgi!$B$5=\"Okul Öncesi\",Sayfa2!A45,IF(Bilgi!$B$5=\"1. Sınıf\",Sayfa2!B45,IF(Bilgi!$B$5=\"2. Sınıf\",Sayfa2!C45,IF(Bilgi!$B$5=\"3. Sınıf\",Sayfa2!D45,IF(Bilgi!$B$5=\"4. Sınıf\",Sayfa2!E45,IF(Bilgi!$B$5=\"5. Sınıf\",Sayfa2!F45,IF(Bilgi!$B$5=\"6. Sınıf\",Sayfa2!G45,IF(Bilgi!$B$5=\"7. Sınıf\",Sayfa2!H45,IF(Bilgi!$B$5=\"8. Sınıf\",Sayfa2!I45,IF(Bilgi!$B$5=\"9. Sınıf\",Sayfa2!J45,IF(Bilgi!$B$5=\"10. Sınıf\",Sayfa2!K45,IF(Bilgi!$B$5=\"11. Sınıf\",Sayfa2!L45,IF(Bilgi!$B$5=\"12. Sınıf\",Sayfa2!M45,IF(Bilgi!$B$5=\"9. Sınıf ÖEMO\",Sayfa2!O45,IF(Bilgi!$B$5=\"10. Sınıf ÖEMO\",Sayfa2!P45,IF(Bilgi!$B$5=\"11. Sınıf ÖEMO\",Sayfa2!Q45,IF(Bilgi!$B$5=\"12. Sınıf ÖEMO\",Sayfa2!R45,\"Lütfen Bilgi Sayfasından Sınıf Seçimi Yapınız\"))))))))))))))))))=0,\"\",(IF(Bilgi!$B$5=\"\",\"\",IF(Bilgi!$B$5=\"Okul Öncesi\",Sayfa2!A45,IF(Bilgi!$B$5=\"1. Sınıf\",Sayfa2!B45,IF(Bilgi!$B$5=\"2. Sınıf\",Sayfa2!C45,IF(Bilgi!$B$5=\"3. Sınıf\",Sayfa2!D45,IF(Bilgi!$B$5=\"4. Sınıf\",Sayfa2!E45,IF(Bilgi!$B$5=\"5. Sınıf\",Sayfa2!F45,IF(Bilgi!$B$5=\"6. Sınıf\",Sayfa2!G45,IF(Bilgi!$B$5=\"7. Sınıf\",Sayfa2!H45,IF(Bilgi!$B$5=\"8. Sınıf\",Sayfa2!I45,IF(Bilgi!$B$5=\"9. Sınıf\",Sayfa2!J45,IF(Bilgi!$B$5=\"10. Sınıf\",Sayfa2!K45,IF(Bilgi!$B$5=\"11. Sınıf\",Sayfa2!L45,IF(Bilgi!$B$5=\"12. Sınıf\",Sayfa2!M45,IF(Bilgi!$B$5=\"9. Sınıf ÖEMO\",Sayfa2!O45,IF(Bilgi!$B$5=\"10. Sınıf ÖEMO\",Sayfa2!P45,IF(Bilgi!$B$5=\"11. Sınıf ÖEMO\",Sayfa2!Q45,IF(Bilgi!$B$5=\"12. Sınıf ÖEMO\",Sayfa2!R45,\"Lütfen Bilgi Sayfasından Sınıf Seçimi Yapınız\"))))))))))))))))))))","v":"27- Üst öğretim kurumuna ya da iş yaşamına ilişkin kariyer kararını verir."},"Belirli Gün ve Haftalar / Sosyal Kulüp Çalışmaları","Belirli Gün ve Haftalar / Sosyal Kulüp Çalışmaları","Belirli Gün ve Haftalar / Sosyal Kulüp Çalışmaları","Belirli Gün ve Haftalar / Sosyal Kulüp Çalışmaları"]
["29- Kişisel güvenliği için “Hayır!” demenin gerekliliğini açıklar.","29- Yaşadığı çevreyi korur.","29- Güçlü ve geliştirilmesi gereken özelliklerini fark eder.","29- Merak ettiği mesleklere ilişkin edindiği bilgileri paylaşır.","29- Kişisel hakların korunması ve kişisel güvenliğin sağlanması için yönergeleri izler.","29- Büyüme ve gelişmenin yaşamın doğal bir parçası olduğunu örneklerle açıklar.","29- Derslerin etkinliklerini yetenekleriyle ilişkilendirir.","29- Baskı altında serinkanlı davranışlar sergiler.","29- Öğrenmenin hayat boyu devam ettiğini fark eder.","29- Kişisel güvenliği için “Hayır!” demeyi alışkanlık hâline getirir.","29- Yerel ve küresel sorunları fark eder.","29- Mesleki bilgi kaynaklarını kullanır.","29- Sınavlara ilişkin yoğun duygularını yönetir.",{"$f":"IF(IF(Bilgi!$B$5=\"\",\"\",IF(Bilgi!$B$5=\"Okul Öncesi\",Sayfa2!A46,IF(Bilgi!$B$5=\"1. Sınıf\",Sayfa2!B46,IF(Bilgi!$B$5=\"2. Sınıf\",Sayfa2!C46,IF(Bilgi!$B$5=\"3. Sınıf\",Sayfa2!D46,IF(Bilgi!$B$5=\"4. Sınıf\",Sayfa2!E46,IF(Bilgi!$B$5=\"5. Sınıf\",Sayfa2!F46,IF(Bilgi!$B$5=\"6. Sınıf\",Sayfa2!G46,IF(Bilgi!$B$5=\"7. Sınıf\",Sayfa2!H46,IF(Bilgi!$B$5=\"8. Sınıf\",Sayfa2!I46,IF(Bilgi!$B$5=\"9. Sınıf\",Sayfa2!J46,IF(Bilgi!$B$5=\"10. Sınıf\",Sayfa2!K46,IF(Bilgi!$B$5=\"11. Sınıf\",Sayfa2!L46,IF(Bilgi!$B$5=\"12. Sınıf\",Sayfa2!M46,IF(Bilgi!$B$5=\"9. Sınıf ÖEMO\",Sayfa2!O46,IF(Bilgi!$B$5=\"10. Sınıf ÖEMO\",Sayfa2!P46,IF(Bilgi!$B$5=\"11. Sınıf ÖEMO\",Sayfa2!Q46,IF(Bilgi!$B$5=\"12. Sınıf ÖEMO\",Sayfa2!R46,\"Lütfen Bilgi Sayfasından Sınıf Seçimi Yapınız\"))))))))))))))))))=0,\"\",(IF(Bilgi!$B$5=\"\",\"\",IF(Bilgi!$B$5=\"Okul Öncesi\",Sayfa2!A46,IF(Bilgi!$B$5=\"1. Sınıf\",Sayfa2!B46,IF(Bilgi!$B$5=\"2. Sınıf\",Sayfa2!C46,IF(Bilgi!$B$5=\"3. Sınıf\",Sayfa2!D46,IF(Bilgi!$B$5=\"4. Sınıf\",Sayfa2!E46,IF(Bilgi!$B$5=\"5. Sınıf\",Sayfa2!F46,IF(Bilgi!$B$5=\"6. Sınıf\",Sayfa2!G46,IF(Bilgi!$B$5=\"7. Sınıf\",Sayfa2!H46,IF(Bilgi!$B$5=\"8. Sınıf\",Sayfa2!I46,IF(Bilgi!$B$5=\"9. Sınıf\",Sayfa2!J46,IF(Bilgi!$B$5=\"10. Sınıf\",Sayfa2!K46,IF(Bilgi!$B$5=\"11. Sınıf\",Sayfa2!L46,IF(Bilgi!$B$5=\"12. Sınıf\",Sayfa2!M46,IF(Bilgi!$B$5=\"9. Sınıf ÖEMO\",Sayfa2!O46,IF(Bilgi!$B$5=\"10. Sınıf ÖEMO\",Sayfa2!P46,IF(Bilgi!$B$5=\"11. Sınıf ÖEMO\",Sayfa2!Q46,IF(Bilgi!$B$5=\"12. Sınıf ÖEMO\",Sayfa2!R46,\"Lütfen Bilgi Sayfasından Sınıf Seçimi Yapınız\"))))))))))))))))))))","v":"28- Değişim ve belirsizlikle baş eder."},"12- Ergenlik döneminde, bedensel değişimler yaşadığını fark eder.","26- Günlük yaşamda sorun çözme basamaklarını kullanır.","40- Sağlıklı hayat için gerekli alışkanlıklar edinir.","53- Çalışmanın önemini açıklar."]
["30- Kimden, nereden, ne zaman ve nasıl yardım isteyebileceğini bilir.","30- Oyun ve etkinliklerin amacının eğlenmek olduğunu fark eder.","30- Başarmak için çalışmanın gerekliliğini fark eder.","30- Başkalarının yaşadığı duyguları fark eder.","30- Büyüme ve gelişmenin yaşamın doğal bir parçası olduğunu fark eder.","30- Sanal arkadaşlığı, arkadaşlık ilişkileri kapsamında","30- Davranışlarının kendisine ve çevresine etkilerini fark eder.","30- Bir ürün ortaya koymanın zaman, çaba ve sabır gerektirdiğini fark eder.","30- Lise türü seçimine ilişkin kararını verirken kendi görüşleri ile aile ve yakın çevresinin görüşlerini karşılaştırır.","30- Toplumsal rollerinin gerektirdiği sorumlulukları yerine getirmediğinde karşılaşabileceği sonuçları değerlendirir.","30- Öğrenme ortamlarındaki duygularını düzenler.","30- Seçmeyi düşündüğü mesleklerle ilgili kariyer planlaması yapar.","30- Sınavlara ilişkin yoğun duygularını yönetir.",{"$f":"IF(IF(Bilgi!$B$5=\"\",\"\",IF(Bilgi!$B$5=\"Okul Öncesi\",Sayfa2!A47,IF(Bilgi!$B$5=\"1. Sınıf\",Sayfa2!B47,IF(Bilgi!$B$5=\"2. Sınıf\",Sayfa2!C47,IF(Bilgi!$B$5=\"3. Sınıf\",Sayfa2!D47,IF(Bilgi!$B$5=\"4. Sınıf\",Sayfa2!E47,IF(Bilgi!$B$5=\"5. Sınıf\",Sayfa2!F47,IF(Bilgi!$B$5=\"6. Sınıf\",Sayfa2!G47,IF(Bilgi!$B$5=\"7. Sınıf\",Sayfa2!H47,IF(Bilgi!$B$5=\"8. Sınıf\",Sayfa2!I47,IF(Bilgi!$B$5=\"9. Sınıf\",Sayfa2!J47,IF(Bilgi!$B$5=\"10. Sınıf\",Sayfa2!K47,IF(Bilgi!$B$5=\"11. Sınıf\",Sayfa2!L47,IF(Bilgi!$B$5=\"12. Sınıf\",Sayfa2!M47,IF(Bilgi!$B$5=\"9. Sınıf ÖEMO\",Sayfa2!O47,IF(Bilgi!$B$5=\"10. Sınıf ÖEMO\",Sayfa2!P47,IF(Bilgi!$B$5=\"11. Sınıf ÖEMO\",Sayfa2!Q47,IF(Bilgi!$B$5=\"12. Sınıf ÖEMO\",Sayfa2!R47,\"Lütfen Bilgi Sayfasından Sınıf Seçimi Yapınız\"))))))))))))))))))=0,\"\",(IF(Bilgi!$B$5=\"\",\"\",IF(Bilgi!$B$5=\"Okul Öncesi\",Sayfa2!A47,IF(Bilgi!$B$5=\"1. Sınıf\",Sayfa2!B47,IF(Bilgi!$B$5=\"2. Sınıf\",Sayfa2!C47,IF(Bilgi!$B$5=\"3. Sınıf\",Sayfa2!D47,IF(Bilgi!$B$5=\"4. Sınıf\",Sayfa2!E47,IF(Bilgi!$B$5=\"5. Sınıf\",Sayfa2!F47,IF(Bilgi!$B$5=\"6. Sınıf\",Sayfa2!G47,IF(Bilgi!$B$5=\"7. Sınıf\",Sayfa2!H47,IF(Bilgi!$B$5=\"8. Sınıf\",Sayfa2!I47,IF(Bilgi!$B$5=\"9. Sınıf\",Sayfa2!J47,IF(Bilgi!$B$5=\"10. Sınıf\",Sayfa2!K47,IF(Bilgi!$B$5=\"11. Sınıf\",Sayfa2!L47,IF(Bilgi!$B$5=\"12. Sınıf\",Sayfa2!M47,IF(Bilgi!$B$5=\"9. Sınıf ÖEMO\",Sayfa2!O47,IF(Bilgi!$B$5=\"10. Sınıf ÖEMO\",Sayfa2!P47,IF(Bilgi!$B$5=\"11. Sınıf ÖEMO\",Sayfa2!Q47,IF(Bilgi!$B$5=\"12. Sınıf ÖEMO\",Sayfa2!R47,\"Lütfen Bilgi Sayfasından Sınıf Seçimi Yapınız\"))))))))))))))))))))","v":"29- Sınavlara ilişkin yoğun duygularını yönetir."},"13- Kendisinin ve başkalarının olumlu yönlerini ifade eder.","27- Kendine ait bir eşyayı paylaşır.","41- İhtiyaç duyduğu/duyacağı konularda kimlerden yardım alabileceğini bilir.","54- Mezun olduktan sonraki hayatına ilişkin hedeflerini açıklar"]
["31- Yaşadığı çevreyi korur.","31- Eğitsel etkinliklerdeki başarısızlıkların öğrenme sürecinin bir parçası olduğunu kabul eder.","31- Geleceğe ilişkin hayallerini ifade eder.","31- Zamanını, ihtiyaçları ve sorumlulukları çerçevesinde planlar.","31- İyilik hâlini destekleyen davranışlar açısından kendini değerlendirir.","31- Çatışmanın ve anlaşmazlıkların yaşamın bir parçası olduğunu fark eder.","31- Kendini tanımlayan özelliklerin değişebilir olduğunu fark eder.","31- Başarı ve başarısızlık durumlarını açıklama biçimlerini değerlendirir.","31- Lise türü seçimine ilişkin kararını verirken kendi görüşleri ile aile ve yakın çevresinin görüşlerini karşılaştırır.","31- Sahip olduğu karakter güçlerini zorluklar karşısında kullanmayı bilir.","31- Gerektiğinde arkadaşlığını sonlandırır.","31- Meslek seçiminde karar verme becerisini kullanır.","31- Öğrenmenin hayat boyu devam ettiğine inanır.",{"$f":"IF(IF(Bilgi!$B$5=\"\",\"\",IF(Bilgi!$B$5=\"Okul Öncesi\",Sayfa2!A48,IF(Bilgi!$B$5=\"1. Sınıf\",Sayfa2!B48,IF(Bilgi!$B$5=\"2. Sınıf\",Sayfa2!C48,IF(Bilgi!$B$5=\"3. Sınıf\",Sayfa2!D48,IF(Bilgi!$B$5=\"4. Sınıf\",Sayfa2!E48,IF(Bilgi!$B$5=\"5. Sınıf\",Sayfa2!F48,IF(Bilgi!$B$5=\"6. Sınıf\",Sayfa2!G48,IF(Bilgi!$B$5=\"7. Sınıf\",Sayfa2!H48,IF(Bilgi!$B$5=\"8. Sınıf\",Sayfa2!I48,IF(Bilgi!$B$5=\"9. Sınıf\",Sayfa2!J48,IF(Bilgi!$B$5=\"10. Sınıf\",Sayfa2!K48,IF(Bilgi!$B$5=\"11. Sınıf\",Sayfa2!L48,IF(Bilgi!$B$5=\"12. Sınıf\",Sayfa2!M48,IF(Bilgi!$B$5=\"9. Sınıf ÖEMO\",Sayfa2!O48,IF(Bilgi!$B$5=\"10. Sınıf ÖEMO\",Sayfa2!P48,IF(Bilgi!$B$5=\"11. Sınıf ÖEMO\",Sayfa2!Q48,IF(Bilgi!$B$5=\"12. Sınıf ÖEMO\",Sayfa2!R48,\"Lütfen Bilgi Sayfasından Sınıf Seçimi Yapınız\"))))))))))))))))))=0,\"\",(IF(Bilgi!$B$5=\"\",\"\",IF(Bilgi!$B$5=\"Okul Öncesi\",Sayfa2!A48,IF(Bilgi!$B$5=\"1. Sınıf\",Sayfa2!B48,IF(Bilgi!$B$5=\"2. Sınıf\",Sayfa2!C48,IF(Bilgi!$B$5=\"3. Sınıf\",Sayfa2!D48,IF(Bilgi!$B$5=\"4. Sınıf\",Sayfa2!E48,IF(Bilgi!$B$5=\"5. Sınıf\",Sayfa2!F48,IF(Bilgi!$B$5=\"6. Sınıf\",Sayfa2!G48,IF(Bilgi!$B$5=\"7. Sınıf\",Sayfa2!H48,IF(Bilgi!$B$5=\"8. Sınıf\",Sayfa2!I48,IF(Bilgi!$B$5=\"9. Sınıf\",Sayfa2!J48,IF(Bilgi!$B$5=\"10. Sınıf\",Sayfa2!K48,IF(Bilgi!$B$5=\"11. Sınıf\",Sayfa2!L48,IF(Bilgi!$B$5=\"12. Sınıf\",Sayfa2!M48,IF(Bilgi!$B$5=\"9. Sınıf ÖEMO\",Sayfa2!O48,IF(Bilgi!$B$5=\"10. Sınıf ÖEMO\",Sayfa2!P48,IF(Bilgi!$B$5=\"11. Sınıf ÖEMO\",Sayfa2!Q48,IF(Bilgi!$B$5=\"12. Sınıf ÖEMO\",Sayfa2!R48,\"Lütfen Bilgi Sayfasından Sınıf Seçimi Yapınız\"))))))))))))))))))))","v":"30- Sınavlara ilişkin yoğun duygularını yönetir."},"Belirli Gün ve Haftalar / Sosyal Kulüp Çalışmaları","Belirli Gün ve Haftalar / Sosyal Kulüp Çalışmaları","Belirli Gün ve Haftalar / Sosyal Kulüp Çalışmaları","Belirli Gün ve Haftalar / Sosyal Kulüp Çalışmaları"]
["32- Eğitsel etkinliklerdeki başarısızlıkların öğrenme sürecinin bir parçası olduğunu kabul eder.","32- Öğrenme sürecinde deneyimlediği başarısızlıkların üstesinden gelmek için farklı çözüm yolları dener.","32- Bilişim teknolojilerini kullanmanın yaşamına katkılarını açıklar.","32- Her bireyin özel olduğunu fark eder.","32- Bilgi kaynaklarının güvenilirliğini sorgular.","32- Gerektiğinde arkadaşlığını sonlandırır.","32- İnsanların farklı karakter güçlerine sahip olmasının kişiler arası ilişkilere zenginlik katacağını bilir.","32- Okulun kendisi için önemini açıklar.","32- Lise türü seçimi yaparken karar verme becerisini kullanır.","32- Kariyer hazırlığı sürecinde belirlediği amaçlar doğrultusunda alan/dal/ders seçiminde karar verme becerisini kullanır.","32- Gerektiğinde arkadaşlığını sonlandırır.","32- Akademik amaçlarıyla kariyer seçenekleri arasındaki ilişkiyi açıklar.","32- Üst öğretim kurumlarına geçiş sınavlarıyla ilgili bilgi edinir.",{"$f":"IF(IF(Bilgi!$B$5=\"\",\"\",IF(Bilgi!$B$5=\"Okul Öncesi\",Sayfa2!A49,IF(Bilgi!$B$5=\"1. Sınıf\",Sayfa2!B49,IF(Bilgi!$B$5=\"2. Sınıf\",Sayfa2!C49,IF(Bilgi!$B$5=\"3. Sınıf\",Sayfa2!D49,IF(Bilgi!$B$5=\"4. Sınıf\",Sayfa2!E49,IF(Bilgi!$B$5=\"5. Sınıf\",Sayfa2!F49,IF(Bilgi!$B$5=\"6. Sınıf\",Sayfa2!G49,IF(Bilgi!$B$5=\"7. Sınıf\",Sayfa2!H49,IF(Bilgi!$B$5=\"8. Sınıf\",Sayfa2!I49,IF(Bilgi!$B$5=\"9. Sınıf\",Sayfa2!J49,IF(Bilgi!$B$5=\"10. Sınıf\",Sayfa2!K49,IF(Bilgi!$B$5=\"11. Sınıf\",Sayfa2!L49,IF(Bilgi!$B$5=\"12. Sınıf\",Sayfa2!M49,IF(Bilgi!$B$5=\"9. Sınıf ÖEMO\",Sayfa2!O49,IF(Bilgi!$B$5=\"10. Sınıf ÖEMO\",Sayfa2!P49,IF(Bilgi!$B$5=\"11. Sınıf ÖEMO\",Sayfa2!Q49,IF(Bilgi!$B$5=\"12. Sınıf ÖEMO\",Sayfa2!R49,\"Lütfen Bilgi Sayfasından Sınıf Seçimi Yapınız\"))))))))))))))))))=0,\"\",(IF(Bilgi!$B$5=\"\",\"\",IF(Bilgi!$B$5=\"Okul Öncesi\",Sayfa2!A49,IF(Bilgi!$B$5=\"1. Sınıf\",Sayfa2!B49,IF(Bilgi!$B$5=\"2. Sınıf\",Sayfa2!C49,IF(Bilgi!$B$5=\"3. Sınıf\",Sayfa2!D49,IF(Bilgi!$B$5=\"4. Sınıf\",Sayfa2!E49,IF(Bilgi!$B$5=\"5. Sınıf\",Sayfa2!F49,IF(Bilgi!$B$5=\"6. Sınıf\",Sayfa2!G49,IF(Bilgi!$B$5=\"7. Sınıf\",Sayfa2!H49,IF(Bilgi!$B$5=\"8. Sınıf\",Sayfa2!I49,IF(Bilgi!$B$5=\"9. Sınıf\",Sayfa2!J49,IF(Bilgi!$B$5=\"10. Sınıf\",Sayfa2!K49,IF(Bilgi!$B$5=\"11. Sınıf\",Sayfa2!L49,IF(Bilgi!$B$5=\"12. Sınıf\",Sayfa2!M49,IF(Bilgi!$B$5=\"9. Sınıf ÖEMO\",Sayfa2!O49,IF(Bilgi!$B$5=\"10. Sınıf ÖEMO\",Sayfa2!P49,IF(Bilgi!$B$5=\"11. Sınıf ÖEMO\",Sayfa2!Q49,IF(Bilgi!$B$5=\"12. Sınıf ÖEMO\",Sayfa2!R49,\"Lütfen Bilgi Sayfasından Sınıf Seçimi Yapınız\"))))))))))))))))))))","v":"31- Öğrenmenin hayat boyu devam ettiğine inanır."},"14-  Etkinliğe katılmaya istekli olur.","28- Alay edilmeyle başa çıkar."]
["33- Her mesleğin toplumsal yaşama katkısı olduğunu fark eder.","33- Her mesleğin toplumsal yaşama katkısı olduğunu fark eder.","33- Başkalarının yaşadığı duyguları fark eder.","33- Grup çalışmalarında farklı roller üstlenir.","33- Birlikte çalışarak üretmenin topluma katkıda bulunacağını fark eder.","33- Akademik amaçlarını gerçekleştirme konusunda kendini değerlendirir.","33- Çalışarak bir şey üretmenin sorumluluğunu alır.","33- Bu zamana kadar verdiği kararları karar verme sürecini etkileyen faktörler açısından değerlendirir.","33- Lise türü seçimi yaparken karar verme becerisini kullanır.","33- Kariyer hazırlığı sürecinde belirlediği amaçlar doğrultusunda alan/dal/ders seçiminde karar verme becerisini kullanır.","33- Takım çalışmalarının kişisel gelişimine olan etkilerini fark eder.","33- Kimlik gelişimi ile sosyal bağlamları ilişkilendirir.","33- Bir üst öğretim kurumuna ilişkin ön bilgiler edinir.",{"$f":"IF(IF(Bilgi!$B$5=\"\",\"\",IF(Bilgi!$B$5=\"Okul Öncesi\",Sayfa2!A50,IF(Bilgi!$B$5=\"1. Sınıf\",Sayfa2!B50,IF(Bilgi!$B$5=\"2. Sınıf\",Sayfa2!C50,IF(Bilgi!$B$5=\"3. Sınıf\",Sayfa2!D50,IF(Bilgi!$B$5=\"4. Sınıf\",Sayfa2!E50,IF(Bilgi!$B$5=\"5. Sınıf\",Sayfa2!F50,IF(Bilgi!$B$5=\"6. Sınıf\",Sayfa2!G50,IF(Bilgi!$B$5=\"7. Sınıf\",Sayfa2!H50,IF(Bilgi!$B$5=\"8. Sınıf\",Sayfa2!I50,IF(Bilgi!$B$5=\"9. Sınıf\",Sayfa2!J50,IF(Bilgi!$B$5=\"10. Sınıf\",Sayfa2!K50,IF(Bilgi!$B$5=\"11. Sınıf\",Sayfa2!L50,IF(Bilgi!$B$5=\"12. Sınıf\",Sayfa2!M50,IF(Bilgi!$B$5=\"9. Sınıf ÖEMO\",Sayfa2!O50,IF(Bilgi!$B$5=\"10. Sınıf ÖEMO\",Sayfa2!P50,IF(Bilgi!$B$5=\"11. Sınıf ÖEMO\",Sayfa2!Q50,IF(Bilgi!$B$5=\"12. Sınıf ÖEMO\",Sayfa2!R50,\"Lütfen Bilgi Sayfasından Sınıf Seçimi Yapınız\"))))))))))))))))))=0,\"\",(IF(Bilgi!$B$5=\"\",\"\",IF(Bilgi!$B$5=\"Okul Öncesi\",Sayfa2!A50,IF(Bilgi!$B$5=\"1. Sınıf\",Sayfa2!B50,IF(Bilgi!$B$5=\"2. Sınıf\",Sayfa2!C50,IF(Bilgi!$B$5=\"3. Sınıf\",Sayfa2!D50,IF(Bilgi!$B$5=\"4. Sınıf\",Sayfa2!E50,IF(Bilgi!$B$5=\"5. Sınıf\",Sayfa2!F50,IF(Bilgi!$B$5=\"6. Sınıf\",Sayfa2!G50,IF(Bilgi!$B$5=\"7. Sınıf\",Sayfa2!H50,IF(Bilgi!$B$5=\"8. Sınıf\",Sayfa2!I50,IF(Bilgi!$B$5=\"9. Sınıf\",Sayfa2!J50,IF(Bilgi!$B$5=\"10. Sınıf\",Sayfa2!K50,IF(Bilgi!$B$5=\"11. Sınıf\",Sayfa2!L50,IF(Bilgi!$B$5=\"12. Sınıf\",Sayfa2!M50,IF(Bilgi!$B$5=\"9. Sınıf ÖEMO\",Sayfa2!O50,IF(Bilgi!$B$5=\"10. Sınıf ÖEMO\",Sayfa2!P50,IF(Bilgi!$B$5=\"11. Sınıf ÖEMO\",Sayfa2!Q50,IF(Bilgi!$B$5=\"12. Sınıf ÖEMO\",Sayfa2!R50,\"Lütfen Bilgi Sayfasından Sınıf Seçimi Yapınız\"))))))))))))))))))))","v":"32- Üst öğretim kurumlarına geçiş sınavlarıyla ilgili bilgi edinir."},"Belirli Gün ve Haftalar / Sosyal Kulüp Çalışmaları","Belirli Gün ve Haftalar / Sosyal Kulüp Çalışmaları","Belirli Gün ve Haftalar / Sosyal Kulüp Çalışmaları","Belirli Gün ve Haftalar / Sosyal Kulüp Çalışmaları"]
["34- Her mesleğin toplumsal yaşama katkısı olduğunu fark eder.","34- Her mesleğin toplumsal yaşama katkısı olduğunu fark eder.","34- Öğrenme etkinliklerine yönelik duygu ve düşüncelerini ifade eder.","34- Grup çalışmalarında liderlik becerileri gösterir.","34- Bir üst öğretim kurumuna ilişkin ön bilgiler edinir.","34- Karar verme sürecini etkileyen faktörleri açıklar.","34- Kendi ilgileri ile mesleklerin özelliklerini ilişkilendirir.","34- Karar verme basamaklarını açıklar.","34- Lise türüne ilişkin kararını tekrar değerlendirir.","34- Kimden, nereden, ne zaman ve nasıl yardım isteyebileceğini bilir.","34- Kişisel hakların korunması ve kişisel güvenliğin sağlanması için yönergeleri izlemeyi alışkanlık hâline getirir.","34- Ortaöğretim sonrası kariyer tercihleri ile ilgili yardım alabileceği kaynaklara başvurur.","34- Bir üst öğretim kurumuna ve iş yaşamına geçiş sürecine yönelik duygu ve düşüncelerini ifade eder.",{"$f":"IF(IF(Bilgi!$B$5=\"\",\"\",IF(Bilgi!$B$5=\"Okul Öncesi\",Sayfa2!A51,IF(Bilgi!$B$5=\"1. Sınıf\",Sayfa2!B51,IF(Bilgi!$B$5=\"2. Sınıf\",Sayfa2!C51,IF(Bilgi!$B$5=\"3. Sınıf\",Sayfa2!D51,IF(Bilgi!$B$5=\"4. Sınıf\",Sayfa2!E51,IF(Bilgi!$B$5=\"5. Sınıf\",Sayfa2!F51,IF(Bilgi!$B$5=\"6. Sınıf\",Sayfa2!G51,IF(Bilgi!$B$5=\"7. Sınıf\",Sayfa2!H51,IF(Bilgi!$B$5=\"8. Sınıf\",Sayfa2!I51,IF(Bilgi!$B$5=\"9. Sınıf\",Sayfa2!J51,IF(Bilgi!$B$5=\"10. Sınıf\",Sayfa2!K51,IF(Bilgi!$B$5=\"11. Sınıf\",Sayfa2!L51,IF(Bilgi!$B$5=\"12. Sınıf\",Sayfa2!M51,IF(Bilgi!$B$5=\"9. Sınıf ÖEMO\",Sayfa2!O51,IF(Bilgi!$B$5=\"10. Sınıf ÖEMO\",Sayfa2!P51,IF(Bilgi!$B$5=\"11. Sınıf ÖEMO\",Sayfa2!Q51,IF(Bilgi!$B$5=\"12. Sınıf ÖEMO\",Sayfa2!R51,\"Lütfen Bilgi Sayfasından Sınıf Seçimi Yapınız\"))))))))))))))))))=0,\"\",(IF(Bilgi!$B$5=\"\",\"\",IF(Bilgi!$B$5=\"Okul Öncesi\",Sayfa2!A51,IF(Bilgi!$B$5=\"1. Sınıf\",Sayfa2!B51,IF(Bilgi!$B$5=\"2. Sınıf\",Sayfa2!C51,IF(Bilgi!$B$5=\"3. Sınıf\",Sayfa2!D51,IF(Bilgi!$B$5=\"4. Sınıf\",Sayfa2!E51,IF(Bilgi!$B$5=\"5. Sınıf\",Sayfa2!F51,IF(Bilgi!$B$5=\"6. Sınıf\",Sayfa2!G51,IF(Bilgi!$B$5=\"7. Sınıf\",Sayfa2!H51,IF(Bilgi!$B$5=\"8. Sınıf\",Sayfa2!I51,IF(Bilgi!$B$5=\"9. Sınıf\",Sayfa2!J51,IF(Bilgi!$B$5=\"10. Sınıf\",Sayfa2!K51,IF(Bilgi!$B$5=\"11. Sınıf\",Sayfa2!L51,IF(Bilgi!$B$5=\"12. Sınıf\",Sayfa2!M51,IF(Bilgi!$B$5=\"9. Sınıf ÖEMO\",Sayfa2!O51,IF(Bilgi!$B$5=\"10. Sınıf ÖEMO\",Sayfa2!P51,IF(Bilgi!$B$5=\"11. Sınıf ÖEMO\",Sayfa2!Q51,IF(Bilgi!$B$5=\"12. Sınıf ÖEMO\",Sayfa2!R51,\"Lütfen Bilgi Sayfasından Sınıf Seçimi Yapınız\"))))))))))))))))))))","v":"33- Bir üst öğretim kurumuna ilişkin ön bilgiler edinir."}]
["35- Bir üst öğretim kurumuna geçiş sürecine yönelik duygu ve düşüncelerini ifade eder.","35- Bilişim teknolojilerinin kullanım amaçlarını fark eder.","35- Öğrenme ortamlarına ilişkin duygu ve düşüncelerini ifade eder.","35- Olağan dışı durumlarda nasıl hareket etmesi gerektiğini örneklerle açıklar.","35- Bir üst öğretim kurumuna geçiş sürecine yönelik duygu ve düşüncelerini ifade eder.","35- Ders seçiminde karar verme becerisini kullanır.","35- Derslerin mesleklerle ilişkisini açıklar.","35- Karar verme basamaklarını kullanır.","35- Bir üst öğretim kurumuna geçiş sürecine yönelik duygu ve düşüncelerini ifade eder.","35- Akademik amaçlarını gerçekleştirme konusunda kendini değerlendirir.","35- Doğal yaşamı korumak için duyarlı davranır.","35- Kişisel değerleri ile yaşam amaçları arasında bağ kurar.","35- Eğitim öğretim hayatının kendisine kattıklarını değerlendirir.",{"$f":"IF(IF(Bilgi!$B$5=\"\",\"\",IF(Bilgi!$B$5=\"Okul Öncesi\",Sayfa2!A52,IF(Bilgi!$B$5=\"1. Sınıf\",Sayfa2!B52,IF(Bilgi!$B$5=\"2. Sınıf\",Sayfa2!C52,IF(Bilgi!$B$5=\"3. Sınıf\",Sayfa2!D52,IF(Bilgi!$B$5=\"4. Sınıf\",Sayfa2!E52,IF(Bilgi!$B$5=\"5. Sınıf\",Sayfa2!F52,IF(Bilgi!$B$5=\"6. Sınıf\",Sayfa2!G52,IF(Bilgi!$B$5=\"7. Sınıf\",Sayfa2!H52,IF(Bilgi!$B$5=\"8. Sınıf\",Sayfa2!I52,IF(Bilgi!$B$5=\"9. Sınıf\",Sayfa2!J52,IF(Bilgi!$B$5=\"10. Sınıf\",Sayfa2!K52,IF(Bilgi!$B$5=\"11. Sınıf\",Sayfa2!L52,IF(Bilgi!$B$5=\"12. Sınıf\",Sayfa2!M52,IF(Bilgi!$B$5=\"9. Sınıf ÖEMO\",Sayfa2!O52,IF(Bilgi!$B$5=\"10. Sınıf ÖEMO\",Sayfa2!P52,IF(Bilgi!$B$5=\"11. Sınıf ÖEMO\",Sayfa2!Q52,IF(Bilgi!$B$5=\"12. Sınıf ÖEMO\",Sayfa2!R52,\"Lütfen Bilgi Sayfasından Sınıf Seçimi Yapınız\"))))))))))))))))))=0,\"\",(IF(Bilgi!$B$5=\"\",\"\",IF(Bilgi!$B$5=\"Okul Öncesi\",Sayfa2!A52,IF(Bilgi!$B$5=\"1. Sınıf\",Sayfa2!B52,IF(Bilgi!$B$5=\"2. Sınıf\",Sayfa2!C52,IF(Bilgi!$B$5=\"3. Sınıf\",Sayfa2!D52,IF(Bilgi!$B$5=\"4. Sınıf\",Sayfa2!E52,IF(Bilgi!$B$5=\"5. Sınıf\",Sayfa2!F52,IF(Bilgi!$B$5=\"6. Sınıf\",Sayfa2!G52,IF(Bilgi!$B$5=\"7. Sınıf\",Sayfa2!H52,IF(Bilgi!$B$5=\"8. Sınıf\",Sayfa2!I52,IF(Bilgi!$B$5=\"9. Sınıf\",Sayfa2!J52,IF(Bilgi!$B$5=\"10. Sınıf\",Sayfa2!K52,IF(Bilgi!$B$5=\"11. Sınıf\",Sayfa2!L52,IF(Bilgi!$B$5=\"12. Sınıf\",Sayfa2!M52,IF(Bilgi!$B$5=\"9. Sınıf ÖEMO\",Sayfa2!O52,IF(Bilgi!$B$5=\"10. Sınıf ÖEMO\",Sayfa2!P52,IF(Bilgi!$B$5=\"11. Sınıf ÖEMO\",Sayfa2!Q52,IF(Bilgi!$B$5=\"12. Sınıf ÖEMO\",Sayfa2!R52,\"Lütfen Bilgi Sayfasından Sınıf Seçimi Yapınız\"))))))))))))))))))))","v":"34- Bir üst öğretim kurumuna ve iş yaşamına geçiş sürecine yönelik duygu ve düşüncelerini ifade eder."},"Belirli Gün ve Haftalar / Sosyal Kulüp Çalışmaları","Belirli Gün ve Haftalar / Sosyal Kulüp Çalışmaları","Belirli Gün ve Haftalar / Sosyal Kulüp Çalışmaları","Belirli Gün ve Haftalar / Sosyal Kulüp Çalışmaları"]
["36- Sınıf rehberlik programı etkinliklerine/yaşantılarına ilişkin duygu ve düşüncelerini yansıtır.","36- Sınıf rehberlik programı etkinliklerine/yaşantılarına ilişkin duygu ve düşüncelerini yansıtır.","36- Sınıf rehberlik programı etkinliklerine/yaşantılarına ilişkin duygu ve düşüncelerini yansıtır.","36- Sınıf rehberlik programı etkinliklerine/yaşantılarına ilişkin duygu ve düşüncelerini yansıtır.","36- Sınıf rehberlik programı etkinliklerine/yaşantılarına ilişkin duygu ve düşüncelerini yansıtır.","36- Sınıf rehberlik programı etkinliklerine/yaşantılarına ilişkin duygu ve düşüncelerini yansıtır.","36- Sınıf rehberlik programı etkinliklerine/yaşantılarına ilişkin duygu ve düşüncelerini yansıtır.","36- Sınıf rehberlik programı etkinliklerine/yaşantılarına ilişkin duygu ve düşüncelerini yansıtır.","36- Sınıf rehberlik programı etkinliklerine/yaşantılarına ilişkin duygu ve düşüncelerini yansıtır.","36- Sınıf rehberlik programı etkinliklerine/yaşantılarına ilişkin duygu ve düşüncelerini yansıtır.","36- Sınıf rehberlik programı etkinliklerine/yaşantılarına ilişkin duygu ve düşüncelerini yansıtır.","36- Sınıf rehberlik programı etkinliklerine/yaşantılarına ilişkin duygu ve düşüncelerini yansıtır.","36- Sınıf rehberlik programı etkinliklerine/yaşantılarına ilişkin duygu ve düşüncelerini yansıtır.",{"$f":"IF(IF(Bilgi!$B$5=\"\",\"\",IF(Bilgi!$B$5=\"Okul Öncesi\",Sayfa2!A53,IF(Bilgi!$B$5=\"1. Sınıf\",Sayfa2!B53,IF(Bilgi!$B$5=\"2. Sınıf\",Sayfa2!C53,IF(Bilgi!$B$5=\"3. Sınıf\",Sayfa2!D53,IF(Bilgi!$B$5=\"4. Sınıf\",Sayfa2!E53,IF(Bilgi!$B$5=\"5. Sınıf\",Sayfa2!F53,IF(Bilgi!$B$5=\"6. Sınıf\",Sayfa2!G53,IF(Bilgi!$B$5=\"7. Sınıf\",Sayfa2!H53,IF(Bilgi!$B$5=\"8. Sınıf\",Sayfa2!I53,IF(Bilgi!$B$5=\"9. Sınıf\",Sayfa2!J53,IF(Bilgi!$B$5=\"10. Sınıf\",Sayfa2!K53,IF(Bilgi!$B$5=\"11. Sınıf\",Sayfa2!L53,IF(Bilgi!$B$5=\"12. Sınıf\",Sayfa2!M53,IF(Bilgi!$B$5=\"9. Sınıf ÖEMO\",Sayfa2!O53,IF(Bilgi!$B$5=\"10. Sınıf ÖEMO\",Sayfa2!P53,IF(Bilgi!$B$5=\"11. Sınıf ÖEMO\",Sayfa2!Q53,IF(Bilgi!$B$5=\"12. Sınıf ÖEMO\",Sayfa2!R53,\"Lütfen Bilgi Sayfasından Sınıf Seçimi Yapınız\"))))))))))))))))))=0,\"\",(IF(Bilgi!$B$5=\"\",\"\",IF(Bilgi!$B$5=\"Okul Öncesi\",Sayfa2!A53,IF(Bilgi!$B$5=\"1. Sınıf\",Sayfa2!B53,IF(Bilgi!$B$5=\"2. Sınıf\",Sayfa2!C53,IF(Bilgi!$B$5=\"3. Sınıf\",Sayfa2!D53,IF(Bilgi!$B$5=\"4. Sınıf\",Sayfa2!E53,IF(Bilgi!$B$5=\"5. Sınıf\",Sayfa2!F53,IF(Bilgi!$B$5=\"6. Sınıf\",Sayfa2!G53,IF(Bilgi!$B$5=\"7. Sınıf\",Sayfa2!H53,IF(Bilgi!$B$5=\"8. Sınıf\",Sayfa2!I53,IF(Bilgi!$B$5=\"9. Sınıf\",Sayfa2!J53,IF(Bilgi!$B$5=\"10. Sınıf\",Sayfa2!K53,IF(Bilgi!$B$5=\"11. Sınıf\",Sayfa2!L53,IF(Bilgi!$B$5=\"12. Sınıf\",Sayfa2!M53,IF(Bilgi!$B$5=\"9. Sınıf ÖEMO\",Sayfa2!O53,IF(Bilgi!$B$5=\"10. Sınıf ÖEMO\",Sayfa2!P53,IF(Bilgi!$B$5=\"11. Sınıf ÖEMO\",Sayfa2!Q53,IF(Bilgi!$B$5=\"12. Sınıf ÖEMO\",Sayfa2!R53,\"Lütfen Bilgi Sayfasından Sınıf Seçimi Yapınız\"))))))))))))))))))))","v":"35- Eğitim öğretim hayatının kendisine kattıklarını değerlendirir."},"Belirli Gün ve Haftalar / Sosyal Kulüp Çalışmaları","Belirli Gün ve Haftalar / Sosyal Kulüp Çalışmaları","Belirli Gün ve Haftalar / Sosyal Kulüp Çalışmaları","Belirli Gün ve Haftalar / Sosyal Kulüp Çalışmaları"]
[null,null,null,null,null,null,null,null,null,null,null,null,null,{"$f":"IF(IF(Bilgi!$B$5=\"\",\"\",IF(Bilgi!$B$5=\"Okul Öncesi\",Sayfa2!A54,IF(Bilgi!$B$5=\"1. Sınıf\",Sayfa2!B54,IF(Bilgi!$B$5=\"2. Sınıf\",Sayfa2!C54,IF(Bilgi!$B$5=\"3. Sınıf\",Sayfa2!D54,IF(Bilgi!$B$5=\"4. Sınıf\",Sayfa2!E54,IF(Bilgi!$B$5=\"5. Sınıf\",Sayfa2!F54,IF(Bilgi!$B$5=\"6. Sınıf\",Sayfa2!G54,IF(Bilgi!$B$5=\"7. Sınıf\",Sayfa2!H54,IF(Bilgi!$B$5=\"8. Sınıf\",Sayfa2!I54,IF(Bilgi!$B$5=\"9. Sınıf\",Sayfa2!J54,IF(Bilgi!$B$5=\"10. Sınıf\",Sayfa2!K54,IF(Bilgi!$B$5=\"11. Sınıf\",Sayfa2!L54,IF(Bilgi!$B$5=\"12. Sınıf\",Sayfa2!M54,IF(Bilgi!$B$5=\"9. Sınıf ÖEMO\",Sayfa2!O54,IF(Bilgi!$B$5=\"10. Sınıf ÖEMO\",Sayfa2!P54,IF(Bilgi!$B$5=\"11. Sınıf ÖEMO\",Sayfa2!Q54,IF(Bilgi!$B$5=\"12. Sınıf ÖEMO\",Sayfa2!R54,\"Lütfen Bilgi Sayfasından Sınıf Seçimi Yapınız\"))))))))))))))))))=0,\"\",(IF(Bilgi!$B$5=\"\",\"\",IF(Bilgi!$B$5=\"Okul Öncesi\",Sayfa2!A54,IF(Bilgi!$B$5=\"1. Sınıf\",Sayfa2!B54,IF(Bilgi!$B$5=\"2. Sınıf\",Sayfa2!C54,IF(Bilgi!$B$5=\"3. Sınıf\",Sayfa2!D54,IF(Bilgi!$B$5=\"4. Sınıf\",Sayfa2!E54,IF(Bilgi!$B$5=\"5. Sınıf\",Sayfa2!F54,IF(Bilgi!$B$5=\"6. Sınıf\",Sayfa2!G54,IF(Bilgi!$B$5=\"7. Sınıf\",Sayfa2!H54,IF(Bilgi!$B$5=\"8. Sınıf\",Sayfa2!I54,IF(Bilgi!$B$5=\"9. Sınıf\",Sayfa2!J54,IF(Bilgi!$B$5=\"10. Sınıf\",Sayfa2!K54,IF(Bilgi!$B$5=\"11. Sınıf\",Sayfa2!L54,IF(Bilgi!$B$5=\"12. Sınıf\",Sayfa2!M54,IF(Bilgi!$B$5=\"9. Sınıf ÖEMO\",Sayfa2!O54,IF(Bilgi!$B$5=\"10. Sınıf ÖEMO\",Sayfa2!P54,IF(Bilgi!$B$5=\"11. Sınıf ÖEMO\",Sayfa2!Q54,IF(Bilgi!$B$5=\"12. Sınıf ÖEMO\",Sayfa2!R54,\"Lütfen Bilgi Sayfasından Sınıf Seçimi Yapınız\"))))))))))))))))))))","v":"36- Sınıf rehberlik programı etkinliklerine/yaşantılarına ilişkin duygu ve düşüncelerini yansıtır."}]

{"sheet":"Sayfa3","index":39,"n_rows":13,"n_cols":3,"rows_kept":13,"cut":false,"hidden":true,"merged":[]}
[1,"Beden İmgesi","Kişilerin nasıl göründüklerine ve bedensel uzuvlarına ilişkin öznel yargıları, duygu, düşünce ve algı biçimleri olarak tanımlanmaktadır."]
[2,"Değer","Bir kimsenin çeşitli insanları, insanlara ait nitelikleri, istek ve niyetleri, davranışları değerlendirirken başvurduğu bir ölçüt olarak vurgulanmaktadır. Değer hükmü bir şeyin arzu edilebilir veya edilemez olduğunu belirten ifade ise, o hâlde değer de bir şeyin arzu edilebilir veya edilemez olduğu hakkındaki inançtır."]
[3,"Yaşam Değerleri","Bireylerin davranışlarının esin kaynağı, bu davranışlarına yol gösteren ve davranış idealleri/ölçütleri oluşturan standartlar olan tanımlanan yaşam değerleri kapsamında başarı, aidiyet, çevrecilik, özgecilik, yaratıcılık, servet, sağlık, tevazu, bağımsızlık, karşılıklı bağımlılık, analiz, mahremiyet, sorumluluk ve maneviyat değerlerine odaklanılmıştır."]
[4,"Meslek Değerleri","Hem mesleğin içerdiği etkinlikler hem de o etkinliklerin yapıldığı ortam ve edinilen kazançla ilgili doyumlar olup mesleği kişi için önemli yapan özelliklerdir."]
[5,"Hak Savunuculuğu","Sosyal adalet temelli; politik, ekonomik ve sosyal açılardan dezavantajlı olanların güçlendirilmesinde yapısal ve kalıcı değişiklikler ortaya koymak için mücadele etmeyi ifade etmektedir."]
[6,"Hobi","Serbest zamanlarda yürütülen ve gelir elde etmekten çok zevk alma amacıyla yapılan uğraşılar."]
[7,"İyilik Hâli","Sağlık kavramının daha bütüncül olarak ele alınmasına paralel olarak iyilik hâli, optimal düzeyde sağlıklı olmaya yönelmiş davranışlar olarak ele alınmaktadır. Sağlıklı olmaya yönelmiş davranışlar arasına, bireyin sahip olduğu kişisel amaçlarına ve daha anlamlı yaşam geçirme hedeflerine ulaşmak için çabalaması; bedeninin, aklının ve ruhunun bütünleşmesi; sosyal, kişisel ve ekolojik olarak tüm alanlarda işlevsel bir yaşam sürmek yer almaktadır."]
[8,"İyi Oluş","İyi oluş psiko-patolojik bir tanının ya da davranış bozukluğunun olmaması anlamına gelmesinin ötesinde kişinin kendi yeteneklerini fark etmesi, günlük yaşam stresi ile başa çıkabilmesi, verimli bir şekilde çalışabilmesi ve içinde bulunduğu toplumun gelişimine katkı sağlayabilmesi, bunun yanında yaşamında pozitif duygularla psikolojik ve sosyal işlevselliğin olması durumu olarak tanımlanmıştır."]
[9,"Liderlik Becerisi","Sorumluluk alma ve birlikte çalışılan kişilerin de sorumluluk almasını teşvik edebilme becerisi, arkadaşları, meslektaşları, aile üyeleri, komşuları ile uyum içinde çalışma, bu kişilerdeki potansiyelin açığa çıkmasını desteklemesidir. Bu kapsamda özellikle öz yönetim ve sorumluluk becerileri ön plana çıkmaktadır. Bunun yanı sıra empati, ekip çalışmasına yatkınlık ve yaratıcı problem çözme becerileri ile desteklenmektedir."]
[10,"Psikolojik Sağlık","Bireyin kendi yeteneklerinin farkında olması, yaşamında oluşan stresin üstesinden gelebilmesi, iş yaşamında üretken ve faydalı olabilmesi ve yetenekleri doğrultusunda toplumuna katkı yapması olarak tanımlanmaktadır."]
[11,"Takım Çalışması","Takım, görev bakımından birbirini tamamlayan kimselerin topluluğu, grup, ekip olarak tanımlanmaktadır. Takım çalışmaları ödev, spor, oyun gibi her türlü grup aktivitelerini tanımlamaktadır."]
[12,"Yansıtıcı Düşünme","Düşünüp taşınma, derinlemesine düşünme, tefekkür, fikir üretme ve mütalaadır."]
[13,"DİSREP Nedir?","Hazırlanan sınıf rehberlik etkinliklerinin değişen ihtiyaçlar doğrultusunda dijital olarak kullanılabilmesi, öğretmenlerin kullanacakları materyal çeşitliliğini artırabilmek amacıyla etkinliklerin dijital olarak uyarlanmasına yönelik çalışmalar gerçekleştirilmiş ve   ilkokul, ortaokul ile ortaöğretim kademeleri için Dijital Sınıf Rehberlik Etkinlikleri Platformu (DİSREP) oluşturulmuştur. Bu platform aracılığıyla sınıf rehberlik etkinliklerini uygulama sürecinde öğrenciler; bilgisayar, telefon, tablet vb. aracılığıyla da sınıf rehberlik etkinliklerinin uygulanması sürecine katılabileceklerdir. Dijital Sınıf Rehberlik Etkinlikleri Platformu (DİSREP) ile sınıf rehber öğretmenleri sınıfta etkileşimli tahta aracılığıyla her hafta etkinlikleri daha kolay ve dikkat çekici şekilde uygulayabilecekler; öğrenciler bazı etkinlikleri kendi başlarına online olarak gerçekleştirebilecek, yüz yüze ya da uzaktan/online eğitimde öğretmen ve öğrenciler etkinliklere erişebileceklerdir."]

{"sheet":"Sayfa4","index":40,"n_rows":74,"n_cols":4,"rows_kept":74,"cut":false,"hidden":true,"merged":[]}
[]
["Özel Eğitim Sınıfı","Özel Eğitim Sınıfı","Lütfen Önce Sınıf Seçimini Yapınız","Adalet"]
["3 Yaş A Şubesi","A Şubesi",null,"Aile Ve Tüketici Hizmetleri"]
["4 Yaş A Şubesi","B Şubesi",null,"Ayakkabı Ve Saraciye Teknolojisi"]
["5 Yaş A Şubesi","C Şubesi",null,"Bilişim Teknolojileri"]
["3 Yaş B Şubesi","D Şubesi",null,"Biyomedikal Cihaz Teknolojileri"]
["4 Yaş B Şubesi","E Şubesi",null,"Büro Yönetimi"]
["5 Yaş B Şubesi","F Şubesi",null,"Çocuk Gelişimi Ve Eğitimi"]
["3 Yaş C Şubesi","G Şubesi",null,"Denizcilik"]
["4 Yaş C Şubesi","H Şubesi",null,"Eğlence Hizmetleri"]
["5 Yaş C Şubesi","I Şubesi",null,"El Sanatları Teknolojisi"]
["3 Yaş D Şubesi","J Şubesi",null,"Elektrik- Elektronik Teknolojisi"]
["4 Yaş D Şubesi","K Şubesi",null,"Endüstriyel Otomasyon Teknolojileri"]
["5 Yaş D Şubesi","L Şubesi",null,"Gazetecilik"]
["3 Yaş E Şubesi","M Şubesi",null,"Geleneksel Türk Sanatları"]
["4 Yaş E Şubesi","N Şubesi",null,"Gemi Yapımı"]
["5 Yaş E Şubesi","O Şubesi",null,"Gıda Teknolojisi"]
["3 Yaş F Şubesi","P Şubesi",null,"Moda Tasarım\nTeknolojileri"]
["4 Yaş F Şubesi","R Şubesi",null,"Grafik Ve Fotoğraf"]
["5 Yaş F Şubesi","S Şubesi",null,"Güzellik Ve Saç Bakım Hizmetleri"]
["3 Yaş G Şubesi","T Şubesi",null,"Halkla İlişkiler Ve Organizasyon Hizmetleri"]
["4 Yaş G Şubesi","U Şubesi",null,"Harita-Tapu-Kadastro"]
["5 Yaş G Şubesi","V Şubesi",null,"Hasta Ve Yaşlı Hizmetleri"]
["3 Yaş H Şubesi","Y Şubesi",null,"Hayvan Yetiştiriciliği Ve Sağlığı"]
["4 Yaş H Şubesi","Z Şubesi",null,"İnşaat Teknolojisi"]
["5 Yaş H Şubesi",null,null,"İtfaiyecilik Ve Yangın Güvenliği"]
["3 Yaş I Şubesi",null,null,"Kimya Teknolojisi"]
["4 Yaş I Şubesi",null,null,"Konaklama Ve Seyahat\nHizmetleri"]
["5 Yaş I Şubesi",null,null,"Kuyumculuk\nTeknolojisi"]
["3 Yaş J Şubesi",null,null,"Laboratuvar\nHizmetleri"]
["4 Yaş J Şubesi",null,null,"Maden Teknolojisi"]
["5 Yaş J Şubesi",null,null,"Makine Teknolojisi"]
["3 Yaş K Şubesi",null,null,"Matbaa Teknolojisi"]
["4 Yaş K Şubesi",null,null,"Metal Teknolojisi"]
["5 Yaş K Şubesi",null,null,"Metalürji Teknolojisi"]
["3 Yaş L Şubesi",null,null,"Meteoroloji"]
["4 Yaş L Şubesi",null,null,"Mobilya Ve İç Mekân\nTasarımı"]
["5 Yaş L Şubesi",null,null,"Motorlu Araçlar\nTeknolojisi"]
["3 Yaş M Şubesi",null,null,"Muhasebe Ve Finansman"]
["4 Yaş M Şubesi",null,null,"Müzik Aletleri Yapımı"]
["5 Yaş M Şubesi",null,null,"Pazarlama Ve Perakende"]
["3 Yaş N Şubesi",null,null,"Plastik Teknolojisi"]
["4 Yaş N Şubesi",null,null,"Radyo-Televizyon"]
["5 Yaş N Şubesi",null,null,"Raylı Sistemler Teknolojisi"]
["3 Yaş O Şubesi",null,null,"Sağlık Hizmetleri"]
["4 Yaş O Şubesi",null,null,"Sanat Ve Tasarım"]
["5 Yaş O Şubesi",null,null,"Seramik Ve Cam Teknolojisi"]
["3 Yaş P Şubesi",null,null,"Sivil Havacılık"]
["4 Yaş P Şubesi",null,null,"Tarım"]
["5 Yaş P Şubesi",null,null,"Tasarım Teknolojileri"]
["3 Yaş R Şubesi",null,null,"Tekstil Teknolojisi"]
["4 Yaş R Şubesi",null,null,"Tesisat Teknolojisi Ve İklimlendirme"]
["5 Yaş R Şubesi",null,null,"Uçak Bakım"]
["3 Yaş S Şubesi",null,null,"Ulaştırma Hizmetleri"]
["4 Yaş S Şubesi",null,null,"Yenilenebilir Enerji Teknolojileri"]
["5 Yaş S Şubesi",null,null,"Yiyecek İçecek Hizmetleri"]
["3 Yaş Ş Şubesi"]
["4 Yaş Ş Şubesi"]
["5 Yaş Ş Şubesi"]
["3 Yaş T Şubesi"]
["4 Yaş T Şubesi"]
["5 Yaş T Şubesi"]
["3 Yaş U Şubesi"]
["4 Yaş U Şubesi"]
["5 Yaş U Şubesi"]
["3 Yaş V Şubesi"]
["4 Yaş V Şubesi"]
["5 Yaş V Şubesi"]
["3 Yaş Y Şubesi"]
["4 Yaş Y Şubesi"]
["5 Yaş Y Şubesi"]
["3 Yaş Z Şubesi"]
["4 Yaş Z Şubesi"]
["5 Yaş Z Şubesi"]